Workbook

Sheet Foreword
E2: Community Hazard Vulnerabilty Assessment (CHVA)

Sheet Information
A1: Community Hazard Vulnerability Assessment
A7: INSTRUCTIONS:
A8: Evaluate potential for event and response among the following categories using | I8: Issues to consider for mitigation, preparedness, response, and recovery
A9: the hazard-specific scale. Please note specific score criteria on the worksheet | I9: include, but are not limited to:
A10: to ensure accurate recording. | I10: 1 | J10: Status of current plans
I11: 2 | J11: Frequency of drills
A12: Issues to consider for probability include, but are not limited to: | I12: 3 | J12: Training status
A13: 1 | B13: Known risk | I13: 4 | J13: Insurance
A14: 2 | B14: Historical data | I14: 5 | J14: Availability of alternate sources for critical supplies/services
A15: 3 | B15: Manufacturer/vendor statistics | I15: 6 | J15: Time to marshal an on-scene response
I16: 7 | J16: Scope of response capability
A17: Issues to consider for human impact include, but are not limited to: | I17: 8 | J17: Historical evaluation of response success
A18: 1 | B18: Potential for death | I18: 9 | J18: Time to prepare and mitigate which may be event specific
A19: 2 | B19: Potential for injury requiring medical intervention
I20: Issues to consider for internal resources include, but are not limited to:
A21: Issues to consider for property impact include, but are not limited to: | I21: 1 | J21: Types of supplies on hand/will they meet need?
A22: 1 | B22: Cost to replace | I22: 2 | J22: Volume of supplies on hand/will they meet need?
A23: 2 | B23: Cost to set up temporary replacement | I23: 3 | J23: Staff availability
A24: 3 | B24: Cost to repair | I24: 4 | J24: Availability of back-up systems
A25: 4 | B25: Time to recover | I25: 5 | J25: Internal resources ability to withstand disasters/survivability
A27: Issues to consider for business impact include, but are not limited to: | I27: Issues to consider for external resources include, but are not limited to:
A28: 1 | B28: Business interruption | I28: 1 | J28: Types of agreements with community agencies/drills?
A29: 2 | B29: Employees unable to report to work | I29: 2 | J29: Coordination with local and state agencies
A30: 3 | B30: Customers unable to reach facility | I30: 3 | J30: Coordination with proximal health care facilities
A31: 4 | B31: Company in violation of contractual agreements | I31: 4 | J31: Coordination with treatment specific facilities
A32: 5 | B32: Imposition of fines and penalties or legal costs | I32: 5 | J32: Community resources
A33: 6 | B33: Interruption of critical supplies
A34: 7 | B34: Interruption of product distribution
A35: 8 | B35: Reputation and public image
A36: 9 | B36: Financial impact/burden

Sheet CHVA Tool - Data Entry
A1: Children's Hospital Colorado | D1: Trauma Rating: | E1: 1 | G1: Four Phases of Emergency Management | P1: Version 1.0 (8/13)
A2: COMMUNITY HAZARD VULNERABILITY ASSESSMENT TOOL | B2: PROBABILITY | D2: HUMAN IMPACT | E2: PROPERTY IMPACT | F2: BUSINESS IMPACT | G2: MITIGATION | I2: PREPAREDNESS | K2: RESPONSE | M2: RECOVERY | O2: RISK Occurrence | P2: RISK Response | Q2: Non Weighted
B3: Likelihood of future occurrence and facility response | D3: Percentage of population likely to be injured or killed under an average occurrence of the hazard | E3: Percentage of properties likely to be affected under an average occurrence of the hazard | F3: Percentage of businesses likely to be affected under an average occurrence of the hazard | G3: Internal (Jurisdic-tional) | H3: External (Region/ State) | I3: Internal (Jurisdic-tional) | J3: External (Region/ State) | K3: Internal (Jurisdic-tional) | L3: External (Region/ State) | M3: Internal (Jurisdic-tional) | N3: External (Region/ State) | O3: Relative threat (increases with percentage) | P3: Relative threat (increases with percentage) | Q3: Realtive threat (increases with number)
B4: 0 = N/A (implausible) 1 = Low (0-1 event / 30 years) 2 = Moderate (2-3 events / 30 years) 3 = High (4+ events / 30 years) | D4: 0 = N/A (no impact expected) 1 = Low (<1% affected) 2 = Moderate (1-10% affected) 3 = High (>10% affected) | E4: 0 = N/A (no impact expected) 1 = Low (<1% affected) 2 = Moderate (1-10% affected) 3 = High (>10% affected) | F4: 0 = N/A (no impact expected) 1 = Low (<1% affected) 2 = Moderate (1-10% affected) 3 = High (>10% affected) | G4: 1 = Substantial 2 = Moderate 3 = Limited or none | H4: 1 = Substantial 2 = Moderate 3 = Limited or none | I4: 1 = Substantial 2 = Moderate 3 = Limited or none | J4: 1 = Substantial 2 = Moderate 3 = Limited or none | K4: 1 = Substantial 2 = Moderate 3 = Limited or none | L4: 1 = Substantial 2 = Moderate 3 = Limited or none | M4: 1 = Substantial 2 = Moderate 3 = Limited or none | N4: 1 = Substantial 2 = Moderate 3 = Limited or none | O4: 0 - 100% | P4: 0 - 100% | Q4: 0 - 198
A6: National Planning Scenarios | B6: Occurrence | C6: Response
A7: Biological Attack – Aerosol Anthrax | B7: 3 | C7: 3 | D7: 1 | E7: 2 | F7: 3 | G7: 1 | H7: 2 | I7: 2 | J7: 1 | K7: 3 | L7: 2 | M7: 1 | N7: 2 | O7: =SUM(B7/3)*(((SUM(D7:F7)+(SUM(G7:N7)*2))/57)) -> 0.5964912281 | P7: =SUM(C7/3)*(((SUM(D7:F7)+(SUM(G7:N7)*2))/57)) -> 0.5964912281 | Q7: =SUM(D7:N7)*(B7+C7) -> 120
A8: Biological Attack – Food Contamination | B8: 3 | C8: 3 | D8: 1 | E8: 2 | F8: 3 | G8: 1 | H8: 2 | I8: 2 | J8: 1 | K8: 3 | L8: 2 | M8: 1 | N8: 2 | O8: =SUM(B8/3)*(((SUM(D8:F8)+(SUM(G8:N8)*2))/57)) -> 0.5964912281 | P8: =SUM(C8/3)*(((SUM(D8:F8)+(SUM(G8:N8)*2))/57)) -> 0.5964912281 | Q8: =SUM(D8:N8)*(B8+C8) -> 120
A9: Biological Attack – Foreign Animal Disease | B9: 3 | C9: 2 | D9: 1 | E9: 2 | F9: 3 | G9: 1 | H9: 2 | I9: 2 | J9: 1 | K9: 3 | L9: 2 | M9: 1 | N9: 2 | O9: 0.5964912281 | P9: 0.3976608187 | Q9: =SUM(D9:N9)*(B9+C9) -> 100
A10: Biological Attack – Plague | B10: 3 | C10: 2 | D10: 1 | E10: 2 | F10: 3 | G10: 1 | H10: 2 | I10: 2 | J10: 1 | K10: 3 | L10: 2 | M10: 1 | N10: 2 | O10: 0.5964912281 | P10: 0.3976608187 | Q10: 100
A11: Biological Disease Outbreak – Pandemic flu | B11: 1 | C11: 2 | D11: 1 | E11: 2 | F11: 3 | G11: 1 | H11: 2 | I11: 2 | J11: 1 | K11: 3 | L11: 2 | M11: 1 | N11: 2 | O11: 0.1988304094 | P11: 0.3976608187 | Q11: 60
A12: Chemical Attack – Blister Agent | B12: 1 | C12: 2 | D12: 1 | E12: 2 | F12: 3 | G12: 1 | H12: 2 | I12: 2 | J12: 1 | K12: 3 | L12: 2 | M12: 1 | N12: 2 | O12: 0.1988304094 | P12: 0.3976608187 | Q12: 60
A13: Chemical Attack – Chlorine Tank Explosion | B13: 1 | C13: 2 | D13: 1 | E13: 2 | F13: 3 | G13: 1 | H13: 2 | I13: 2 | J13: 1 | K13: 3 | L13: 2 | M13: 1 | N13: 2 | O13: 0.1988304094 | P13: 0.3976608187 | Q13: 60
A14: Chemical Attack – Nerve Agent | B14: 1 | C14: 2 | D14: 1 | E14: 2 | F14: 3 | G14: 1 | H14: 2 | I14: 2 | J14: 1 | K14: 3 | L14: 2 | M14: 1 | N14: 2 | O14: 0.1988304094 | P14: 0.3976608187 | Q14: 60
A15: Chemical Attack – Toxic Industrial Chemicals | B15: 1 | C15: 2 | D15: 1 | E15: 2 | F15: 3 | G15: 1 | H15: 2 | I15: 2 | J15: 1 | K15: 3 | L15: 2 | M15: 1 | N15: 2 | O15: 0.1988304094 | P15: 0.3976608187 | Q15: 60
A16: Cyber Attack | B16: 1 | C16: 2 | D16: 1 | E16: 2 | F16: 3 | G16: 1 | H16: 2 | I16: 2 | J16: 1 | K16: 3 | L16: 2 | M16: 1 | N16: 2 | O16: 0.1988304094 | P16: 0.3976608187 | Q16: 60
A17: Explosives Attack – Improvised Explosive | B17: 1 | C17: 2 | D17: 1 | E17: 2 | F17: 3 | G17: 1 | H17: 2 | I17: 2 | J17: 1 | K17: 3 | L17: 2 | M17: 1 | N17: 2 | O17: 0.1988304094 | P17: 0.3976608187 | Q17: 60
A18: Natural Disaster – Major Earthquake | B18: 1 | C18: 2 | D18: 1 | E18: 2 | F18: 3 | G18: 1 | H18: 2 | I18: 2 | J18: 1 | K18: 3 | L18: 2 | M18: 1 | N18: 2 | O18: 0.1988304094 | P18: 0.3976608187 | Q18: 60
A19: Natural Disaster – Major Hurricane | B19: 1 | C19: 2 | D19: 1 | E19: 2 | F19: 3 | G19: 1 | H19: 2 | I19: 2 | J19: 1 | K19: 3 | L19: 2 | M19: 1 | N19: 2 | O19: 0.1988304094 | P19: 0.3976608187 | Q19: 60
A20: Nuclear Detonation – Improvised Device | B20: 1 | C20: 2 | D20: 1 | E20: 2 | F20: 3 | G20: 1 | H20: 2 | I20: 2 | J20: 1 | K20: 3 | L20: 2 | M20: 1 | N20: 2 | O20: 0.1988304094 | P20: 0.3976608187 | Q20: 60
A21: Radiological Attack – Radiological Dispersal | B21: 1 | C21: 2 | D21: 1 | E21: 2 | F21: 3 | G21: 1 | H21: 2 | I21: 2 | J21: 1 | K21: 3 | L21: 2 | M21: 1 | N21: 2 | O21: 0.1988304094 | P21: 0.3976608187 | Q21: 60
O22: 0 | P22: 0 | Q22: 0
O23: =SUM(B23/3)*(((SUM(D23:F23)+(SUM(G23:N23)*2))/57)) -> 0 | P23: =SUM(C23/3)*(((SUM(D23:F23)+(SUM(G23:N23)*2))/57)) -> 0 | Q23: =SUM(D23:N23)*(B23+C23) -> 0
A24: Average: | B24: =AVERAGE(B7:B23) -> 1.533333333 | C24: =AVERAGE(C7:C23) -> 2.133333333 | D24: 1 | E24: 2 | F24: 3 | G24: 1 | H24: 2 | I24: 2 | J24: 1 | K24: 3 | L24: 2 | M24: 1 | N24: 2
A25: Naturally Occurring Events
A26: Avalanche | B26: 3 | C26: 3 | D26: 1 | E26: 2 | F26: 3 | G26: 2 | H26: 2 | I26: 3 | J26: 1 | K26: 1 | L26: 3 | M26: 2 | N26: 1 | O26: =SUM(B26/3)*(((SUM(D26:F26)+(SUM(G26:N26)*2))/57)) -> 0.6315789474 | P26: =SUM(C26/3)*(((SUM(D26:F26)+(SUM(G26:N26)*2))/57)) -> 0.6315789474 | Q26: =SUM(D26:N26)*(B26+C26) -> 126
A27: Dam Inundation | B27: 3 | C27: 3 | D27: 1 | E27: 2 | F27: 3 | G27: 2 | H27: 2 | I27: 3 | J27: 1 | K27: 1 | L27: 3 | M27: 2 | N27: 1 | O27: =SUM(B27/3)*(((SUM(D27:F27)+(SUM(G27:N27)*2))/57)) -> 0.6315789474 | P27: =SUM(C27/3)*(((SUM(D27:F27)+(SUM(G27:N27)*2))/57)) -> 0.6315789474 | Q27: =SUM(D27:N27)*(B27+C27) -> 126
A28: Drought | B28: 2 | C28: 2 | D28: 1 | E28: 2 | F28: 3 | G28: 2 | H28: 2 | I28: 3 | J28: 1 | K28: 1 | L28: 3 | M28: 2 | N28: 1 | O28: 0.4210526316 | P28: 0.4210526316 | Q28: 84
A29: Earthquake | B29: 2 | C29: 2 | D29: 1 | E29: 2 | F29: 3 | G29: 2 | H29: 2 | I29: 3 | J29: 1 | K29: 1 | L29: 3 | M29: 2 | N29: 1 | O29: 0.4210526316 | P29: 0.4210526316 | Q29: 84
A30: Epidemic/Pandemic | B30: 1 | C30: 2 | D30: 1 | E30: 2 | F30: 3 | G30: 2 | H30: 2 | I30: 3 | J30: 1 | K30: 1 | L30: 3 | M30: 2 | N30: 1 | O30: 0.2105263158 | P30: 0.4210526316 | Q30: 63
A31: Flood (External) | B31: 1 | C31: 2 | D31: 1 | E31: 2 | F31: 3 | G31: 2 | H31: 2 | I31: 3 | J31: 1 | K31: 1 | L31: 3 | M31: 2 | N31: 1 | O31: 0.2105263158 | P31: 0.4210526316 | Q31: 63
A32: Hail | B32: 1 | C32: 2 | D32: 1 | E32: 2 | F32: 3 | G32: 2 | H32: 2 | I32: 3 | J32: 1 | K32: 1 | L32: 3 | M32: 2 | N32: 1 | O32: =SUM(B32/3)*(((SUM(D32:F32)+(SUM(G32:N32)*2))/57)) -> 0.2105263158 | P32: =SUM(C32/3)*(((SUM(D32:F32)+(SUM(G32:N32)*2))/57)) -> 0.4210526316 | Q32: =SUM(D32:N32)*(B32+C32) -> 63
A33: High Winds | B33: 1 | C33: 2 | D33: 1 | E33: 2 | F33: 3 | G33: 2 | H33: 2 | I33: 3 | J33: 1 | K33: 1 | L33: 3 | M33: 2 | N33: 1 | O33: 0.2105263158 | P33: 0.4210526316 | Q33: 63
A34: Hurricane | B34: 1 | C34: 2 | D34: 1 | E34: 2 | F34: 3 | G34: 2 | H34: 2 | I34: 3 | J34: 1 | K34: 1 | L34: 3 | M34: 2 | N34: 1 | O34: =SUM(B34/3)*(((SUM(D34:F34)+(SUM(G34:N34)*2))/57)) -> 0.2105263158 | P34: =SUM(C34/3)*(((SUM(D34:F34)+(SUM(G34:N34)*2))/57)) -> 0.4210526316 | Q34: =SUM(D34:N34)*(B34+C34) -> 63
A35: Ice Storm | B35: 1 | C35: 2 | D35: 1 | E35: 2 | F35: 3 | G35: 2 | H35: 2 | I35: 3 | J35: 1 | K35: 1 | L35: 3 | M35: 2 | N35: 1 | O35: 0.2105263158 | P35: 0.4210526316 | Q35: 63
A36: Insect Infestation | B36: 1 | C36: 2 | D36: 1 | E36: 2 | F36: 3 | G36: 2 | H36: 2 | I36: 3 | J36: 1 | K36: 1 | L36: 3 | M36: 2 | N36: 1 | O36: 0.2105263158 | P36: 0.4210526316 | Q36: 63
A37: Landslide | B37: 1 | C37: 2 | D37: 1 | E37: 2 | F37: 3 | G37: 2 | H37: 2 | I37: 3 | J37: 1 | K37: 1 | L37: 3 | M37: 2 | N37: 1 | O37: 0.2105263158 | P37: 0.4210526316 | Q37: 63
A38: Severe Blizzard/Snow Fall | B38: 1 | C38: 2 | D38: 1 | E38: 2 | F38: 3 | G38: 2 | H38: 2 | I38: 3 | J38: 1 | K38: 1 | L38: 3 | M38: 2 | N38: 1 | O38: 0.2105263158 | P38: 0.4210526316 | Q38: 63
A39: Severe Thunderstorm | B39: 1 | C39: 2 | D39: 1 | E39: 2 | F39: 3 | G39: 2 | H39: 2 | I39: 3 | J39: 1 | K39: 1 | L39: 3 | M39: 2 | N39: 1 | O39: 0.2105263158 | P39: 0.4210526316 | Q39: 63
A40: Solar Flares | B40: 1 | C40: 2 | D40: 1 | E40: 2 | F40: 3 | G40: 2 | H40: 2 | I40: 3 | J40: 1 | K40: 1 | L40: 3 | M40: 2 | N40: 1 | O40: 0.2105263158 | P40: 0.4210526316 | Q40: 63
A41: Temperature Extreme (Cold) | B41: 1 | C41: 2 | D41: 1 | E41: 2 | F41: 3 | G41: 2 | H41: 2 | I41: 3 | J41: 1 | K41: 1 | L41: 3 | M41: 2 | N41: 1 | O41: 0.2105263158 | P41: 0.4210526316 | Q41: 63
A42: Temperature Extreme (Hot) | B42: 1 | C42: 2 | D42: 1 | E42: 2 | F42: 3 | G42: 2 | H42: 2 | I42: 3 | J42: 1 | K42: 1 | L42: 3 | M42: 2 | N42: 1 | O42: 0.2105263158 | P42: 0.4210526316 | Q42: 63
A43: Tidal Wave | B43: 1 | C43: 2 | D43: 1 | E43: 2 | F43: 3 | G43: 2 | H43: 2 | I43: 3 | J43: 1 | K43: 1 | L43: 3 | M43: 2 | N43: 1 | O43: =SUM(B43/3)*(((SUM(D43:F43)+(SUM(G43:N43)*2))/57)) -> 0.2105263158 | P43: =SUM(C43/3)*(((SUM(D43:F43)+(SUM(G43:N43)*2))/57)) -> 0.4210526316 | Q43: =SUM(D43:N43)*(B43+C43) -> 63
A44: Tornado | B44: 1 | C44: 2 | D44: 1 | E44: 2 | F44: 3 | G44: 2 | H44: 2 | I44: 3 | J44: 1 | K44: 1 | L44: 3 | M44: 2 | N44: 1 | O44: 0.2105263158 | P44: 0.4210526316 | Q44: 63
A45: Volcano | B45: 1 | C45: 2 | D45: 1 | E45: 2 | F45: 3 | G45: 2 | H45: 2 | I45: 3 | J45: 1 | K45: 1 | L45: 3 | M45: 2 | N45: 1 | O45: 0.2105263158 | P45: 0.4210526316 | Q45: 63
A46: Wild Fire | B46: 1 | C46: 2 | D46: 1 | E46: 2 | F46: 3 | G46: 2 | H46: 2 | I46: 3 | J46: 1 | K46: 1 | L46: 3 | M46: 2 | N46: 1 | O46: 0.2105263158 | P46: 0.4210526316 | Q46: 63
O47: =SUM(B47/3)*(((SUM(D47:F47)+(SUM(G47:N47)*2))/57)) -> 0 | P47: =SUM(C47/3)*(((SUM(D47:F47)+(SUM(G47:N47)*2))/57)) -> 0 | Q47: =SUM(D47:N47)*(B47+C47) -> 0
O48: =SUM(B48/3)*(((SUM(D48:F48)+(SUM(G48:N48)*2))/57)) -> 0 | P48: =SUM(C48/3)*(((SUM(D48:F48)+(SUM(G48:N48)*2))/57)) -> 0 | Q48: =SUM(D48:N48)*(B48+C48) -> 0
A49: Average: | B49: =AVERAGE(B26:B48) -> 1.285714286 | C49: =AVERAGE(C26:C48) -> 2.095238095 | D49: 1 | E49: 2 | F49: 3 | G49: 2 | H49: 2 | I49: 3 | J49: 1 | K49: 1 | L49: 3 | M49: 2 | N49: 1
A50: Human Related Events
A51: Active Shooter | B51: 3 | C51: 3 | D51: 3 | E51: 1 | F51: 2 | G51: 2 | H51: 2 | I51: 1 | J51: 3 | K51: 2 | L51: 3 | M51: 1 | N51: 1 | O51: =SUM(B51/3)*(((SUM(D51:F51)+(SUM(G51:N51)*2))/57)) -> 0.6315789474 | P51: =SUM(C51/3)*(((SUM(D51:F51)+(SUM(G51:N51)*2))/57)) -> 0.6315789474 | Q51: =SUM(D51:N51)*(B51+C51) -> 126
A52: Bomb Threat | B52: 3 | C52: 3 | D52: 3 | E52: 1 | F52: 2 | G52: 2 | H52: 2 | I52: 1 | J52: 3 | K52: 2 | L52: 3 | M52: 1 | N52: 1 | O52: 0.6315789474 | P52: 0.6315789474 | Q52: 126
A53: Civil Disturbance | B53: 2 | C53: 2 | D53: 3 | E53: 1 | F53: 2 | G53: 2 | H53: 2 | I53: 1 | J53: 3 | K53: 2 | L53: 3 | M53: 1 | N53: 1 | O53: 0.4210526316 | P53: 0.4210526316 | Q53: 84
A54: Forensic Admission | B54: 2 | C54: 2 | D54: 3 | E54: 1 | F54: 2 | G54: 2 | H54: 3 | I54: 1 | J54: 3 | K54: 2 | L54: 3 | M54: 1 | N54: 1 | O54: =SUM(B54/3)*(((SUM(D54:F54)+(SUM(G54:N54)*2))/57)) -> 0.4444444444 | P54: =SUM(C54/3)*(((SUM(D54:F54)+(SUM(G54:N54)*2))/57)) -> 0.4444444444 | Q54: =SUM(D54:N54)*(B54+C54) -> 88
A55: Hostage Situation | B55: 2 | C55: 1 | D55: 3 | E55: 1 | F55: 2 | G55: 2 | H55: 2 | I55: 1 | J55: 3 | K55: 2 | L55: 3 | M55: 1 | N55: 1 | O55: 0.4210526316 | P55: 0.2105263158 | Q55: 63
A56: Infant Abduction | B56: 2 | C56: 1 | D56: 3 | E56: 1 | F56: 2 | G56: 2 | H56: 2 | I56: 1 | J56: 3 | K56: 2 | L56: 3 | M56: 1 | N56: 1 | O56: 0.4210526316 | P56: 0.2105263158 | Q56: 63
A57: Labor Action | B57: 2 | C57: 1 | D57: 3 | E57: 1 | F57: 2 | G57: 2 | H57: 2 | I57: 1 | J57: 3 | K57: 2 | L57: 3 | M57: 1 | N57: 1 | O57: 0.4210526316 | P57: 0.2105263158 | Q57: 63
A58: Mass Casualty (Trauma) | B58: 2 | C58: 1 | D58: 3 | E58: 1 | F58: 2 | G58: 2 | H58: 2 | I58: 1 | J58: 3 | K58: 2 | L58: 3 | M58: 1 | N58: 1 | O58: 0.4210526316 | P58: 0.2105263158 | Q58: 63
A59: Missing Child | B59: 2 | C59: 1 | D59: 3 | E59: 1 | F59: 2 | G59: 2 | H59: 2 | I59: 1 | J59: 3 | K59: 2 | L59: 3 | M59: 1 | N59: 1 | O59: 0.4210526316 | P59: 0.2105263158 | Q59: 63
A60: Staffing Shortage | B60: 2 | C60: 1 | D60: 3 | E60: 1 | F60: 2 | G60: 2 | H60: 2 | I60: 1 | J60: 3 | K60: 2 | L60: 3 | M60: 1 | N60: 1 | O60: =SUM(B60/3)*(((SUM(D60:F60)+(SUM(G60:N60)*2))/57)) -> 0.4210526316 | P60: =SUM(C60/3)*(((SUM(D60:F60)+(SUM(G60:N60)*2))/57)) -> 0.2105263158 | Q60: =SUM(D60:N60)*(B60+C60) -> 63
A61: Violence in the ED | B61: 2 | C61: 1 | D61: 3 | E61: 1 | F61: 2 | G61: 2 | H61: 2 | I61: 1 | J61: 3 | K61: 2 | L61: 3 | M61: 1 | N61: 1 | O61: 0.4210526316 | P61: 0.2105263158 | Q61: 63
A62: VIP Situation | B62: 2 | C62: 1 | D62: 3 | E62: 1 | F62: 2 | G62: 2 | H62: 2 | I62: 1 | J62: 3 | K62: 2 | L62: 3 | M62: 1 | N62: 1 | O62: 0.4210526316 | P62: 0.2105263158 | Q62: 63
A63: Workplace Violence | B63: 2 | C63: 1 | D63: 3 | E63: 1 | F63: 2 | G63: 2 | H63: 2 | I63: 1 | J63: 3 | K63: 2 | L63: 3 | M63: 1 | N63: 1 | O63: 0.4210526316 | P63: 0.2105263158 | Q63: 63
O64: =SUM(B64/3)*(((SUM(D64:F64)+(SUM(G64:N64)*2))/57)) -> 0 | P64: =SUM(C64/3)*(((SUM(D64:F64)+(SUM(G64:N64)*2))/57)) -> 0 | Q64: =SUM(D64:N64)*(B64+C64) -> 0
O65: 0 | P65: 0 | Q65: 0
A66: Average: | B66: =AVERAGE(B51:B65) -> 2.153846154 | C66: 1.461538462 | D66: 3 | E66: 1 | F66: 2 | G66: 2 | H66: 2.076923077 | I66: 1 | J66: 3 | K66: 2 | L66: 3 | M66: 1 | N66: 1
A67: Hazardous Materials Events
A68: Decontamination | B68: 3 | C68: 3 | D68: 2 | E68: 3 | F68: 1 | G68: 2 | H68: 2 | I68: 1 | J68: 1 | K68: 2 | L68: 2 | M68: 3 | N68: 3 | O68: =SUM(B68/3)*(((SUM(D68:F68)+(SUM(G68:N68)*2))/57)) -> 0.6666666667 | P68: =SUM(C68/3)*(((SUM(D68:F68)+(SUM(G68:N68)*2))/57)) -> 0.6666666667 | Q68: =SUM(D68:N68)*(B68+C68) -> 132
A69: HAZMAT Spill (Internal) | B69: 3 | C69: 3 | D69: 2 | E69: 3 | F69: 1 | G69: 2 | H69: 2 | I69: 1 | J69: 1 | K69: 2 | L69: 2 | M69: 3 | N69: 3 | O69: 0.6666666667 | P69: 0.6666666667 | Q69: 132
A70: HAZMAT Spill (External) | B70: 2 | C70: 1 | D70: 2 | E70: 3 | F70: 1 | G70: 2 | H70: 2 | I70: 1 | J70: 1 | K70: 2 | L70: 2 | M70: 3 | N70: 3 | O70: =SUM(B70/3)*(((SUM(D70:F70)+(SUM(G70:N70)*2))/57)) -> 0.4444444444 | P70: =SUM(C70/3)*(((SUM(D70:F70)+(SUM(G70:N70)*2))/57)) -> 0.2222222222 | Q70: =SUM(D70:N70)*(B70+C70) -> 66
A71: Indoor Air Quality Issues | B71: 2 | C71: 1 | D71: 2 | E71: 3 | F71: 1 | G71: 2 | H71: 2 | I71: 1 | J71: 1 | K71: 2 | L71: 2 | M71: 3 | N71: 3 | O71: 0.4444444444 | P71: 0.2222222222 | Q71: 66
A72: Large Internal Spill | B72: 2 | C72: 1 | D72: 2 | E72: 3 | F72: 1 | G72: 2 | H72: 2 | I72: 1 | J72: 1 | K72: 2 | L72: 2 | M72: 3 | N72: 3 | O72: 0.4444444444 | P72: 0.2222222222 | Q72: 66
A73: Radiologic Exposure (Internal) | B73: 2 | C73: 1 | D73: 2 | E73: 3 | F73: 1 | G73: 2 | H73: 2 | I73: 1 | J73: 1 | K73: 2 | L73: 2 | M73: 3 | N73: 3 | O73: 0.4444444444 | P73: 0.2222222222 | Q73: 66
A74: Radiological Incident (External) | B74: 2 | C74: 1 | D74: 2 | E74: 3 | F74: 1 | G74: 2 | H74: 2 | I74: 1 | J74: 1 | K74: 2 | L74: 2 | M74: 3 | N74: 3 | O74: 0.4444444444 | P74: =SUM(C74/3)*(((SUM(D74:F74)+(SUM(G74:N74)*2))/57)) -> 0.2222222222 | Q74: =SUM(D74:N74)*(B74+C74) -> 66
A75: Small-Medium Sized Internal Spill | B75: 2 | C75: 1 | D75: 2 | E75: 3 | F75: 1 | G75: 2 | H75: 2 | I75: 1 | J75: 1 | K75: 2 | L75: 2 | M75: 3 | N75: 3 | O75: 0.4444444444 | P75: 0.2222222222 | Q75: 66
A76: Unknown Explosion | B76: 2 | C76: 1 | D76: 2 | E76: 3 | F76: 1 | G76: 2 | H76: 2 | I76: 1 | J76: 1 | K76: 2 | L76: 2 | M76: 3 | N76: 3 | O76: 0.4444444444 | P76: 0.2222222222 | Q76: 66
O77: =SUM(B77/3)*(((SUM(D77:F77)+(SUM(G77:N77)*2))/57)) -> 0 | P77: =SUM(C77/3)*(((SUM(D77:F77)+(SUM(G77:N77)*2))/57)) -> 0 | Q77: =SUM(D77:N77)*(B77+C77) -> 0
O78: 0 | P78: 0 | Q78: 0
A79: Average: | B79: =AVERAGE(B68:B78) -> 2.222222222 | C79: =AVERAGE(C68:C78) -> 1.444444444 | D79: =AVERAGE(D68:D78) -> 2 | E79: 3 | F79: 1 | G79: 2 | H79: 2 | I79: 1 | J79: 1 | K79: 2 | L79: 2 | M79: 3 | N79: 3
A80: Technologic Events
A81: Communications Failure | B81: 3 | C81: 3 | D81: 3 | E81: 2 | F81: 2 | G81: 2 | H81: 3 | I81: 1 | J81: 2 | K81: 2 | L81: 2 | M81: 3 | N81: 3 | O81: =SUM(B81/3)*(((SUM(D81:F81)+(SUM(G81:N81)*2))/57)) -> 0.7543859649 | P81: =SUM(C81/3)*(((SUM(D81:F81)+(SUM(G81:N81)*2))/57)) -> 0.7543859649 | Q81: =SUM(D81:N81)*(B81+C81) -> 150
A82: Infant Security Alarm Failure | B82: 3 | C82: 3 | D82: 3 | E82: 2 | F82: 2 | G82: 2 | H82: 3 | I82: 1 | J82: 2 | K82: 2 | L82: 2 | M82: 3 | N82: 3 | O82: =SUM(B82/3)*(((SUM(D82:F82)+(SUM(G82:N82)*2))/57)) -> 0.7543859649 | P82: =SUM(C82/3)*(((SUM(D82:F82)+(SUM(G82:N82)*2))/57)) -> 0.7543859649 | Q82: =SUM(D82:N82)*(B82+C82) -> 150
A83: Information Systems Failure | B83: 2 | C83: 3 | D83: 3 | E83: 2 | F83: 2 | G83: 2 | H83: 3 | I83: 1 | J83: 2 | K83: 2 | L83: 2 | M83: 3 | N83: 3 | O83: 0.5029239766 | P83: 0.7543859649 | Q83: 125
A84: Magnetic Resonance Imaging (MRI) Incident | B84: 2 | C84: 3 | D84: 3 | E84: 2 | F84: 2 | G84: 2 | H84: 3 | I84: 1 | J84: 2 | K84: 2 | L84: 2 | M84: 3 | N84: 3 | O84: 0.5029239766 | P84: 0.7543859649 | Q84: 125
A85: Network Failure | B85: 2 | C85: 2 | D85: 3 | E85: 2 | F85: 2 | G85: 2 | H85: 3 | I85: 1 | J85: 2 | K85: 2 | L85: 2 | M85: 3 | N85: 3 | O85: =SUM(B85/3)*(((SUM(D85:F85)+(SUM(G85:N85)*2))/57)) -> 0.5029239766 | P85: =SUM(C85/3)*(((SUM(D85:F85)+(SUM(G85:N85)*2))/57)) -> 0.5029239766 | Q85: =SUM(D85:N85)*(B85+C85) -> 100
A86: Pharmacy Medication Dispenser Failure | B86: 2 | C86: 2 | D86: 3 | E86: 2 | F86: 2 | G86: 2 | H86: 3 | I86: 1 | J86: 2 | K86: 2 | L86: 2 | M86: 3 | N86: 3 | O86: 0.5029239766 | P86: 0.5029239766 | Q86: 100
A87: Security Card Access Failure | B87: 2 | C87: 2 | D87: 3 | E87: 2 | F87: 2 | G87: 2 | H87: 3 | I87: 1 | J87: 2 | K87: 2 | L87: 2 | M87: 3 | N87: 3 | O87: 0.5029239766 | P87: 0.5029239766 | Q87: 100
A88: Security Video Surveillance | B88: 2 | C88: 2 | D88: 3 | E88: 2 | F88: 2 | G88: 2 | H88: 3 | I88: 1 | J88: 2 | K88: 2 | L88: 2 | M88: 3 | N88: 3 | O88: =SUM(B88/3)*(((SUM(D88:F88)+(SUM(G88:N88)*2))/57)) -> 0.5029239766 | P88: =SUM(C88/3)*(((SUM(D88:F88)+(SUM(G88:N88)*2))/57)) -> 0.5029239766 | Q88: 100
O89: =SUM(B89/3)*(((SUM(D89:F89)+(SUM(G89:N89)*2))/57)) -> 0 | P89: =SUM(C89/3)*(((SUM(D89:F89)+(SUM(G89:N89)*2))/57)) -> 0 | Q89: =SUM(D89:N89)*(B89+C89) -> 0
O90: 0 | P90: 0 | Q90: 0
A91: Average: | B91: =AVERAGE(B81:B90) -> 2.25 | C91: =AVERAGE(C81:C90) -> 2.5 | D91: 3 | E91: 2 | F91: 2 | G91: 2 | H91: 3 | I91: 1 | J91: 2 | K91: 2 | L91: 2 | M91: 3 | N91: 3
A92: Utility Events
A93: Broken Water Main (Internal) | B93: 3 | C93: 3 | D93: 2 | E93: 3 | F93: 1 | G93: 1 | H93: 2 | I93: 1 | J93: 2 | K93: 3 | L93: 1 | M93: 2 | N93: 2 | O93: 0.5964912281 | P93: 0.5964912281 | Q93: 120
A94: Broken Water Main (External) | B94: 3 | C94: 3 | D94: 2 | E94: 3 | F94: 1 | G94: 1 | H94: 2 | I94: 1 | J94: 2 | K94: 3 | L94: 1 | M94: 2 | N94: 2 | O94: 0.5964912281 | P94: 0.5964912281 | Q94: 120
A95: Compressed Gas Cylinder Leak/Failure | B95: 2 | C95: 3 | D95: 2 | E95: 3 | F95: 1 | G95: 1 | H95: 2 | I95: 1 | J95: 2 | K95: 3 | L95: 1 | M95: 2 | N95: 2 | O95: 0.3976608187 | P95: 0.5964912281 | Q95: 100
A96: Electrical Failure | B96: 2 | C96: 3 | D96: 2 | E96: 3 | F96: 1 | G96: 1 | H96: 2 | I96: 1 | J96: 2 | K96: 3 | L96: 1 | M96: 2 | N96: 2 | O96: 0.3976608187 | P96: 0.5964912281 | Q96: 100
A97: Elevator Failure | B97: 2 | C97: 1 | D97: 2 | E97: 3 | F97: 1 | G97: 1 | H97: 2 | I97: 1 | J97: 2 | K97: 3 | L97: 1 | M97: 2 | N97: 2 | O97: 0.3976608187 | P97: 0.1988304094 | Q97: 60
A98: Fire (Internal) | B98: 2 | C98: 1 | D98: 2 | E98: 3 | F98: 1 | G98: 1 | H98: 2 | I98: 1 | J98: 2 | K98: 3 | L98: 1 | M98: 2 | N98: 2 | O98: 0.3976608187 | P98: 0.1988304094 | Q98: 60
A99: Fire Detection/Alarm Failure | B99: 2 | C99: 1 | D99: 2 | E99: 3 | F99: 1 | G99: 1 | H99: 2 | I99: 1 | J99: 2 | K99: 3 | L99: 1 | M99: 2 | N99: 2 | O99: 0.3976608187 | P99: 0.1988304094 | Q99: 60
A100: Fire Suppression Failure | B100: 2 | C100: 1 | D100: 2 | E100: 3 | F100: 1 | G100: 1 | H100: 2 | I100: 1 | J100: 2 | K100: 3 | L100: 1 | M100: 2 | N100: 2 | O100: 0.3976608187 | P100: 0.1988304094 | Q100: 60
A101: Flood (Internal) | B101: 2 | C101: 1 | D101: 2 | E101: 3 | F101: 1 | G101: 1 | H101: 2 | I101: 1 | J101: 2 | K101: 3 | L101: 1 | M101: 2 | N101: 2 | O101: 0.3976608187 | P101: 0.1988304094 | Q101: 60
A102: Fuel Shortage | B102: 2 | C102: 1 | D102: 2 | E102: 3 | F102: 1 | G102: 1 | H102: 2 | I102: 1 | J102: 2 | K102: 3 | L102: 1 | M102: 2 | N102: 2 | O102: 0.3976608187 | P102: 0.1988304094 | Q102: 60
A103: Generator Failure | B103: 2 | C103: 1 | D103: 2 | E103: 3 | F103: 1 | G103: 1 | H103: 2 | I103: 1 | J103: 2 | K103: 3 | L103: 1 | M103: 2 | N103: 2 | O103: 0.3976608187 | P103: 0.1988304094 | Q103: 60
A104: HVAC Failure | B104: 2 | C104: 1 | D104: 2 | E104: 3 | F104: 1 | G104: 1 | H104: 2 | I104: 1 | J104: 2 | K104: 3 | L104: 1 | M104: 2 | N104: 2 | O104: 0.3976608187 | P104: 0.1988304094 | Q104: 60
A105: Loss of Bulk Oxygen | B105: 2 | C105: 1 | D105: 2 | E105: 3 | F105: 1 | G105: 1 | H105: 2 | I105: 1 | J105: 2 | K105: 3 | L105: 1 | M105: 2 | N105: 2 | O105: 0.3976608187 | P105: 0.1988304094 | Q105: 60
A106: Medical Gas Failure | B106: 2 | C106: 1 | D106: 2 | E106: 3 | F106: 1 | G106: 1 | H106: 2 | I106: 1 | J106: 2 | K106: 3 | L106: 1 | M106: 2 | N106: 2 | O106: 0.3976608187 | P106: 0.1988304094 | Q106: 60
A107: Medical Vacuum Failure | B107: 2 | C107: 1 | D107: 2 | E107: 3 | F107: 1 | G107: 1 | H107: 2 | I107: 1 | J107: 2 | K107: 3 | L107: 1 | M107: 2 | N107: 2 | O107: 0.3976608187 | P107: 0.1988304094 | Q107: 60
A108: Natural Gas Failure | B108: 2 | C108: 1 | D108: 2 | E108: 3 | F108: 1 | G108: 1 | H108: 2 | I108: 1 | J108: 2 | K108: 3 | L108: 1 | M108: 2 | N108: 2 | O108: 0.3976608187 | P108: 0.1988304094 | Q108: 60
A109: Natural Gas Leak | B109: 2 | C109: 1 | D109: 2 | E109: 3 | F109: 1 | G109: 1 | H109: 2 | I109: 1 | J109: 2 | K109: 3 | L109: 1 | M109: 2 | N109: 2 | O109: 0.3976608187 | P109: 0.1988304094 | Q109: 60
A110: Oxygen Leak | B110: 2 | C110: 1 | D110: 2 | E110: 3 | F110: 1 | G110: 1 | H110: 2 | I110: 1 | J110: 2 | K110: 3 | L110: 1 | M110: 2 | N110: 2 | O110: 0.3976608187 | P110: 0.1988304094 | Q110: 60
A111: Potable Water Failure | B111: 2 | C111: 1 | D111: 2 | E111: 3 | F111: 1 | G111: 1 | H111: 2 | I111: 1 | J111: 2 | K111: 3 | L111: 1 | M111: 2 | N111: 2 | O111: 0.3976608187 | P111: 0.1988304094 | Q111: 60
A112: Process Water Failure | B112: 2 | C112: 1 | D112: 2 | E112: 3 | F112: 1 | G112: 1 | H112: 2 | I112: 1 | J112: 2 | K112: 3 | L112: 1 | M112: 2 | N112: 2 | O112: 0.3976608187 | P112: 0.1988304094 | Q112: 60
A113: Sewer Failure | B113: 2 | C113: 1 | D113: 2 | E113: 3 | F113: 1 | G113: 1 | H113: 2 | I113: 1 | J113: 2 | K113: 3 | L113: 1 | M113: 2 | N113: 2 | O113: 0.3976608187 | P113: 0.1988304094 | Q113: 60
A114: Steam Failure | B114: 2 | C114: 1 | D114: 2 | E114: 3 | F114: 1 | G114: 1 | H114: 2 | I114: 1 | J114: 2 | K114: 3 | L114: 1 | M114: 2 | N114: 2 | O114: 0.3976608187 | P114: 0.1988304094 | Q114: 60
A115: Structural Damage | B115: 2 | C115: 1 | D115: 2 | E115: 3 | F115: 1 | G115: 1 | H115: 2 | I115: 1 | J115: 2 | K115: 3 | L115: 1 | M115: 2 | N115: 2 | O115: 0.3976608187 | P115: 0.1988304094 | Q115: 60
A116: Tube System Failure | B116: 2 | C116: 1 | D116: 2 | E116: 3 | F116: 1 | G116: 1 | H116: 2 | I116: 1 | J116: 2 | K116: 3 | L116: 1 | M116: 2 | N116: 2 | O116: 0.3976608187 | P116: 0.1988304094 | Q116: 60
O117: 0 | P117: 0 | Q117: 0
O118: 0 | P118: 0 | Q118: 0
A119: Average: | B119: =AVERAGE(B93:B118) -> 2.083333333 | C119: =AVERAGE(C93:C118) -> 1.333333333 | D119: 2 | E119: 3 | F119: 1 | G119: 1 | H119: 2 | I119: 1 | J119: 2 | K119: 3 | L119: 1 | M119: 2 | N119: 2
A120: Geographic Events
A121: Proximity to nuclear power plants | B121: 3 | C121: 3 | D121: 2 | E121: 2 | F121: 2 | G121: 3 | H121: 2 | I121: 2 | J121: 2 | K121: 1 | L121: 1 | M121: 2 | N121: 2 | O121: =SUM(B121/3)*(((SUM(D121:F121)+(SUM(G121:N121)*2))/57)) -> 0.6315789474 | P121: =SUM(C121/3)*(((SUM(D121:F121)+(SUM(G121:N121)*2))/57)) -> 0.6315789474 | Q121: =SUM(D121:N121)*(B121+C121) -> 126
A122: Proximity to Bridges | B122: 3 | C122: 3 | D122: 2 | E122: 2 | F122: 2 | G122: 3 | H122: 2 | I122: 2 | J122: 2 | K122: 1 | L122: 1 | M122: 2 | N122: 2 | O122: 0.6315789474 | P122: 0.6315789474 | Q122: 126
A123: Proximity to bus terminals | B123: 2 | C123: 2 | D123: 2 | E123: 2 | F123: 2 | G123: 3 | H123: 2 | I123: 2 | J123: 2 | K123: 1 | L123: 1 | M123: 2 | N123: 2 | O123: 0.4210526316 | P123: 0.4210526316 | Q123: 84
A124: Proximity to Civic/Sports Events | B124: 2 | C124: 2 | D124: 2 | E124: 2 | F124: 2 | G124: 3 | H124: 2 | I124: 2 | J124: 2 | K124: 1 | L124: 1 | M124: 2 | N124: 2 | O124: 0.4210526316 | P124: 0.4210526316 | Q124: 84
A125: Proximity to companies that produce, store, use, or transport hazardous materials | B125: 2 | C125: 2 | D125: 2 | E125: 2 | F125: 2 | G125: 3 | H125: 2 | I125: 2 | J125: 2 | K125: 1 | L125: 1 | M125: 2 | N125: 2 | O125: 0.4210526316 | P125: 0.4210526316 | Q125: 84
A126: Proximity to Federal buildings | B126: 2 | C126: 2 | D126: 2 | E126: 2 | F126: 2 | G126: 3 | H126: 2 | I126: 2 | J126: 2 | K126: 1 | L126: 1 | M126: 2 | N126: 2 | O126: 0.4210526316 | P126: 0.4210526316 | Q126: 84
A127: Proximity to Festivals | B127: 2 | C127: 2 | D127: 2 | E127: 2 | F127: 2 | G127: 3 | H127: 2 | I127: 2 | J127: 2 | K127: 1 | L127: 1 | M127: 2 | N127: 2 | O127: 0.4210526316 | P127: 0.4210526316 | Q127: 84
A128: Proximity to flood plains, faults, and dams | B128: 2 | C128: 2 | D128: 2 | E128: 2 | F128: 2 | G128: 3 | H128: 2 | I128: 2 | J128: 2 | K128: 1 | L128: 1 | M128: 2 | N128: 2 | O128: 0.4210526316 | P128: 0.4210526316 | Q128: 84
A129: Proximity to local schools and universities | B129: 2 | C129: 2 | D129: 2 | E129: 2 | F129: 2 | G129: 3 | H129: 2 | I129: 2 | J129: 2 | K129: 1 | L129: 1 | M129: 2 | N129: 2 | O129: 0.4210526316 | P129: 0.4210526316 | Q129: 84
A130: Proximity to major trans. routes and airports | B130: 2 | C130: 2 | D130: 2 | E130: 2 | F130: 2 | G130: 3 | H130: 2 | I130: 2 | J130: 2 | K130: 1 | L130: 1 | M130: 2 | N130: 2 | O130: 0.4210526316 | P130: 0.4210526316 | Q130: 84
A131: Proximity to Parks | B131: 2 | C131: 2 | D131: 2 | E131: 2 | F131: 2 | G131: 3 | H131: 2 | I131: 2 | J131: 2 | K131: 1 | L131: 1 | M131: 2 | N131: 2 | O131: 0.4210526316 | P131: 0.4210526316 | Q131: 84
A132: Proximity to train stations | B132: 2 | C132: 2 | D132: 2 | E132: 2 | F132: 2 | G132: 3 | H132: 2 | I132: 2 | J132: 2 | K132: 1 | L132: 1 | M132: 2 | N132: 2 | O132: 0.4210526316 | P132: 0.4210526316 | Q132: 84
O133: =SUM(B133/3)*(((SUM(D133:F133)+(SUM(G133:N133)*2))/57)) -> 0 | P133: =SUM(C133/3)*(((SUM(D133:F133)+(SUM(G133:N133)*2))/57)) -> 0 | Q133: =SUM(D133:N133)*(B133+C133) -> 0
O134: 0 | P134: 0 | Q134: 0
A135: Average: | B135: =AVERAGE(B121:B134) -> 2.166666667 | C135: =AVERAGE(C121:C134) -> 2.166666667 | D135: 2 | E135: 2 | F135: 2 | G135: 3 | H135: 2 | I135: 2 | J135: 2 | K135: 1 | L135: 1 | M135: 2 | N135: 2
A136: Physical Events
A137: Asbestos release during const. or renovation | B137: 3 | C137: 3 | D137: 3 | E137: 1 | F137: 2 | G137: 3 | H137: 1 | I137: 1 | J137: 2 | K137: 1 | L137: 2 | M137: 2 | N137: 2 | O137: =SUM(B137/3)*(((SUM(D137:F137)+(SUM(G137:N137)*2))/57)) -> 0.5964912281 | P137: =SUM(C137/3)*(((SUM(D137:F137)+(SUM(G137:N137)*2))/57)) -> 0.5964912281 | Q137: =SUM(D137:N137)*(B137+C137) -> 120
A138: Building/parking structure failure | B138: 3 | C138: 3 | D138: 3 | E138: 1 | F138: 2 | G138: 3 | H138: 1 | I138: 1 | J138: 2 | K138: 1 | L138: 2 | M138: 2 | N138: 2 | O138: 0.5964912281 | P138: 0.5964912281 | Q138: 120
A139: Layout of the equipment | B139: 2 | C139: 2 | D139: 3 | E139: 1 | F139: 2 | G139: 3 | H139: 1 | I139: 1 | J139: 2 | K139: 1 | L139: 2 | M139: 2 | N139: 2 | O139: 0.3976608187 | P139: 0.3976608187 | Q139: 80
A140: The physical construction of the facility | B140: 2 | C140: 2 | D140: 3 | E140: 1 | F140: 2 | G140: 3 | H140: 1 | I140: 1 | J140: 2 | K140: 1 | L140: 2 | M140: 2 | N140: 2 | O140: 0.3976608187 | P140: 0.3976608187 | Q140: 80
A141: Evacuation routes and exits | B141: 2 | C141: 2 | D141: 3 | E141: 1 | F141: 2 | G141: 3 | H141: 1 | I141: 1 | J141: 2 | K141: 1 | L141: 2 | M141: 2 | N141: 2 | O141: 0.3976608187 | P141: 0.3976608187 | Q141: 80
A142: Hazardous processes or byproducts | B142: 2 | C142: 2 | D142: 3 | E142: 1 | F142: 2 | G142: 3 | H142: 1 | I142: 1 | J142: 2 | K142: 1 | L142: 2 | M142: 2 | N142: 2 | O142: 0.3976608187 | P142: 0.3976608187 | Q142: 80
A143: Proximity of shelter areas | B143: 2 | C143: 2 | D143: 3 | E143: 1 | F143: 2 | G143: 3 | H143: 1 | I143: 1 | J143: 2 | K143: 1 | L143: 2 | M143: 2 | N143: 2 | O143: 0.3976608187 | P143: 0.3976608187 | Q143: 80
A144: Facilities for storing biohazardous wastes | B144: 2 | C144: 2 | D144: 3 | E144: 1 | F144: 2 | G144: 3 | H144: 1 | I144: 1 | J144: 2 | K144: 1 | L144: 2 | M144: 2 | N144: 2 | O144: 0.3976608187 | P144: 0.3976608187 | Q144: 80
A145: Facilities for storing combustibles | B145: 2 | C145: 2 | D145: 3 | E145: 1 | F145: 2 | G145: 3 | H145: 1 | I145: 1 | J145: 2 | K145: 1 | L145: 2 | M145: 2 | N145: 2 | O145: 0.3976608187 | P145: 0.3976608187 | Q145: 80
A146: Facilities for storing hazardous chemical waste | B146: 2 | C146: 2 | D146: 3 | E146: 1 | F146: 2 | G146: 3 | H146: 1 | I146: 1 | J146: 2 | K146: 1 | L146: 2 | M146: 2 | N146: 2 | O146: 0.3976608187 | P146: 0.3976608187 | Q146: 80
A147: Lighting | B147: 2 | C147: 2 | D147: 3 | E147: 1 | F147: 2 | G147: 3 | H147: 1 | I147: 1 | J147: 2 | K147: 1 | L147: 2 | M147: 2 | N147: 2 | O147: 0.3976608187 | P147: 0.3976608187 | Q147: 80
O148: =SUM(B148/3)*(((SUM(D148:F148)+(SUM(G148:N148)*2))/57)) -> 0 | P148: =SUM(C148/3)*(((SUM(D148:F148)+(SUM(G148:N148)*2))/57)) -> 0 | Q148: =SUM(D148:N148)*(B148+C148) -> 0
O149: 0 | P149: 0 | Q149: 0
A150: Average: | B150: =AVERAGE(B137:B149) -> 2.181818182 | C150: =AVERAGE(C137:C149) -> 2.181818182 | D150: 3 | E150: 1 | F150: 2 | G150: 3 | H150: 1 | I150: 1 | J150: 2 | K150: 1 | L150: 2 | M150: 2 | N150: 2
A151: Other Events
A152: Airplane Crash | B152: 3 | C152: 3 | D152: 3 | E152: 3 | F152: 3 | G152: 2 | H152: 3 | I152: 1 | J152: 2 | K152: 1 | L152: 2 | M152: 2 | N152: 3 | O152: =SUM(B152/3)*(((SUM(D152:F152)+(SUM(G152:N152)*2))/57)) -> 0.7192982456 | P152: =SUM(C152/3)*(((SUM(D152:F152)+(SUM(G152:N152)*2))/57)) -> 0.7192982456 | Q152: =SUM(D152:N152)*(B152+C152) -> 150
A153: Evacuation | B153: 3 | C153: 3 | D153: 3 | E153: 3 | F153: 3 | G153: 2 | H153: 3 | I153: 1 | J153: 2 | K153: 1 | L153: 2 | M153: 2 | N153: 3 | O153: 0.7192982456 | P153: 0.7192982456 | Q153: 150
A154: Helicopter Incident | B154: 2 | C154: 1 | D154: 3 | E154: 3 | F154: 3 | G154: 2 | H154: 3 | I154: 1 | J154: 2 | K154: 1 | L154: 2 | M154: 2 | N154: 3 | O154: 0.4795321637 | P154: 0.2397660819 | Q154: 75
A155: Intentional Vehicular Incident | B155: 2 | C155: 1 | D155: 3 | E155: 3 | F155: 3 | G155: 2 | H155: 3 | I155: 1 | J155: 2 | K155: 1 | L155: 2 | M155: 2 | N155: 3 | O155: 0.4795321637 | P155: 0.2397660819 | Q155: 75
A156: Isolation Capacity | B156: 2 | C156: 1 | D156: 3 | E156: 3 | F156: 3 | G156: 2 | H156: 3 | I156: 1 | J156: 2 | K156: 1 | L156: 2 | M156: 2 | N156: 3 | O156: 0.4795321637 | P156: 0.2397660819 | Q156: 75
A157: Loss of Key Supplier | B157: 2 | C157: 2 | D157: 3 | E157: 3 | F157: 3 | G157: 2 | H157: 3 | I157: 1 | J157: 2 | K157: 1 | L157: 2 | M157: 2 | N157: 3 | O157: 0.4795321637 | P157: 0.4795321637 | Q157: 100
A158: Supply Shortage | B158: 2 | C158: 2 | D158: 3 | E158: 3 | F158: 3 | G158: 2 | H158: 3 | I158: 1 | J158: 2 | K158: 1 | L158: 2 | M158: 2 | N158: 3 | O158: =SUM(B158/3)*(((SUM(D158:F158)+(SUM(G158:N158)*2))/57)) -> 0.4795321637 | P158: =SUM(C158/3)*(((SUM(D158:F158)+(SUM(G158:N158)*2))/57)) -> 0.4795321637 | Q158: =SUM(D158:N158)*(B158+C158) -> 100
O159: 0 | P159: 0 | Q159: 0
O160: 0 | P160: 0 | Q160: 0
O161: 0 | P161: 0 | Q161: 0
O162: 0 | P162: 0 | Q162: 0
O163: 0 | P163: 0 | Q163: 0
A164: Average: | B164: =AVERAGE(B152:B163) -> 2.285714286 | C164: =AVERAGE(C152:C163) -> 1.857142857 | D164: =AVERAGE(D152:D163) -> 3 | E164: =AVERAGE(E152:E163) -> 3 | F164: =AVERAGE(F152:F163) -> 3 | G164: =AVERAGE(G152:G163) -> 2 | H164: =AVERAGE(H152:H163) -> 3 | I164: =AVERAGE(I152:I163) -> 1 | J164: =AVERAGE(J152:J163) -> 2 | K164: =AVERAGE(K152:K163) -> 1 | L164: =AVERAGE(L152:L163) -> 2 | M164: =AVERAGE(M152:M163) -> 2 | N164: =AVERAGE(N152:N163) -> 3
A165: Overall Average: | B165: =AVERAGE((B24),(B49),(B66),(B79),(B91),(B119),(B135),(B150),(B164)) -> 2.018072051 | C165: 1.908168375 | D165: 2.222222222 | E165: 2.111111111 | F165: 2.111111111 | G165: 2 | H165: 2.11965812 | I165: 1.444444444 | J165: 1.777777778 | K165: 1.777777778 | L165: 2 | M165: 2 | N165: 2.111111111
A167: Revised: | B167: 2013-08-05
A170: NOTE: The top 20 events automatically turn red in the last three columns.
A171: NOTE: If you do not use an Event, clear out all of the data -- including the zero -- as it will impact the Average rating.
A172: NOTE: Weighting is X2 for the four phases of emergency management planning.
A174: WARNING: Do NOT delete or add Rows in the spreadsheet. The formulas and pivot tables are sensitive! Changes may result in inaccurate calculations. To change an event, simply delete or replace the events in Column A.
A176: RECOMMENDATION: Hide the three end columns when conducting the assessment with your partners.
A177: RECOMMENDATION: When meeting with your community partners to complete your site CHVA, only allow them to modify the external columns in the four phases of EM. If you are conducting a regional assessment, then allow all of the other columns to be modified.
A178: RECOMMENDATION: Additional columns could be added to the right of the form to document justification/notes for each rating.

Sheet Sheet2 (hidden)
B6: Row Labels | C6: Sum of rep
B7: Information Systems Failure | C7: 0.7543859649
B8: Magnetic Resonance Imaging (MRI) Incident | C8: 0.7543859649
B9: Communications Failure | C9: 0.7543859649
B10: Infant Security Alarm Failure | C10: 0.7543859649
B11: Evacuation | C11: 0.7192982456
B12: Airplane Crash | C12: 0.7192982456
B13: HAZMAT Spill (Internal) | C13: 0.6666666667
B14: Decontamination | C14: 0.6666666667
B15: Bomb Threat | C15: 0.6315789474
B16: Proximity to nuclear power plants | C16: 0.6315789474
B17: Dam Inundation | C17: 0.6315789474
B18: Active Shooter | C18: 0.6315789474
B19: Avalanche | C19: 0.6315789474
B20: Proximity to Bridges | C20: 0.6315789474
B21: Compressed Gas Cylinder Leak/Failure | C21: 0.5964912281
B22: Broken Water Main (External) | C22: 0.5964912281
B23: Building/parking structure failure | C23: 0.5964912281
B24: Electrical Failure | C24: 0.5964912281
B25: Biological Attack – Aerosol Anthrax | C25: 0.5964912281
B26: Asbestos release during const. or renovation | C26: 0.5964912281
B27: Biological Attack – Food Contamination | C27: 0.5964912281
B28: Broken Water Main (Internal) | C28: 0.5964912281
B29: Grand Total | C29: 14.35087719

Sheet Top 20 Events
A4: Must refresh the screen in the Data Tab or Press the REFRESH Button to the right after making changes to the CHVA Tool.
A6: ='CHVA Tool - Data Entry'!A1:C1 -> Children's Hospital Colorado
B8: Risk Occurrence | E8: Risk Response | H8: Non Weighted Risk
A9: 1 | B9: ='Occurence Pivot'!A4 -> Communications Failure | C9: ='Occurence Pivot'!B4 -> 0.7543859649 | D9: 1 | E9: ='Response Pivot'!A4 -> Information Systems Failure | F9: ='Response Pivot'!B4 -> 0.7543859649 | G9: 1 | H9: ='Total Pivot'!A4 -> Airplane Crash | I9: ='Total Pivot'!B4 -> 150
A10: 2 | B10: ='Occurence Pivot'!A5 -> Infant Security Alarm Failure | C10: ='Occurence Pivot'!B5 -> 0.7543859649 | D10: 2 | E10: ='Response Pivot'!A5 -> Magnetic Resonance Imaging (MRI) Incident | F10: ='Response Pivot'!B5 -> 0.7543859649 | G10: 2 | H10: ='Total Pivot'!A5 -> Infant Security Alarm Failure | I10: ='Total Pivot'!B5 -> 150
A11: 3 | B11: ='Occurence Pivot'!A6 -> Evacuation | C11: ='Occurence Pivot'!B6 -> 0.7192982456 | D11: 3 | E11: ='Response Pivot'!A6 -> Communications Failure | F11: ='Response Pivot'!B6 -> 0.7543859649 | G11: 3 | H11: ='Total Pivot'!A6 -> Communications Failure | I11: ='Total Pivot'!B6 -> 150
A12: 4 | B12: ='Occurence Pivot'!A7 -> Airplane Crash | C12: ='Occurence Pivot'!B7 -> 0.7192982456 | D12: 4 | E12: ='Response Pivot'!A7 -> Infant Security Alarm Failure | F12: ='Response Pivot'!B7 -> 0.7543859649 | G12: 4 | H12: ='Total Pivot'!A7 -> Evacuation | I12: ='Total Pivot'!B7 -> 150
A13: 5 | B13: ='Occurence Pivot'!A8 -> HAZMAT Spill (Internal) | C13: ='Occurence Pivot'!B8 -> 0.6666666667 | D13: 5 | E13: ='Response Pivot'!A8 -> Evacuation | F13: ='Response Pivot'!B8 -> 0.7192982456 | G13: 5 | H13: ='Total Pivot'!A8 -> Decontamination | I13: ='Total Pivot'!B8 -> 132
A14: 6 | B14: ='Occurence Pivot'!A9 -> Decontamination | C14: ='Occurence Pivot'!B9 -> 0.6666666667 | D14: 6 | E14: ='Response Pivot'!A9 -> Airplane Crash | F14: ='Response Pivot'!B9 -> 0.7192982456 | G14: 6 | H14: ='Total Pivot'!A9 -> HAZMAT Spill (Internal) | I14: ='Total Pivot'!B9 -> 132
A15: 7 | B15: ='Occurence Pivot'!A10 -> Proximity to nuclear power plants | C15: ='Occurence Pivot'!B10 -> 0.6315789474 | D15: 7 | E15: ='Response Pivot'!A10 -> HAZMAT Spill (Internal) | F15: ='Response Pivot'!B10 -> 0.6666666667 | G15: 7 | H15: ='Total Pivot'!A10 -> Avalanche | I15: ='Total Pivot'!B10 -> 126
A16: 8 | B16: ='Occurence Pivot'!A11 -> Avalanche | C16: ='Occurence Pivot'!B11 -> 0.6315789474 | D16: 8 | E16: ='Response Pivot'!A11 -> Decontamination | F16: ='Response Pivot'!B11 -> 0.6666666667 | G16: 8 | H16: ='Total Pivot'!A11 -> Dam Inundation | I16: ='Total Pivot'!B11 -> 126
A17: 9 | B17: ='Occurence Pivot'!A12 -> Dam Inundation | C17: ='Occurence Pivot'!B12 -> 0.6315789474 | D17: 9 | E17: ='Response Pivot'!A12 -> Bomb Threat | F17: ='Response Pivot'!B12 -> 0.6315789474 | G17: 9 | H17: ='Total Pivot'!A12 -> Bomb Threat | I17: ='Total Pivot'!B12 -> 126
A18: 10 | B18: ='Occurence Pivot'!A13 -> Active Shooter | C18: ='Occurence Pivot'!B13 -> 0.6315789474 | D18: 10 | E18: ='Response Pivot'!A13 -> Proximity to nuclear power plants | F18: ='Response Pivot'!B13 -> 0.6315789474 | G18: 10 | H18: ='Total Pivot'!A13 -> Proximity to Bridges | I18: ='Total Pivot'!B13 -> 126
A19: 11 | B19: ='Occurence Pivot'!A14 -> Proximity to Bridges | C19: ='Occurence Pivot'!B14 -> 0.6315789474 | D19: 11 | E19: ='Response Pivot'!A14 -> Dam Inundation | F19: ='Response Pivot'!B14 -> 0.6315789474 | G19: 11 | H19: ='Total Pivot'!A14 -> Active Shooter | I19: ='Total Pivot'!B14 -> 126
A20: 12 | B20: ='Occurence Pivot'!A15 -> Bomb Threat | C20: ='Occurence Pivot'!B15 -> 0.6315789474 | D20: 12 | E20: ='Response Pivot'!A15 -> Active Shooter | F20: ='Response Pivot'!B15 -> 0.6315789474 | G20: 12 | H20: ='Total Pivot'!A15 -> Proximity to nuclear power plants | I20: ='Total Pivot'!B15 -> 126
A21: 13 | B21: ='Occurence Pivot'!A16 -> Asbestos release during const. or renovation | C21: ='Occurence Pivot'!B16 -> 0.5964912281 | D21: 13 | E21: ='Response Pivot'!A16 -> Avalanche | F21: ='Response Pivot'!B16 -> 0.6315789474 | G21: 13 | H21: ='Total Pivot'!A16 -> Magnetic Resonance Imaging (MRI) Incident | I21: ='Total Pivot'!B16 -> 125
A22: 14 | B22: ='Occurence Pivot'!A17 -> Biological Attack – Plague | C22: ='Occurence Pivot'!B17 -> 0.5964912281 | D22: 14 | E22: ='Response Pivot'!A17 -> Proximity to Bridges | F22: ='Response Pivot'!B17 -> 0.6315789474 | G22: 14 | H22: ='Total Pivot'!A17 -> Information Systems Failure | I22: ='Total Pivot'!B17 -> 125
A23: 15 | B23: ='Occurence Pivot'!A18 -> Broken Water Main (Internal) | C23: ='Occurence Pivot'!B18 -> 0.5964912281 | D23: 15 | E23: ='Response Pivot'!A18 -> Compressed Gas Cylinder Leak/Failure | F23: ='Response Pivot'!B18 -> 0.5964912281 | G23: 15 | H23: ='Total Pivot'!A18 -> Broken Water Main (External) | I23: ='Total Pivot'!B18 -> 120
A24: 16 | B24: ='Occurence Pivot'!A19 -> Biological Attack – Food Contamination | C24: ='Occurence Pivot'!B19 -> 0.5964912281 | D24: 16 | E24: ='Response Pivot'!A19 -> Broken Water Main (External) | F24: ='Response Pivot'!B19 -> 0.5964912281 | G24: 16 | H24: ='Total Pivot'!A19 -> Biological Attack – Aerosol Anthrax | I24: ='Total Pivot'!B19 -> 120
A25: 17 | B25: ='Occurence Pivot'!A20 -> Broken Water Main (External) | C25: ='Occurence Pivot'!B20 -> 0.5964912281 | D25: 17 | E25: ='Response Pivot'!A20 -> Building/parking structure failure | F25: ='Response Pivot'!B20 -> 0.5964912281 | G25: 17 | H25: ='Total Pivot'!A20 -> Asbestos release during const. or renovation | I25: ='Total Pivot'!B20 -> 120
A26: 18 | B26: ='Occurence Pivot'!A21 -> Building/parking structure failure | C26: ='Occurence Pivot'!B21 -> 0.5964912281 | D26: 18 | E26: ='Response Pivot'!A21 -> Electrical Failure | F26: ='Response Pivot'!B21 -> 0.5964912281 | G26: 18 | H26: ='Total Pivot'!A21 -> Building/parking structure failure | I26: ='Total Pivot'!B21 -> 120
A27: 19 | B27: ='Occurence Pivot'!A22 -> Biological Attack – Foreign Animal Disease | C27: ='Occurence Pivot'!B22 -> 0.5964912281 | D27: 19 | E27: ='Response Pivot'!A22 -> Biological Attack – Aerosol Anthrax | F27: ='Response Pivot'!B22 -> 0.5964912281 | G27: 19 | H27: ='Total Pivot'!A22 -> Biological Attack – Food Contamination | I27: ='Total Pivot'!B22 -> 120
A28: 20 | B28: ='Occurence Pivot'!A23 -> Biological Attack – Aerosol Anthrax | C28: ='Occurence Pivot'!B23 -> 0.5964912281 | D28: 20 | E28: ='Response Pivot'!A23 -> Asbestos release during const. or renovation | F28: ='Response Pivot'!B23 -> 0.5964912281 | G28: 20 | H28: ='Total Pivot'!A23 -> Broken Water Main (Internal) | I28: ='Total Pivot'!B23 -> 120
A30: NOTE: The top 20 events on the CHVA are listed with the top five in each risk category highlighted yellow.
A31: NOTE: If an event is not listed in your top 20, but is highlighted red on the Data Entry tab, it means that the event has the same ratings as your number 20 event.
A32: NOTE: You must enable MACROS in order for the refresh button to work.

Sheet Response Pivot (hidden)
A3: Row Labels | B3: Sum of rep
A4: Information Systems Failure | B4: 0.7543859649
A5: Magnetic Resonance Imaging (MRI) Incident | B5: 0.7543859649
A6: Communications Failure | B6: 0.7543859649
A7: Infant Security Alarm Failure | B7: 0.7543859649
A8: Evacuation | B8: 0.7192982456
A9: Airplane Crash | B9: 0.7192982456
A10: HAZMAT Spill (Internal) | B10: 0.6666666667
A11: Decontamination | B11: 0.6666666667
A12: Bomb Threat | B12: 0.6315789474
A13: Proximity to nuclear power plants | B13: 0.6315789474
A14: Dam Inundation | B14: 0.6315789474
A15: Active Shooter | B15: 0.6315789474
A16: Avalanche | B16: 0.6315789474
A17: Proximity to Bridges | B17: 0.6315789474
A18: Compressed Gas Cylinder Leak/Failure | B18: 0.5964912281
A19: Broken Water Main (External) | B19: 0.5964912281
A20: Building/parking structure failure | B20: 0.5964912281
A21: Electrical Failure | B21: 0.5964912281
A22: Biological Attack – Aerosol Anthrax | B22: 0.5964912281
A23: Asbestos release during const. or renovation | B23: 0.5964912281
A24: Biological Attack – Food Contamination | B24: 0.5964912281
A25: Broken Water Main (Internal) | B25: 0.5964912281
A26: Grand Total | B26: 14.35087719

Sheet Total Pivot (hidden)
A3: Row Labels | B3: Sum of tot
A4: Airplane Crash | B4: 150
A5: Infant Security Alarm Failure | B5: 150
A6: Communications Failure | B6: 150
A7: Evacuation | B7: 150
A8: Decontamination | B8: 132
A9: HAZMAT Spill (Internal) | B9: 132
A10: Avalanche | B10: 126
A11: Dam Inundation | B11: 126
A12: Bomb Threat | B12: 126
A13: Proximity to Bridges | B13: 126
A14: Active Shooter | B14: 126
A15: Proximity to nuclear power plants | B15: 126
A16: Magnetic Resonance Imaging (MRI) Incident | B16: 125
A17: Information Systems Failure | B17: 125
A18: Broken Water Main (External) | B18: 120
A19: Biological Attack – Aerosol Anthrax | B19: 120
A20: Asbestos release during const. or renovation | B20: 120
A21: Building/parking structure failure | B21: 120
A22: Biological Attack – Food Contamination | B22: 120
A23: Broken Water Main (Internal) | B23: 120
A24: Grand Total | B24: 2590

Sheet Occurence Pivot (hidden)
A3: Row Labels | B3: Sum of occ
A4: Communications Failure | B4: 0.7543859649
A5: Infant Security Alarm Failure | B5: 0.7543859649
A6: Evacuation | B6: 0.7192982456
A7: Airplane Crash | B7: 0.7192982456
A8: HAZMAT Spill (Internal) | B8: 0.6666666667
A9: Decontamination | B9: 0.6666666667
A10: Proximity to nuclear power plants | B10: 0.6315789474
A11: Avalanche | B11: 0.6315789474
A12: Dam Inundation | B12: 0.6315789474
A13: Active Shooter | B13: 0.6315789474
A14: Proximity to Bridges | B14: 0.6315789474
A15: Bomb Threat | B15: 0.6315789474
A16: Asbestos release during const. or renovation | B16: 0.5964912281
A17: Biological Attack – Plague | B17: 0.5964912281
A18: Broken Water Main (Internal) | B18: 0.5964912281
A19: Biological Attack – Food Contamination | B19: 0.5964912281
A20: Broken Water Main (External) | B20: 0.5964912281
A21: Building/parking structure failure | B21: 0.5964912281
A22: Biological Attack – Foreign Animal Disease | B22: 0.5964912281
A23: Biological Attack – Aerosol Anthrax | B23: 0.5964912281
A24: Grand Total | B24: 12.84210526

Sheet Main Data (hidden)
A2: type | B2: occ | C2: rep | D2: tot
A3: ='CHVA Tool - Data Entry'!A6 -> National Planning Scenarios | B3: ='CHVA Tool - Data Entry'!O6 -> 0 | C3: ='CHVA Tool - Data Entry'!P6 -> 0 | D3: ='CHVA Tool - Data Entry'!Q6 -> 0
A4: ='CHVA Tool - Data Entry'!A7 -> Biological Attack – Aerosol Anthrax | B4: ='CHVA Tool - Data Entry'!O7 -> 0.5964912281 | C4: ='CHVA Tool - Data Entry'!P7 -> 0.5964912281 | D4: ='CHVA Tool - Data Entry'!Q7 -> 120
A5: ='CHVA Tool - Data Entry'!A8 -> Biological Attack – Food Contamination | B5: ='CHVA Tool - Data Entry'!O8 -> 0.5964912281 | C5: ='CHVA Tool - Data Entry'!P8 -> 0.5964912281 | D5: ='CHVA Tool - Data Entry'!Q8 -> 120
A6: ='CHVA Tool - Data Entry'!A9 -> Biological Attack – Foreign Animal Disease | B6: ='CHVA Tool - Data Entry'!O9 -> 0.5964912281 | C6: ='CHVA Tool - Data Entry'!P9 -> 0.3976608187 | D6: ='CHVA Tool - Data Entry'!Q9 -> 100
A7: ='CHVA Tool - Data Entry'!A10 -> Biological Attack – Plague | B7: ='CHVA Tool - Data Entry'!O10 -> 0.5964912281 | C7: ='CHVA Tool - Data Entry'!P10 -> 0.3976608187 | D7: ='CHVA Tool - Data Entry'!Q10 -> 100
A8: ='CHVA Tool - Data Entry'!A11 -> Biological Disease Outbreak – Pandemic flu | B8: ='CHVA Tool - Data Entry'!O11 -> 0.1988304094 | C8: ='CHVA Tool - Data Entry'!P11 -> 0.3976608187 | D8: ='CHVA Tool - Data Entry'!Q11 -> 60
A9: ='CHVA Tool - Data Entry'!A12 -> Chemical Attack – Blister Agent | B9: ='CHVA Tool - Data Entry'!O12 -> 0.1988304094 | C9: ='CHVA Tool - Data Entry'!P12 -> 0.3976608187 | D9: ='CHVA Tool - Data Entry'!Q12 -> 60
A10: ='CHVA Tool - Data Entry'!A13 -> Chemical Attack – Chlorine Tank Explosion | B10: ='CHVA Tool - Data Entry'!O13 -> 0.1988304094 | C10: ='CHVA Tool - Data Entry'!P13 -> 0.3976608187 | D10: ='CHVA Tool - Data Entry'!Q13 -> 60
A11: ='CHVA Tool - Data Entry'!A14 -> Chemical Attack – Nerve Agent | B11: ='CHVA Tool - Data Entry'!O14 -> 0.1988304094 | C11: ='CHVA Tool - Data Entry'!P14 -> 0.3976608187 | D11: ='CHVA Tool - Data Entry'!Q14 -> 60
A12: ='CHVA Tool - Data Entry'!A15 -> Chemical Attack – Toxic Industrial Chemicals | B12: ='CHVA Tool - Data Entry'!O15 -> 0.1988304094 | C12: ='CHVA Tool - Data Entry'!P15 -> 0.3976608187 | D12: ='CHVA Tool - Data Entry'!Q15 -> 60
A13: ='CHVA Tool - Data Entry'!A16 -> Cyber Attack | B13: ='CHVA Tool - Data Entry'!O16 -> 0.1988304094 | C13: ='CHVA Tool - Data Entry'!P16 -> 0.3976608187 | D13: ='CHVA Tool - Data Entry'!Q16 -> 60
A14: ='CHVA Tool - Data Entry'!A17 -> Explosives Attack – Improvised Explosive | B14: ='CHVA Tool - Data Entry'!O17 -> 0.1988304094 | C14: ='CHVA Tool - Data Entry'!P17 -> 0.3976608187 | D14: ='CHVA Tool - Data Entry'!Q17 -> 60
A15: ='CHVA Tool - Data Entry'!A18 -> Natural Disaster – Major Earthquake | B15: ='CHVA Tool - Data Entry'!O18 -> 0.1988304094 | C15: ='CHVA Tool - Data Entry'!P18 -> 0.3976608187 | D15: ='CHVA Tool - Data Entry'!Q18 -> 60
A16: ='CHVA Tool - Data Entry'!A19 -> Natural Disaster – Major Hurricane | B16: ='CHVA Tool - Data Entry'!O19 -> 0.1988304094 | C16: ='CHVA Tool - Data Entry'!P19 -> 0.3976608187 | D16: ='CHVA Tool - Data Entry'!Q19 -> 60
A17: ='CHVA Tool - Data Entry'!A20 -> Nuclear Detonation – Improvised Device | B17: ='CHVA Tool - Data Entry'!O20 -> 0.1988304094 | C17: ='CHVA Tool - Data Entry'!P20 -> 0.3976608187 | D17: ='CHVA Tool - Data Entry'!Q20 -> 60
A18: ='CHVA Tool - Data Entry'!A21 -> Radiological Attack – Radiological Dispersal | B18: ='CHVA Tool - Data Entry'!O21 -> 0.1988304094 | C18: ='CHVA Tool - Data Entry'!P21 -> 0.3976608187 | D18: ='CHVA Tool - Data Entry'!Q21 -> 60
A19: ='CHVA Tool - Data Entry'!A22 -> 0 | B19: ='CHVA Tool - Data Entry'!O22 -> 0 | C19: ='CHVA Tool - Data Entry'!P22 -> 0 | D19: ='CHVA Tool - Data Entry'!Q22 -> 0
A20: ='CHVA Tool - Data Entry'!A23 -> 0 | B20: ='CHVA Tool - Data Entry'!O23 -> 0 | C20: ='CHVA Tool - Data Entry'!P23 -> 0 | D20: ='CHVA Tool - Data Entry'!Q23 -> 0
A21: ='CHVA Tool - Data Entry'!A24 -> Average: | B21: ='CHVA Tool - Data Entry'!O24 -> 0 | C21: ='CHVA Tool - Data Entry'!P24 -> 0 | D21: ='CHVA Tool - Data Entry'!Q24 -> 0
A22: ='CHVA Tool - Data Entry'!A25 -> Naturally Occurring Events | B22: ='CHVA Tool - Data Entry'!O25 -> 0 | C22: ='CHVA Tool - Data Entry'!P25 -> 0 | D22: ='CHVA Tool - Data Entry'!Q25 -> 0
A23: ='CHVA Tool - Data Entry'!A26 -> Avalanche | B23: ='CHVA Tool - Data Entry'!O26 -> 0.6315789474 | C23: ='CHVA Tool - Data Entry'!P26 -> 0.6315789474 | D23: ='CHVA Tool - Data Entry'!Q26 -> 126
A24: ='CHVA Tool - Data Entry'!A27 -> Dam Inundation | B24: ='CHVA Tool - Data Entry'!O27 -> 0.6315789474 | C24: ='CHVA Tool - Data Entry'!P27 -> 0.6315789474 | D24: ='CHVA Tool - Data Entry'!Q27 -> 126
A25: ='CHVA Tool - Data Entry'!A28 -> Drought | B25: ='CHVA Tool - Data Entry'!O28 -> 0.4210526316 | C25: ='CHVA Tool - Data Entry'!P28 -> 0.4210526316 | D25: ='CHVA Tool - Data Entry'!Q28 -> 84
A26: ='CHVA Tool - Data Entry'!A29 -> Earthquake | B26: ='CHVA Tool - Data Entry'!O29 -> 0.4210526316 | C26: ='CHVA Tool - Data Entry'!P29 -> 0.4210526316 | D26: ='CHVA Tool - Data Entry'!Q29 -> 84
A27: ='CHVA Tool - Data Entry'!A30 -> Epidemic/Pandemic | B27: ='CHVA Tool - Data Entry'!O30 -> 0.2105263158 | C27: ='CHVA Tool - Data Entry'!P30 -> 0.4210526316 | D27: ='CHVA Tool - Data Entry'!Q30 -> 63
A28: ='CHVA Tool - Data Entry'!A31 -> Flood (External) | B28: ='CHVA Tool - Data Entry'!O31 -> 0.2105263158 | C28: ='CHVA Tool - Data Entry'!P31 -> 0.4210526316 | D28: ='CHVA Tool - Data Entry'!Q31 -> 63 | I28: ='CHVA Tool - Data Entry'!A6 -> National Planning Scenarios | J28: ='CHVA Tool - Data Entry'!A25 -> Naturally Occurring Events | K28: ='CHVA Tool - Data Entry'!A50 -> Human Related Events | L28: ='CHVA Tool - Data Entry'!A67 -> Hazardous Materials Events | M28: ='CHVA Tool - Data Entry'!A80 -> Technologic Events | N28: ='CHVA Tool - Data Entry'!A92 -> Utility Events | O28: ='CHVA Tool - Data Entry'!A120 -> Geographic Events | P28: ='CHVA Tool - Data Entry'!A136 -> Physical Events | Q28: ='CHVA Tool - Data Entry'!A151 -> Other Events
A29: ='CHVA Tool - Data Entry'!A32 -> Hail | B29: ='CHVA Tool - Data Entry'!O32 -> 0.2105263158 | C29: ='CHVA Tool - Data Entry'!P32 -> 0.4210526316 | D29: ='CHVA Tool - Data Entry'!Q32 -> 63 | H29: Probability | I29: =SUM('CHVA Tool - Data Entry'!B7:C23)/(3*COUNT('CHVA Tool - Data Entry'!B7:C23)) -> 0.6111111111 | J29: =SUM('CHVA Tool - Data Entry'!B26:C48)/(3*COUNT('CHVA Tool - Data Entry'!B26:C48)) -> 0.5634920635 | K29: =SUM('CHVA Tool - Data Entry'!B51:C65)/(3*COUNT('CHVA Tool - Data Entry'!B51:C65)) -> 0.6025641026 | L29: =SUM('CHVA Tool - Data Entry'!B68:C78)/(3*COUNT('CHVA Tool - Data Entry'!B68:C78)) -> 0.6111111111 | M29: =SUM('CHVA Tool - Data Entry'!B81:C90)/(3*COUNT('CHVA Tool - Data Entry'!B81:C90)) -> 0.7916666667 | N29: =SUM('CHVA Tool - Data Entry'!B93:C118)/(3*COUNT('CHVA Tool - Data Entry'!B93:C118)) -> 0.5694444444 | O29: =SUM('CHVA Tool - Data Entry'!B121:C134)/(3*COUNT('CHVA Tool - Data Entry'!B121:C134)) -> 0.7222222222 | P29: =SUM('CHVA Tool - Data Entry'!B137:C149)/(3*COUNT('CHVA Tool - Data Entry'!B137:C149)) -> 0.7272727273 | Q29: =SUM('CHVA Tool - Data Entry'!B152:C163)/(3*COUNT('CHVA Tool - Data Entry'!B152:C163)) -> 0.6904761905
A30: ='CHVA Tool - Data Entry'!A33 -> High Winds | B30: ='CHVA Tool - Data Entry'!O33 -> 0.2105263158 | C30: ='CHVA Tool - Data Entry'!P33 -> 0.4210526316 | D30: ='CHVA Tool - Data Entry'!Q33 -> 63 | H30: Severity | I30: =SUM('CHVA Tool - Data Entry'!D7:N23)/(3*COUNT('CHVA Tool - Data Entry'!D7:N23)) -> 0.6060606061 | J30: =SUM('CHVA Tool - Data Entry'!D26:N48)/(3*COUNT('CHVA Tool - Data Entry'!D26:N48)) -> 0.6363636364 | K30: =SUM('CHVA Tool - Data Entry'!D51:N65)/(3*COUNT('CHVA Tool - Data Entry'!D51:N65)) -> 0.6386946387 | L30: =SUM('CHVA Tool - Data Entry'!D68:N78)/(3*COUNT('CHVA Tool - Data Entry'!D68:N78)) -> 0.6666666667 | M30: =SUM('CHVA Tool - Data Entry'!D81:N90)/(3*COUNT('CHVA Tool - Data Entry'!D81:N90)) -> 0.7575757576 | N30: =SUM('CHVA Tool - Data Entry'!D93:N118)/(3*COUNT('CHVA Tool - Data Entry'!D93:N118)) -> 0.6060606061 | O30: =SUM('CHVA Tool - Data Entry'!D121:N134)/(3*COUNT('CHVA Tool - Data Entry'!D121:N134)) -> 0.6363636364 | P30: =SUM('CHVA Tool - Data Entry'!D137:N149)/(3*COUNT('CHVA Tool - Data Entry'!D137:N149)) -> 0.6060606061 | Q30: =SUM('CHVA Tool - Data Entry'!D152:N163)/(3*COUNT('CHVA Tool - Data Entry'!D152:N163)) -> 0.7575757576
A31: ='CHVA Tool - Data Entry'!A34 -> Hurricane | B31: ='CHVA Tool - Data Entry'!O34 -> 0.2105263158 | C31: ='CHVA Tool - Data Entry'!P34 -> 0.4210526316 | D31: ='CHVA Tool - Data Entry'!Q34 -> 63 | H31: Hazard Specific | I31: =SUM(I29*I30) -> 0.3703703704 | J31: 0.3585858586 | K31: 0.3848544618 | L31: 0.4074074074 | M31: 0.5997474747 | N31: 0.3451178451 | O31: 0.4595959596 | P31: 0.4407713499 | Q31: 0.5230880231
A32: ='CHVA Tool - Data Entry'!A35 -> Ice Storm | B32: ='CHVA Tool - Data Entry'!O35 -> 0.2105263158 | C32: ='CHVA Tool - Data Entry'!P35 -> 0.4210526316 | D32: ='CHVA Tool - Data Entry'!Q35 -> 63
A33: ='CHVA Tool - Data Entry'!A36 -> Insect Infestation | B33: ='CHVA Tool - Data Entry'!O36 -> 0.2105263158 | C33: ='CHVA Tool - Data Entry'!P36 -> 0.4210526316 | D33: ='CHVA Tool - Data Entry'!Q36 -> 63 | H33: Four Phases | I33: =I28 -> National Planning Scenarios | J33: =J28 -> Naturally Occurring Events | K33: Human Related Events | L33: Hazardous Materials Events | M33: Technologic Events | N33: Utility Events | O33: Geographic Events | P33: Physical Events | Q33: Other Events | R33: Total
A34: ='CHVA Tool - Data Entry'!A37 -> Landslide | B34: ='CHVA Tool - Data Entry'!O37 -> 0.2105263158 | C34: ='CHVA Tool - Data Entry'!P37 -> 0.4210526316 | D34: ='CHVA Tool - Data Entry'!Q37 -> 63 | H34: Mitigation Internal | I34: ='CHVA Tool - Data Entry'!G24 -> 1 | J34: ='CHVA Tool - Data Entry'!G49 -> 2 | K34: ='CHVA Tool - Data Entry'!G66 -> 2 | L34: ='CHVA Tool - Data Entry'!G79 -> 2 | M34: ='CHVA Tool - Data Entry'!G91 -> 2 | N34: ='CHVA Tool - Data Entry'!G119 -> 1 | O34: ='CHVA Tool - Data Entry'!G135 -> 3 | P34: ='CHVA Tool - Data Entry'!G150 -> 3 | Q34: ='CHVA Tool - Data Entry'!G165 -> 2 | R34: ='CHVA Tool - Data Entry'!G165 -> 2
A35: ='CHVA Tool - Data Entry'!A38 -> Severe Blizzard/Snow Fall | B35: ='CHVA Tool - Data Entry'!O38 -> 0.2105263158 | C35: ='CHVA Tool - Data Entry'!P38 -> 0.4210526316 | D35: ='CHVA Tool - Data Entry'!Q38 -> 63 | H35: Mitigation External | I35: ='CHVA Tool - Data Entry'!H24 -> 2 | J35: ='CHVA Tool - Data Entry'!H49 -> 2 | K35: ='CHVA Tool - Data Entry'!H66 -> 2.076923077 | L35: ='CHVA Tool - Data Entry'!H79 -> 2 | M35: ='CHVA Tool - Data Entry'!H91 -> 3 | N35: ='CHVA Tool - Data Entry'!H119 -> 2 | O35: ='CHVA Tool - Data Entry'!H135 -> 2 | P35: ='CHVA Tool - Data Entry'!H150 -> 1 | Q35: ='CHVA Tool - Data Entry'!H165 -> 2.11965812 | R35: ='CHVA Tool - Data Entry'!H165 -> 2.11965812
A36: ='CHVA Tool - Data Entry'!A39 -> Severe Thunderstorm | B36: ='CHVA Tool - Data Entry'!O39 -> 0.2105263158 | C36: ='CHVA Tool - Data Entry'!P39 -> 0.4210526316 | D36: ='CHVA Tool - Data Entry'!Q39 -> 63 | H36: Preparedness Internal | I36: ='CHVA Tool - Data Entry'!I24 -> 2 | J36: ='CHVA Tool - Data Entry'!I49 -> 3 | K36: ='CHVA Tool - Data Entry'!I66 -> 1 | L36: ='CHVA Tool - Data Entry'!I79 -> 1 | M36: ='CHVA Tool - Data Entry'!I91 -> 1 | N36: ='CHVA Tool - Data Entry'!I119 -> 1 | O36: ='CHVA Tool - Data Entry'!I135 -> 2 | P36: ='CHVA Tool - Data Entry'!I150 -> 1 | Q36: ='CHVA Tool - Data Entry'!I165 -> 1.444444444 | R36: ='CHVA Tool - Data Entry'!I165 -> 1.444444444
A37: ='CHVA Tool - Data Entry'!A40 -> Solar Flares | B37: ='CHVA Tool - Data Entry'!O40 -> 0.2105263158 | C37: ='CHVA Tool - Data Entry'!P40 -> 0.4210526316 | D37: ='CHVA Tool - Data Entry'!Q40 -> 63 | H37: Preparedness External | I37: ='CHVA Tool - Data Entry'!J24 -> 1 | J37: ='CHVA Tool - Data Entry'!J49 -> 1 | K37: ='CHVA Tool - Data Entry'!J66 -> 3 | L37: ='CHVA Tool - Data Entry'!J79 -> 1 | M37: ='CHVA Tool - Data Entry'!J91 -> 2 | N37: ='CHVA Tool - Data Entry'!J119 -> 2 | O37: ='CHVA Tool - Data Entry'!J135 -> 2 | P37: ='CHVA Tool - Data Entry'!J150 -> 2 | Q37: ='CHVA Tool - Data Entry'!J165 -> 1.777777778 | R37: ='CHVA Tool - Data Entry'!J165 -> 1.777777778
A38: ='CHVA Tool - Data Entry'!A41 -> Temperature Extreme (Cold) | B38: ='CHVA Tool - Data Entry'!O41 -> 0.2105263158 | C38: ='CHVA Tool - Data Entry'!P41 -> 0.4210526316 | D38: ='CHVA Tool - Data Entry'!Q41 -> 63 | H38: Response Internal | I38: ='CHVA Tool - Data Entry'!K24 -> 3 | J38: ='CHVA Tool - Data Entry'!K49 -> 1 | K38: ='CHVA Tool - Data Entry'!K66 -> 2 | L38: ='CHVA Tool - Data Entry'!K79 -> 2 | M38: ='CHVA Tool - Data Entry'!K91 -> 2 | N38: ='CHVA Tool - Data Entry'!K119 -> 3 | O38: ='CHVA Tool - Data Entry'!K135 -> 1 | P38: ='CHVA Tool - Data Entry'!K150 -> 1 | Q38: ='CHVA Tool - Data Entry'!K165 -> 1.777777778 | R38: ='CHVA Tool - Data Entry'!K165 -> 1.777777778
A39: ='CHVA Tool - Data Entry'!A42 -> Temperature Extreme (Hot) | B39: ='CHVA Tool - Data Entry'!O42 -> 0.2105263158 | C39: ='CHVA Tool - Data Entry'!P42 -> 0.4210526316 | D39: ='CHVA Tool - Data Entry'!Q42 -> 63 | H39: Response External | I39: ='CHVA Tool - Data Entry'!L24 -> 2 | J39: ='CHVA Tool - Data Entry'!L49 -> 3 | K39: ='CHVA Tool - Data Entry'!L66 -> 3 | L39: ='CHVA Tool - Data Entry'!L79 -> 2 | M39: ='CHVA Tool - Data Entry'!L91 -> 2 | N39: ='CHVA Tool - Data Entry'!L119 -> 1 | O39: ='CHVA Tool - Data Entry'!L135 -> 1 | P39: ='CHVA Tool - Data Entry'!L150 -> 2 | Q39: ='CHVA Tool - Data Entry'!L165 -> 2 | R39: ='CHVA Tool - Data Entry'!L165 -> 2
A40: ='CHVA Tool - Data Entry'!A43 -> Tidal Wave | B40: ='CHVA Tool - Data Entry'!O43 -> 0.2105263158 | C40: ='CHVA Tool - Data Entry'!P43 -> 0.4210526316 | D40: ='CHVA Tool - Data Entry'!Q43 -> 63 | H40: Recovery Internal | I40: ='CHVA Tool - Data Entry'!M24 -> 1 | J40: ='CHVA Tool - Data Entry'!M49 -> 2 | K40: ='CHVA Tool - Data Entry'!M66 -> 1 | L40: ='CHVA Tool - Data Entry'!M79 -> 3 | M40: ='CHVA Tool - Data Entry'!M91 -> 3 | N40: ='CHVA Tool - Data Entry'!M119 -> 2 | O40: ='CHVA Tool - Data Entry'!M135 -> 2 | P40: ='CHVA Tool - Data Entry'!M150 -> 2 | Q40: ='CHVA Tool - Data Entry'!M165 -> 2 | R40: ='CHVA Tool - Data Entry'!M165 -> 2
A41: ='CHVA Tool - Data Entry'!A44 -> Tornado | B41: ='CHVA Tool - Data Entry'!O44 -> 0.2105263158 | C41: ='CHVA Tool - Data Entry'!P44 -> 0.4210526316 | D41: ='CHVA Tool - Data Entry'!Q44 -> 63 | H41: Recovery External | I41: ='CHVA Tool - Data Entry'!N24 -> 2 | J41: ='CHVA Tool - Data Entry'!N49 -> 1 | K41: ='CHVA Tool - Data Entry'!N66 -> 1 | L41: ='CHVA Tool - Data Entry'!N79 -> 3 | M41: ='CHVA Tool - Data Entry'!N91 -> 3 | N41: ='CHVA Tool - Data Entry'!N119 -> 2 | O41: ='CHVA Tool - Data Entry'!N135 -> 2 | P41: ='CHVA Tool - Data Entry'!N150 -> 2 | Q41: ='CHVA Tool - Data Entry'!N165 -> 2.111111111 | R41: ='CHVA Tool - Data Entry'!N165 -> 2.111111111
A42: ='CHVA Tool - Data Entry'!A45 -> Volcano | B42: ='CHVA Tool - Data Entry'!O45 -> 0.2105263158 | C42: ='CHVA Tool - Data Entry'!P45 -> 0.4210526316 | D42: ='CHVA Tool - Data Entry'!Q45 -> 63
A43: ='CHVA Tool - Data Entry'!A46 -> Wild Fire | B43: ='CHVA Tool - Data Entry'!O46 -> 0.2105263158 | C43: ='CHVA Tool - Data Entry'!P46 -> 0.4210526316 | D43: ='CHVA Tool - Data Entry'!Q46 -> 63 | H43: Total
A44: ='CHVA Tool - Data Entry'!A47 -> 0 | B44: ='CHVA Tool - Data Entry'!O47 -> 0 | C44: ='CHVA Tool - Data Entry'!P47 -> 0 | D44: ='CHVA Tool - Data Entry'!Q47 -> 0
A45: ='CHVA Tool - Data Entry'!A48 -> 0 | B45: ='CHVA Tool - Data Entry'!O48 -> 0 | C45: ='CHVA Tool - Data Entry'!P48 -> 0 | D45: ='CHVA Tool - Data Entry'!Q48 -> 0 | I45: =I28 -> National Planning Scenarios | J45: =J28 -> Naturally Occurring Events | K45: Human Related Events | L45: Hazardous Materials Events | M45: Technologic Events | N45: Utility Events | O45: Geographic Events | P45: Physical Events | Q45: Other Events | R45: 0
A46: ='CHVA Tool - Data Entry'!A49 -> Average: | B46: ='CHVA Tool - Data Entry'!O49 -> 0 | C46: ='CHVA Tool - Data Entry'!P49 -> 0 | D46: ='CHVA Tool - Data Entry'!Q49 -> 0 | H46: ='CHVA Tool - Data Entry'!D2 -> HUMAN IMPACT | I46: ='CHVA Tool - Data Entry'!D24 -> 1 | J46: ='CHVA Tool - Data Entry'!D49 -> 1 | K46: ='CHVA Tool - Data Entry'!D66 -> 3 | L46: ='CHVA Tool - Data Entry'!D79 -> 2 | M46: ='CHVA Tool - Data Entry'!D91 -> 3 | N46: ='CHVA Tool - Data Entry'!D119 -> 2 | O46: ='CHVA Tool - Data Entry'!D135 -> 2 | P46: ='CHVA Tool - Data Entry'!D150 -> 3 | Q46: ='CHVA Tool - Data Entry'!D165 -> 2.222222222 | R46: ='CHVA Tool - Data Entry'!D165 -> 2.222222222
A47: ='CHVA Tool - Data Entry'!A50 -> Human Related Events | B47: ='CHVA Tool - Data Entry'!O50 -> 0 | C47: ='CHVA Tool - Data Entry'!P50 -> 0 | D47: ='CHVA Tool - Data Entry'!Q50 -> 0 | H47: ='CHVA Tool - Data Entry'!E2 -> PROPERTY IMPACT | I47: ='CHVA Tool - Data Entry'!E24 -> 2 | J47: ='CHVA Tool - Data Entry'!E49 -> 2 | K47: ='CHVA Tool - Data Entry'!E66 -> 1 | L47: ='CHVA Tool - Data Entry'!E79 -> 3 | M47: ='CHVA Tool - Data Entry'!E91 -> 2 | N47: ='CHVA Tool - Data Entry'!E119 -> 3 | O47: ='CHVA Tool - Data Entry'!E135 -> 2 | P47: ='CHVA Tool - Data Entry'!E150 -> 1 | Q47: ='CHVA Tool - Data Entry'!E165 -> 2.111111111 | R47: ='CHVA Tool - Data Entry'!E165 -> 2.111111111
A48: ='CHVA Tool - Data Entry'!A51 -> Active Shooter | B48: ='CHVA Tool - Data Entry'!O51 -> 0.6315789474 | C48: ='CHVA Tool - Data Entry'!P51 -> 0.6315789474 | D48: ='CHVA Tool - Data Entry'!Q51 -> 126 | H48: ='CHVA Tool - Data Entry'!F2 -> BUSINESS IMPACT | I48: ='CHVA Tool - Data Entry'!F24 -> 3 | J48: ='CHVA Tool - Data Entry'!F49 -> 3 | K48: ='CHVA Tool - Data Entry'!F66 -> 2 | L48: ='CHVA Tool - Data Entry'!F79 -> 1 | M48: ='CHVA Tool - Data Entry'!F91 -> 2 | N48: ='CHVA Tool - Data Entry'!F119 -> 1 | O48: ='CHVA Tool - Data Entry'!F135 -> 2 | P48: ='CHVA Tool - Data Entry'!F150 -> 2 | Q48: ='CHVA Tool - Data Entry'!F165 -> 2.111111111 | R48: ='CHVA Tool - Data Entry'!F165 -> 2.111111111
A49: ='CHVA Tool - Data Entry'!A52 -> Bomb Threat | B49: ='CHVA Tool - Data Entry'!O52 -> 0.6315789474 | C49: ='CHVA Tool - Data Entry'!P52 -> 0.6315789474 | D49: ='CHVA Tool - Data Entry'!Q52 -> 126
A50: ='CHVA Tool - Data Entry'!A53 -> Civil Disturbance | B50: ='CHVA Tool - Data Entry'!O53 -> 0.4210526316 | C50: ='CHVA Tool - Data Entry'!P53 -> 0.4210526316 | D50: ='CHVA Tool - Data Entry'!Q53 -> 84
A51: ='CHVA Tool - Data Entry'!A54 -> Forensic Admission | B51: ='CHVA Tool - Data Entry'!O54 -> 0.4444444444 | C51: ='CHVA Tool - Data Entry'!P54 -> 0.4444444444 | D51: ='CHVA Tool - Data Entry'!Q54 -> 88 | I51: =I28 -> National Planning Scenarios | J51: =J28 -> Naturally Occurring Events | K51: Human Related Events | L51: Hazardous Materials Events | M51: Technologic Events | N51: Utility Events | O51: Geographic Events | P51: Physical Events | Q51: Other Events
A52: ='CHVA Tool - Data Entry'!A55 -> Hostage Situation | B52: ='CHVA Tool - Data Entry'!O55 -> 0.4210526316 | C52: ='CHVA Tool - Data Entry'!P55 -> 0.2105263158 | D52: ='CHVA Tool - Data Entry'!Q55 -> 63 | H52: Occurrence | I52: ='CHVA Tool - Data Entry'!B24 -> 1.533333333 | J52: ='CHVA Tool - Data Entry'!B49 -> 1.285714286 | K52: ='CHVA Tool - Data Entry'!B66 -> 2.153846154 | L52: ='CHVA Tool - Data Entry'!B79 -> 2.222222222 | M52: ='CHVA Tool - Data Entry'!B91 -> 2.25 | N52: ='CHVA Tool - Data Entry'!B119 -> 2.083333333 | O52: ='CHVA Tool - Data Entry'!B135 -> 2.166666667 | P52: ='CHVA Tool - Data Entry'!B150 -> 2.181818182 | Q52: ='CHVA Tool - Data Entry'!B165 -> 2.018072051
A53: ='CHVA Tool - Data Entry'!A56 -> Infant Abduction | B53: ='CHVA Tool - Data Entry'!O56 -> 0.4210526316 | C53: ='CHVA Tool - Data Entry'!P56 -> 0.2105263158 | D53: ='CHVA Tool - Data Entry'!Q56 -> 63 | H53: Response | I53: ='CHVA Tool - Data Entry'!C24 -> 2.133333333 | J53: ='CHVA Tool - Data Entry'!C49 -> 2.095238095 | K53: ='CHVA Tool - Data Entry'!C66 -> 1.461538462 | L53: ='CHVA Tool - Data Entry'!C79 -> 1.444444444 | M53: ='CHVA Tool - Data Entry'!C91 -> 2.5 | N53: ='CHVA Tool - Data Entry'!C119 -> 1.333333333 | O53: ='CHVA Tool - Data Entry'!C135 -> 2.166666667 | P53: ='CHVA Tool - Data Entry'!C150 -> 2.181818182 | Q53: ='CHVA Tool - Data Entry'!C165 -> 1.908168375
A54: ='CHVA Tool - Data Entry'!A57 -> Labor Action | B54: ='CHVA Tool - Data Entry'!O57 -> 0.4210526316 | C54: ='CHVA Tool - Data Entry'!P57 -> 0.2105263158 | D54: ='CHVA Tool - Data Entry'!Q57 -> 63
A55: ='CHVA Tool - Data Entry'!A58 -> Mass Casualty (Trauma) | B55: ='CHVA Tool - Data Entry'!O58 -> 0.4210526316 | C55: ='CHVA Tool - Data Entry'!P58 -> 0.2105263158 | D55: ='CHVA Tool - Data Entry'!Q58 -> 63
A56: ='CHVA Tool - Data Entry'!A59 -> Missing Child | B56: ='CHVA Tool - Data Entry'!O59 -> 0.4210526316 | C56: ='CHVA Tool - Data Entry'!P59 -> 0.2105263158 | D56: ='CHVA Tool - Data Entry'!Q59 -> 63
A57: ='CHVA Tool - Data Entry'!A60 -> Staffing Shortage | B57: ='CHVA Tool - Data Entry'!O60 -> 0.4210526316 | C57: ='CHVA Tool - Data Entry'!P60 -> 0.2105263158 | D57: ='CHVA Tool - Data Entry'!Q60 -> 63
A58: ='CHVA Tool - Data Entry'!A61 -> Violence in the ED | B58: ='CHVA Tool - Data Entry'!O61 -> 0.4210526316 | C58: ='CHVA Tool - Data Entry'!P61 -> 0.2105263158 | D58: ='CHVA Tool - Data Entry'!Q61 -> 63
A59: ='CHVA Tool - Data Entry'!A62 -> VIP Situation | B59: ='CHVA Tool - Data Entry'!O62 -> 0.4210526316 | C59: ='CHVA Tool - Data Entry'!P62 -> 0.2105263158 | D59: ='CHVA Tool - Data Entry'!Q62 -> 63
A60: ='CHVA Tool - Data Entry'!A63 -> Workplace Violence | B60: ='CHVA Tool - Data Entry'!O63 -> 0.4210526316 | C60: ='CHVA Tool - Data Entry'!P63 -> 0.2105263158 | D60: ='CHVA Tool - Data Entry'!Q63 -> 63
A61: ='CHVA Tool - Data Entry'!A64 -> 0 | B61: ='CHVA Tool - Data Entry'!O64 -> 0 | C61: ='CHVA Tool - Data Entry'!P64 -> 0 | D61: ='CHVA Tool - Data Entry'!Q64 -> 0
A62: ='CHVA Tool - Data Entry'!A65 -> 0 | B62: ='CHVA Tool - Data Entry'!O65 -> 0 | C62: ='CHVA Tool - Data Entry'!P65 -> 0 | D62: ='CHVA Tool - Data Entry'!Q65 -> 0
A63: ='CHVA Tool - Data Entry'!A66 -> Average: | B63: ='CHVA Tool - Data Entry'!O66 -> 0 | C63: ='CHVA Tool - Data Entry'!P66 -> 0 | D63: ='CHVA Tool - Data Entry'!Q66 -> 0
A64: ='CHVA Tool - Data Entry'!A67 -> Hazardous Materials Events | B64: ='CHVA Tool - Data Entry'!O67 -> 0 | C64: ='CHVA Tool - Data Entry'!P67 -> 0 | D64: ='CHVA Tool - Data Entry'!Q67 -> 0
A65: ='CHVA Tool - Data Entry'!A68 -> Decontamination | B65: ='CHVA Tool - Data Entry'!O68 -> 0.6666666667 | C65: ='CHVA Tool - Data Entry'!P68 -> 0.6666666667 | D65: ='CHVA Tool - Data Entry'!Q68 -> 132
A66: ='CHVA Tool - Data Entry'!A69 -> HAZMAT Spill (Internal) | B66: ='CHVA Tool - Data Entry'!O69 -> 0.6666666667 | C66: ='CHVA Tool - Data Entry'!P69 -> 0.6666666667 | D66: ='CHVA Tool - Data Entry'!Q69 -> 132
A67: ='CHVA Tool - Data Entry'!A70 -> HAZMAT Spill (External) | B67: ='CHVA Tool - Data Entry'!O70 -> 0.4444444444 | C67: ='CHVA Tool - Data Entry'!P70 -> 0.2222222222 | D67: ='CHVA Tool - Data Entry'!Q70 -> 66
A68: ='CHVA Tool - Data Entry'!A71 -> Indoor Air Quality Issues | B68: ='CHVA Tool - Data Entry'!O71 -> 0.4444444444 | C68: ='CHVA Tool - Data Entry'!P71 -> 0.2222222222 | D68: ='CHVA Tool - Data Entry'!Q71 -> 66
A69: ='CHVA Tool - Data Entry'!A72 -> Large Internal Spill | B69: ='CHVA Tool - Data Entry'!O72 -> 0.4444444444 | C69: ='CHVA Tool - Data Entry'!P72 -> 0.2222222222 | D69: ='CHVA Tool - Data Entry'!Q72 -> 66
A70: ='CHVA Tool - Data Entry'!A73 -> Radiologic Exposure (Internal) | B70: ='CHVA Tool - Data Entry'!O73 -> 0.4444444444 | C70: ='CHVA Tool - Data Entry'!P73 -> 0.2222222222 | D70: ='CHVA Tool - Data Entry'!Q73 -> 66
A71: ='CHVA Tool - Data Entry'!A74 -> Radiological Incident (External) | B71: ='CHVA Tool - Data Entry'!O74 -> 0.4444444444 | C71: ='CHVA Tool - Data Entry'!P74 -> 0.2222222222 | D71: ='CHVA Tool - Data Entry'!Q74 -> 66
A72: ='CHVA Tool - Data Entry'!A75 -> Small-Medium Sized Internal Spill | B72: ='CHVA Tool - Data Entry'!O75 -> 0.4444444444 | C72: ='CHVA Tool - Data Entry'!P75 -> 0.2222222222 | D72: ='CHVA Tool - Data Entry'!Q75 -> 66
A73: ='CHVA Tool - Data Entry'!A76 -> Unknown Explosion | B73: ='CHVA Tool - Data Entry'!O76 -> 0.4444444444 | C73: ='CHVA Tool - Data Entry'!P76 -> 0.2222222222 | D73: ='CHVA Tool - Data Entry'!Q76 -> 66
A74: ='CHVA Tool - Data Entry'!A77 -> 0 | B74: ='CHVA Tool - Data Entry'!O77 -> 0 | C74: ='CHVA Tool - Data Entry'!P77 -> 0 | D74: ='CHVA Tool - Data Entry'!Q77 -> 0
A75: ='CHVA Tool - Data Entry'!A78 -> 0 | B75: ='CHVA Tool - Data Entry'!O78 -> 0 | C75: ='CHVA Tool - Data Entry'!P78 -> 0 | D75: ='CHVA Tool - Data Entry'!Q78 -> 0
A76: ='CHVA Tool - Data Entry'!A79 -> Average: | B76: ='CHVA Tool - Data Entry'!O79 -> 0 | C76: ='CHVA Tool - Data Entry'!P79 -> 0 | D76: ='CHVA Tool - Data Entry'!Q79 -> 0
A77: ='CHVA Tool - Data Entry'!A80 -> Technologic Events | B77: ='CHVA Tool - Data Entry'!O80 -> 0 | C77: ='CHVA Tool - Data Entry'!P80 -> 0 | D77: ='CHVA Tool - Data Entry'!Q80 -> 0
A78: ='CHVA Tool - Data Entry'!A81 -> Communications Failure | B78: ='CHVA Tool - Data Entry'!O81 -> 0.7543859649 | C78: ='CHVA Tool - Data Entry'!P81 -> 0.7543859649 | D78: ='CHVA Tool - Data Entry'!Q81 -> 150
A79: ='CHVA Tool - Data Entry'!A82 -> Infant Security Alarm Failure | B79: ='CHVA Tool - Data Entry'!O82 -> 0.7543859649 | C79: ='CHVA Tool - Data Entry'!P82 -> 0.7543859649 | D79: ='CHVA Tool - Data Entry'!Q82 -> 150
A80: ='CHVA Tool - Data Entry'!A83 -> Information Systems Failure | B80: ='CHVA Tool - Data Entry'!O83 -> 0.5029239766 | C80: ='CHVA Tool - Data Entry'!P83 -> 0.7543859649 | D80: ='CHVA Tool - Data Entry'!Q83 -> 125
A81: ='CHVA Tool - Data Entry'!A84 -> Magnetic Resonance Imaging (MRI) Incident | B81: ='CHVA Tool - Data Entry'!O84 -> 0.5029239766 | C81: ='CHVA Tool - Data Entry'!P84 -> 0.7543859649 | D81: ='CHVA Tool - Data Entry'!Q84 -> 125
A82: ='CHVA Tool - Data Entry'!A85 -> Network Failure | B82: ='CHVA Tool - Data Entry'!O85 -> 0.5029239766 | C82: ='CHVA Tool - Data Entry'!P85 -> 0.5029239766 | D82: ='CHVA Tool - Data Entry'!Q85 -> 100
A83: ='CHVA Tool - Data Entry'!A86 -> Pharmacy Medication Dispenser Failure | B83: ='CHVA Tool - Data Entry'!O86 -> 0.5029239766 | C83: ='CHVA Tool - Data Entry'!P86 -> 0.5029239766 | D83: ='CHVA Tool - Data Entry'!Q86 -> 100
A84: ='CHVA Tool - Data Entry'!A87 -> Security Card Access Failure | B84: ='CHVA Tool - Data Entry'!O87 -> 0.5029239766 | C84: ='CHVA Tool - Data Entry'!P87 -> 0.5029239766 | D84: ='CHVA Tool - Data Entry'!Q87 -> 100
A85: ='CHVA Tool - Data Entry'!A88 -> Security Video Surveillance | B85: ='CHVA Tool - Data Entry'!O88 -> 0.5029239766 | C85: ='CHVA Tool - Data Entry'!P88 -> 0.5029239766 | D85: ='CHVA Tool - Data Entry'!Q88 -> 100
A86: ='CHVA Tool - Data Entry'!A89 -> 0 | B86: ='CHVA Tool - Data Entry'!O89 -> 0 | C86: ='CHVA Tool - Data Entry'!P89 -> 0 | D86: ='CHVA Tool - Data Entry'!Q89 -> 0
A87: ='CHVA Tool - Data Entry'!A90 -> 0 | B87: ='CHVA Tool - Data Entry'!O90 -> 0 | C87: ='CHVA Tool - Data Entry'!P90 -> 0 | D87: ='CHVA Tool - Data Entry'!Q90 -> 0
A88: ='CHVA Tool - Data Entry'!A91 -> Average: | B88: ='CHVA Tool - Data Entry'!O91 -> 0 | C88: ='CHVA Tool - Data Entry'!P91 -> 0 | D88: ='CHVA Tool - Data Entry'!Q91 -> 0
A89: ='CHVA Tool - Data Entry'!A92 -> Utility Events | B89: ='CHVA Tool - Data Entry'!O92 -> 0 | C89: ='CHVA Tool - Data Entry'!P92 -> 0 | D89: ='CHVA Tool - Data Entry'!Q92 -> 0
A90: ='CHVA Tool - Data Entry'!A93 -> Broken Water Main (Internal) | B90: ='CHVA Tool - Data Entry'!O93 -> 0.5964912281 | C90: ='CHVA Tool - Data Entry'!P93 -> 0.5964912281 | D90: ='CHVA Tool - Data Entry'!Q93 -> 120
A91: ='CHVA Tool - Data Entry'!A94 -> Broken Water Main (External) | B91: ='CHVA Tool - Data Entry'!O94 -> 0.5964912281 | C91: ='CHVA Tool - Data Entry'!P94 -> 0.5964912281 | D91: ='CHVA Tool - Data Entry'!Q94 -> 120
A92: ='CHVA Tool - Data Entry'!A95 -> Compressed Gas Cylinder Leak/Failure | B92: ='CHVA Tool - Data Entry'!O95 -> 0.3976608187 | C92: ='CHVA Tool - Data Entry'!P95 -> 0.5964912281 | D92: ='CHVA Tool - Data Entry'!Q95 -> 100
A93: ='CHVA Tool - Data Entry'!A96 -> Electrical Failure | B93: ='CHVA Tool - Data Entry'!O96 -> 0.3976608187 | C93: ='CHVA Tool - Data Entry'!P96 -> 0.5964912281 | D93: ='CHVA Tool - Data Entry'!Q96 -> 100
A94: ='CHVA Tool - Data Entry'!A97 -> Elevator Failure | B94: ='CHVA Tool - Data Entry'!O97 -> 0.3976608187 | C94: ='CHVA Tool - Data Entry'!P97 -> 0.1988304094 | D94: ='CHVA Tool - Data Entry'!Q97 -> 60
A95: ='CHVA Tool - Data Entry'!A98 -> Fire (Internal) | B95: ='CHVA Tool - Data Entry'!O98 -> 0.3976608187 | C95: ='CHVA Tool - Data Entry'!P98 -> 0.1988304094 | D95: ='CHVA Tool - Data Entry'!Q98 -> 60
A96: ='CHVA Tool - Data Entry'!A99 -> Fire Detection/Alarm Failure | B96: ='CHVA Tool - Data Entry'!O99 -> 0.3976608187 | C96: ='CHVA Tool - Data Entry'!P99 -> 0.1988304094 | D96: ='CHVA Tool - Data Entry'!Q99 -> 60
A97: ='CHVA Tool - Data Entry'!A100 -> Fire Suppression Failure | B97: ='CHVA Tool - Data Entry'!O100 -> 0.3976608187 | C97: ='CHVA Tool - Data Entry'!P100 -> 0.1988304094 | D97: ='CHVA Tool - Data Entry'!Q100 -> 60
A98: ='CHVA Tool - Data Entry'!A101 -> Flood (Internal) | B98: ='CHVA Tool - Data Entry'!O101 -> 0.3976608187 | C98: ='CHVA Tool - Data Entry'!P101 -> 0.1988304094 | D98: ='CHVA Tool - Data Entry'!Q101 -> 60
A99: ='CHVA Tool - Data Entry'!A102 -> Fuel Shortage | B99: ='CHVA Tool - Data Entry'!O102 -> 0.3976608187 | C99: ='CHVA Tool - Data Entry'!P102 -> 0.1988304094 | D99: ='CHVA Tool - Data Entry'!Q102 -> 60
A100: ='CHVA Tool - Data Entry'!A103 -> Generator Failure | B100: ='CHVA Tool - Data Entry'!O103 -> 0.3976608187 | C100: ='CHVA Tool - Data Entry'!P103 -> 0.1988304094 | D100: ='CHVA Tool - Data Entry'!Q103 -> 60
A101: ='CHVA Tool - Data Entry'!A104 -> HVAC Failure | B101: ='CHVA Tool - Data Entry'!O104 -> 0.3976608187 | C101: ='CHVA Tool - Data Entry'!P104 -> 0.1988304094 | D101: ='CHVA Tool - Data Entry'!Q104 -> 60
A102: ='CHVA Tool - Data Entry'!A105 -> Loss of Bulk Oxygen | B102: ='CHVA Tool - Data Entry'!O105 -> 0.3976608187 | C102: ='CHVA Tool - Data Entry'!P105 -> 0.1988304094 | D102: ='CHVA Tool - Data Entry'!Q105 -> 60
A103: ='CHVA Tool - Data Entry'!A106 -> Medical Gas Failure | B103: ='CHVA Tool - Data Entry'!O106 -> 0.3976608187 | C103: ='CHVA Tool - Data Entry'!P106 -> 0.1988304094 | D103: ='CHVA Tool - Data Entry'!Q106 -> 60
A104: ='CHVA Tool - Data Entry'!A107 -> Medical Vacuum Failure | B104: ='CHVA Tool - Data Entry'!O107 -> 0.3976608187 | C104: ='CHVA Tool - Data Entry'!P107 -> 0.1988304094 | D104: ='CHVA Tool - Data Entry'!Q107 -> 60
A105: ='CHVA Tool - Data Entry'!A108 -> Natural Gas Failure | B105: ='CHVA Tool - Data Entry'!O108 -> 0.3976608187 | C105: ='CHVA Tool - Data Entry'!P108 -> 0.1988304094 | D105: ='CHVA Tool - Data Entry'!Q108 -> 60
A106: ='CHVA Tool - Data Entry'!A109 -> Natural Gas Leak | B106: ='CHVA Tool - Data Entry'!O109 -> 0.3976608187 | C106: ='CHVA Tool - Data Entry'!P109 -> 0.1988304094 | D106: ='CHVA Tool - Data Entry'!Q109 -> 60
A107: ='CHVA Tool - Data Entry'!A110 -> Oxygen Leak | B107: ='CHVA Tool - Data Entry'!O110 -> 0.3976608187 | C107: ='CHVA Tool - Data Entry'!P110 -> 0.1988304094 | D107: ='CHVA Tool - Data Entry'!Q110 -> 60
A108: ='CHVA Tool - Data Entry'!A111 -> Potable Water Failure | B108: ='CHVA Tool - Data Entry'!O111 -> 0.3976608187 | C108: ='CHVA Tool - Data Entry'!P111 -> 0.1988304094 | D108: ='CHVA Tool - Data Entry'!Q111 -> 60
A109: ='CHVA Tool - Data Entry'!A112 -> Process Water Failure | B109: ='CHVA Tool - Data Entry'!O112 -> 0.3976608187 | C109: ='CHVA Tool - Data Entry'!P112 -> 0.1988304094 | D109: ='CHVA Tool - Data Entry'!Q112 -> 60
A110: ='CHVA Tool - Data Entry'!A113 -> Sewer Failure | B110: ='CHVA Tool - Data Entry'!O113 -> 0.3976608187 | C110: ='CHVA Tool - Data Entry'!P113 -> 0.1988304094 | D110: ='CHVA Tool - Data Entry'!Q113 -> 60
A111: ='CHVA Tool - Data Entry'!A114 -> Steam Failure | B111: ='CHVA Tool - Data Entry'!O114 -> 0.3976608187 | C111: ='CHVA Tool - Data Entry'!P114 -> 0.1988304094 | D111: ='CHVA Tool - Data Entry'!Q114 -> 60
A112: ='CHVA Tool - Data Entry'!A115 -> Structural Damage | B112: ='CHVA Tool - Data Entry'!O115 -> 0.3976608187 | C112: ='CHVA Tool - Data Entry'!P115 -> 0.1988304094 | D112: ='CHVA Tool - Data Entry'!Q115 -> 60
A113: ='CHVA Tool - Data Entry'!A116 -> Tube System Failure | B113: ='CHVA Tool - Data Entry'!O116 -> 0.3976608187 | C113: ='CHVA Tool - Data Entry'!P116 -> 0.1988304094 | D113: ='CHVA Tool - Data Entry'!Q116 -> 60
A114: ='CHVA Tool - Data Entry'!A117 -> 0 | B114: ='CHVA Tool - Data Entry'!O117 -> 0 | C114: ='CHVA Tool - Data Entry'!P117 -> 0 | D114: ='CHVA Tool - Data Entry'!Q117 -> 0
A115: ='CHVA Tool - Data Entry'!A118 -> 0 | B115: ='CHVA Tool - Data Entry'!O118 -> 0 | C115: ='CHVA Tool - Data Entry'!P118 -> 0 | D115: ='CHVA Tool - Data Entry'!Q118 -> 0
A116: ='CHVA Tool - Data Entry'!A119 -> Average: | B116: ='CHVA Tool - Data Entry'!O119 -> 0 | C116: ='CHVA Tool - Data Entry'!P119 -> 0 | D116: ='CHVA Tool - Data Entry'!Q119 -> 0
A117: ='CHVA Tool - Data Entry'!A120 -> Geographic Events | B117: ='CHVA Tool - Data Entry'!O120 -> 0 | C117: ='CHVA Tool - Data Entry'!P120 -> 0 | D117: ='CHVA Tool - Data Entry'!Q120 -> 0
A118: ='CHVA Tool - Data Entry'!A121 -> Proximity to nuclear power plants | B118: ='CHVA Tool - Data Entry'!O121 -> 0.6315789474 | C118: ='CHVA Tool - Data Entry'!P121 -> 0.6315789474 | D118: ='CHVA Tool - Data Entry'!Q121 -> 126
A119: ='CHVA Tool - Data Entry'!A122 -> Proximity to Bridges | B119: ='CHVA Tool - Data Entry'!O122 -> 0.6315789474 | C119: ='CHVA Tool - Data Entry'!P122 -> 0.6315789474 | D119: ='CHVA Tool - Data Entry'!Q122 -> 126
A120: ='CHVA Tool - Data Entry'!A123 -> Proximity to bus terminals | B120: ='CHVA Tool - Data Entry'!O123 -> 0.4210526316 | C120: ='CHVA Tool - Data Entry'!P123 -> 0.4210526316 | D120: ='CHVA Tool - Data Entry'!Q123 -> 84
A121: ='CHVA Tool - Data Entry'!A124 -> Proximity to Civic/Sports Events | B121: ='CHVA Tool - Data Entry'!O124 -> 0.4210526316 | C121: ='CHVA Tool - Data Entry'!P124 -> 0.4210526316 | D121: ='CHVA Tool - Data Entry'!Q124 -> 84
A122: ='CHVA Tool - Data Entry'!A125 -> Proximity to companies that produce, store, use, or transport hazardous materials | B122: ='CHVA Tool - Data Entry'!O125 -> 0.4210526316 | C122: ='CHVA Tool - Data Entry'!P125 -> 0.4210526316 | D122: ='CHVA Tool - Data Entry'!Q125 -> 84
A123: ='CHVA Tool - Data Entry'!A126 -> Proximity to Federal buildings | B123: ='CHVA Tool - Data Entry'!O126 -> 0.4210526316 | C123: ='CHVA Tool - Data Entry'!P126 -> 0.4210526316 | D123: ='CHVA Tool - Data Entry'!Q126 -> 84
A124: ='CHVA Tool - Data Entry'!A127 -> Proximity to Festivals | B124: ='CHVA Tool - Data Entry'!O127 -> 0.4210526316 | C124: ='CHVA Tool - Data Entry'!P127 -> 0.4210526316 | D124: ='CHVA Tool - Data Entry'!Q127 -> 84
A125: ='CHVA Tool - Data Entry'!A128 -> Proximity to flood plains, faults, and dams | B125: ='CHVA Tool - Data Entry'!O128 -> 0.4210526316 | C125: ='CHVA Tool - Data Entry'!P128 -> 0.4210526316 | D125: ='CHVA Tool - Data Entry'!Q128 -> 84
A126: ='CHVA Tool - Data Entry'!A129 -> Proximity to local schools and universities | B126: ='CHVA Tool - Data Entry'!O129 -> 0.4210526316 | C126: ='CHVA Tool - Data Entry'!P129 -> 0.4210526316 | D126: ='CHVA Tool - Data Entry'!Q129 -> 84
A127: ='CHVA Tool - Data Entry'!A130 -> Proximity to major trans. routes and airports | B127: ='CHVA Tool - Data Entry'!O130 -> 0.4210526316 | C127: ='CHVA Tool - Data Entry'!P130 -> 0.4210526316 | D127: ='CHVA Tool - Data Entry'!Q130 -> 84
A128: ='CHVA Tool - Data Entry'!A131 -> Proximity to Parks | B128: ='CHVA Tool - Data Entry'!O131 -> 0.4210526316 | C128: ='CHVA Tool - Data Entry'!P131 -> 0.4210526316 | D128: ='CHVA Tool - Data Entry'!Q131 -> 84
A129: ='CHVA Tool - Data Entry'!A132 -> Proximity to train stations | B129: ='CHVA Tool - Data Entry'!O132 -> 0.4210526316 | C129: ='CHVA Tool - Data Entry'!P132 -> 0.4210526316 | D129: ='CHVA Tool - Data Entry'!Q132 -> 84
A130: ='CHVA Tool - Data Entry'!A133 -> 0 | B130: ='CHVA Tool - Data Entry'!O133 -> 0 | C130: ='CHVA Tool - Data Entry'!P133 -> 0 | D130: ='CHVA Tool - Data Entry'!Q133 -> 0
A131: ='CHVA Tool - Data Entry'!A134 -> 0 | B131: ='CHVA Tool - Data Entry'!O134 -> 0 | C131: ='CHVA Tool - Data Entry'!P134 -> 0 | D131: ='CHVA Tool - Data Entry'!Q134 -> 0
A132: ='CHVA Tool - Data Entry'!A135 -> Average: | B132: ='CHVA Tool - Data Entry'!O135 -> 0 | C132: ='CHVA Tool - Data Entry'!P135 -> 0 | D132: ='CHVA Tool - Data Entry'!Q135 -> 0
A133: ='CHVA Tool - Data Entry'!A136 -> Physical Events | B133: ='CHVA Tool - Data Entry'!O136 -> 0 | C133: ='CHVA Tool - Data Entry'!P136 -> 0 | D133: ='CHVA Tool - Data Entry'!Q136 -> 0
A134: ='CHVA Tool - Data Entry'!A137 -> Asbestos release during const. or renovation | B134: ='CHVA Tool - Data Entry'!O137 -> 0.5964912281 | C134: ='CHVA Tool - Data Entry'!P137 -> 0.5964912281 | D134: ='CHVA Tool - Data Entry'!Q137 -> 120
A135: ='CHVA Tool - Data Entry'!A138 -> Building/parking structure failure | B135: ='CHVA Tool - Data Entry'!O138 -> 0.5964912281 | C135: ='CHVA Tool - Data Entry'!P138 -> 0.5964912281 | D135: ='CHVA Tool - Data Entry'!Q138 -> 120
A136: ='CHVA Tool - Data Entry'!A139 -> Layout of the equipment | B136: ='CHVA Tool - Data Entry'!O139 -> 0.3976608187 | C136: ='CHVA Tool - Data Entry'!P139 -> 0.3976608187 | D136: ='CHVA Tool - Data Entry'!Q139 -> 80
A137: ='CHVA Tool - Data Entry'!A140 -> The physical construction of the facility | B137: ='CHVA Tool - Data Entry'!O140 -> 0.3976608187 | C137: ='CHVA Tool - Data Entry'!P140 -> 0.3976608187 | D137: ='CHVA Tool - Data Entry'!Q140 -> 80
A138: ='CHVA Tool - Data Entry'!A141 -> Evacuation routes and exits | B138: ='CHVA Tool - Data Entry'!O141 -> 0.3976608187 | C138: ='CHVA Tool - Data Entry'!P141 -> 0.3976608187 | D138: ='CHVA Tool - Data Entry'!Q141 -> 80
A139: ='CHVA Tool - Data Entry'!A142 -> Hazardous processes or byproducts | B139: ='CHVA Tool - Data Entry'!O142 -> 0.3976608187 | C139: ='CHVA Tool - Data Entry'!P142 -> 0.3976608187 | D139: ='CHVA Tool - Data Entry'!Q142 -> 80
A140: ='CHVA Tool - Data Entry'!A143 -> Proximity of shelter areas | B140: ='CHVA Tool - Data Entry'!O143 -> 0.3976608187 | C140: ='CHVA Tool - Data Entry'!P143 -> 0.3976608187 | D140: ='CHVA Tool - Data Entry'!Q143 -> 80
A141: ='CHVA Tool - Data Entry'!A144 -> Facilities for storing biohazardous wastes | B141: ='CHVA Tool - Data Entry'!O144 -> 0.3976608187 | C141: ='CHVA Tool - Data Entry'!P144 -> 0.3976608187 | D141: ='CHVA Tool - Data Entry'!Q144 -> 80
A142: ='CHVA Tool - Data Entry'!A145 -> Facilities for storing combustibles | B142: ='CHVA Tool - Data Entry'!O145 -> 0.3976608187 | C142: ='CHVA Tool - Data Entry'!P145 -> 0.3976608187 | D142: ='CHVA Tool - Data Entry'!Q145 -> 80
A143: ='CHVA Tool - Data Entry'!A146 -> Facilities for storing hazardous chemical waste | B143: ='CHVA Tool - Data Entry'!O146 -> 0.3976608187 | C143: ='CHVA Tool - Data Entry'!P146 -> 0.3976608187 | D143: ='CHVA Tool - Data Entry'!Q146 -> 80
A144: ='CHVA Tool - Data Entry'!A147 -> Lighting | B144: ='CHVA Tool - Data Entry'!O147 -> 0.3976608187 | C144: ='CHVA Tool - Data Entry'!P147 -> 0.3976608187 | D144: ='CHVA Tool - Data Entry'!Q147 -> 80
A145: ='CHVA Tool - Data Entry'!A148 -> 0 | B145: ='CHVA Tool - Data Entry'!O148 -> 0 | C145: ='CHVA Tool - Data Entry'!P148 -> 0 | D145: ='CHVA Tool - Data Entry'!Q148 -> 0
A146: ='CHVA Tool - Data Entry'!A149 -> 0 | B146: ='CHVA Tool - Data Entry'!O149 -> 0 | C146: ='CHVA Tool - Data Entry'!P149 -> 0 | D146: ='CHVA Tool - Data Entry'!Q149 -> 0
A147: ='CHVA Tool - Data Entry'!A150 -> Average: | B147: ='CHVA Tool - Data Entry'!O150 -> 0 | C147: ='CHVA Tool - Data Entry'!P150 -> 0 | D147: ='CHVA Tool - Data Entry'!Q150 -> 0
A148: ='CHVA Tool - Data Entry'!A151 -> Other Events | B148: ='CHVA Tool - Data Entry'!O151 -> 0 | C148: ='CHVA Tool - Data Entry'!P151 -> 0 | D148: ='CHVA Tool - Data Entry'!Q151 -> 0
A149: ='CHVA Tool - Data Entry'!A152 -> Airplane Crash | B149: ='CHVA Tool - Data Entry'!O152 -> 0.7192982456 | C149: ='CHVA Tool - Data Entry'!P152 -> 0.7192982456 | D149: ='CHVA Tool - Data Entry'!Q152 -> 150
A150: ='CHVA Tool - Data Entry'!A153 -> Evacuation | B150: ='CHVA Tool - Data Entry'!O153 -> 0.7192982456 | C150: ='CHVA Tool - Data Entry'!P153 -> 0.7192982456 | D150: ='CHVA Tool - Data Entry'!Q153 -> 150
A151: ='CHVA Tool - Data Entry'!A154 -> Helicopter Incident | B151: ='CHVA Tool - Data Entry'!O154 -> 0.4795321637 | C151: ='CHVA Tool - Data Entry'!P154 -> 0.2397660819 | D151: ='CHVA Tool - Data Entry'!Q154 -> 75
A152: ='CHVA Tool - Data Entry'!A155 -> Intentional Vehicular Incident | B152: ='CHVA Tool - Data Entry'!O155 -> 0.4795321637 | C152: ='CHVA Tool - Data Entry'!P155 -> 0.2397660819 | D152: ='CHVA Tool - Data Entry'!Q155 -> 75
A153: ='CHVA Tool - Data Entry'!A156 -> Isolation Capacity | B153: ='CHVA Tool - Data Entry'!O156 -> 0.4795321637 | C153: ='CHVA Tool - Data Entry'!P156 -> 0.2397660819 | D153: ='CHVA Tool - Data Entry'!Q156 -> 75
A154: ='CHVA Tool - Data Entry'!A157 -> Loss of Key Supplier | B154: ='CHVA Tool - Data Entry'!O157 -> 0.4795321637 | C154: ='CHVA Tool - Data Entry'!P157 -> 0.4795321637 | D154: ='CHVA Tool - Data Entry'!Q157 -> 100
A155: ='CHVA Tool - Data Entry'!A158 -> Supply Shortage | B155: ='CHVA Tool - Data Entry'!O158 -> 0.4795321637 | C155: ='CHVA Tool - Data Entry'!P158 -> 0.4795321637 | D155: ='CHVA Tool - Data Entry'!Q158 -> 100
A156: ='CHVA Tool - Data Entry'!A159 -> 0 | B156: ='CHVA Tool - Data Entry'!O159 -> 0 | C156: ='CHVA Tool - Data Entry'!P159 -> 0 | D156: ='CHVA Tool - Data Entry'!Q159 -> 0
A157: ='CHVA Tool - Data Entry'!A160 -> 0 | B157: ='CHVA Tool - Data Entry'!O160 -> 0 | C157: ='CHVA Tool - Data Entry'!P160 -> 0 | D157: ='CHVA Tool - Data Entry'!Q160 -> 0
A158: ='CHVA Tool - Data Entry'!A161 -> 0 | B158: ='CHVA Tool - Data Entry'!O161 -> 0 | C158: ='CHVA Tool - Data Entry'!P161 -> 0 | D158: ='CHVA Tool - Data Entry'!Q161 -> 0
A159: ='CHVA Tool - Data Entry'!A162 -> 0 | B159: ='CHVA Tool - Data Entry'!O162 -> 0 | C159: ='CHVA Tool - Data Entry'!P162 -> 0 | D159: ='CHVA Tool - Data Entry'!Q162 -> 0
A160: ='CHVA Tool - Data Entry'!A163 -> 0 | B160: ='CHVA Tool - Data Entry'!O163 -> 0 | C160: ='CHVA Tool - Data Entry'!P163 -> 0 | D160: ='CHVA Tool - Data Entry'!Q163 -> 0
A161: ='CHVA Tool - Data Entry'!A164 -> Average: | B161: ='CHVA Tool - Data Entry'!O164 -> 0 | C161: ='CHVA Tool - Data Entry'!P164 -> 0 | D161: ='CHVA Tool - Data Entry'!Q164 -> 0
A162: ='CHVA Tool - Data Entry'!A165 -> Overall Average: | B162: ='CHVA Tool - Data Entry'!O165 -> 0 | C162: ='CHVA Tool - Data Entry'!P165 -> 0 | D162: ='CHVA Tool - Data Entry'!Q165 -> 0

Sheet Top 30 Print
A1: ='CHVA Tool - Data Entry'!A1:C1 -> Children's Hospital Colorado | D1: Trauma Rating: | E1: ='CHVA Tool - Data Entry'!E1 -> 1 | G1: Four Phases of Emergency Management
A2: COMMUNITY HAZARD VULNERABILITY ASSESSMENT TOOL | B2: PROBABILITY | D2: HUMAN IMPACT | E2: PROPERTY IMPACT | F2: BUSINESS IMPACT | G2: MITIGATION | I2: PREPAREDNESS | K2: RESPONSE | M2: RECOVERY | O2: RISK Occurrence | P2: RISK Response | Q2: Non Weighted
B3: Likelihood of future occurrence and facility response | D3: Percentage of population likely to be injured or killed under an average occurrence of the hazard | E3: Percentage of properties likely to be affected under an average occurrence of the hazard | F3: Percentage of businesses likely to be affected under an average occurrence of the hazard | G3: Internal (Jurisdictional) | H3: External (Region/State) | I3: Internal (Jurisdictional) | J3: External (Region/State) | K3: Internal (Jurisdictional) | L3: External (Region/State) | M3: Internal (Jurisdictional) | N3: External (Region/State) | O3: Relative threat (increases with percentage) | P3: Relative threat (increases with percentage) | Q3: Realtive threat (increases with number)
B4: 0 = N/A (implausible) 1 = Low (0-1 event / 30 years) 2 = Moderate (2-3 events / 30 years) 3 = High (4+ events / 30 years) | D4: 0 = N/A (no impact expected) 1 = Low (<1% affected) 2 = Moderate (1-10% affected) 3 = High (>10% affected) | E4: 0 = N/A (no impact expected) 1 = Low (<1% affected) 2 = Moderate (1-10% affected) 3 = High (>10% affected) | F4: 0 = N/A (no impact expected) 1 = Low (<1% affected) 2 = Moderate (1-10% affected) 3 = High (>10% affected) | G4: 1 = Substantial 2 = Moderate 3 = Limited or none | H4: 1 = Substantial 2 = Moderate 3 = Limited or none | I4: 1 = Substantial 2 = Moderate 3 = Limited or none | J4: 1 = Substantial 2 = Moderate 3 = Limited or none | K4: 1 = Substantial 2 = Moderate 3 = Limited or none | L4: 1 = Substantial 2 = Moderate 3 = Limited or none | M4: 1 = Substantial 2 = Moderate 3 = Limited or none | N4: 1 = Substantial 2 = Moderate 3 = Limited or none | O4: 0 - 100% | P4: 0 - 100% | Q4: 0 - 198
B6: Occurrence | C6: Response
A7: ='Top data'!A5 -> Infant Security Alarm Failure | B7: ='Top data'!B5 -> 3 | C7: ='Top data'!C5 -> 3 | D7: ='Top data'!D5 -> 3 | E7: ='Top data'!E5 -> 2 | F7: ='Top data'!F5 -> 2 | G7: ='Top data'!G5 -> 2 | H7: ='Top data'!H5 -> 3 | I7: ='Top data'!I5 -> 1 | J7: ='Top data'!J5 -> 2 | K7: ='Top data'!K5 -> 2 | L7: ='Top data'!L5 -> 2 | M7: ='Top data'!M5 -> 3 | N7: ='Top data'!N5 -> 3 | O7: ='Top data'!O5 -> 0.7543859649 | P7: ='Top data'!P5 -> 0.7543859649 | Q7: ='Top data'!Q5 -> 150
A8: ='Top data'!A6 -> Communications Failure | B8: ='Top data'!B6 -> 3 | C8: ='Top data'!C6 -> 3 | D8: ='Top data'!D6 -> 3 | E8: ='Top data'!E6 -> 2 | F8: ='Top data'!F6 -> 2 | G8: ='Top data'!G6 -> 2 | H8: ='Top data'!H6 -> 3 | I8: ='Top data'!I6 -> 1 | J8: ='Top data'!J6 -> 2 | K8: ='Top data'!K6 -> 2 | L8: ='Top data'!L6 -> 2 | M8: ='Top data'!M6 -> 3 | N8: ='Top data'!N6 -> 3 | O8: ='Top data'!O6 -> 0.7543859649 | P8: ='Top data'!P6 -> 0.7543859649 | Q8: ='Top data'!Q6 -> 150
A9: ='Top data'!A7 -> Airplane Crash | B9: ='Top data'!B7 -> 3 | C9: ='Top data'!C7 -> 3 | D9: ='Top data'!D7 -> 3 | E9: ='Top data'!E7 -> 3 | F9: ='Top data'!F7 -> 3 | G9: ='Top data'!G7 -> 2 | H9: ='Top data'!H7 -> 3 | I9: ='Top data'!I7 -> 1 | J9: ='Top data'!J7 -> 2 | K9: ='Top data'!K7 -> 1 | L9: ='Top data'!L7 -> 2 | M9: ='Top data'!M7 -> 2 | N9: ='Top data'!N7 -> 3 | O9: ='Top data'!O7 -> 0.7192982456 | P9: ='Top data'!P7 -> 0.7192982456 | Q9: ='Top data'!Q7 -> 150
A10: ='Top data'!A8 -> Evacuation | B10: ='Top data'!B8 -> 3 | C10: ='Top data'!C8 -> 3 | D10: ='Top data'!D8 -> 3 | E10: ='Top data'!E8 -> 3 | F10: ='Top data'!F8 -> 3 | G10: ='Top data'!G8 -> 2 | H10: ='Top data'!H8 -> 3 | I10: ='Top data'!I8 -> 1 | J10: ='Top data'!J8 -> 2 | K10: ='Top data'!K8 -> 1 | L10: ='Top data'!L8 -> 2 | M10: ='Top data'!M8 -> 2 | N10: ='Top data'!N8 -> 3 | O10: ='Top data'!O8 -> 0.7192982456 | P10: ='Top data'!P8 -> 0.7192982456 | Q10: ='Top data'!Q8 -> 150
A11: ='Top data'!A9 -> HAZMAT Spill (Internal) | B11: ='Top data'!B9 -> 3 | C11: ='Top data'!C9 -> 3 | D11: ='Top data'!D9 -> 2 | E11: ='Top data'!E9 -> 3 | F11: ='Top data'!F9 -> 1 | G11: ='Top data'!G9 -> 2 | H11: ='Top data'!H9 -> 2 | I11: ='Top data'!I9 -> 1 | J11: ='Top data'!J9 -> 1 | K11: ='Top data'!K9 -> 2 | L11: ='Top data'!L9 -> 2 | M11: ='Top data'!M9 -> 3 | N11: ='Top data'!N9 -> 3 | O11: ='Top data'!O9 -> 0.6666666667 | P11: ='Top data'!P9 -> 0.6666666667 | Q11: ='Top data'!Q9 -> 132
A12: ='Top data'!A10 -> Decontamination | B12: ='Top data'!B10 -> 3 | C12: ='Top data'!C10 -> 3 | D12: ='Top data'!D10 -> 2 | E12: ='Top data'!E10 -> 3 | F12: ='Top data'!F10 -> 1 | G12: ='Top data'!G10 -> 2 | H12: ='Top data'!H10 -> 2 | I12: ='Top data'!I10 -> 1 | J12: ='Top data'!J10 -> 1 | K12: ='Top data'!K10 -> 2 | L12: ='Top data'!L10 -> 2 | M12: ='Top data'!M10 -> 3 | N12: ='Top data'!N10 -> 3 | O12: ='Top data'!O10 -> 0.6666666667 | P12: ='Top data'!P10 -> 0.6666666667 | Q12: ='Top data'!Q10 -> 132
A13: ='Top data'!A11 -> Dam Inundation | B13: ='Top data'!B11 -> 3 | C13: ='Top data'!C11 -> 3 | D13: ='Top data'!D11 -> 1 | E13: ='Top data'!E11 -> 2 | F13: ='Top data'!F11 -> 3 | G13: ='Top data'!G11 -> 2 | H13: ='Top data'!H11 -> 2 | I13: ='Top data'!I11 -> 3 | J13: ='Top data'!J11 -> 1 | K13: ='Top data'!K11 -> 1 | L13: ='Top data'!L11 -> 3 | M13: ='Top data'!M11 -> 2 | N13: ='Top data'!N11 -> 1 | O13: ='Top data'!O11 -> 0.6315789474 | P13: ='Top data'!P11 -> 0.6315789474 | Q13: ='Top data'!Q11 -> 126
A14: ='Top data'!A12 -> Avalanche | B14: ='Top data'!B12 -> 3 | C14: ='Top data'!C12 -> 3 | D14: ='Top data'!D12 -> 1 | E14: ='Top data'!E12 -> 2 | F14: ='Top data'!F12 -> 3 | G14: ='Top data'!G12 -> 2 | H14: ='Top data'!H12 -> 2 | I14: ='Top data'!I12 -> 3 | J14: ='Top data'!J12 -> 1 | K14: ='Top data'!K12 -> 1 | L14: ='Top data'!L12 -> 3 | M14: ='Top data'!M12 -> 2 | N14: ='Top data'!N12 -> 1 | O14: ='Top data'!O12 -> 0.6315789474 | P14: ='Top data'!P12 -> 0.6315789474 | Q14: ='Top data'!Q12 -> 126
A15: ='Top data'!A13 -> Active Shooter | B15: ='Top data'!B13 -> 3 | C15: ='Top data'!C13 -> 3 | D15: ='Top data'!D13 -> 3 | E15: ='Top data'!E13 -> 1 | F15: ='Top data'!F13 -> 2 | G15: ='Top data'!G13 -> 2 | H15: ='Top data'!H13 -> 2 | I15: ='Top data'!I13 -> 1 | J15: ='Top data'!J13 -> 3 | K15: ='Top data'!K13 -> 2 | L15: ='Top data'!L13 -> 3 | M15: ='Top data'!M13 -> 1 | N15: ='Top data'!N13 -> 1 | O15: ='Top data'!O13 -> 0.6315789474 | P15: ='Top data'!P13 -> 0.6315789474 | Q15: ='Top data'!Q13 -> 126
A16: ='Top data'!A14 -> Bomb Threat | B16: ='Top data'!B14 -> 3 | C16: ='Top data'!C14 -> 3 | D16: ='Top data'!D14 -> 3 | E16: ='Top data'!E14 -> 1 | F16: ='Top data'!F14 -> 2 | G16: ='Top data'!G14 -> 2 | H16: ='Top data'!H14 -> 2 | I16: ='Top data'!I14 -> 1 | J16: ='Top data'!J14 -> 3 | K16: ='Top data'!K14 -> 2 | L16: ='Top data'!L14 -> 3 | M16: ='Top data'!M14 -> 1 | N16: ='Top data'!N14 -> 1 | O16: ='Top data'!O14 -> 0.6315789474 | P16: ='Top data'!P14 -> 0.6315789474 | Q16: ='Top data'!Q14 -> 126
A17: ='Top data'!A15 -> Proximity to nuclear power plants | B17: ='Top data'!B15 -> 3 | C17: ='Top data'!C15 -> 3 | D17: ='Top data'!D15 -> 2 | E17: ='Top data'!E15 -> 2 | F17: ='Top data'!F15 -> 2 | G17: ='Top data'!G15 -> 3 | H17: ='Top data'!H15 -> 2 | I17: ='Top data'!I15 -> 2 | J17: ='Top data'!J15 -> 2 | K17: ='Top data'!K15 -> 1 | L17: ='Top data'!L15 -> 1 | M17: ='Top data'!M15 -> 2 | N17: ='Top data'!N15 -> 2 | O17: ='Top data'!O15 -> 0.6315789474 | P17: ='Top data'!P15 -> 0.6315789474 | Q17: ='Top data'!Q15 -> 126
A18: ='Top data'!A16 -> Proximity to Bridges | B18: ='Top data'!B16 -> 3 | C18: ='Top data'!C16 -> 3 | D18: ='Top data'!D16 -> 2 | E18: ='Top data'!E16 -> 2 | F18: ='Top data'!F16 -> 2 | G18: ='Top data'!G16 -> 3 | H18: ='Top data'!H16 -> 2 | I18: ='Top data'!I16 -> 2 | J18: ='Top data'!J16 -> 2 | K18: ='Top data'!K16 -> 1 | L18: ='Top data'!L16 -> 1 | M18: ='Top data'!M16 -> 2 | N18: ='Top data'!N16 -> 2 | O18: ='Top data'!O16 -> 0.6315789474 | P18: ='Top data'!P16 -> 0.6315789474 | Q18: ='Top data'!Q16 -> 126
A19: ='Top data'!A17 -> Broken Water Main (External) | B19: ='Top data'!B17 -> 3 | C19: ='Top data'!C17 -> 3 | D19: ='Top data'!D17 -> 2 | E19: ='Top data'!E17 -> 3 | F19: ='Top data'!F17 -> 1 | G19: ='Top data'!G17 -> 1 | H19: ='Top data'!H17 -> 2 | I19: ='Top data'!I17 -> 1 | J19: ='Top data'!J17 -> 2 | K19: ='Top data'!K17 -> 3 | L19: ='Top data'!L17 -> 1 | M19: ='Top data'!M17 -> 2 | N19: ='Top data'!N17 -> 2 | O19: ='Top data'!O17 -> 0.5964912281 | P19: ='Top data'!P17 -> 0.5964912281 | Q19: ='Top data'!Q17 -> 120
A20: ='Top data'!A18 -> Broken Water Main (Internal) | B20: ='Top data'!B18 -> 3 | C20: ='Top data'!C18 -> 3 | D20: ='Top data'!D18 -> 2 | E20: ='Top data'!E18 -> 3 | F20: ='Top data'!F18 -> 1 | G20: ='Top data'!G18 -> 1 | H20: ='Top data'!H18 -> 2 | I20: ='Top data'!I18 -> 1 | J20: ='Top data'!J18 -> 2 | K20: ='Top data'!K18 -> 3 | L20: ='Top data'!L18 -> 1 | M20: ='Top data'!M18 -> 2 | N20: ='Top data'!N18 -> 2 | O20: ='Top data'!O18 -> 0.5964912281 | P20: ='Top data'!P18 -> 0.5964912281 | Q20: ='Top data'!Q18 -> 120
A21: ='Top data'!A19 -> Biological Attack – Aerosol Anthrax | B21: ='Top data'!B19 -> 3 | C21: ='Top data'!C19 -> 3 | D21: ='Top data'!D19 -> 1 | E21: ='Top data'!E19 -> 2 | F21: ='Top data'!F19 -> 3 | G21: ='Top data'!G19 -> 1 | H21: ='Top data'!H19 -> 2 | I21: ='Top data'!I19 -> 2 | J21: ='Top data'!J19 -> 1 | K21: ='Top data'!K19 -> 3 | L21: ='Top data'!L19 -> 2 | M21: ='Top data'!M19 -> 1 | N21: ='Top data'!N19 -> 2 | O21: ='Top data'!O19 -> 0.5964912281 | P21: ='Top data'!P19 -> 0.5964912281 | Q21: ='Top data'!Q19 -> 120
A22: ='Top data'!A20 -> Biological Attack – Foreign Animal Disease | B22: ='Top data'!B20 -> 3 | C22: ='Top data'!C20 -> 2 | D22: ='Top data'!D20 -> 1 | E22: ='Top data'!E20 -> 2 | F22: ='Top data'!F20 -> 3 | G22: ='Top data'!G20 -> 1 | H22: ='Top data'!H20 -> 2 | I22: ='Top data'!I20 -> 2 | J22: ='Top data'!J20 -> 1 | K22: ='Top data'!K20 -> 3 | L22: ='Top data'!L20 -> 2 | M22: ='Top data'!M20 -> 1 | N22: ='Top data'!N20 -> 2 | O22: ='Top data'!O20 -> 0.5964912281 | P22: ='Top data'!P20 -> 0.3976608187 | Q22: ='Top data'!Q20 -> 100
A23: ='Top data'!A21 -> Biological Attack – Food Contamination | B23: ='Top data'!B21 -> 3 | C23: ='Top data'!C21 -> 3 | D23: ='Top data'!D21 -> 1 | E23: ='Top data'!E21 -> 2 | F23: ='Top data'!F21 -> 3 | G23: ='Top data'!G21 -> 1 | H23: ='Top data'!H21 -> 2 | I23: ='Top data'!I21 -> 2 | J23: ='Top data'!J21 -> 1 | K23: ='Top data'!K21 -> 3 | L23: ='Top data'!L21 -> 2 | M23: ='Top data'!M21 -> 1 | N23: ='Top data'!N21 -> 2 | O23: ='Top data'!O21 -> 0.5964912281 | P23: ='Top data'!P21 -> 0.5964912281 | Q23: ='Top data'!Q21 -> 120
A24: ='Top data'!A22 -> Biological Attack – Plague | B24: ='Top data'!B22 -> 3 | C24: ='Top data'!C22 -> 2 | D24: ='Top data'!D22 -> 1 | E24: ='Top data'!E22 -> 2 | F24: ='Top data'!F22 -> 3 | G24: ='Top data'!G22 -> 1 | H24: ='Top data'!H22 -> 2 | I24: ='Top data'!I22 -> 2 | J24: ='Top data'!J22 -> 1 | K24: ='Top data'!K22 -> 3 | L24: ='Top data'!L22 -> 2 | M24: ='Top data'!M22 -> 1 | N24: ='Top data'!N22 -> 2 | O24: ='Top data'!O22 -> 0.5964912281 | P24: ='Top data'!P22 -> 0.3976608187 | Q24: ='Top data'!Q22 -> 100
A25: ='Top data'!A23 -> Asbestos release during const. or renovation | B25: ='Top data'!B23 -> 3 | C25: ='Top data'!C23 -> 3 | D25: ='Top data'!D23 -> 3 | E25: ='Top data'!E23 -> 1 | F25: ='Top data'!F23 -> 2 | G25: ='Top data'!G23 -> 3 | H25: ='Top data'!H23 -> 1 | I25: ='Top data'!I23 -> 1 | J25: ='Top data'!J23 -> 2 | K25: ='Top data'!K23 -> 1 | L25: ='Top data'!L23 -> 2 | M25: ='Top data'!M23 -> 2 | N25: ='Top data'!N23 -> 2 | O25: ='Top data'!O23 -> 0.5964912281 | P25: ='Top data'!P23 -> 0.5964912281 | Q25: ='Top data'!Q23 -> 120
A26: ='Top data'!A24 -> Building/parking structure failure | B26: ='Top data'!B24 -> 3 | C26: ='Top data'!C24 -> 3 | D26: ='Top data'!D24 -> 3 | E26: ='Top data'!E24 -> 1 | F26: ='Top data'!F24 -> 2 | G26: ='Top data'!G24 -> 3 | H26: ='Top data'!H24 -> 1 | I26: ='Top data'!I24 -> 1 | J26: ='Top data'!J24 -> 2 | K26: ='Top data'!K24 -> 1 | L26: ='Top data'!L24 -> 2 | M26: ='Top data'!M24 -> 2 | N26: ='Top data'!N24 -> 2 | O26: ='Top data'!O24 -> 0.5964912281 | P26: ='Top data'!P24 -> 0.5964912281 | Q26: ='Top data'!Q24 -> 120
A27: ='Top data'!A25 -> Information Systems Failure | B27: ='Top data'!B25 -> 2 | C27: ='Top data'!C25 -> 3 | D27: ='Top data'!D25 -> 3 | E27: ='Top data'!E25 -> 2 | F27: ='Top data'!F25 -> 2 | G27: ='Top data'!G25 -> 2 | H27: ='Top data'!H25 -> 3 | I27: ='Top data'!I25 -> 1 | J27: ='Top data'!J25 -> 2 | K27: ='Top data'!K25 -> 2 | L27: ='Top data'!L25 -> 2 | M27: ='Top data'!M25 -> 3 | N27: ='Top data'!N25 -> 3 | O27: ='Top data'!O25 -> 0.5029239766 | P27: ='Top data'!P25 -> 0.7543859649 | Q27: ='Top data'!Q25 -> 125
A28: ='Top data'!A26 -> Pharmacy Medication Dispenser Failure | B28: ='Top data'!B26 -> 2 | C28: ='Top data'!C26 -> 2 | D28: ='Top data'!D26 -> 3 | E28: ='Top data'!E26 -> 2 | F28: ='Top data'!F26 -> 2 | G28: ='Top data'!G26 -> 2 | H28: ='Top data'!H26 -> 3 | I28: ='Top data'!I26 -> 1 | J28: ='Top data'!J26 -> 2 | K28: ='Top data'!K26 -> 2 | L28: ='Top data'!L26 -> 2 | M28: ='Top data'!M26 -> 3 | N28: ='Top data'!N26 -> 3 | O28: ='Top data'!O26 -> 0.5029239766 | P28: ='Top data'!P26 -> 0.5029239766 | Q28: ='Top data'!Q26 -> 100
A29: ='Top data'!A27 -> Security Video Surveillance | B29: ='Top data'!B27 -> 2 | C29: ='Top data'!C27 -> 2 | D29: ='Top data'!D27 -> 3 | E29: ='Top data'!E27 -> 2 | F29: ='Top data'!F27 -> 2 | G29: ='Top data'!G27 -> 2 | H29: ='Top data'!H27 -> 3 | I29: ='Top data'!I27 -> 1 | J29: ='Top data'!J27 -> 2 | K29: ='Top data'!K27 -> 2 | L29: ='Top data'!L27 -> 2 | M29: ='Top data'!M27 -> 3 | N29: ='Top data'!N27 -> 3 | O29: ='Top data'!O27 -> 0.5029239766 | P29: ='Top data'!P27 -> 0.5029239766 | Q29: ='Top data'!Q27 -> 100
A30: ='Top data'!A28 -> Security Card Access Failure | B30: ='Top data'!B28 -> 2 | C30: ='Top data'!C28 -> 2 | D30: ='Top data'!D28 -> 3 | E30: ='Top data'!E28 -> 2 | F30: ='Top data'!F28 -> 2 | G30: ='Top data'!G28 -> 2 | H30: ='Top data'!H28 -> 3 | I30: ='Top data'!I28 -> 1 | J30: ='Top data'!J28 -> 2 | K30: ='Top data'!K28 -> 2 | L30: ='Top data'!L28 -> 2 | M30: ='Top data'!M28 -> 3 | N30: ='Top data'!N28 -> 3 | O30: ='Top data'!O28 -> 0.5029239766 | P30: ='Top data'!P28 -> 0.5029239766 | Q30: ='Top data'!Q28 -> 100
A31: ='Top data'!A29 -> Network Failure | B31: ='Top data'!B29 -> 2 | C31: ='Top data'!C29 -> 2 | D31: ='Top data'!D29 -> 3 | E31: ='Top data'!E29 -> 2 | F31: ='Top data'!F29 -> 2 | G31: ='Top data'!G29 -> 2 | H31: ='Top data'!H29 -> 3 | I31: ='Top data'!I29 -> 1 | J31: ='Top data'!J29 -> 2 | K31: ='Top data'!K29 -> 2 | L31: ='Top data'!L29 -> 2 | M31: ='Top data'!M29 -> 3 | N31: ='Top data'!N29 -> 3 | O31: ='Top data'!O29 -> 0.5029239766 | P31: ='Top data'!P29 -> 0.5029239766 | Q31: ='Top data'!Q29 -> 100
A32: ='Top data'!A30 -> Magnetic Resonance Imaging (MRI) Incident | B32: ='Top data'!B30 -> 2 | C32: ='Top data'!C30 -> 3 | D32: ='Top data'!D30 -> 3 | E32: ='Top data'!E30 -> 2 | F32: ='Top data'!F30 -> 2 | G32: ='Top data'!G30 -> 2 | H32: ='Top data'!H30 -> 3 | I32: ='Top data'!I30 -> 1 | J32: ='Top data'!J30 -> 2 | K32: ='Top data'!K30 -> 2 | L32: ='Top data'!L30 -> 2 | M32: ='Top data'!M30 -> 3 | N32: ='Top data'!N30 -> 3 | O32: ='Top data'!O30 -> 0.5029239766 | P32: ='Top data'!P30 -> 0.7543859649 | Q32: ='Top data'!Q30 -> 125
A33: ='Top data'!A31 -> Loss of Key Supplier | B33: ='Top data'!B31 -> 2 | C33: ='Top data'!C31 -> 2 | D33: ='Top data'!D31 -> 3 | E33: ='Top data'!E31 -> 3 | F33: ='Top data'!F31 -> 3 | G33: ='Top data'!G31 -> 2 | H33: ='Top data'!H31 -> 3 | I33: ='Top data'!I31 -> 1 | J33: ='Top data'!J31 -> 2 | K33: ='Top data'!K31 -> 1 | L33: ='Top data'!L31 -> 2 | M33: ='Top data'!M31 -> 2 | N33: ='Top data'!N31 -> 3 | O33: ='Top data'!O31 -> 0.4795321637 | P33: ='Top data'!P31 -> 0.4795321637 | Q33: ='Top data'!Q31 -> 100
A34: ='Top data'!A32 -> Intentional Vehicular Incident | B34: ='Top data'!B32 -> 2 | C34: ='Top data'!C32 -> 1 | D34: ='Top data'!D32 -> 3 | E34: ='Top data'!E32 -> 3 | F34: ='Top data'!F32 -> 3 | G34: ='Top data'!G32 -> 2 | H34: ='Top data'!H32 -> 3 | I34: ='Top data'!I32 -> 1 | J34: ='Top data'!J32 -> 2 | K34: ='Top data'!K32 -> 1 | L34: ='Top data'!L32 -> 2 | M34: ='Top data'!M32 -> 2 | N34: ='Top data'!N32 -> 3 | O34: ='Top data'!O32 -> 0.4795321637 | P34: ='Top data'!P32 -> 0.2397660819 | Q34: ='Top data'!Q32 -> 75
A35: ='Top data'!A33 -> Supply Shortage | B35: ='Top data'!B33 -> 2 | C35: ='Top data'!C33 -> 2 | D35: ='Top data'!D33 -> 3 | E35: ='Top data'!E33 -> 3 | F35: ='Top data'!F33 -> 3 | G35: ='Top data'!G33 -> 2 | H35: ='Top data'!H33 -> 3 | I35: ='Top data'!I33 -> 1 | J35: ='Top data'!J33 -> 2 | K35: ='Top data'!K33 -> 1 | L35: ='Top data'!L33 -> 2 | M35: ='Top data'!M33 -> 2 | N35: ='Top data'!N33 -> 3 | O35: ='Top data'!O33 -> 0.4795321637 | P35: ='Top data'!P33 -> 0.4795321637 | Q35: ='Top data'!Q33 -> 100
A36: ='Top data'!A34 -> Helicopter Incident | B36: ='Top data'!B34 -> 2 | C36: ='Top data'!C34 -> 1 | D36: ='Top data'!D34 -> 3 | E36: ='Top data'!E34 -> 3 | F36: ='Top data'!F34 -> 3 | G36: ='Top data'!G34 -> 2 | H36: ='Top data'!H34 -> 3 | I36: ='Top data'!I34 -> 1 | J36: ='Top data'!J34 -> 2 | K36: ='Top data'!K34 -> 1 | L36: ='Top data'!L34 -> 2 | M36: ='Top data'!M34 -> 2 | N36: ='Top data'!N34 -> 3 | O36: ='Top data'!O34 -> 0.4795321637 | P36: ='Top data'!P34 -> 0.2397660819 | Q36: ='Top data'!Q34 -> 75
A38: Revised: | B38: ='Documentation '!A9 -> 2013-08-05
A40: NOTE: The top 30 are printed based on the traditional risk occurrence model. You can resort based on the response or non weighted risk by highlighting the data and sorting. (May have to add more lines to capture the top risks).
A41: NOTE: You can add additional rows for printing by copying the last line and pasting it below the last line.

Sheet Graphs
A26: Note: Lower the bar, less impact on operations. Higher the bar, greater impact on operations. | K26: Note: Lower bar, the stronger the phase. Higher the bar, weaker the phase. | U26: Note: Lower bar, the better the EM phase. Higher bar, the weaker the EM phase. | AE26: Note: Lower bar, the less likely to occur or respond. Higher bar, more likely to occur or respond. | AO26: Note: Top 20 events graphed by likelihood to occur.
A54: Note: Lower the bar, less impact on operations. Higher the bar, greater impact on operations. | K54: Note: Lower bar, the less Impact on operations. Higher bar, the greater Impact on operations. | U54: Note: Lower bar, the better the EM phase. Higher bar, the weaker the EM Phase. | AE54: Note: Lower bar, less impact on operations. Higher bar, greater impact on operations. | AO54: Note: Top 20 events graphed by likelihood to respond.

Sheet Top data (hidden)
B3: Values
A4: Row Labels | B4: Average of Occurrence | C4: Average of Response | D4: Sum of Human | E4: Sum of Property | F4: Sum of Business | G4: Sum of MI | H4: Sum of ME | I4: Sum of PI | J4: Sum of PE | K4: Sum of RI | L4: Sum of RE | M4: Sum of RCI | N4: Sum of RCE | O4: Sum of occ | P4: Sum of rep | Q4: Sum of tot
A5: Infant Security Alarm Failure | B5: 3 | C5: 3 | D5: 3 | E5: 2 | F5: 2 | G5: 2 | H5: 3 | I5: 1 | J5: 2 | K5: 2 | L5: 2 | M5: 3 | N5: 3 | O5: 0.7543859649 | P5: 0.7543859649 | Q5: 150
A6: Communications Failure | B6: 3 | C6: 3 | D6: 3 | E6: 2 | F6: 2 | G6: 2 | H6: 3 | I6: 1 | J6: 2 | K6: 2 | L6: 2 | M6: 3 | N6: 3 | O6: 0.7543859649 | P6: 0.7543859649 | Q6: 150
A7: Airplane Crash | B7: 3 | C7: 3 | D7: 3 | E7: 3 | F7: 3 | G7: 2 | H7: 3 | I7: 1 | J7: 2 | K7: 1 | L7: 2 | M7: 2 | N7: 3 | O7: 0.7192982456 | P7: 0.7192982456 | Q7: 150
A8: Evacuation | B8: 3 | C8: 3 | D8: 3 | E8: 3 | F8: 3 | G8: 2 | H8: 3 | I8: 1 | J8: 2 | K8: 1 | L8: 2 | M8: 2 | N8: 3 | O8: 0.7192982456 | P8: 0.7192982456 | Q8: 150
A9: HAZMAT Spill (Internal) | B9: 3 | C9: 3 | D9: 2 | E9: 3 | F9: 1 | G9: 2 | H9: 2 | I9: 1 | J9: 1 | K9: 2 | L9: 2 | M9: 3 | N9: 3 | O9: 0.6666666667 | P9: 0.6666666667 | Q9: 132
A10: Decontamination | B10: 3 | C10: 3 | D10: 2 | E10: 3 | F10: 1 | G10: 2 | H10: 2 | I10: 1 | J10: 1 | K10: 2 | L10: 2 | M10: 3 | N10: 3 | O10: 0.6666666667 | P10: 0.6666666667 | Q10: 132
A11: Dam Inundation | B11: 3 | C11: 3 | D11: 1 | E11: 2 | F11: 3 | G11: 2 | H11: 2 | I11: 3 | J11: 1 | K11: 1 | L11: 3 | M11: 2 | N11: 1 | O11: 0.6315789474 | P11: 0.6315789474 | Q11: 126
A12: Avalanche | B12: 3 | C12: 3 | D12: 1 | E12: 2 | F12: 3 | G12: 2 | H12: 2 | I12: 3 | J12: 1 | K12: 1 | L12: 3 | M12: 2 | N12: 1 | O12: 0.6315789474 | P12: 0.6315789474 | Q12: 126
A13: Active Shooter | B13: 3 | C13: 3 | D13: 3 | E13: 1 | F13: 2 | G13: 2 | H13: 2 | I13: 1 | J13: 3 | K13: 2 | L13: 3 | M13: 1 | N13: 1 | O13: 0.6315789474 | P13: 0.6315789474 | Q13: 126
A14: Bomb Threat | B14: 3 | C14: 3 | D14: 3 | E14: 1 | F14: 2 | G14: 2 | H14: 2 | I14: 1 | J14: 3 | K14: 2 | L14: 3 | M14: 1 | N14: 1 | O14: 0.6315789474 | P14: 0.6315789474 | Q14: 126
A15: Proximity to nuclear power plants | B15: 3 | C15: 3 | D15: 2 | E15: 2 | F15: 2 | G15: 3 | H15: 2 | I15: 2 | J15: 2 | K15: 1 | L15: 1 | M15: 2 | N15: 2 | O15: 0.6315789474 | P15: 0.6315789474 | Q15: 126
A16: Proximity to Bridges | B16: 3 | C16: 3 | D16: 2 | E16: 2 | F16: 2 | G16: 3 | H16: 2 | I16: 2 | J16: 2 | K16: 1 | L16: 1 | M16: 2 | N16: 2 | O16: 0.6315789474 | P16: 0.6315789474 | Q16: 126
A17: Broken Water Main (External) | B17: 3 | C17: 3 | D17: 2 | E17: 3 | F17: 1 | G17: 1 | H17: 2 | I17: 1 | J17: 2 | K17: 3 | L17: 1 | M17: 2 | N17: 2 | O17: 0.5964912281 | P17: 0.5964912281 | Q17: 120
A18: Broken Water Main (Internal) | B18: 3 | C18: 3 | D18: 2 | E18: 3 | F18: 1 | G18: 1 | H18: 2 | I18: 1 | J18: 2 | K18: 3 | L18: 1 | M18: 2 | N18: 2 | O18: 0.5964912281 | P18: 0.5964912281 | Q18: 120
A19: Biological Attack – Aerosol Anthrax | B19: 3 | C19: 3 | D19: 1 | E19: 2 | F19: 3 | G19: 1 | H19: 2 | I19: 2 | J19: 1 | K19: 3 | L19: 2 | M19: 1 | N19: 2 | O19: 0.5964912281 | P19: 0.5964912281 | Q19: 120
A20: Biological Attack – Foreign Animal Disease | B20: 3 | C20: 2 | D20: 1 | E20: 2 | F20: 3 | G20: 1 | H20: 2 | I20: 2 | J20: 1 | K20: 3 | L20: 2 | M20: 1 | N20: 2 | O20: 0.5964912281 | P20: 0.3976608187 | Q20: 100
A21: Biological Attack – Food Contamination | B21: 3 | C21: 3 | D21: 1 | E21: 2 | F21: 3 | G21: 1 | H21: 2 | I21: 2 | J21: 1 | K21: 3 | L21: 2 | M21: 1 | N21: 2 | O21: 0.5964912281 | P21: 0.5964912281 | Q21: 120
A22: Biological Attack – Plague | B22: 3 | C22: 2 | D22: 1 | E22: 2 | F22: 3 | G22: 1 | H22: 2 | I22: 2 | J22: 1 | K22: 3 | L22: 2 | M22: 1 | N22: 2 | O22: 0.5964912281 | P22: 0.3976608187 | Q22: 100
A23: Asbestos release during const. or renovation | B23: 3 | C23: 3 | D23: 3 | E23: 1 | F23: 2 | G23: 3 | H23: 1 | I23: 1 | J23: 2 | K23: 1 | L23: 2 | M23: 2 | N23: 2 | O23: 0.5964912281 | P23: 0.5964912281 | Q23: 120
A24: Building/parking structure failure | B24: 3 | C24: 3 | D24: 3 | E24: 1 | F24: 2 | G24: 3 | H24: 1 | I24: 1 | J24: 2 | K24: 1 | L24: 2 | M24: 2 | N24: 2 | O24: 0.5964912281 | P24: 0.5964912281 | Q24: 120
A25: Information Systems Failure | B25: 2 | C25: 3 | D25: 3 | E25: 2 | F25: 2 | G25: 2 | H25: 3 | I25: 1 | J25: 2 | K25: 2 | L25: 2 | M25: 3 | N25: 3 | O25: 0.5029239766 | P25: 0.7543859649 | Q25: 125
A26: Pharmacy Medication Dispenser Failure | B26: 2 | C26: 2 | D26: 3 | E26: 2 | F26: 2 | G26: 2 | H26: 3 | I26: 1 | J26: 2 | K26: 2 | L26: 2 | M26: 3 | N26: 3 | O26: 0.5029239766 | P26: 0.5029239766 | Q26: 100
A27: Security Video Surveillance | B27: 2 | C27: 2 | D27: 3 | E27: 2 | F27: 2 | G27: 2 | H27: 3 | I27: 1 | J27: 2 | K27: 2 | L27: 2 | M27: 3 | N27: 3 | O27: 0.5029239766 | P27: 0.5029239766 | Q27: 100
A28: Security Card Access Failure | B28: 2 | C28: 2 | D28: 3 | E28: 2 | F28: 2 | G28: 2 | H28: 3 | I28: 1 | J28: 2 | K28: 2 | L28: 2 | M28: 3 | N28: 3 | O28: 0.5029239766 | P28: 0.5029239766 | Q28: 100
A29: Network Failure | B29: 2 | C29: 2 | D29: 3 | E29: 2 | F29: 2 | G29: 2 | H29: 3 | I29: 1 | J29: 2 | K29: 2 | L29: 2 | M29: 3 | N29: 3 | O29: 0.5029239766 | P29: 0.5029239766 | Q29: 100
A30: Magnetic Resonance Imaging (MRI) Incident | B30: 2 | C30: 3 | D30: 3 | E30: 2 | F30: 2 | G30: 2 | H30: 3 | I30: 1 | J30: 2 | K30: 2 | L30: 2 | M30: 3 | N30: 3 | O30: 0.5029239766 | P30: 0.7543859649 | Q30: 125
A31: Loss of Key Supplier | B31: 2 | C31: 2 | D31: 3 | E31: 3 | F31: 3 | G31: 2 | H31: 3 | I31: 1 | J31: 2 | K31: 1 | L31: 2 | M31: 2 | N31: 3 | O31: 0.4795321637 | P31: 0.4795321637 | Q31: 100
A32: Intentional Vehicular Incident | B32: 2 | C32: 1 | D32: 3 | E32: 3 | F32: 3 | G32: 2 | H32: 3 | I32: 1 | J32: 2 | K32: 1 | L32: 2 | M32: 2 | N32: 3 | O32: 0.4795321637 | P32: 0.2397660819 | Q32: 75
A33: Supply Shortage | B33: 2 | C33: 2 | D33: 3 | E33: 3 | F33: 3 | G33: 2 | H33: 3 | I33: 1 | J33: 2 | K33: 1 | L33: 2 | M33: 2 | N33: 3 | O33: 0.4795321637 | P33: 0.4795321637 | Q33: 100
A34: Helicopter Incident | B34: 2 | C34: 1 | D34: 3 | E34: 3 | F34: 3 | G34: 2 | H34: 3 | I34: 1 | J34: 2 | K34: 1 | L34: 2 | M34: 2 | N34: 3 | O34: 0.4795321637 | P34: 0.2397660819 | Q34: 75
A35: Isolation Capacity | B35: 2 | C35: 1 | D35: 3 | E35: 3 | F35: 3 | G35: 2 | H35: 3 | I35: 1 | J35: 2 | K35: 1 | L35: 2 | M35: 2 | N35: 3 | O35: 0.4795321637 | P35: 0.2397660819 | Q35: 75
A36: Radiologic Exposure (Internal) | B36: 2 | C36: 1 | D36: 2 | E36: 3 | F36: 1 | G36: 2 | H36: 2 | I36: 1 | J36: 1 | K36: 2 | L36: 2 | M36: 3 | N36: 3 | O36: 0.4444444444 | P36: 0.2222222222 | Q36: 66
A37: Unknown Explosion | B37: 2 | C37: 1 | D37: 2 | E37: 3 | F37: 1 | G37: 2 | H37: 2 | I37: 1 | J37: 1 | K37: 2 | L37: 2 | M37: 3 | N37: 3 | O37: 0.4444444444 | P37: 0.2222222222 | Q37: 66
A38: Radiological Incident (External) | B38: 2 | C38: 1 | D38: 2 | E38: 3 | F38: 1 | G38: 2 | H38: 2 | I38: 1 | J38: 1 | K38: 2 | L38: 2 | M38: 3 | N38: 3 | O38: 0.4444444444 | P38: 0.2222222222 | Q38: 66
A39: Indoor Air Quality Issues | B39: 2 | C39: 1 | D39: 2 | E39: 3 | F39: 1 | G39: 2 | H39: 2 | I39: 1 | J39: 1 | K39: 2 | L39: 2 | M39: 3 | N39: 3 | O39: 0.4444444444 | P39: 0.2222222222 | Q39: 66
A40: Small-Medium Sized Internal Spill | B40: 2 | C40: 1 | D40: 2 | E40: 3 | F40: 1 | G40: 2 | H40: 2 | I40: 1 | J40: 1 | K40: 2 | L40: 2 | M40: 3 | N40: 3 | O40: 0.4444444444 | P40: 0.2222222222 | Q40: 66
A41: Forensic Admission | B41: 2 | C41: 2 | D41: 3 | E41: 1 | F41: 2 | G41: 2 | H41: 3 | I41: 1 | J41: 3 | K41: 2 | L41: 3 | M41: 1 | N41: 1 | O41: 0.4444444444 | P41: 0.4444444444 | Q41: 88
A42: Large Internal Spill | B42: 2 | C42: 1 | D42: 2 | E42: 3 | F42: 1 | G42: 2 | H42: 2 | I42: 1 | J42: 1 | K42: 2 | L42: 2 | M42: 3 | N42: 3 | O42: 0.4444444444 | P42: 0.2222222222 | Q42: 66
A43: HAZMAT Spill (External) | B43: 2 | C43: 1 | D43: 2 | E43: 3 | F43: 1 | G43: 2 | H43: 2 | I43: 1 | J43: 1 | K43: 2 | L43: 2 | M43: 3 | N43: 3 | O43: 0.4444444444 | P43: 0.2222222222 | Q43: 66
A44: Proximity to flood plains, faults, and dams | B44: 2 | C44: 2 | D44: 2 | E44: 2 | F44: 2 | G44: 3 | H44: 2 | I44: 2 | J44: 2 | K44: 1 | L44: 1 | M44: 2 | N44: 2 | O44: 0.4210526316 | P44: 0.4210526316 | Q44: 84
A45: Civil Disturbance | B45: 2 | C45: 2 | D45: 3 | E45: 1 | F45: 2 | G45: 2 | H45: 2 | I45: 1 | J45: 3 | K45: 2 | L45: 3 | M45: 1 | N45: 1 | O45: 0.4210526316 | P45: 0.4210526316 | Q45: 84
A46: Proximity to bus terminals | B46: 2 | C46: 2 | D46: 2 | E46: 2 | F46: 2 | G46: 3 | H46: 2 | I46: 2 | J46: 2 | K46: 1 | L46: 1 | M46: 2 | N46: 2 | O46: 0.4210526316 | P46: 0.4210526316 | Q46: 84
A47: Proximity to companies that produce, store, use, or transport hazardous materials | B47: 2 | C47: 2 | D47: 2 | E47: 2 | F47: 2 | G47: 3 | H47: 2 | I47: 2 | J47: 2 | K47: 1 | L47: 1 | M47: 2 | N47: 2 | O47: 0.4210526316 | P47: 0.4210526316 | Q47: 84
A48: Workplace Violence | B48: 2 | C48: 1 | D48: 3 | E48: 1 | F48: 2 | G48: 2 | H48: 2 | I48: 1 | J48: 3 | K48: 2 | L48: 3 | M48: 1 | N48: 1 | O48: 0.4210526316 | P48: 0.2105263158 | Q48: 63
A49: Proximity to Federal buildings | B49: 2 | C49: 2 | D49: 2 | E49: 2 | F49: 2 | G49: 3 | H49: 2 | I49: 2 | J49: 2 | K49: 1 | L49: 1 | M49: 2 | N49: 2 | O49: 0.4210526316 | P49: 0.4210526316 | Q49: 84
A50: Missing Child | B50: 2 | C50: 1 | D50: 3 | E50: 1 | F50: 2 | G50: 2 | H50: 2 | I50: 1 | J50: 3 | K50: 2 | L50: 3 | M50: 1 | N50: 1 | O50: 0.4210526316 | P50: 0.2105263158 | Q50: 63
A51: Drought | B51: 2 | C51: 2 | D51: 1 | E51: 2 | F51: 3 | G51: 2 | H51: 2 | I51: 3 | J51: 1 | K51: 1 | L51: 3 | M51: 2 | N51: 1 | O51: 0.4210526316 | P51: 0.4210526316 | Q51: 84
A52: Hostage Situation | B52: 2 | C52: 1 | D52: 3 | E52: 1 | F52: 2 | G52: 2 | H52: 2 | I52: 1 | J52: 3 | K52: 2 | L52: 3 | M52: 1 | N52: 1 | O52: 0.4210526316 | P52: 0.2105263158 | Q52: 63
A53: Proximity to local schools and universities | B53: 2 | C53: 2 | D53: 2 | E53: 2 | F53: 2 | G53: 3 | H53: 2 | I53: 2 | J53: 2 | K53: 1 | L53: 1 | M53: 2 | N53: 2 | O53: 0.4210526316 | P53: 0.4210526316 | Q53: 84
A54: VIP Situation | B54: 2 | C54: 1 | D54: 3 | E54: 1 | F54: 2 | G54: 2 | H54: 2 | I54: 1 | J54: 3 | K54: 2 | L54: 3 | M54: 1 | N54: 1 | O54: 0.4210526316 | P54: 0.2105263158 | Q54: 63
A55: Proximity to major trans. routes and airports | B55: 2 | C55: 2 | D55: 2 | E55: 2 | F55: 2 | G55: 3 | H55: 2 | I55: 2 | J55: 2 | K55: 1 | L55: 1 | M55: 2 | N55: 2 | O55: 0.4210526316 | P55: 0.4210526316 | Q55: 84
A56: Staffing Shortage | B56: 2 | C56: 1 | D56: 3 | E56: 1 | F56: 2 | G56: 2 | H56: 2 | I56: 1 | J56: 3 | K56: 2 | L56: 3 | M56: 1 | N56: 1 | O56: 0.4210526316 | P56: 0.2105263158 | Q56: 63
A57: Proximity to Parks | B57: 2 | C57: 2 | D57: 2 | E57: 2 | F57: 2 | G57: 3 | H57: 2 | I57: 2 | J57: 2 | K57: 1 | L57: 1 | M57: 2 | N57: 2 | O57: 0.4210526316 | P57: 0.4210526316 | Q57: 84
A58: Infant Abduction | B58: 2 | C58: 1 | D58: 3 | E58: 1 | F58: 2 | G58: 2 | H58: 2 | I58: 1 | J58: 3 | K58: 2 | L58: 3 | M58: 1 | N58: 1 | O58: 0.4210526316 | P58: 0.2105263158 | Q58: 63
A59: Proximity to train stations | B59: 2 | C59: 2 | D59: 2 | E59: 2 | F59: 2 | G59: 3 | H59: 2 | I59: 2 | J59: 2 | K59: 1 | L59: 1 | M59: 2 | N59: 2 | O59: 0.4210526316 | P59: 0.4210526316 | Q59: 84
A60: Violence in the ED | B60: 2 | C60: 1 | D60: 3 | E60: 1 | F60: 2 | G60: 2 | H60: 2 | I60: 1 | J60: 3 | K60: 2 | L60: 3 | M60: 1 | N60: 1 | O60: 0.4210526316 | P60: 0.2105263158 | Q60: 63
A61: Labor Action | B61: 2 | C61: 1 | D61: 3 | E61: 1 | F61: 2 | G61: 2 | H61: 2 | I61: 1 | J61: 3 | K61: 2 | L61: 3 | M61: 1 | N61: 1 | O61: 0.4210526316 | P61: 0.2105263158 | Q61: 63
A62: Proximity to Civic/Sports Events | B62: 2 | C62: 2 | D62: 2 | E62: 2 | F62: 2 | G62: 3 | H62: 2 | I62: 2 | J62: 2 | K62: 1 | L62: 1 | M62: 2 | N62: 2 | O62: 0.4210526316 | P62: 0.4210526316 | Q62: 84
A63: Mass Casualty (Trauma) | B63: 2 | C63: 1 | D63: 3 | E63: 1 | F63: 2 | G63: 2 | H63: 2 | I63: 1 | J63: 3 | K63: 2 | L63: 3 | M63: 1 | N63: 1 | O63: 0.4210526316 | P63: 0.2105263158 | Q63: 63
A64: Proximity to Festivals | B64: 2 | C64: 2 | D64: 2 | E64: 2 | F64: 2 | G64: 3 | H64: 2 | I64: 2 | J64: 2 | K64: 1 | L64: 1 | M64: 2 | N64: 2 | O64: 0.4210526316 | P64: 0.4210526316 | Q64: 84
A65: Earthquake | B65: 2 | C65: 2 | D65: 1 | E65: 2 | F65: 3 | G65: 2 | H65: 2 | I65: 3 | J65: 1 | K65: 1 | L65: 3 | M65: 2 | N65: 1 | O65: 0.4210526316 | P65: 0.4210526316 | Q65: 84
A66: Medical Vacuum Failure | B66: 2 | C66: 1 | D66: 2 | E66: 3 | F66: 1 | G66: 1 | H66: 2 | I66: 1 | J66: 2 | K66: 3 | L66: 1 | M66: 2 | N66: 2 | O66: 0.3976608187 | P66: 0.1988304094 | Q66: 60
A67: Fire Suppression Failure | B67: 2 | C67: 1 | D67: 2 | E67: 3 | F67: 1 | G67: 1 | H67: 2 | I67: 1 | J67: 2 | K67: 3 | L67: 1 | M67: 2 | N67: 2 | O67: 0.3976608187 | P67: 0.1988304094 | Q67: 60
A68: Generator Failure | B68: 2 | C68: 1 | D68: 2 | E68: 3 | F68: 1 | G68: 1 | H68: 2 | I68: 1 | J68: 2 | K68: 3 | L68: 1 | M68: 2 | N68: 2 | O68: 0.3976608187 | P68: 0.1988304094 | Q68: 60
A69: Electrical Failure | B69: 2 | C69: 3 | D69: 2 | E69: 3 | F69: 1 | G69: 1 | H69: 2 | I69: 1 | J69: 2 | K69: 3 | L69: 1 | M69: 2 | N69: 2 | O69: 0.3976608187 | P69: 0.5964912281 | Q69: 100
A70: Process Water Failure | B70: 2 | C70: 1 | D70: 2 | E70: 3 | F70: 1 | G70: 1 | H70: 2 | I70: 1 | J70: 2 | K70: 3 | L70: 1 | M70: 2 | N70: 2 | O70: 0.3976608187 | P70: 0.1988304094 | Q70: 60
A71: Sewer Failure | B71: 2 | C71: 1 | D71: 2 | E71: 3 | F71: 1 | G71: 1 | H71: 2 | I71: 1 | J71: 2 | K71: 3 | L71: 1 | M71: 2 | N71: 2 | O71: 0.3976608187 | P71: 0.1988304094 | Q71: 60
A72: Natural Gas Failure | B72: 2 | C72: 1 | D72: 2 | E72: 3 | F72: 1 | G72: 1 | H72: 2 | I72: 1 | J72: 2 | K72: 3 | L72: 1 | M72: 2 | N72: 2 | O72: 0.3976608187 | P72: 0.1988304094 | Q72: 60
A73: Lighting | B73: 2 | C73: 2 | D73: 3 | E73: 1 | F73: 2 | G73: 3 | H73: 1 | I73: 1 | J73: 2 | K73: 1 | L73: 2 | M73: 2 | N73: 2 | O73: 0.3976608187 | P73: 0.3976608187 | Q73: 80
A74: Fire (Internal) | B74: 2 | C74: 1 | D74: 2 | E74: 3 | F74: 1 | G74: 1 | H74: 2 | I74: 1 | J74: 2 | K74: 3 | L74: 1 | M74: 2 | N74: 2 | O74: 0.3976608187 | P74: 0.1988304094 | Q74: 60
A75: Steam Failure | B75: 2 | C75: 1 | D75: 2 | E75: 3 | F75: 1 | G75: 1 | H75: 2 | I75: 1 | J75: 2 | K75: 3 | L75: 1 | M75: 2 | N75: 2 | O75: 0.3976608187 | P75: 0.1988304094 | Q75: 60
A76: Layout of the equipment | B76: 2 | C76: 2 | D76: 3 | E76: 1 | F76: 2 | G76: 3 | H76: 1 | I76: 1 | J76: 2 | K76: 1 | L76: 2 | M76: 2 | N76: 2 | O76: 0.3976608187 | P76: 0.3976608187 | Q76: 80
A77: Structural Damage | B77: 2 | C77: 1 | D77: 2 | E77: 3 | F77: 1 | G77: 1 | H77: 2 | I77: 1 | J77: 2 | K77: 3 | L77: 1 | M77: 2 | N77: 2 | O77: 0.3976608187 | P77: 0.1988304094 | Q77: 60
A78: Proximity of shelter areas | B78: 2 | C78: 2 | D78: 3 | E78: 1 | F78: 2 | G78: 3 | H78: 1 | I78: 1 | J78: 2 | K78: 1 | L78: 2 | M78: 2 | N78: 2 | O78: 0.3976608187 | P78: 0.3976608187 | Q78: 80
A79: The physical construction of the facility | B79: 2 | C79: 2 | D79: 3 | E79: 1 | F79: 2 | G79: 3 | H79: 1 | I79: 1 | J79: 2 | K79: 1 | L79: 2 | M79: 2 | N79: 2 | O79: 0.3976608187 | P79: 0.3976608187 | Q79: 80
A80: Facilities for storing combustibles | B80: 2 | C80: 2 | D80: 3 | E80: 1 | F80: 2 | G80: 3 | H80: 1 | I80: 1 | J80: 2 | K80: 1 | L80: 2 | M80: 2 | N80: 2 | O80: 0.3976608187 | P80: 0.3976608187 | Q80: 80
A81: Tube System Failure | B81: 2 | C81: 1 | D81: 2 | E81: 3 | F81: 1 | G81: 1 | H81: 2 | I81: 1 | J81: 2 | K81: 3 | L81: 1 | M81: 2 | N81: 2 | O81: 0.3976608187 | P81: 0.1988304094 | Q81: 60
A82: Compressed Gas Cylinder Leak/Failure | B82: 2 | C82: 3 | D82: 2 | E82: 3 | F82: 1 | G82: 1 | H82: 2 | I82: 1 | J82: 2 | K82: 3 | L82: 1 | M82: 2 | N82: 2 | O82: 0.3976608187 | P82: 0.5964912281 | Q82: 100
A83: Loss of Bulk Oxygen | B83: 2 | C83: 1 | D83: 2 | E83: 3 | F83: 1 | G83: 1 | H83: 2 | I83: 1 | J83: 2 | K83: 3 | L83: 1 | M83: 2 | N83: 2 | O83: 0.3976608187 | P83: 0.1988304094 | Q83: 60
A84: Facilities for storing hazardous chemical waste | B84: 2 | C84: 2 | D84: 3 | E84: 1 | F84: 2 | G84: 3 | H84: 1 | I84: 1 | J84: 2 | K84: 1 | L84: 2 | M84: 2 | N84: 2 | O84: 0.3976608187 | P84: 0.3976608187 | Q84: 80
A85: HVAC Failure | B85: 2 | C85: 1 | D85: 2 | E85: 3 | F85: 1 | G85: 1 | H85: 2 | I85: 1 | J85: 2 | K85: 3 | L85: 1 | M85: 2 | N85: 2 | O85: 0.3976608187 | P85: 0.1988304094 | Q85: 60
A86: Fire Detection/Alarm Failure | B86: 2 | C86: 1 | D86: 2 | E86: 3 | F86: 1 | G86: 1 | H86: 2 | I86: 1 | J86: 2 | K86: 3 | L86: 1 | M86: 2 | N86: 2 | O86: 0.3976608187 | P86: 0.1988304094 | Q86: 60
A87: Hazardous processes or byproducts | B87: 2 | C87: 2 | D87: 3 | E87: 1 | F87: 2 | G87: 3 | H87: 1 | I87: 1 | J87: 2 | K87: 1 | L87: 2 | M87: 2 | N87: 2 | O87: 0.3976608187 | P87: 0.3976608187 | Q87: 80
A88: Flood (Internal) | B88: 2 | C88: 1 | D88: 2 | E88: 3 | F88: 1 | G88: 1 | H88: 2 | I88: 1 | J88: 2 | K88: 3 | L88: 1 | M88: 2 | N88: 2 | O88: 0.3976608187 | P88: 0.1988304094 | Q88: 60
A89: Medical Gas Failure | B89: 2 | C89: 1 | D89: 2 | E89: 3 | F89: 1 | G89: 1 | H89: 2 | I89: 1 | J89: 2 | K89: 3 | L89: 1 | M89: 2 | N89: 2 | O89: 0.3976608187 | P89: 0.1988304094 | Q89: 60
A90: Potable Water Failure | B90: 2 | C90: 1 | D90: 2 | E90: 3 | F90: 1 | G90: 1 | H90: 2 | I90: 1 | J90: 2 | K90: 3 | L90: 1 | M90: 2 | N90: 2 | O90: 0.3976608187 | P90: 0.1988304094 | Q90: 60
A91: Elevator Failure | B91: 2 | C91: 1 | D91: 2 | E91: 3 | F91: 1 | G91: 1 | H91: 2 | I91: 1 | J91: 2 | K91: 3 | L91: 1 | M91: 2 | N91: 2 | O91: 0.3976608187 | P91: 0.1988304094 | Q91: 60
A92: Fuel Shortage | B92: 2 | C92: 1 | D92: 2 | E92: 3 | F92: 1 | G92: 1 | H92: 2 | I92: 1 | J92: 2 | K92: 3 | L92: 1 | M92: 2 | N92: 2 | O92: 0.3976608187 | P92: 0.1988304094 | Q92: 60
A93: Evacuation routes and exits | B93: 2 | C93: 2 | D93: 3 | E93: 1 | F93: 2 | G93: 3 | H93: 1 | I93: 1 | J93: 2 | K93: 1 | L93: 2 | M93: 2 | N93: 2 | O93: 0.3976608187 | P93: 0.3976608187 | Q93: 80
A94: Facilities for storing biohazardous wastes | B94: 2 | C94: 2 | D94: 3 | E94: 1 | F94: 2 | G94: 3 | H94: 1 | I94: 1 | J94: 2 | K94: 1 | L94: 2 | M94: 2 | N94: 2 | O94: 0.3976608187 | P94: 0.3976608187 | Q94: 80
A95: Oxygen Leak | B95: 2 | C95: 1 | D95: 2 | E95: 3 | F95: 1 | G95: 1 | H95: 2 | I95: 1 | J95: 2 | K95: 3 | L95: 1 | M95: 2 | N95: 2 | O95: 0.3976608187 | P95: 0.1988304094 | Q95: 60
A96: Natural Gas Leak | B96: 2 | C96: 1 | D96: 2 | E96: 3 | F96: 1 | G96: 1 | H96: 2 | I96: 1 | J96: 2 | K96: 3 | L96: 1 | M96: 2 | N96: 2 | O96: 0.3976608187 | P96: 0.1988304094 | Q96: 60
A97: Hurricane | B97: 1 | C97: 2 | D97: 1 | E97: 2 | F97: 3 | G97: 2 | H97: 2 | I97: 3 | J97: 1 | K97: 1 | L97: 3 | M97: 2 | N97: 1 | O97: 0.2105263158 | P97: 0.4210526316 | Q97: 63
A98: Solar Flares | B98: 1 | C98: 2 | D98: 1 | E98: 2 | F98: 3 | G98: 2 | H98: 2 | I98: 3 | J98: 1 | K98: 1 | L98: 3 | M98: 2 | N98: 1 | O98: 0.2105263158 | P98: 0.4210526316 | Q98: 63
A99: Epidemic/Pandemic | B99: 1 | C99: 2 | D99: 1 | E99: 2 | F99: 3 | G99: 2 | H99: 2 | I99: 3 | J99: 1 | K99: 1 | L99: 3 | M99: 2 | N99: 1 | O99: 0.2105263158 | P99: 0.4210526316 | Q99: 63
A100: Temperature Extreme (Cold) | B100: 1 | C100: 2 | D100: 1 | E100: 2 | F100: 3 | G100: 2 | H100: 2 | I100: 3 | J100: 1 | K100: 1 | L100: 3 | M100: 2 | N100: 1 | O100: 0.2105263158 | P100: 0.4210526316 | Q100: 63
A101: Severe Blizzard/Snow Fall | B101: 1 | C101: 2 | D101: 1 | E101: 2 | F101: 3 | G101: 2 | H101: 2 | I101: 3 | J101: 1 | K101: 1 | L101: 3 | M101: 2 | N101: 1 | O101: 0.2105263158 | P101: 0.4210526316 | Q101: 63
A102: Temperature Extreme (Hot) | B102: 1 | C102: 2 | D102: 1 | E102: 2 | F102: 3 | G102: 2 | H102: 2 | I102: 3 | J102: 1 | K102: 1 | L102: 3 | M102: 2 | N102: 1 | O102: 0.2105263158 | P102: 0.4210526316 | Q102: 63
A103: Flood (External) | B103: 1 | C103: 2 | D103: 1 | E103: 2 | F103: 3 | G103: 2 | H103: 2 | I103: 3 | J103: 1 | K103: 1 | L103: 3 | M103: 2 | N103: 1 | O103: 0.2105263158 | P103: 0.4210526316 | Q103: 63
A104: Ice Storm | B104: 1 | C104: 2 | D104: 1 | E104: 2 | F104: 3 | G104: 2 | H104: 2 | I104: 3 | J104: 1 | K104: 1 | L104: 3 | M104: 2 | N104: 1 | O104: 0.2105263158 | P104: 0.4210526316 | Q104: 63
A105: Severe Thunderstorm | B105: 1 | C105: 2 | D105: 1 | E105: 2 | F105: 3 | G105: 2 | H105: 2 | I105: 3 | J105: 1 | K105: 1 | L105: 3 | M105: 2 | N105: 1 | O105: 0.2105263158 | P105: 0.4210526316 | Q105: 63
A106: Tornado | B106: 1 | C106: 2 | D106: 1 | E106: 2 | F106: 3 | G106: 2 | H106: 2 | I106: 3 | J106: 1 | K106: 1 | L106: 3 | M106: 2 | N106: 1 | O106: 0.2105263158 | P106: 0.4210526316 | Q106: 63
A107: High Winds | B107: 1 | C107: 2 | D107: 1 | E107: 2 | F107: 3 | G107: 2 | H107: 2 | I107: 3 | J107: 1 | K107: 1 | L107: 3 | M107: 2 | N107: 1 | O107: 0.2105263158 | P107: 0.4210526316 | Q107: 63
A108: Insect Infestation | B108: 1 | C108: 2 | D108: 1 | E108: 2 | F108: 3 | G108: 2 | H108: 2 | I108: 3 | J108: 1 | K108: 1 | L108: 3 | M108: 2 | N108: 1 | O108: 0.2105263158 | P108: 0.4210526316 | Q108: 63
A109: Hail | B109: 1 | C109: 2 | D109: 1 | E109: 2 | F109: 3 | G109: 2 | H109: 2 | I109: 3 | J109: 1 | K109: 1 | L109: 3 | M109: 2 | N109: 1 | O109: 0.2105263158 | P109: 0.4210526316 | Q109: 63
A110: Volcano | B110: 1 | C110: 2 | D110: 1 | E110: 2 | F110: 3 | G110: 2 | H110: 2 | I110: 3 | J110: 1 | K110: 1 | L110: 3 | M110: 2 | N110: 1 | O110: 0.2105263158 | P110: 0.4210526316 | Q110: 63
A111: Tidal Wave | B111: 1 | C111: 2 | D111: 1 | E111: 2 | F111: 3 | G111: 2 | H111: 2 | I111: 3 | J111: 1 | K111: 1 | L111: 3 | M111: 2 | N111: 1 | O111: 0.2105263158 | P111: 0.4210526316 | Q111: 63
A112: Wild Fire | B112: 1 | C112: 2 | D112: 1 | E112: 2 | F112: 3 | G112: 2 | H112: 2 | I112: 3 | J112: 1 | K112: 1 | L112: 3 | M112: 2 | N112: 1 | O112: 0.2105263158 | P112: 0.4210526316 | Q112: 63
A113: Landslide | B113: 1 | C113: 2 | D113: 1 | E113: 2 | F113: 3 | G113: 2 | H113: 2 | I113: 3 | J113: 1 | K113: 1 | L113: 3 | M113: 2 | N113: 1 | O113: 0.2105263158 | P113: 0.4210526316 | Q113: 63
A114: Cyber Attack | B114: 1 | C114: 2 | D114: 1 | E114: 2 | F114: 3 | G114: 1 | H114: 2 | I114: 2 | J114: 1 | K114: 3 | L114: 2 | M114: 1 | N114: 2 | O114: 0.1988304094 | P114: 0.3976608187 | Q114: 60
A115: Biological Disease Outbreak – Pandemic flu | B115: 1 | C115: 2 | D115: 1 | E115: 2 | F115: 3 | G115: 1 | H115: 2 | I115: 2 | J115: 1 | K115: 3 | L115: 2 | M115: 1 | N115: 2 | O115: 0.1988304094 | P115: 0.3976608187 | Q115: 60
A116: Nuclear Detonation – Improvised Device | B116: 1 | C116: 2 | D116: 1 | E116: 2 | F116: 3 | G116: 1 | H116: 2 | I116: 2 | J116: 1 | K116: 3 | L116: 2 | M116: 1 | N116: 2 | O116: 0.1988304094 | P116: 0.3976608187 | Q116: 60
A117: Chemical Attack – Nerve Agent | B117: 1 | C117: 2 | D117: 1 | E117: 2 | F117: 3 | G117: 1 | H117: 2 | I117: 2 | J117: 1 | K117: 3 | L117: 2 | M117: 1 | N117: 2 | O117: 0.1988304094 | P117: 0.3976608187 | Q117: 60
A118: Chemical Attack – Toxic Industrial Chemicals | B118: 1 | C118: 2 | D118: 1 | E118: 2 | F118: 3 | G118: 1 | H118: 2 | I118: 2 | J118: 1 | K118: 3 | L118: 2 | M118: 1 | N118: 2 | O118: 0.1988304094 | P118: 0.3976608187 | Q118: 60
A119: Radiological Attack – Radiological Dispersal | B119: 1 | C119: 2 | D119: 1 | E119: 2 | F119: 3 | G119: 1 | H119: 2 | I119: 2 | J119: 1 | K119: 3 | L119: 2 | M119: 1 | N119: 2 | O119: 0.1988304094 | P119: 0.3976608187 | Q119: 60
A120: Chemical Attack – Chlorine Tank Explosion | B120: 1 | C120: 2 | D120: 1 | E120: 2 | F120: 3 | G120: 1 | H120: 2 | I120: 2 | J120: 1 | K120: 3 | L120: 2 | M120: 1 | N120: 2 | O120: 0.1988304094 | P120: 0.3976608187 | Q120: 60
A121: Natural Disaster – Major Earthquake | B121: 1 | C121: 2 | D121: 1 | E121: 2 | F121: 3 | G121: 1 | H121: 2 | I121: 2 | J121: 1 | K121: 3 | L121: 2 | M121: 1 | N121: 2 | O121: 0.1988304094 | P121: 0.3976608187 | Q121: 60
A122: Natural Disaster – Major Hurricane | B122: 1 | C122: 2 | D122: 1 | E122: 2 | F122: 3 | G122: 1 | H122: 2 | I122: 2 | J122: 1 | K122: 3 | L122: 2 | M122: 1 | N122: 2 | O122: 0.1988304094 | P122: 0.3976608187 | Q122: 60
A123: Explosives Attack – Improvised Explosive | B123: 1 | C123: 2 | D123: 1 | E123: 2 | F123: 3 | G123: 1 | H123: 2 | I123: 2 | J123: 1 | K123: 3 | L123: 2 | M123: 1 | N123: 2 | O123: 0.1988304094 | P123: 0.3976608187 | Q123: 60
A124: Chemical Attack – Blister Agent | B124: 1 | C124: 2 | D124: 1 | E124: 2 | F124: 3 | G124: 1 | H124: 2 | I124: 2 | J124: 1 | K124: 3 | L124: 2 | M124: 1 | N124: 2 | O124: 0.1988304094 | P124: 0.3976608187 | Q124: 60
A125: Human Related Events | B125: 0 | C125: 0 | D125: 0 | E125: 0 | F125: 0 | G125: 0 | H125: 0 | I125: 0 | J125: 0 | K125: 0 | L125: 0 | M125: 0 | N125: 0 | O125: 0 | P125: 0 | Q125: 0
A126: Average: | B126: 2.018072051 | C126: 1.908168375 | D126: 20 | E126: 19 | F126: 19 | G126: 18 | H126: 19.07692308 | I126: 13 | J126: 16 | K126: 16 | L126: 18 | M126: 18 | N126: 19 | O126: 0 | P126: 0 | Q126: 0
A127: Other Events | B127: 0 | C127: 0 | D127: 0 | E127: 0 | F127: 0 | G127: 0 | H127: 0 | I127: 0 | J127: 0 | K127: 0 | L127: 0 | M127: 0 | N127: 0 | O127: 0 | P127: 0 | Q127: 0
A128: Hazardous Materials Events | B128: 0 | C128: 0 | D128: 0 | E128: 0 | F128: 0 | G128: 0 | H128: 0 | I128: 0 | J128: 0 | K128: 0 | L128: 0 | M128: 0 | N128: 0 | O128: 0 | P128: 0 | Q128: 0
A129: National Planning Scenarios | D129: 0 | E129: 0 | F129: 0 | G129: 0 | H129: 0 | I129: 0 | J129: 0 | K129: 0 | L129: 0 | M129: 0 | N129: 0 | O129: 0 | P129: 0 | Q129: 0
A130: Technologic Events | B130: 0 | C130: 0 | D130: 0 | E130: 0 | F130: 0 | G130: 0 | H130: 0 | I130: 0 | J130: 0 | K130: 0 | L130: 0 | M130: 0 | N130: 0 | O130: 0 | P130: 0 | Q130: 0
A131: Overall Average: | B131: 2.018072051 | C131: 1.908168375 | D131: 2.222222222 | E131: 2.111111111 | F131: 2.111111111 | G131: 2 | H131: 2.11965812 | I131: 1.444444444 | J131: 1.777777778 | K131: 1.777777778 | L131: 2 | M131: 2 | N131: 2.111111111 | O131: 0 | P131: 0 | Q131: 0
A132: Utility Events | B132: 0 | C132: 0 | D132: 0 | E132: 0 | F132: 0 | G132: 0 | H132: 0 | I132: 0 | J132: 0 | K132: 0 | L132: 0 | M132: 0 | N132: 0 | O132: 0 | P132: 0 | Q132: 0
A133: Geographic Events | B133: 0 | C133: 0 | D133: 0 | E133: 0 | F133: 0 | G133: 0 | H133: 0 | I133: 0 | J133: 0 | K133: 0 | L133: 0 | M133: 0 | N133: 0 | O133: 0 | P133: 0 | Q133: 0
A134: Physical Events | B134: 0 | C134: 0 | D134: 0 | E134: 0 | F134: 0 | G134: 0 | H134: 0 | I134: 0 | J134: 0 | K134: 0 | L134: 0 | M134: 0 | N134: 0 | O134: 0 | P134: 0 | Q134: 0
A135: 0 | B135: 0 | C135: 0 | D135: 0 | E135: 0 | F135: 0 | G135: 0 | H135: 0 | I135: 0 | J135: 0 | K135: 0 | L135: 0 | M135: 0 | N135: 0 | O135: 0 | P135: 0 | Q135: 0
A136: Naturally Occurring Events | B136: 0 | C136: 0 | D136: 0 | E136: 0 | F136: 0 | G136: 0 | H136: 0 | I136: 0 | J136: 0 | K136: 0 | L136: 0 | M136: 0 | N136: 0 | O136: 0 | P136: 0 | Q136: 0
A137: Grand Total | B137: 1.586042267 | C137: 1.522526313 | D137: 265.2222222 | E137: 277.1111111 | F137: 271.1111111 | G137: 244 | H137: 266.1965812 | I137: 203.4444444 | J137: 225.7777778 | K137: 245.7777778 | L137: 258 | M137: 249 | N137: 251.1111111 | O137: 49.16959064 | P137: 47.29239766 | Q137: 9675

Sheet Data 2 (hidden)
A1: type | B1: Occurrence | C1: Response | D1: Human | E1: Property | F1: Business | G1: MI | H1: ME | I1: PI | J1: PE | K1: RI | L1: RE | M1: RCI | N1: RCE | O1: occ | P1: rep | Q1: tot
A2: ='CHVA Tool - Data Entry'!A6 -> National Planning Scenarios | B2: ='CHVA Tool - Data Entry'!B6 -> Occurrence | C2: ='CHVA Tool - Data Entry'!C6 -> Response | D2: ='CHVA Tool - Data Entry'!D6 -> 0 | E2: ='CHVA Tool - Data Entry'!E6 -> 0 | F2: ='CHVA Tool - Data Entry'!F6 -> 0 | G2: ='CHVA Tool - Data Entry'!G6 -> 0 | H2: ='CHVA Tool - Data Entry'!H6 -> 0 | I2: ='CHVA Tool - Data Entry'!I6 -> 0 | J2: ='CHVA Tool - Data Entry'!J6 -> 0 | K2: ='CHVA Tool - Data Entry'!K6 -> 0 | L2: ='CHVA Tool - Data Entry'!L6 -> 0 | M2: ='CHVA Tool - Data Entry'!M6 -> 0 | N2: ='CHVA Tool - Data Entry'!N6 -> 0 | O2: ='CHVA Tool - Data Entry'!O6 -> 0 | P2: ='CHVA Tool - Data Entry'!P6 -> 0 | Q2: ='CHVA Tool - Data Entry'!Q6 -> 0
A3: ='CHVA Tool - Data Entry'!A7 -> Biological Attack – Aerosol Anthrax | B3: ='CHVA Tool - Data Entry'!B7 -> 3 | C3: ='CHVA Tool - Data Entry'!C7 -> 3 | D3: ='CHVA Tool - Data Entry'!D7 -> 1 | E3: ='CHVA Tool - Data Entry'!E7 -> 2 | F3: ='CHVA Tool - Data Entry'!F7 -> 3 | G3: ='CHVA Tool - Data Entry'!G7 -> 1 | H3: ='CHVA Tool - Data Entry'!H7 -> 2 | I3: ='CHVA Tool - Data Entry'!I7 -> 2 | J3: ='CHVA Tool - Data Entry'!J7 -> 1 | K3: ='CHVA Tool - Data Entry'!K7 -> 3 | L3: ='CHVA Tool - Data Entry'!L7 -> 2 | M3: ='CHVA Tool - Data Entry'!M7 -> 1 | N3: ='CHVA Tool - Data Entry'!N7 -> 2 | O3: ='CHVA Tool - Data Entry'!O7 -> 0.5964912281 | P3: ='CHVA Tool - Data Entry'!P7 -> 0.5964912281 | Q3: ='CHVA Tool - Data Entry'!Q7 -> 120
A4: ='CHVA Tool - Data Entry'!A8 -> Biological Attack – Food Contamination | B4: ='CHVA Tool - Data Entry'!B8 -> 3 | C4: ='CHVA Tool - Data Entry'!C8 -> 3 | D4: ='CHVA Tool - Data Entry'!D8 -> 1 | E4: ='CHVA Tool - Data Entry'!E8 -> 2 | F4: ='CHVA Tool - Data Entry'!F8 -> 3 | G4: ='CHVA Tool - Data Entry'!G8 -> 1 | H4: ='CHVA Tool - Data Entry'!H8 -> 2 | I4: ='CHVA Tool - Data Entry'!I8 -> 2 | J4: ='CHVA Tool - Data Entry'!J8 -> 1 | K4: ='CHVA Tool - Data Entry'!K8 -> 3 | L4: ='CHVA Tool - Data Entry'!L8 -> 2 | M4: ='CHVA Tool - Data Entry'!M8 -> 1 | N4: ='CHVA Tool - Data Entry'!N8 -> 2 | O4: ='CHVA Tool - Data Entry'!O8 -> 0.5964912281 | P4: ='CHVA Tool - Data Entry'!P8 -> 0.5964912281 | Q4: ='CHVA Tool - Data Entry'!Q8 -> 120
A5: ='CHVA Tool - Data Entry'!A9 -> Biological Attack – Foreign Animal Disease | B5: ='CHVA Tool - Data Entry'!B9 -> 3 | C5: ='CHVA Tool - Data Entry'!C9 -> 2 | D5: ='CHVA Tool - Data Entry'!D9 -> 1 | E5: ='CHVA Tool - Data Entry'!E9 -> 2 | F5: ='CHVA Tool - Data Entry'!F9 -> 3 | G5: ='CHVA Tool - Data Entry'!G9 -> 1 | H5: ='CHVA Tool - Data Entry'!H9 -> 2 | I5: ='CHVA Tool - Data Entry'!I9 -> 2 | J5: ='CHVA Tool - Data Entry'!J9 -> 1 | K5: ='CHVA Tool - Data Entry'!K9 -> 3 | L5: ='CHVA Tool - Data Entry'!L9 -> 2 | M5: ='CHVA Tool - Data Entry'!M9 -> 1 | N5: ='CHVA Tool - Data Entry'!N9 -> 2 | O5: ='CHVA Tool - Data Entry'!O9 -> 0.5964912281 | P5: ='CHVA Tool - Data Entry'!P9 -> 0.3976608187 | Q5: ='CHVA Tool - Data Entry'!Q9 -> 100
A6: ='CHVA Tool - Data Entry'!A10 -> Biological Attack – Plague | B6: ='CHVA Tool - Data Entry'!B10 -> 3 | C6: ='CHVA Tool - Data Entry'!C10 -> 2 | D6: ='CHVA Tool - Data Entry'!D10 -> 1 | E6: ='CHVA Tool - Data Entry'!E10 -> 2 | F6: ='CHVA Tool - Data Entry'!F10 -> 3 | G6: ='CHVA Tool - Data Entry'!G10 -> 1 | H6: ='CHVA Tool - Data Entry'!H10 -> 2 | I6: ='CHVA Tool - Data Entry'!I10 -> 2 | J6: ='CHVA Tool - Data Entry'!J10 -> 1 | K6: ='CHVA Tool - Data Entry'!K10 -> 3 | L6: ='CHVA Tool - Data Entry'!L10 -> 2 | M6: ='CHVA Tool - Data Entry'!M10 -> 1 | N6: ='CHVA Tool - Data Entry'!N10 -> 2 | O6: ='CHVA Tool - Data Entry'!O10 -> 0.5964912281 | P6: ='CHVA Tool - Data Entry'!P10 -> 0.3976608187 | Q6: ='CHVA Tool - Data Entry'!Q10 -> 100
A7: ='CHVA Tool - Data Entry'!A11 -> Biological Disease Outbreak – Pandemic flu | B7: ='CHVA Tool - Data Entry'!B11 -> 1 | C7: ='CHVA Tool - Data Entry'!C11 -> 2 | D7: ='CHVA Tool - Data Entry'!D11 -> 1 | E7: ='CHVA Tool - Data Entry'!E11 -> 2 | F7: ='CHVA Tool - Data Entry'!F11 -> 3 | G7: ='CHVA Tool - Data Entry'!G11 -> 1 | H7: ='CHVA Tool - Data Entry'!H11 -> 2 | I7: ='CHVA Tool - Data Entry'!I11 -> 2 | J7: ='CHVA Tool - Data Entry'!J11 -> 1 | K7: ='CHVA Tool - Data Entry'!K11 -> 3 | L7: ='CHVA Tool - Data Entry'!L11 -> 2 | M7: ='CHVA Tool - Data Entry'!M11 -> 1 | N7: ='CHVA Tool - Data Entry'!N11 -> 2 | O7: ='CHVA Tool - Data Entry'!O11 -> 0.1988304094 | P7: ='CHVA Tool - Data Entry'!P11 -> 0.3976608187 | Q7: ='CHVA Tool - Data Entry'!Q11 -> 60
A8: ='CHVA Tool - Data Entry'!A12 -> Chemical Attack – Blister Agent | B8: ='CHVA Tool - Data Entry'!B12 -> 1 | C8: ='CHVA Tool - Data Entry'!C12 -> 2 | D8: ='CHVA Tool - Data Entry'!D12 -> 1 | E8: ='CHVA Tool - Data Entry'!E12 -> 2 | F8: ='CHVA Tool - Data Entry'!F12 -> 3 | G8: ='CHVA Tool - Data Entry'!G12 -> 1 | H8: ='CHVA Tool - Data Entry'!H12 -> 2 | I8: ='CHVA Tool - Data Entry'!I12 -> 2 | J8: ='CHVA Tool - Data Entry'!J12 -> 1 | K8: ='CHVA Tool - Data Entry'!K12 -> 3 | L8: ='CHVA Tool - Data Entry'!L12 -> 2 | M8: ='CHVA Tool - Data Entry'!M12 -> 1 | N8: ='CHVA Tool - Data Entry'!N12 -> 2 | O8: ='CHVA Tool - Data Entry'!O12 -> 0.1988304094 | P8: ='CHVA Tool - Data Entry'!P12 -> 0.3976608187 | Q8: ='CHVA Tool - Data Entry'!Q12 -> 60
A9: ='CHVA Tool - Data Entry'!A13 -> Chemical Attack – Chlorine Tank Explosion | B9: ='CHVA Tool - Data Entry'!B13 -> 1 | C9: ='CHVA Tool - Data Entry'!C13 -> 2 | D9: ='CHVA Tool - Data Entry'!D13 -> 1 | E9: ='CHVA Tool - Data Entry'!E13 -> 2 | F9: ='CHVA Tool - Data Entry'!F13 -> 3 | G9: ='CHVA Tool - Data Entry'!G13 -> 1 | H9: ='CHVA Tool - Data Entry'!H13 -> 2 | I9: ='CHVA Tool - Data Entry'!I13 -> 2 | J9: ='CHVA Tool - Data Entry'!J13 -> 1 | K9: ='CHVA Tool - Data Entry'!K13 -> 3 | L9: ='CHVA Tool - Data Entry'!L13 -> 2 | M9: ='CHVA Tool - Data Entry'!M13 -> 1 | N9: ='CHVA Tool - Data Entry'!N13 -> 2 | O9: ='CHVA Tool - Data Entry'!O13 -> 0.1988304094 | P9: ='CHVA Tool - Data Entry'!P13 -> 0.3976608187 | Q9: ='CHVA Tool - Data Entry'!Q13 -> 60
A10: ='CHVA Tool - Data Entry'!A14 -> Chemical Attack – Nerve Agent | B10: ='CHVA Tool - Data Entry'!B14 -> 1 | C10: ='CHVA Tool - Data Entry'!C14 -> 2 | D10: ='CHVA Tool - Data Entry'!D14 -> 1 | E10: ='CHVA Tool - Data Entry'!E14 -> 2 | F10: ='CHVA Tool - Data Entry'!F14 -> 3 | G10: ='CHVA Tool - Data Entry'!G14 -> 1 | H10: ='CHVA Tool - Data Entry'!H14 -> 2 | I10: ='CHVA Tool - Data Entry'!I14 -> 2 | J10: ='CHVA Tool - Data Entry'!J14 -> 1 | K10: ='CHVA Tool - Data Entry'!K14 -> 3 | L10: ='CHVA Tool - Data Entry'!L14 -> 2 | M10: ='CHVA Tool - Data Entry'!M14 -> 1 | N10: ='CHVA Tool - Data Entry'!N14 -> 2 | O10: ='CHVA Tool - Data Entry'!O14 -> 0.1988304094 | P10: ='CHVA Tool - Data Entry'!P14 -> 0.3976608187 | Q10: ='CHVA Tool - Data Entry'!Q14 -> 60
A11: ='CHVA Tool - Data Entry'!A15 -> Chemical Attack – Toxic Industrial Chemicals | B11: ='CHVA Tool - Data Entry'!B15 -> 1 | C11: ='CHVA Tool - Data Entry'!C15 -> 2 | D11: ='CHVA Tool - Data Entry'!D15 -> 1 | E11: ='CHVA Tool - Data Entry'!E15 -> 2 | F11: ='CHVA Tool - Data Entry'!F15 -> 3 | G11: ='CHVA Tool - Data Entry'!G15 -> 1 | H11: ='CHVA Tool - Data Entry'!H15 -> 2 | I11: ='CHVA Tool - Data Entry'!I15 -> 2 | J11: ='CHVA Tool - Data Entry'!J15 -> 1 | K11: ='CHVA Tool - Data Entry'!K15 -> 3 | L11: ='CHVA Tool - Data Entry'!L15 -> 2 | M11: ='CHVA Tool - Data Entry'!M15 -> 1 | N11: ='CHVA Tool - Data Entry'!N15 -> 2 | O11: ='CHVA Tool - Data Entry'!O15 -> 0.1988304094 | P11: ='CHVA Tool - Data Entry'!P15 -> 0.3976608187 | Q11: ='CHVA Tool - Data Entry'!Q15 -> 60
A12: ='CHVA Tool - Data Entry'!A16 -> Cyber Attack | B12: ='CHVA Tool - Data Entry'!B16 -> 1 | C12: ='CHVA Tool - Data Entry'!C16 -> 2 | D12: ='CHVA Tool - Data Entry'!D16 -> 1 | E12: ='CHVA Tool - Data Entry'!E16 -> 2 | F12: ='CHVA Tool - Data Entry'!F16 -> 3 | G12: ='CHVA Tool - Data Entry'!G16 -> 1 | H12: ='CHVA Tool - Data Entry'!H16 -> 2 | I12: ='CHVA Tool - Data Entry'!I16 -> 2 | J12: ='CHVA Tool - Data Entry'!J16 -> 1 | K12: ='CHVA Tool - Data Entry'!K16 -> 3 | L12: ='CHVA Tool - Data Entry'!L16 -> 2 | M12: ='CHVA Tool - Data Entry'!M16 -> 1 | N12: ='CHVA Tool - Data Entry'!N16 -> 2 | O12: ='CHVA Tool - Data Entry'!O16 -> 0.1988304094 | P12: ='CHVA Tool - Data Entry'!P16 -> 0.3976608187 | Q12: ='CHVA Tool - Data Entry'!Q16 -> 60
A13: ='CHVA Tool - Data Entry'!A17 -> Explosives Attack – Improvised Explosive | B13: ='CHVA Tool - Data Entry'!B17 -> 1 | C13: ='CHVA Tool - Data Entry'!C17 -> 2 | D13: ='CHVA Tool - Data Entry'!D17 -> 1 | E13: ='CHVA Tool - Data Entry'!E17 -> 2 | F13: ='CHVA Tool - Data Entry'!F17 -> 3 | G13: ='CHVA Tool - Data Entry'!G17 -> 1 | H13: ='CHVA Tool - Data Entry'!H17 -> 2 | I13: ='CHVA Tool - Data Entry'!I17 -> 2 | J13: ='CHVA Tool - Data Entry'!J17 -> 1 | K13: ='CHVA Tool - Data Entry'!K17 -> 3 | L13: ='CHVA Tool - Data Entry'!L17 -> 2 | M13: ='CHVA Tool - Data Entry'!M17 -> 1 | N13: ='CHVA Tool - Data Entry'!N17 -> 2 | O13: ='CHVA Tool - Data Entry'!O17 -> 0.1988304094 | P13: ='CHVA Tool - Data Entry'!P17 -> 0.3976608187 | Q13: ='CHVA Tool - Data Entry'!Q17 -> 60
A14: ='CHVA Tool - Data Entry'!A18 -> Natural Disaster – Major Earthquake | B14: ='CHVA Tool - Data Entry'!B18 -> 1 | C14: ='CHVA Tool - Data Entry'!C18 -> 2 | D14: ='CHVA Tool - Data Entry'!D18 -> 1 | E14: ='CHVA Tool - Data Entry'!E18 -> 2 | F14: ='CHVA Tool - Data Entry'!F18 -> 3 | G14: ='CHVA Tool - Data Entry'!G18 -> 1 | H14: ='CHVA Tool - Data Entry'!H18 -> 2 | I14: ='CHVA Tool - Data Entry'!I18 -> 2 | J14: ='CHVA Tool - Data Entry'!J18 -> 1 | K14: ='CHVA Tool - Data Entry'!K18 -> 3 | L14: ='CHVA Tool - Data Entry'!L18 -> 2 | M14: ='CHVA Tool - Data Entry'!M18 -> 1 | N14: ='CHVA Tool - Data Entry'!N18 -> 2 | O14: ='CHVA Tool - Data Entry'!O18 -> 0.1988304094 | P14: ='CHVA Tool - Data Entry'!P18 -> 0.3976608187 | Q14: ='CHVA Tool - Data Entry'!Q18 -> 60
A15: ='CHVA Tool - Data Entry'!A19 -> Natural Disaster – Major Hurricane | B15: ='CHVA Tool - Data Entry'!B19 -> 1 | C15: ='CHVA Tool - Data Entry'!C19 -> 2 | D15: ='CHVA Tool - Data Entry'!D19 -> 1 | E15: ='CHVA Tool - Data Entry'!E19 -> 2 | F15: ='CHVA Tool - Data Entry'!F19 -> 3 | G15: ='CHVA Tool - Data Entry'!G19 -> 1 | H15: ='CHVA Tool - Data Entry'!H19 -> 2 | I15: ='CHVA Tool - Data Entry'!I19 -> 2 | J15: ='CHVA Tool - Data Entry'!J19 -> 1 | K15: ='CHVA Tool - Data Entry'!K19 -> 3 | L15: ='CHVA Tool - Data Entry'!L19 -> 2 | M15: ='CHVA Tool - Data Entry'!M19 -> 1 | N15: ='CHVA Tool - Data Entry'!N19 -> 2 | O15: ='CHVA Tool - Data Entry'!O19 -> 0.1988304094 | P15: ='CHVA Tool - Data Entry'!P19 -> 0.3976608187 | Q15: ='CHVA Tool - Data Entry'!Q19 -> 60
A16: ='CHVA Tool - Data Entry'!A20 -> Nuclear Detonation – Improvised Device | B16: ='CHVA Tool - Data Entry'!B20 -> 1 | C16: ='CHVA Tool - Data Entry'!C20 -> 2 | D16: ='CHVA Tool - Data Entry'!D20 -> 1 | E16: ='CHVA Tool - Data Entry'!E20 -> 2 | F16: ='CHVA Tool - Data Entry'!F20 -> 3 | G16: ='CHVA Tool - Data Entry'!G20 -> 1 | H16: ='CHVA Tool - Data Entry'!H20 -> 2 | I16: ='CHVA Tool - Data Entry'!I20 -> 2 | J16: ='CHVA Tool - Data Entry'!J20 -> 1 | K16: ='CHVA Tool - Data Entry'!K20 -> 3 | L16: ='CHVA Tool - Data Entry'!L20 -> 2 | M16: ='CHVA Tool - Data Entry'!M20 -> 1 | N16: ='CHVA Tool - Data Entry'!N20 -> 2 | O16: ='CHVA Tool - Data Entry'!O20 -> 0.1988304094 | P16: ='CHVA Tool - Data Entry'!P20 -> 0.3976608187 | Q16: ='CHVA Tool - Data Entry'!Q20 -> 60
A17: ='CHVA Tool - Data Entry'!A21 -> Radiological Attack – Radiological Dispersal | B17: ='CHVA Tool - Data Entry'!B21 -> 1 | C17: ='CHVA Tool - Data Entry'!C21 -> 2 | D17: ='CHVA Tool - Data Entry'!D21 -> 1 | E17: ='CHVA Tool - Data Entry'!E21 -> 2 | F17: ='CHVA Tool - Data Entry'!F21 -> 3 | G17: ='CHVA Tool - Data Entry'!G21 -> 1 | H17: ='CHVA Tool - Data Entry'!H21 -> 2 | I17: ='CHVA Tool - Data Entry'!I21 -> 2 | J17: ='CHVA Tool - Data Entry'!J21 -> 1 | K17: ='CHVA Tool - Data Entry'!K21 -> 3 | L17: ='CHVA Tool - Data Entry'!L21 -> 2 | M17: ='CHVA Tool - Data Entry'!M21 -> 1 | N17: ='CHVA Tool - Data Entry'!N21 -> 2 | O17: ='CHVA Tool - Data Entry'!O21 -> 0.1988304094 | P17: ='CHVA Tool - Data Entry'!P21 -> 0.3976608187 | Q17: ='CHVA Tool - Data Entry'!Q21 -> 60
A18: ='CHVA Tool - Data Entry'!A22 -> 0 | B18: ='CHVA Tool - Data Entry'!B22 -> 0 | C18: ='CHVA Tool - Data Entry'!C22 -> 0 | D18: ='CHVA Tool - Data Entry'!D22 -> 0 | E18: ='CHVA Tool - Data Entry'!E22 -> 0 | F18: ='CHVA Tool - Data Entry'!F22 -> 0 | G18: ='CHVA Tool - Data Entry'!G22 -> 0 | H18: ='CHVA Tool - Data Entry'!H22 -> 0 | I18: ='CHVA Tool - Data Entry'!I22 -> 0 | J18: ='CHVA Tool - Data Entry'!J22 -> 0 | K18: ='CHVA Tool - Data Entry'!K22 -> 0 | L18: ='CHVA Tool - Data Entry'!L22 -> 0 | M18: ='CHVA Tool - Data Entry'!M22 -> 0 | N18: ='CHVA Tool - Data Entry'!N22 -> 0 | O18: ='CHVA Tool - Data Entry'!O22 -> 0 | P18: ='CHVA Tool - Data Entry'!P22 -> 0 | Q18: ='CHVA Tool - Data Entry'!Q22 -> 0
A19: ='CHVA Tool - Data Entry'!A23 -> 0 | B19: ='CHVA Tool - Data Entry'!B23 -> 0 | C19: ='CHVA Tool - Data Entry'!C23 -> 0 | D19: ='CHVA Tool - Data Entry'!D23 -> 0 | E19: ='CHVA Tool - Data Entry'!E23 -> 0 | F19: ='CHVA Tool - Data Entry'!F23 -> 0 | G19: ='CHVA Tool - Data Entry'!G23 -> 0 | H19: ='CHVA Tool - Data Entry'!H23 -> 0 | I19: ='CHVA Tool - Data Entry'!I23 -> 0 | J19: ='CHVA Tool - Data Entry'!J23 -> 0 | K19: ='CHVA Tool - Data Entry'!K23 -> 0 | L19: ='CHVA Tool - Data Entry'!L23 -> 0 | M19: ='CHVA Tool - Data Entry'!M23 -> 0 | N19: ='CHVA Tool - Data Entry'!N23 -> 0 | O19: ='CHVA Tool - Data Entry'!O23 -> 0 | P19: ='CHVA Tool - Data Entry'!P23 -> 0 | Q19: ='CHVA Tool - Data Entry'!Q23 -> 0
A20: ='CHVA Tool - Data Entry'!A24 -> Average: | B20: ='CHVA Tool - Data Entry'!B24 -> 1.533333333 | C20: ='CHVA Tool - Data Entry'!C24 -> 2.133333333 | D20: ='CHVA Tool - Data Entry'!D24 -> 1 | E20: ='CHVA Tool - Data Entry'!E24 -> 2 | F20: ='CHVA Tool - Data Entry'!F24 -> 3 | G20: ='CHVA Tool - Data Entry'!G24 -> 1 | H20: ='CHVA Tool - Data Entry'!H24 -> 2 | I20: ='CHVA Tool - Data Entry'!I24 -> 2 | J20: ='CHVA Tool - Data Entry'!J24 -> 1 | K20: ='CHVA Tool - Data Entry'!K24 -> 3 | L20: ='CHVA Tool - Data Entry'!L24 -> 2 | M20: ='CHVA Tool - Data Entry'!M24 -> 1 | N20: ='CHVA Tool - Data Entry'!N24 -> 2 | O20: ='CHVA Tool - Data Entry'!O24 -> 0 | P20: ='CHVA Tool - Data Entry'!P24 -> 0 | Q20: ='CHVA Tool - Data Entry'!Q24 -> 0
A21: ='CHVA Tool - Data Entry'!A25 -> Naturally Occurring Events | B21: ='CHVA Tool - Data Entry'!B25 -> 0 | C21: ='CHVA Tool - Data Entry'!C25 -> 0 | D21: ='CHVA Tool - Data Entry'!D25 -> 0 | E21: ='CHVA Tool - Data Entry'!E25 -> 0 | F21: ='CHVA Tool - Data Entry'!F25 -> 0 | G21: ='CHVA Tool - Data Entry'!G25 -> 0 | H21: ='CHVA Tool - Data Entry'!H25 -> 0 | I21: ='CHVA Tool - Data Entry'!I25 -> 0 | J21: ='CHVA Tool - Data Entry'!J25 -> 0 | K21: ='CHVA Tool - Data Entry'!K25 -> 0 | L21: ='CHVA Tool - Data Entry'!L25 -> 0 | M21: ='CHVA Tool - Data Entry'!M25 -> 0 | N21: ='CHVA Tool - Data Entry'!N25 -> 0 | O21: ='CHVA Tool - Data Entry'!O25 -> 0 | P21: ='CHVA Tool - Data Entry'!P25 -> 0 | Q21: ='CHVA Tool - Data Entry'!Q25 -> 0
A22: ='CHVA Tool - Data Entry'!A26 -> Avalanche | B22: ='CHVA Tool - Data Entry'!B26 -> 3 | C22: ='CHVA Tool - Data Entry'!C26 -> 3 | D22: ='CHVA Tool - Data Entry'!D26 -> 1 | E22: ='CHVA Tool - Data Entry'!E26 -> 2 | F22: ='CHVA Tool - Data Entry'!F26 -> 3 | G22: ='CHVA Tool - Data Entry'!G26 -> 2 | H22: ='CHVA Tool - Data Entry'!H26 -> 2 | I22: ='CHVA Tool - Data Entry'!I26 -> 3 | J22: ='CHVA Tool - Data Entry'!J26 -> 1 | K22: ='CHVA Tool - Data Entry'!K26 -> 1 | L22: ='CHVA Tool - Data Entry'!L26 -> 3 | M22: ='CHVA Tool - Data Entry'!M26 -> 2 | N22: ='CHVA Tool - Data Entry'!N26 -> 1 | O22: ='CHVA Tool - Data Entry'!O26 -> 0.6315789474 | P22: ='CHVA Tool - Data Entry'!P26 -> 0.6315789474 | Q22: ='CHVA Tool - Data Entry'!Q26 -> 126
A23: ='CHVA Tool - Data Entry'!A27 -> Dam Inundation | B23: ='CHVA Tool - Data Entry'!B27 -> 3 | C23: ='CHVA Tool - Data Entry'!C27 -> 3 | D23: ='CHVA Tool - Data Entry'!D27 -> 1 | E23: ='CHVA Tool - Data Entry'!E27 -> 2 | F23: ='CHVA Tool - Data Entry'!F27 -> 3 | G23: ='CHVA Tool - Data Entry'!G27 -> 2 | H23: ='CHVA Tool - Data Entry'!H27 -> 2 | I23: ='CHVA Tool - Data Entry'!I27 -> 3 | J23: ='CHVA Tool - Data Entry'!J27 -> 1 | K23: ='CHVA Tool - Data Entry'!K27 -> 1 | L23: ='CHVA Tool - Data Entry'!L27 -> 3 | M23: ='CHVA Tool - Data Entry'!M27 -> 2 | N23: ='CHVA Tool - Data Entry'!N27 -> 1 | O23: ='CHVA Tool - Data Entry'!O27 -> 0.6315789474 | P23: ='CHVA Tool - Data Entry'!P27 -> 0.6315789474 | Q23: ='CHVA Tool - Data Entry'!Q27 -> 126
A24: ='CHVA Tool - Data Entry'!A28 -> Drought | B24: ='CHVA Tool - Data Entry'!B28 -> 2 | C24: ='CHVA Tool - Data Entry'!C28 -> 2 | D24: ='CHVA Tool - Data Entry'!D28 -> 1 | E24: ='CHVA Tool - Data Entry'!E28 -> 2 | F24: ='CHVA Tool - Data Entry'!F28 -> 3 | G24: ='CHVA Tool - Data Entry'!G28 -> 2 | H24: ='CHVA Tool - Data Entry'!H28 -> 2 | I24: ='CHVA Tool - Data Entry'!I28 -> 3 | J24: ='CHVA Tool - Data Entry'!J28 -> 1 | K24: ='CHVA Tool - Data Entry'!K28 -> 1 | L24: ='CHVA Tool - Data Entry'!L28 -> 3 | M24: ='CHVA Tool - Data Entry'!M28 -> 2 | N24: ='CHVA Tool - Data Entry'!N28 -> 1 | O24: ='CHVA Tool - Data Entry'!O28 -> 0.4210526316 | P24: ='CHVA Tool - Data Entry'!P28 -> 0.4210526316 | Q24: ='CHVA Tool - Data Entry'!Q28 -> 84
A25: ='CHVA Tool - Data Entry'!A29 -> Earthquake | B25: ='CHVA Tool - Data Entry'!B29 -> 2 | C25: ='CHVA Tool - Data Entry'!C29 -> 2 | D25: ='CHVA Tool - Data Entry'!D29 -> 1 | E25: ='CHVA Tool - Data Entry'!E29 -> 2 | F25: ='CHVA Tool - Data Entry'!F29 -> 3 | G25: ='CHVA Tool - Data Entry'!G29 -> 2 | H25: ='CHVA Tool - Data Entry'!H29 -> 2 | I25: ='CHVA Tool - Data Entry'!I29 -> 3 | J25: ='CHVA Tool - Data Entry'!J29 -> 1 | K25: ='CHVA Tool - Data Entry'!K29 -> 1 | L25: ='CHVA Tool - Data Entry'!L29 -> 3 | M25: ='CHVA Tool - Data Entry'!M29 -> 2 | N25: ='CHVA Tool - Data Entry'!N29 -> 1 | O25: ='CHVA Tool - Data Entry'!O29 -> 0.4210526316 | P25: ='CHVA Tool - Data Entry'!P29 -> 0.4210526316 | Q25: ='CHVA Tool - Data Entry'!Q29 -> 84
A26: ='CHVA Tool - Data Entry'!A30 -> Epidemic/Pandemic | B26: ='CHVA Tool - Data Entry'!B30 -> 1 | C26: ='CHVA Tool - Data Entry'!C30 -> 2 | D26: ='CHVA Tool - Data Entry'!D30 -> 1 | E26: ='CHVA Tool - Data Entry'!E30 -> 2 | F26: ='CHVA Tool - Data Entry'!F30 -> 3 | G26: ='CHVA Tool - Data Entry'!G30 -> 2 | H26: ='CHVA Tool - Data Entry'!H30 -> 2 | I26: ='CHVA Tool - Data Entry'!I30 -> 3 | J26: ='CHVA Tool - Data Entry'!J30 -> 1 | K26: ='CHVA Tool - Data Entry'!K30 -> 1 | L26: ='CHVA Tool - Data Entry'!L30 -> 3 | M26: ='CHVA Tool - Data Entry'!M30 -> 2 | N26: ='CHVA Tool - Data Entry'!N30 -> 1 | O26: ='CHVA Tool - Data Entry'!O30 -> 0.2105263158 | P26: ='CHVA Tool - Data Entry'!P30 -> 0.4210526316 | Q26: ='CHVA Tool - Data Entry'!Q30 -> 63
A27: ='CHVA Tool - Data Entry'!A31 -> Flood (External) | B27: ='CHVA Tool - Data Entry'!B31 -> 1 | C27: ='CHVA Tool - Data Entry'!C31 -> 2 | D27: ='CHVA Tool - Data Entry'!D31 -> 1 | E27: ='CHVA Tool - Data Entry'!E31 -> 2 | F27: ='CHVA Tool - Data Entry'!F31 -> 3 | G27: ='CHVA Tool - Data Entry'!G31 -> 2 | H27: ='CHVA Tool - Data Entry'!H31 -> 2 | I27: ='CHVA Tool - Data Entry'!I31 -> 3 | J27: ='CHVA Tool - Data Entry'!J31 -> 1 | K27: ='CHVA Tool - Data Entry'!K31 -> 1 | L27: ='CHVA Tool - Data Entry'!L31 -> 3 | M27: ='CHVA Tool - Data Entry'!M31 -> 2 | N27: ='CHVA Tool - Data Entry'!N31 -> 1 | O27: ='CHVA Tool - Data Entry'!O31 -> 0.2105263158 | P27: ='CHVA Tool - Data Entry'!P31 -> 0.4210526316 | Q27: ='CHVA Tool - Data Entry'!Q31 -> 63
A28: ='CHVA Tool - Data Entry'!A32 -> Hail | B28: ='CHVA Tool - Data Entry'!B32 -> 1 | C28: ='CHVA Tool - Data Entry'!C32 -> 2 | D28: ='CHVA Tool - Data Entry'!D32 -> 1 | E28: ='CHVA Tool - Data Entry'!E32 -> 2 | F28: ='CHVA Tool - Data Entry'!F32 -> 3 | G28: ='CHVA Tool - Data Entry'!G32 -> 2 | H28: ='CHVA Tool - Data Entry'!H32 -> 2 | I28: ='CHVA Tool - Data Entry'!I32 -> 3 | J28: ='CHVA Tool - Data Entry'!J32 -> 1 | K28: ='CHVA Tool - Data Entry'!K32 -> 1 | L28: ='CHVA Tool - Data Entry'!L32 -> 3 | M28: ='CHVA Tool - Data Entry'!M32 -> 2 | N28: ='CHVA Tool - Data Entry'!N32 -> 1 | O28: ='CHVA Tool - Data Entry'!O32 -> 0.2105263158 | P28: ='CHVA Tool - Data Entry'!P32 -> 0.4210526316 | Q28: ='CHVA Tool - Data Entry'!Q32 -> 63
A29: ='CHVA Tool - Data Entry'!A33 -> High Winds | B29: ='CHVA Tool - Data Entry'!B33 -> 1 | C29: ='CHVA Tool - Data Entry'!C33 -> 2 | D29: ='CHVA Tool - Data Entry'!D33 -> 1 | E29: ='CHVA Tool - Data Entry'!E33 -> 2 | F29: ='CHVA Tool - Data Entry'!F33 -> 3 | G29: ='CHVA Tool - Data Entry'!G33 -> 2 | H29: ='CHVA Tool - Data Entry'!H33 -> 2 | I29: ='CHVA Tool - Data Entry'!I33 -> 3 | J29: ='CHVA Tool - Data Entry'!J33 -> 1 | K29: ='CHVA Tool - Data Entry'!K33 -> 1 | L29: ='CHVA Tool - Data Entry'!L33 -> 3 | M29: ='CHVA Tool - Data Entry'!M33 -> 2 | N29: ='CHVA Tool - Data Entry'!N33 -> 1 | O29: ='CHVA Tool - Data Entry'!O33 -> 0.2105263158 | P29: ='CHVA Tool - Data Entry'!P33 -> 0.4210526316 | Q29: ='CHVA Tool - Data Entry'!Q33 -> 63
A30: ='CHVA Tool - Data Entry'!A34 -> Hurricane | B30: ='CHVA Tool - Data Entry'!B34 -> 1 | C30: ='CHVA Tool - Data Entry'!C34 -> 2 | D30: ='CHVA Tool - Data Entry'!D34 -> 1 | E30: ='CHVA Tool - Data Entry'!E34 -> 2 | F30: ='CHVA Tool - Data Entry'!F34 -> 3 | G30: ='CHVA Tool - Data Entry'!G34 -> 2 | H30: ='CHVA Tool - Data Entry'!H34 -> 2 | I30: ='CHVA Tool - Data Entry'!I34 -> 3 | J30: ='CHVA Tool - Data Entry'!J34 -> 1 | K30: ='CHVA Tool - Data Entry'!K34 -> 1 | L30: ='CHVA Tool - Data Entry'!L34 -> 3 | M30: ='CHVA Tool - Data Entry'!M34 -> 2 | N30: ='CHVA Tool - Data Entry'!N34 -> 1 | O30: ='CHVA Tool - Data Entry'!O34 -> 0.2105263158 | P30: ='CHVA Tool - Data Entry'!P34 -> 0.4210526316 | Q30: ='CHVA Tool - Data Entry'!Q34 -> 63
A31: ='CHVA Tool - Data Entry'!A35 -> Ice Storm | B31: ='CHVA Tool - Data Entry'!B35 -> 1 | C31: ='CHVA Tool - Data Entry'!C35 -> 2 | D31: ='CHVA Tool - Data Entry'!D35 -> 1 | E31: ='CHVA Tool - Data Entry'!E35 -> 2 | F31: ='CHVA Tool - Data Entry'!F35 -> 3 | G31: ='CHVA Tool - Data Entry'!G35 -> 2 | H31: ='CHVA Tool - Data Entry'!H35 -> 2 | I31: ='CHVA Tool - Data Entry'!I35 -> 3 | J31: ='CHVA Tool - Data Entry'!J35 -> 1 | K31: ='CHVA Tool - Data Entry'!K35 -> 1 | L31: ='CHVA Tool - Data Entry'!L35 -> 3 | M31: ='CHVA Tool - Data Entry'!M35 -> 2 | N31: ='CHVA Tool - Data Entry'!N35 -> 1 | O31: ='CHVA Tool - Data Entry'!O35 -> 0.2105263158 | P31: ='CHVA Tool - Data Entry'!P35 -> 0.4210526316 | Q31: ='CHVA Tool - Data Entry'!Q35 -> 63
A32: ='CHVA Tool - Data Entry'!A36 -> Insect Infestation | B32: ='CHVA Tool - Data Entry'!B36 -> 1 | C32: ='CHVA Tool - Data Entry'!C36 -> 2 | D32: ='CHVA Tool - Data Entry'!D36 -> 1 | E32: ='CHVA Tool - Data Entry'!E36 -> 2 | F32: ='CHVA Tool - Data Entry'!F36 -> 3 | G32: ='CHVA Tool - Data Entry'!G36 -> 2 | H32: ='CHVA Tool - Data Entry'!H36 -> 2 | I32: ='CHVA Tool - Data Entry'!I36 -> 3 | J32: ='CHVA Tool - Data Entry'!J36 -> 1 | K32: ='CHVA Tool - Data Entry'!K36 -> 1 | L32: ='CHVA Tool - Data Entry'!L36 -> 3 | M32: ='CHVA Tool - Data Entry'!M36 -> 2 | N32: ='CHVA Tool - Data Entry'!N36 -> 1 | O32: ='CHVA Tool - Data Entry'!O36 -> 0.2105263158 | P32: ='CHVA Tool - Data Entry'!P36 -> 0.4210526316 | Q32: ='CHVA Tool - Data Entry'!Q36 -> 63
A33: ='CHVA Tool - Data Entry'!A37 -> Landslide | B33: ='CHVA Tool - Data Entry'!B37 -> 1 | C33: ='CHVA Tool - Data Entry'!C37 -> 2 | D33: ='CHVA Tool - Data Entry'!D37 -> 1 | E33: ='CHVA Tool - Data Entry'!E37 -> 2 | F33: ='CHVA Tool - Data Entry'!F37 -> 3 | G33: ='CHVA Tool - Data Entry'!G37 -> 2 | H33: ='CHVA Tool - Data Entry'!H37 -> 2 | I33: ='CHVA Tool - Data Entry'!I37 -> 3 | J33: ='CHVA Tool - Data Entry'!J37 -> 1 | K33: ='CHVA Tool - Data Entry'!K37 -> 1 | L33: ='CHVA Tool - Data Entry'!L37 -> 3 | M33: ='CHVA Tool - Data Entry'!M37 -> 2 | N33: ='CHVA Tool - Data Entry'!N37 -> 1 | O33: ='CHVA Tool - Data Entry'!O37 -> 0.2105263158 | P33: ='CHVA Tool - Data Entry'!P37 -> 0.4210526316 | Q33: ='CHVA Tool - Data Entry'!Q37 -> 63
A34: ='CHVA Tool - Data Entry'!A38 -> Severe Blizzard/Snow Fall | B34: ='CHVA Tool - Data Entry'!B38 -> 1 | C34: ='CHVA Tool - Data Entry'!C38 -> 2 | D34: ='CHVA Tool - Data Entry'!D38 -> 1 | E34: ='CHVA Tool - Data Entry'!E38 -> 2 | F34: ='CHVA Tool - Data Entry'!F38 -> 3 | G34: ='CHVA Tool - Data Entry'!G38 -> 2 | H34: ='CHVA Tool - Data Entry'!H38 -> 2 | I34: ='CHVA Tool - Data Entry'!I38 -> 3 | J34: ='CHVA Tool - Data Entry'!J38 -> 1 | K34: ='CHVA Tool - Data Entry'!K38 -> 1 | L34: ='CHVA Tool - Data Entry'!L38 -> 3 | M34: ='CHVA Tool - Data Entry'!M38 -> 2 | N34: ='CHVA Tool - Data Entry'!N38 -> 1 | O34: ='CHVA Tool - Data Entry'!O38 -> 0.2105263158 | P34: ='CHVA Tool - Data Entry'!P38 -> 0.4210526316 | Q34: ='CHVA Tool - Data Entry'!Q38 -> 63
A35: ='CHVA Tool - Data Entry'!A39 -> Severe Thunderstorm | B35: ='CHVA Tool - Data Entry'!B39 -> 1 | C35: ='CHVA Tool - Data Entry'!C39 -> 2 | D35: ='CHVA Tool - Data Entry'!D39 -> 1 | E35: ='CHVA Tool - Data Entry'!E39 -> 2 | F35: ='CHVA Tool - Data Entry'!F39 -> 3 | G35: ='CHVA Tool - Data Entry'!G39 -> 2 | H35: ='CHVA Tool - Data Entry'!H39 -> 2 | I35: ='CHVA Tool - Data Entry'!I39 -> 3 | J35: ='CHVA Tool - Data Entry'!J39 -> 1 | K35: ='CHVA Tool - Data Entry'!K39 -> 1 | L35: ='CHVA Tool - Data Entry'!L39 -> 3 | M35: ='CHVA Tool - Data Entry'!M39 -> 2 | N35: ='CHVA Tool - Data Entry'!N39 -> 1 | O35: ='CHVA Tool - Data Entry'!O39 -> 0.2105263158 | P35: ='CHVA Tool - Data Entry'!P39 -> 0.4210526316 | Q35: ='CHVA Tool - Data Entry'!Q39 -> 63
A36: ='CHVA Tool - Data Entry'!A40 -> Solar Flares | B36: ='CHVA Tool - Data Entry'!B40 -> 1 | C36: ='CHVA Tool - Data Entry'!C40 -> 2 | D36: ='CHVA Tool - Data Entry'!D40 -> 1 | E36: ='CHVA Tool - Data Entry'!E40 -> 2 | F36: ='CHVA Tool - Data Entry'!F40 -> 3 | G36: ='CHVA Tool - Data Entry'!G40 -> 2 | H36: ='CHVA Tool - Data Entry'!H40 -> 2 | I36: ='CHVA Tool - Data Entry'!I40 -> 3 | J36: ='CHVA Tool - Data Entry'!J40 -> 1 | K36: ='CHVA Tool - Data Entry'!K40 -> 1 | L36: ='CHVA Tool - Data Entry'!L40 -> 3 | M36: ='CHVA Tool - Data Entry'!M40 -> 2 | N36: ='CHVA Tool - Data Entry'!N40 -> 1 | O36: ='CHVA Tool - Data Entry'!O40 -> 0.2105263158 | P36: ='CHVA Tool - Data Entry'!P40 -> 0.4210526316 | Q36: ='CHVA Tool - Data Entry'!Q40 -> 63
A37: ='CHVA Tool - Data Entry'!A41 -> Temperature Extreme (Cold) | B37: ='CHVA Tool - Data Entry'!B41 -> 1 | C37: ='CHVA Tool - Data Entry'!C41 -> 2 | D37: ='CHVA Tool - Data Entry'!D41 -> 1 | E37: ='CHVA Tool - Data Entry'!E41 -> 2 | F37: ='CHVA Tool - Data Entry'!F41 -> 3 | G37: ='CHVA Tool - Data Entry'!G41 -> 2 | H37: ='CHVA Tool - Data Entry'!H41 -> 2 | I37: ='CHVA Tool - Data Entry'!I41 -> 3 | J37: ='CHVA Tool - Data Entry'!J41 -> 1 | K37: ='CHVA Tool - Data Entry'!K41 -> 1 | L37: ='CHVA Tool - Data Entry'!L41 -> 3 | M37: ='CHVA Tool - Data Entry'!M41 -> 2 | N37: ='CHVA Tool - Data Entry'!N41 -> 1 | O37: ='CHVA Tool - Data Entry'!O41 -> 0.2105263158 | P37: ='CHVA Tool - Data Entry'!P41 -> 0.4210526316 | Q37: ='CHVA Tool - Data Entry'!Q41 -> 63
A38: ='CHVA Tool - Data Entry'!A42 -> Temperature Extreme (Hot) | B38: ='CHVA Tool - Data Entry'!B42 -> 1 | C38: ='CHVA Tool - Data Entry'!C42 -> 2 | D38: ='CHVA Tool - Data Entry'!D42 -> 1 | E38: ='CHVA Tool - Data Entry'!E42 -> 2 | F38: ='CHVA Tool - Data Entry'!F42 -> 3 | G38: ='CHVA Tool - Data Entry'!G42 -> 2 | H38: ='CHVA Tool - Data Entry'!H42 -> 2 | I38: ='CHVA Tool - Data Entry'!I42 -> 3 | J38: ='CHVA Tool - Data Entry'!J42 -> 1 | K38: ='CHVA Tool - Data Entry'!K42 -> 1 | L38: ='CHVA Tool - Data Entry'!L42 -> 3 | M38: ='CHVA Tool - Data Entry'!M42 -> 2 | N38: ='CHVA Tool - Data Entry'!N42 -> 1 | O38: ='CHVA Tool - Data Entry'!O42 -> 0.2105263158 | P38: ='CHVA Tool - Data Entry'!P42 -> 0.4210526316 | Q38: ='CHVA Tool - Data Entry'!Q42 -> 63
A39: ='CHVA Tool - Data Entry'!A43 -> Tidal Wave | B39: ='CHVA Tool - Data Entry'!B43 -> 1 | C39: ='CHVA Tool - Data Entry'!C43 -> 2 | D39: ='CHVA Tool - Data Entry'!D43 -> 1 | E39: ='CHVA Tool - Data Entry'!E43 -> 2 | F39: ='CHVA Tool - Data Entry'!F43 -> 3 | G39: ='CHVA Tool - Data Entry'!G43 -> 2 | H39: ='CHVA Tool - Data Entry'!H43 -> 2 | I39: ='CHVA Tool - Data Entry'!I43 -> 3 | J39: ='CHVA Tool - Data Entry'!J43 -> 1 | K39: ='CHVA Tool - Data Entry'!K43 -> 1 | L39: ='CHVA Tool - Data Entry'!L43 -> 3 | M39: ='CHVA Tool - Data Entry'!M43 -> 2 | N39: ='CHVA Tool - Data Entry'!N43 -> 1 | O39: ='CHVA Tool - Data Entry'!O43 -> 0.2105263158 | P39: ='CHVA Tool - Data Entry'!P43 -> 0.4210526316 | Q39: ='CHVA Tool - Data Entry'!Q43 -> 63
A40: ='CHVA Tool - Data Entry'!A44 -> Tornado | B40: ='CHVA Tool - Data Entry'!B44 -> 1 | C40: ='CHVA Tool - Data Entry'!C44 -> 2 | D40: ='CHVA Tool - Data Entry'!D44 -> 1 | E40: ='CHVA Tool - Data Entry'!E44 -> 2 | F40: ='CHVA Tool - Data Entry'!F44 -> 3 | G40: ='CHVA Tool - Data Entry'!G44 -> 2 | H40: ='CHVA Tool - Data Entry'!H44 -> 2 | I40: ='CHVA Tool - Data Entry'!I44 -> 3 | J40: ='CHVA Tool - Data Entry'!J44 -> 1 | K40: ='CHVA Tool - Data Entry'!K44 -> 1 | L40: ='CHVA Tool - Data Entry'!L44 -> 3 | M40: ='CHVA Tool - Data Entry'!M44 -> 2 | N40: ='CHVA Tool - Data Entry'!N44 -> 1 | O40: ='CHVA Tool - Data Entry'!O44 -> 0.2105263158 | P40: ='CHVA Tool - Data Entry'!P44 -> 0.4210526316 | Q40: ='CHVA Tool - Data Entry'!Q44 -> 63
A41: ='CHVA Tool - Data Entry'!A45 -> Volcano | B41: ='CHVA Tool - Data Entry'!B45 -> 1 | C41: ='CHVA Tool - Data Entry'!C45 -> 2 | D41: ='CHVA Tool - Data Entry'!D45 -> 1 | E41: ='CHVA Tool - Data Entry'!E45 -> 2 | F41: ='CHVA Tool - Data Entry'!F45 -> 3 | G41: ='CHVA Tool - Data Entry'!G45 -> 2 | H41: ='CHVA Tool - Data Entry'!H45 -> 2 | I41: ='CHVA Tool - Data Entry'!I45 -> 3 | J41: ='CHVA Tool - Data Entry'!J45 -> 1 | K41: ='CHVA Tool - Data Entry'!K45 -> 1 | L41: ='CHVA Tool - Data Entry'!L45 -> 3 | M41: ='CHVA Tool - Data Entry'!M45 -> 2 | N41: ='CHVA Tool - Data Entry'!N45 -> 1 | O41: ='CHVA Tool - Data Entry'!O45 -> 0.2105263158 | P41: ='CHVA Tool - Data Entry'!P45 -> 0.4210526316 | Q41: ='CHVA Tool - Data Entry'!Q45 -> 63
A42: ='CHVA Tool - Data Entry'!A46 -> Wild Fire | B42: ='CHVA Tool - Data Entry'!B46 -> 1 | C42: ='CHVA Tool - Data Entry'!C46 -> 2 | D42: ='CHVA Tool - Data Entry'!D46 -> 1 | E42: ='CHVA Tool - Data Entry'!E46 -> 2 | F42: ='CHVA Tool - Data Entry'!F46 -> 3 | G42: ='CHVA Tool - Data Entry'!G46 -> 2 | H42: ='CHVA Tool - Data Entry'!H46 -> 2 | I42: ='CHVA Tool - Data Entry'!I46 -> 3 | J42: ='CHVA Tool - Data Entry'!J46 -> 1 | K42: ='CHVA Tool - Data Entry'!K46 -> 1 | L42: ='CHVA Tool - Data Entry'!L46 -> 3 | M42: ='CHVA Tool - Data Entry'!M46 -> 2 | N42: ='CHVA Tool - Data Entry'!N46 -> 1 | O42: ='CHVA Tool - Data Entry'!O46 -> 0.2105263158 | P42: ='CHVA Tool - Data Entry'!P46 -> 0.4210526316 | Q42: ='CHVA Tool - Data Entry'!Q46 -> 63
A43: ='CHVA Tool - Data Entry'!A47 -> 0 | B43: ='CHVA Tool - Data Entry'!B47 -> 0 | C43: ='CHVA Tool - Data Entry'!C47 -> 0 | D43: ='CHVA Tool - Data Entry'!D47 -> 0 | E43: ='CHVA Tool - Data Entry'!E47 -> 0 | F43: ='CHVA Tool - Data Entry'!F47 -> 0 | G43: ='CHVA Tool - Data Entry'!G47 -> 0 | H43: ='CHVA Tool - Data Entry'!H47 -> 0 | I43: ='CHVA Tool - Data Entry'!I47 -> 0 | J43: ='CHVA Tool - Data Entry'!J47 -> 0 | K43: ='CHVA Tool - Data Entry'!K47 -> 0 | L43: ='CHVA Tool - Data Entry'!L47 -> 0 | M43: ='CHVA Tool - Data Entry'!M47 -> 0 | N43: ='CHVA Tool - Data Entry'!N47 -> 0 | O43: ='CHVA Tool - Data Entry'!O47 -> 0 | P43: ='CHVA Tool - Data Entry'!P47 -> 0 | Q43: ='CHVA Tool - Data Entry'!Q47 -> 0
A44: ='CHVA Tool - Data Entry'!A48 -> 0 | B44: ='CHVA Tool - Data Entry'!B48 -> 0 | C44: ='CHVA Tool - Data Entry'!C48 -> 0 | D44: ='CHVA Tool - Data Entry'!D48 -> 0 | E44: ='CHVA Tool - Data Entry'!E48 -> 0 | F44: ='CHVA Tool - Data Entry'!F48 -> 0 | G44: ='CHVA Tool - Data Entry'!G48 -> 0 | H44: ='CHVA Tool - Data Entry'!H48 -> 0 | I44: ='CHVA Tool - Data Entry'!I48 -> 0 | J44: ='CHVA Tool - Data Entry'!J48 -> 0 | K44: ='CHVA Tool - Data Entry'!K48 -> 0 | L44: ='CHVA Tool - Data Entry'!L48 -> 0 | M44: ='CHVA Tool - Data Entry'!M48 -> 0 | N44: ='CHVA Tool - Data Entry'!N48 -> 0 | O44: ='CHVA Tool - Data Entry'!O48 -> 0 | P44: ='CHVA Tool - Data Entry'!P48 -> 0 | Q44: ='CHVA Tool - Data Entry'!Q48 -> 0
A45: ='CHVA Tool - Data Entry'!A49 -> Average: | B45: ='CHVA Tool - Data Entry'!B49 -> 1.285714286 | C45: ='CHVA Tool - Data Entry'!C49 -> 2.095238095 | D45: ='CHVA Tool - Data Entry'!D49 -> 1 | E45: ='CHVA Tool - Data Entry'!E49 -> 2 | F45: ='CHVA Tool - Data Entry'!F49 -> 3 | G45: ='CHVA Tool - Data Entry'!G49 -> 2 | H45: ='CHVA Tool - Data Entry'!H49 -> 2 | I45: ='CHVA Tool - Data Entry'!I49 -> 3 | J45: ='CHVA Tool - Data Entry'!J49 -> 1 | K45: ='CHVA Tool - Data Entry'!K49 -> 1 | L45: ='CHVA Tool - Data Entry'!L49 -> 3 | M45: ='CHVA Tool - Data Entry'!M49 -> 2 | N45: ='CHVA Tool - Data Entry'!N49 -> 1 | O45: ='CHVA Tool - Data Entry'!O49 -> 0 | P45: ='CHVA Tool - Data Entry'!P49 -> 0 | Q45: ='CHVA Tool - Data Entry'!Q49 -> 0
A46: ='CHVA Tool - Data Entry'!A50 -> Human Related Events | B46: ='CHVA Tool - Data Entry'!B50 -> 0 | C46: ='CHVA Tool - Data Entry'!C50 -> 0 | D46: ='CHVA Tool - Data Entry'!D50 -> 0 | E46: ='CHVA Tool - Data Entry'!E50 -> 0 | F46: ='CHVA Tool - Data Entry'!F50 -> 0 | G46: ='CHVA Tool - Data Entry'!G50 -> 0 | H46: ='CHVA Tool - Data Entry'!H50 -> 0 | I46: ='CHVA Tool - Data Entry'!I50 -> 0 | J46: ='CHVA Tool - Data Entry'!J50 -> 0 | K46: ='CHVA Tool - Data Entry'!K50 -> 0 | L46: ='CHVA Tool - Data Entry'!L50 -> 0 | M46: ='CHVA Tool - Data Entry'!M50 -> 0 | N46: ='CHVA Tool - Data Entry'!N50 -> 0 | O46: ='CHVA Tool - Data Entry'!O50 -> 0 | P46: ='CHVA Tool - Data Entry'!P50 -> 0 | Q46: ='CHVA Tool - Data Entry'!Q50 -> 0
A47: ='CHVA Tool - Data Entry'!A51 -> Active Shooter | B47: ='CHVA Tool - Data Entry'!B51 -> 3 | C47: ='CHVA Tool - Data Entry'!C51 -> 3 | D47: ='CHVA Tool - Data Entry'!D51 -> 3 | E47: ='CHVA Tool - Data Entry'!E51 -> 1 | F47: ='CHVA Tool - Data Entry'!F51 -> 2 | G47: ='CHVA Tool - Data Entry'!G51 -> 2 | H47: ='CHVA Tool - Data Entry'!H51 -> 2 | I47: ='CHVA Tool - Data Entry'!I51 -> 1 | J47: ='CHVA Tool - Data Entry'!J51 -> 3 | K47: ='CHVA Tool - Data Entry'!K51 -> 2 | L47: ='CHVA Tool - Data Entry'!L51 -> 3 | M47: ='CHVA Tool - Data Entry'!M51 -> 1 | N47: ='CHVA Tool - Data Entry'!N51 -> 1 | O47: ='CHVA Tool - Data Entry'!O51 -> 0.6315789474 | P47: ='CHVA Tool - Data Entry'!P51 -> 0.6315789474 | Q47: ='CHVA Tool - Data Entry'!Q51 -> 126
A48: ='CHVA Tool - Data Entry'!A52 -> Bomb Threat | B48: ='CHVA Tool - Data Entry'!B52 -> 3 | C48: ='CHVA Tool - Data Entry'!C52 -> 3 | D48: ='CHVA Tool - Data Entry'!D52 -> 3 | E48: ='CHVA Tool - Data Entry'!E52 -> 1 | F48: ='CHVA Tool - Data Entry'!F52 -> 2 | G48: ='CHVA Tool - Data Entry'!G52 -> 2 | H48: ='CHVA Tool - Data Entry'!H52 -> 2 | I48: ='CHVA Tool - Data Entry'!I52 -> 1 | J48: ='CHVA Tool - Data Entry'!J52 -> 3 | K48: ='CHVA Tool - Data Entry'!K52 -> 2 | L48: ='CHVA Tool - Data Entry'!L52 -> 3 | M48: ='CHVA Tool - Data Entry'!M52 -> 1 | N48: ='CHVA Tool - Data Entry'!N52 -> 1 | O48: ='CHVA Tool - Data Entry'!O52 -> 0.6315789474 | P48: ='CHVA Tool - Data Entry'!P52 -> 0.6315789474 | Q48: ='CHVA Tool - Data Entry'!Q52 -> 126
A49: ='CHVA Tool - Data Entry'!A53 -> Civil Disturbance | B49: ='CHVA Tool - Data Entry'!B53 -> 2 | C49: ='CHVA Tool - Data Entry'!C53 -> 2 | D49: ='CHVA Tool - Data Entry'!D53 -> 3 | E49: ='CHVA Tool - Data Entry'!E53 -> 1 | F49: ='CHVA Tool - Data Entry'!F53 -> 2 | G49: ='CHVA Tool - Data Entry'!G53 -> 2 | H49: ='CHVA Tool - Data Entry'!H53 -> 2 | I49: ='CHVA Tool - Data Entry'!I53 -> 1 | J49: ='CHVA Tool - Data Entry'!J53 -> 3 | K49: ='CHVA Tool - Data Entry'!K53 -> 2 | L49: ='CHVA Tool - Data Entry'!L53 -> 3 | M49: ='CHVA Tool - Data Entry'!M53 -> 1 | N49: ='CHVA Tool - Data Entry'!N53 -> 1 | O49: ='CHVA Tool - Data Entry'!O53 -> 0.4210526316 | P49: ='CHVA Tool - Data Entry'!P53 -> 0.4210526316 | Q49: ='CHVA Tool - Data Entry'!Q53 -> 84
A50: ='CHVA Tool - Data Entry'!A54 -> Forensic Admission | B50: ='CHVA Tool - Data Entry'!B54 -> 2 | C50: ='CHVA Tool - Data Entry'!C54 -> 2 | D50: ='CHVA Tool - Data Entry'!D54 -> 3 | E50: ='CHVA Tool - Data Entry'!E54 -> 1 | F50: ='CHVA Tool - Data Entry'!F54 -> 2 | G50: ='CHVA Tool - Data Entry'!G54 -> 2 | H50: ='CHVA Tool - Data Entry'!H54 -> 3 | I50: ='CHVA Tool - Data Entry'!I54 -> 1 | J50: ='CHVA Tool - Data Entry'!J54 -> 3 | K50: ='CHVA Tool - Data Entry'!K54 -> 2 | L50: ='CHVA Tool - Data Entry'!L54 -> 3 | M50: ='CHVA Tool - Data Entry'!M54 -> 1 | N50: ='CHVA Tool - Data Entry'!N54 -> 1 | O50: ='CHVA Tool - Data Entry'!O54 -> 0.4444444444 | P50: ='CHVA Tool - Data Entry'!P54 -> 0.4444444444 | Q50: ='CHVA Tool - Data Entry'!Q54 -> 88
A51: ='CHVA Tool - Data Entry'!A55 -> Hostage Situation | B51: ='CHVA Tool - Data Entry'!B55 -> 2 | C51: ='CHVA Tool - Data Entry'!C55 -> 1 | D51: ='CHVA Tool - Data Entry'!D55 -> 3 | E51: ='CHVA Tool - Data Entry'!E55 -> 1 | F51: ='CHVA Tool - Data Entry'!F55 -> 2 | G51: ='CHVA Tool - Data Entry'!G55 -> 2 | H51: ='CHVA Tool - Data Entry'!H55 -> 2 | I51: ='CHVA Tool - Data Entry'!I55 -> 1 | J51: ='CHVA Tool - Data Entry'!J55 -> 3 | K51: ='CHVA Tool - Data Entry'!K55 -> 2 | L51: ='CHVA Tool - Data Entry'!L55 -> 3 | M51: ='CHVA Tool - Data Entry'!M55 -> 1 | N51: ='CHVA Tool - Data Entry'!N55 -> 1 | O51: ='CHVA Tool - Data Entry'!O55 -> 0.4210526316 | P51: ='CHVA Tool - Data Entry'!P55 -> 0.2105263158 | Q51: ='CHVA Tool - Data Entry'!Q55 -> 63
A52: ='CHVA Tool - Data Entry'!A56 -> Infant Abduction | B52: ='CHVA Tool - Data Entry'!B56 -> 2 | C52: ='CHVA Tool - Data Entry'!C56 -> 1 | D52: ='CHVA Tool - Data Entry'!D56 -> 3 | E52: ='CHVA Tool - Data Entry'!E56 -> 1 | F52: ='CHVA Tool - Data Entry'!F56 -> 2 | G52: ='CHVA Tool - Data Entry'!G56 -> 2 | H52: ='CHVA Tool - Data Entry'!H56 -> 2 | I52: ='CHVA Tool - Data Entry'!I56 -> 1 | J52: ='CHVA Tool - Data Entry'!J56 -> 3 | K52: ='CHVA Tool - Data Entry'!K56 -> 2 | L52: ='CHVA Tool - Data Entry'!L56 -> 3 | M52: ='CHVA Tool - Data Entry'!M56 -> 1 | N52: ='CHVA Tool - Data Entry'!N56 -> 1 | O52: ='CHVA Tool - Data Entry'!O56 -> 0.4210526316 | P52: ='CHVA Tool - Data Entry'!P56 -> 0.2105263158 | Q52: ='CHVA Tool - Data Entry'!Q56 -> 63
A53: ='CHVA Tool - Data Entry'!A57 -> Labor Action | B53: ='CHVA Tool - Data Entry'!B57 -> 2 | C53: ='CHVA Tool - Data Entry'!C57 -> 1 | D53: ='CHVA Tool - Data Entry'!D57 -> 3 | E53: ='CHVA Tool - Data Entry'!E57 -> 1 | F53: ='CHVA Tool - Data Entry'!F57 -> 2 | G53: ='CHVA Tool - Data Entry'!G57 -> 2 | H53: ='CHVA Tool - Data Entry'!H57 -> 2 | I53: ='CHVA Tool - Data Entry'!I57 -> 1 | J53: ='CHVA Tool - Data Entry'!J57 -> 3 | K53: ='CHVA Tool - Data Entry'!K57 -> 2 | L53: ='CHVA Tool - Data Entry'!L57 -> 3 | M53: ='CHVA Tool - Data Entry'!M57 -> 1 | N53: ='CHVA Tool - Data Entry'!N57 -> 1 | O53: ='CHVA Tool - Data Entry'!O57 -> 0.4210526316 | P53: ='CHVA Tool - Data Entry'!P57 -> 0.2105263158 | Q53: ='CHVA Tool - Data Entry'!Q57 -> 63
A54: ='CHVA Tool - Data Entry'!A58 -> Mass Casualty (Trauma) | B54: ='CHVA Tool - Data Entry'!B58 -> 2 | C54: ='CHVA Tool - Data Entry'!C58 -> 1 | D54: ='CHVA Tool - Data Entry'!D58 -> 3 | E54: ='CHVA Tool - Data Entry'!E58 -> 1 | F54: ='CHVA Tool - Data Entry'!F58 -> 2 | G54: ='CHVA Tool - Data Entry'!G58 -> 2 | H54: ='CHVA Tool - Data Entry'!H58 -> 2 | I54: ='CHVA Tool - Data Entry'!I58 -> 1 | J54: ='CHVA Tool - Data Entry'!J58 -> 3 | K54: ='CHVA Tool - Data Entry'!K58 -> 2 | L54: ='CHVA Tool - Data Entry'!L58 -> 3 | M54: ='CHVA Tool - Data Entry'!M58 -> 1 | N54: ='CHVA Tool - Data Entry'!N58 -> 1 | O54: ='CHVA Tool - Data Entry'!O58 -> 0.4210526316 | P54: ='CHVA Tool - Data Entry'!P58 -> 0.2105263158 | Q54: ='CHVA Tool - Data Entry'!Q58 -> 63
A55: ='CHVA Tool - Data Entry'!A59 -> Missing Child | B55: ='CHVA Tool - Data Entry'!B59 -> 2 | C55: ='CHVA Tool - Data Entry'!C59 -> 1 | D55: ='CHVA Tool - Data Entry'!D59 -> 3 | E55: ='CHVA Tool - Data Entry'!E59 -> 1 | F55: ='CHVA Tool - Data Entry'!F59 -> 2 | G55: ='CHVA Tool - Data Entry'!G59 -> 2 | H55: ='CHVA Tool - Data Entry'!H59 -> 2 | I55: ='CHVA Tool - Data Entry'!I59 -> 1 | J55: ='CHVA Tool - Data Entry'!J59 -> 3 | K55: ='CHVA Tool - Data Entry'!K59 -> 2 | L55: ='CHVA Tool - Data Entry'!L59 -> 3 | M55: ='CHVA Tool - Data Entry'!M59 -> 1 | N55: ='CHVA Tool - Data Entry'!N59 -> 1 | O55: ='CHVA Tool - Data Entry'!O59 -> 0.4210526316 | P55: ='CHVA Tool - Data Entry'!P59 -> 0.2105263158 | Q55: ='CHVA Tool - Data Entry'!Q59 -> 63
A56: ='CHVA Tool - Data Entry'!A60 -> Staffing Shortage | B56: ='CHVA Tool - Data Entry'!B60 -> 2 | C56: ='CHVA Tool - Data Entry'!C60 -> 1 | D56: ='CHVA Tool - Data Entry'!D60 -> 3 | E56: ='CHVA Tool - Data Entry'!E60 -> 1 | F56: ='CHVA Tool - Data Entry'!F60 -> 2 | G56: ='CHVA Tool - Data Entry'!G60 -> 2 | H56: ='CHVA Tool - Data Entry'!H60 -> 2 | I56: ='CHVA Tool - Data Entry'!I60 -> 1 | J56: ='CHVA Tool - Data Entry'!J60 -> 3 | K56: ='CHVA Tool - Data Entry'!K60 -> 2 | L56: ='CHVA Tool - Data Entry'!L60 -> 3 | M56: ='CHVA Tool - Data Entry'!M60 -> 1 | N56: ='CHVA Tool - Data Entry'!N60 -> 1 | O56: ='CHVA Tool - Data Entry'!O60 -> 0.4210526316 | P56: ='CHVA Tool - Data Entry'!P60 -> 0.2105263158 | Q56: ='CHVA Tool - Data Entry'!Q60 -> 63
A57: ='CHVA Tool - Data Entry'!A61 -> Violence in the ED | B57: ='CHVA Tool - Data Entry'!B61 -> 2 | C57: ='CHVA Tool - Data Entry'!C61 -> 1 | D57: ='CHVA Tool - Data Entry'!D61 -> 3 | E57: ='CHVA Tool - Data Entry'!E61 -> 1 | F57: ='CHVA Tool - Data Entry'!F61 -> 2 | G57: ='CHVA Tool - Data Entry'!G61 -> 2 | H57: ='CHVA Tool - Data Entry'!H61 -> 2 | I57: ='CHVA Tool - Data Entry'!I61 -> 1 | J57: ='CHVA Tool - Data Entry'!J61 -> 3 | K57: ='CHVA Tool - Data Entry'!K61 -> 2 | L57: ='CHVA Tool - Data Entry'!L61 -> 3 | M57: ='CHVA Tool - Data Entry'!M61 -> 1 | N57: ='CHVA Tool - Data Entry'!N61 -> 1 | O57: ='CHVA Tool - Data Entry'!O61 -> 0.4210526316 | P57: ='CHVA Tool - Data Entry'!P61 -> 0.2105263158 | Q57: ='CHVA Tool - Data Entry'!Q61 -> 63
A58: ='CHVA Tool - Data Entry'!A62 -> VIP Situation | B58: ='CHVA Tool - Data Entry'!B62 -> 2 | C58: ='CHVA Tool - Data Entry'!C62 -> 1 | D58: ='CHVA Tool - Data Entry'!D62 -> 3 | E58: ='CHVA Tool - Data Entry'!E62 -> 1 | F58: ='CHVA Tool - Data Entry'!F62 -> 2 | G58: ='CHVA Tool - Data Entry'!G62 -> 2 | H58: ='CHVA Tool - Data Entry'!H62 -> 2 | I58: ='CHVA Tool - Data Entry'!I62 -> 1 | J58: ='CHVA Tool - Data Entry'!J62 -> 3 | K58: ='CHVA Tool - Data Entry'!K62 -> 2 | L58: ='CHVA Tool - Data Entry'!L62 -> 3 | M58: ='CHVA Tool - Data Entry'!M62 -> 1 | N58: ='CHVA Tool - Data Entry'!N62 -> 1 | O58: ='CHVA Tool - Data Entry'!O62 -> 0.4210526316 | P58: ='CHVA Tool - Data Entry'!P62 -> 0.2105263158 | Q58: ='CHVA Tool - Data Entry'!Q62 -> 63
A59: ='CHVA Tool - Data Entry'!A63 -> Workplace Violence | B59: ='CHVA Tool - Data Entry'!B63 -> 2 | C59: ='CHVA Tool - Data Entry'!C63 -> 1 | D59: ='CHVA Tool - Data Entry'!D63 -> 3 | E59: ='CHVA Tool - Data Entry'!E63 -> 1 | F59: ='CHVA Tool - Data Entry'!F63 -> 2 | G59: ='CHVA Tool - Data Entry'!G63 -> 2 | H59: ='CHVA Tool - Data Entry'!H63 -> 2 | I59: ='CHVA Tool - Data Entry'!I63 -> 1 | J59: ='CHVA Tool - Data Entry'!J63 -> 3 | K59: ='CHVA Tool - Data Entry'!K63 -> 2 | L59: ='CHVA Tool - Data Entry'!L63 -> 3 | M59: ='CHVA Tool - Data Entry'!M63 -> 1 | N59: ='CHVA Tool - Data Entry'!N63 -> 1 | O59: ='CHVA Tool - Data Entry'!O63 -> 0.4210526316 | P59: ='CHVA Tool - Data Entry'!P63 -> 0.2105263158 | Q59: ='CHVA Tool - Data Entry'!Q63 -> 63
A60: ='CHVA Tool - Data Entry'!A64 -> 0 | B60: ='CHVA Tool - Data Entry'!B64 -> 0 | C60: ='CHVA Tool - Data Entry'!C64 -> 0 | D60: ='CHVA Tool - Data Entry'!D64 -> 0 | E60: ='CHVA Tool - Data Entry'!E64 -> 0 | F60: ='CHVA Tool - Data Entry'!F64 -> 0 | G60: ='CHVA Tool - Data Entry'!G64 -> 0 | H60: ='CHVA Tool - Data Entry'!H64 -> 0 | I60: ='CHVA Tool - Data Entry'!I64 -> 0 | J60: ='CHVA Tool - Data Entry'!J64 -> 0 | K60: ='CHVA Tool - Data Entry'!K64 -> 0 | L60: ='CHVA Tool - Data Entry'!L64 -> 0 | M60: ='CHVA Tool - Data Entry'!M64 -> 0 | N60: ='CHVA Tool - Data Entry'!N64 -> 0 | O60: ='CHVA Tool - Data Entry'!O64 -> 0 | P60: ='CHVA Tool - Data Entry'!P64 -> 0 | Q60: ='CHVA Tool - Data Entry'!Q64 -> 0
A61: ='CHVA Tool - Data Entry'!A65 -> 0 | B61: ='CHVA Tool - Data Entry'!B65 -> 0 | C61: ='CHVA Tool - Data Entry'!C65 -> 0 | D61: ='CHVA Tool - Data Entry'!D65 -> 0 | E61: ='CHVA Tool - Data Entry'!E65 -> 0 | F61: ='CHVA Tool - Data Entry'!F65 -> 0 | G61: ='CHVA Tool - Data Entry'!G65 -> 0 | H61: ='CHVA Tool - Data Entry'!H65 -> 0 | I61: ='CHVA Tool - Data Entry'!I65 -> 0 | J61: ='CHVA Tool - Data Entry'!J65 -> 0 | K61: ='CHVA Tool - Data Entry'!K65 -> 0 | L61: ='CHVA Tool - Data Entry'!L65 -> 0 | M61: ='CHVA Tool - Data Entry'!M65 -> 0 | N61: ='CHVA Tool - Data Entry'!N65 -> 0 | O61: ='CHVA Tool - Data Entry'!O65 -> 0 | P61: ='CHVA Tool - Data Entry'!P65 -> 0 | Q61: ='CHVA Tool - Data Entry'!Q65 -> 0
A62: ='CHVA Tool - Data Entry'!A66 -> Average: | B62: ='CHVA Tool - Data Entry'!B66 -> 2.153846154 | C62: ='CHVA Tool - Data Entry'!C66 -> 1.461538462 | D62: ='CHVA Tool - Data Entry'!D66 -> 3 | E62: ='CHVA Tool - Data Entry'!E66 -> 1 | F62: ='CHVA Tool - Data Entry'!F66 -> 2 | G62: ='CHVA Tool - Data Entry'!G66 -> 2 | H62: ='CHVA Tool - Data Entry'!H66 -> 2.076923077 | I62: ='CHVA Tool - Data Entry'!I66 -> 1 | J62: ='CHVA Tool - Data Entry'!J66 -> 3 | K62: ='CHVA Tool - Data Entry'!K66 -> 2 | L62: ='CHVA Tool - Data Entry'!L66 -> 3 | M62: ='CHVA Tool - Data Entry'!M66 -> 1 | N62: ='CHVA Tool - Data Entry'!N66 -> 1 | O62: ='CHVA Tool - Data Entry'!O66 -> 0 | P62: ='CHVA Tool - Data Entry'!P66 -> 0 | Q62: ='CHVA Tool - Data Entry'!Q66 -> 0
A63: ='CHVA Tool - Data Entry'!A67 -> Hazardous Materials Events | B63: ='CHVA Tool - Data Entry'!B67 -> 0 | C63: ='CHVA Tool - Data Entry'!C67 -> 0 | D63: ='CHVA Tool - Data Entry'!D67 -> 0 | E63: ='CHVA Tool - Data Entry'!E67 -> 0 | F63: ='CHVA Tool - Data Entry'!F67 -> 0 | G63: ='CHVA Tool - Data Entry'!G67 -> 0 | H63: ='CHVA Tool - Data Entry'!H67 -> 0 | I63: ='CHVA Tool - Data Entry'!I67 -> 0 | J63: ='CHVA Tool - Data Entry'!J67 -> 0 | K63: ='CHVA Tool - Data Entry'!K67 -> 0 | L63: ='CHVA Tool - Data Entry'!L67 -> 0 | M63: ='CHVA Tool - Data Entry'!M67 -> 0 | N63: ='CHVA Tool - Data Entry'!N67 -> 0 | O63: ='CHVA Tool - Data Entry'!O67 -> 0 | P63: ='CHVA Tool - Data Entry'!P67 -> 0 | Q63: ='CHVA Tool - Data Entry'!Q67 -> 0
A64: ='CHVA Tool - Data Entry'!A68 -> Decontamination | B64: ='CHVA Tool - Data Entry'!B68 -> 3 | C64: ='CHVA Tool - Data Entry'!C68 -> 3 | D64: ='CHVA Tool - Data Entry'!D68 -> 2 | E64: ='CHVA Tool - Data Entry'!E68 -> 3 | F64: ='CHVA Tool - Data Entry'!F68 -> 1 | G64: ='CHVA Tool - Data Entry'!G68 -> 2 | H64: ='CHVA Tool - Data Entry'!H68 -> 2 | I64: ='CHVA Tool - Data Entry'!I68 -> 1 | J64: ='CHVA Tool - Data Entry'!J68 -> 1 | K64: ='CHVA Tool - Data Entry'!K68 -> 2 | L64: ='CHVA Tool - Data Entry'!L68 -> 2 | M64: ='CHVA Tool - Data Entry'!M68 -> 3 | N64: ='CHVA Tool - Data Entry'!N68 -> 3 | O64: ='CHVA Tool - Data Entry'!O68 -> 0.6666666667 | P64: ='CHVA Tool - Data Entry'!P68 -> 0.6666666667 | Q64: ='CHVA Tool - Data Entry'!Q68 -> 132
A65: ='CHVA Tool - Data Entry'!A69 -> HAZMAT Spill (Internal) | B65: ='CHVA Tool - Data Entry'!B69 -> 3 | C65: ='CHVA Tool - Data Entry'!C69 -> 3 | D65: ='CHVA Tool - Data Entry'!D69 -> 2 | E65: ='CHVA Tool - Data Entry'!E69 -> 3 | F65: ='CHVA Tool - Data Entry'!F69 -> 1 | G65: ='CHVA Tool - Data Entry'!G69 -> 2 | H65: ='CHVA Tool - Data Entry'!H69 -> 2 | I65: ='CHVA Tool - Data Entry'!I69 -> 1 | J65: ='CHVA Tool - Data Entry'!J69 -> 1 | K65: ='CHVA Tool - Data Entry'!K69 -> 2 | L65: ='CHVA Tool - Data Entry'!L69 -> 2 | M65: ='CHVA Tool - Data Entry'!M69 -> 3 | N65: ='CHVA Tool - Data Entry'!N69 -> 3 | O65: ='CHVA Tool - Data Entry'!O69 -> 0.6666666667 | P65: ='CHVA Tool - Data Entry'!P69 -> 0.6666666667 | Q65: ='CHVA Tool - Data Entry'!Q69 -> 132
A66: ='CHVA Tool - Data Entry'!A70 -> HAZMAT Spill (External) | B66: ='CHVA Tool - Data Entry'!B70 -> 2 | C66: ='CHVA Tool - Data Entry'!C70 -> 1 | D66: ='CHVA Tool - Data Entry'!D70 -> 2 | E66: ='CHVA Tool - Data Entry'!E70 -> 3 | F66: ='CHVA Tool - Data Entry'!F70 -> 1 | G66: ='CHVA Tool - Data Entry'!G70 -> 2 | H66: ='CHVA Tool - Data Entry'!H70 -> 2 | I66: ='CHVA Tool - Data Entry'!I70 -> 1 | J66: ='CHVA Tool - Data Entry'!J70 -> 1 | K66: ='CHVA Tool - Data Entry'!K70 -> 2 | L66: ='CHVA Tool - Data Entry'!L70 -> 2 | M66: ='CHVA Tool - Data Entry'!M70 -> 3 | N66: ='CHVA Tool - Data Entry'!N70 -> 3 | O66: ='CHVA Tool - Data Entry'!O70 -> 0.4444444444 | P66: ='CHVA Tool - Data Entry'!P70 -> 0.2222222222 | Q66: ='CHVA Tool - Data Entry'!Q70 -> 66
A67: ='CHVA Tool - Data Entry'!A71 -> Indoor Air Quality Issues | B67: ='CHVA Tool - Data Entry'!B71 -> 2 | C67: ='CHVA Tool - Data Entry'!C71 -> 1 | D67: ='CHVA Tool - Data Entry'!D71 -> 2 | E67: ='CHVA Tool - Data Entry'!E71 -> 3 | F67: ='CHVA Tool - Data Entry'!F71 -> 1 | G67: ='CHVA Tool - Data Entry'!G71 -> 2 | H67: ='CHVA Tool - Data Entry'!H71 -> 2 | I67: ='CHVA Tool - Data Entry'!I71 -> 1 | J67: ='CHVA Tool - Data Entry'!J71 -> 1 | K67: ='CHVA Tool - Data Entry'!K71 -> 2 | L67: ='CHVA Tool - Data Entry'!L71 -> 2 | M67: ='CHVA Tool - Data Entry'!M71 -> 3 | N67: ='CHVA Tool - Data Entry'!N71 -> 3 | O67: ='CHVA Tool - Data Entry'!O71 -> 0.4444444444 | P67: ='CHVA Tool - Data Entry'!P71 -> 0.2222222222 | Q67: ='CHVA Tool - Data Entry'!Q71 -> 66
A68: ='CHVA Tool - Data Entry'!A72 -> Large Internal Spill | B68: ='CHVA Tool - Data Entry'!B72 -> 2 | C68: ='CHVA Tool - Data Entry'!C72 -> 1 | D68: ='CHVA Tool - Data Entry'!D72 -> 2 | E68: ='CHVA Tool - Data Entry'!E72 -> 3 | F68: ='CHVA Tool - Data Entry'!F72 -> 1 | G68: ='CHVA Tool - Data Entry'!G72 -> 2 | H68: ='CHVA Tool - Data Entry'!H72 -> 2 | I68: ='CHVA Tool - Data Entry'!I72 -> 1 | J68: ='CHVA Tool - Data Entry'!J72 -> 1 | K68: ='CHVA Tool - Data Entry'!K72 -> 2 | L68: ='CHVA Tool - Data Entry'!L72 -> 2 | M68: ='CHVA Tool - Data Entry'!M72 -> 3 | N68: ='CHVA Tool - Data Entry'!N72 -> 3 | O68: ='CHVA Tool - Data Entry'!O72 -> 0.4444444444 | P68: ='CHVA Tool - Data Entry'!P72 -> 0.2222222222 | Q68: ='CHVA Tool - Data Entry'!Q72 -> 66
A69: ='CHVA Tool - Data Entry'!A73 -> Radiologic Exposure (Internal) | B69: ='CHVA Tool - Data Entry'!B73 -> 2 | C69: ='CHVA Tool - Data Entry'!C73 -> 1 | D69: ='CHVA Tool - Data Entry'!D73 -> 2 | E69: ='CHVA Tool - Data Entry'!E73 -> 3 | F69: ='CHVA Tool - Data Entry'!F73 -> 1 | G69: ='CHVA Tool - Data Entry'!G73 -> 2 | H69: ='CHVA Tool - Data Entry'!H73 -> 2 | I69: ='CHVA Tool - Data Entry'!I73 -> 1 | J69: ='CHVA Tool - Data Entry'!J73 -> 1 | K69: ='CHVA Tool - Data Entry'!K73 -> 2 | L69: ='CHVA Tool - Data Entry'!L73 -> 2 | M69: ='CHVA Tool - Data Entry'!M73 -> 3 | N69: ='CHVA Tool - Data Entry'!N73 -> 3 | O69: ='CHVA Tool - Data Entry'!O73 -> 0.4444444444 | P69: ='CHVA Tool - Data Entry'!P73 -> 0.2222222222 | Q69: ='CHVA Tool - Data Entry'!Q73 -> 66
A70: ='CHVA Tool - Data Entry'!A74 -> Radiological Incident (External) | B70: ='CHVA Tool - Data Entry'!B74 -> 2 | C70: ='CHVA Tool - Data Entry'!C74 -> 1 | D70: ='CHVA Tool - Data Entry'!D74 -> 2 | E70: ='CHVA Tool - Data Entry'!E74 -> 3 | F70: ='CHVA Tool - Data Entry'!F74 -> 1 | G70: ='CHVA Tool - Data Entry'!G74 -> 2 | H70: ='CHVA Tool - Data Entry'!H74 -> 2 | I70: ='CHVA Tool - Data Entry'!I74 -> 1 | J70: ='CHVA Tool - Data Entry'!J74 -> 1 | K70: ='CHVA Tool - Data Entry'!K74 -> 2 | L70: ='CHVA Tool - Data Entry'!L74 -> 2 | M70: ='CHVA Tool - Data Entry'!M74 -> 3 | N70: ='CHVA Tool - Data Entry'!N74 -> 3 | O70: ='CHVA Tool - Data Entry'!O74 -> 0.4444444444 | P70: ='CHVA Tool - Data Entry'!P74 -> 0.2222222222 | Q70: ='CHVA Tool - Data Entry'!Q74 -> 66
A71: ='CHVA Tool - Data Entry'!A75 -> Small-Medium Sized Internal Spill | B71: ='CHVA Tool - Data Entry'!B75 -> 2 | C71: ='CHVA Tool - Data Entry'!C75 -> 1 | D71: ='CHVA Tool - Data Entry'!D75 -> 2 | E71: ='CHVA Tool - Data Entry'!E75 -> 3 | F71: ='CHVA Tool - Data Entry'!F75 -> 1 | G71: ='CHVA Tool - Data Entry'!G75 -> 2 | H71: ='CHVA Tool - Data Entry'!H75 -> 2 | I71: ='CHVA Tool - Data Entry'!I75 -> 1 | J71: ='CHVA Tool - Data Entry'!J75 -> 1 | K71: ='CHVA Tool - Data Entry'!K75 -> 2 | L71: ='CHVA Tool - Data Entry'!L75 -> 2 | M71: ='CHVA Tool - Data Entry'!M75 -> 3 | N71: ='CHVA Tool - Data Entry'!N75 -> 3 | O71: ='CHVA Tool - Data Entry'!O75 -> 0.4444444444 | P71: ='CHVA Tool - Data Entry'!P75 -> 0.2222222222 | Q71: ='CHVA Tool - Data Entry'!Q75 -> 66
A72: ='CHVA Tool - Data Entry'!A76 -> Unknown Explosion | B72: ='CHVA Tool - Data Entry'!B76 -> 2 | C72: ='CHVA Tool - Data Entry'!C76 -> 1 | D72: ='CHVA Tool - Data Entry'!D76 -> 2 | E72: ='CHVA Tool - Data Entry'!E76 -> 3 | F72: ='CHVA Tool - Data Entry'!F76 -> 1 | G72: ='CHVA Tool - Data Entry'!G76 -> 2 | H72: ='CHVA Tool - Data Entry'!H76 -> 2 | I72: ='CHVA Tool - Data Entry'!I76 -> 1 | J72: ='CHVA Tool - Data Entry'!J76 -> 1 | K72: ='CHVA Tool - Data Entry'!K76 -> 2 | L72: ='CHVA Tool - Data Entry'!L76 -> 2 | M72: ='CHVA Tool - Data Entry'!M76 -> 3 | N72: ='CHVA Tool - Data Entry'!N76 -> 3 | O72: ='CHVA Tool - Data Entry'!O76 -> 0.4444444444 | P72: ='CHVA Tool - Data Entry'!P76 -> 0.2222222222 | Q72: ='CHVA Tool - Data Entry'!Q76 -> 66
A73: ='CHVA Tool - Data Entry'!A77 -> 0 | B73: ='CHVA Tool - Data Entry'!B77 -> 0 | C73: ='CHVA Tool - Data Entry'!C77 -> 0 | D73: ='CHVA Tool - Data Entry'!D77 -> 0 | E73: ='CHVA Tool - Data Entry'!E77 -> 0 | F73: ='CHVA Tool - Data Entry'!F77 -> 0 | G73: ='CHVA Tool - Data Entry'!G77 -> 0 | H73: ='CHVA Tool - Data Entry'!H77 -> 0 | I73: ='CHVA Tool - Data Entry'!I77 -> 0 | J73: ='CHVA Tool - Data Entry'!J77 -> 0 | K73: ='CHVA Tool - Data Entry'!K77 -> 0 | L73: ='CHVA Tool - Data Entry'!L77 -> 0 | M73: ='CHVA Tool - Data Entry'!M77 -> 0 | N73: ='CHVA Tool - Data Entry'!N77 -> 0 | O73: ='CHVA Tool - Data Entry'!O77 -> 0 | P73: ='CHVA Tool - Data Entry'!P77 -> 0 | Q73: ='CHVA Tool - Data Entry'!Q77 -> 0
A74: ='CHVA Tool - Data Entry'!A78 -> 0 | B74: ='CHVA Tool - Data Entry'!B78 -> 0 | C74: ='CHVA Tool - Data Entry'!C78 -> 0 | D74: ='CHVA Tool - Data Entry'!D78 -> 0 | E74: ='CHVA Tool - Data Entry'!E78 -> 0 | F74: ='CHVA Tool - Data Entry'!F78 -> 0 | G74: ='CHVA Tool - Data Entry'!G78 -> 0 | H74: ='CHVA Tool - Data Entry'!H78 -> 0 | I74: ='CHVA Tool - Data Entry'!I78 -> 0 | J74: ='CHVA Tool - Data Entry'!J78 -> 0 | K74: ='CHVA Tool - Data Entry'!K78 -> 0 | L74: ='CHVA Tool - Data Entry'!L78 -> 0 | M74: ='CHVA Tool - Data Entry'!M78 -> 0 | N74: ='CHVA Tool - Data Entry'!N78 -> 0 | O74: ='CHVA Tool - Data Entry'!O78 -> 0 | P74: ='CHVA Tool - Data Entry'!P78 -> 0 | Q74: ='CHVA Tool - Data Entry'!Q78 -> 0
A75: ='CHVA Tool - Data Entry'!A79 -> Average: | B75: ='CHVA Tool - Data Entry'!B79 -> 2.222222222 | C75: ='CHVA Tool - Data Entry'!C79 -> 1.444444444 | D75: ='CHVA Tool - Data Entry'!D79 -> 2 | E75: ='CHVA Tool - Data Entry'!E79 -> 3 | F75: ='CHVA Tool - Data Entry'!F79 -> 1 | G75: ='CHVA Tool - Data Entry'!G79 -> 2 | H75: ='CHVA Tool - Data Entry'!H79 -> 2 | I75: ='CHVA Tool - Data Entry'!I79 -> 1 | J75: ='CHVA Tool - Data Entry'!J79 -> 1 | K75: ='CHVA Tool - Data Entry'!K79 -> 2 | L75: ='CHVA Tool - Data Entry'!L79 -> 2 | M75: ='CHVA Tool - Data Entry'!M79 -> 3 | N75: ='CHVA Tool - Data Entry'!N79 -> 3 | O75: ='CHVA Tool - Data Entry'!O79 -> 0 | P75: ='CHVA Tool - Data Entry'!P79 -> 0 | Q75: ='CHVA Tool - Data Entry'!Q79 -> 0
A76: ='CHVA Tool - Data Entry'!A80 -> Technologic Events | B76: ='CHVA Tool - Data Entry'!B80 -> 0 | C76: ='CHVA Tool - Data Entry'!C80 -> 0 | D76: ='CHVA Tool - Data Entry'!D80 -> 0 | E76: ='CHVA Tool - Data Entry'!E80 -> 0 | F76: ='CHVA Tool - Data Entry'!F80 -> 0 | G76: ='CHVA Tool - Data Entry'!G80 -> 0 | H76: ='CHVA Tool - Data Entry'!H80 -> 0 | I76: ='CHVA Tool - Data Entry'!I80 -> 0 | J76: ='CHVA Tool - Data Entry'!J80 -> 0 | K76: ='CHVA Tool - Data Entry'!K80 -> 0 | L76: ='CHVA Tool - Data Entry'!L80 -> 0 | M76: ='CHVA Tool - Data Entry'!M80 -> 0 | N76: ='CHVA Tool - Data Entry'!N80 -> 0 | O76: ='CHVA Tool - Data Entry'!O80 -> 0 | P76: ='CHVA Tool - Data Entry'!P80 -> 0 | Q76: ='CHVA Tool - Data Entry'!Q80 -> 0
A77: ='CHVA Tool - Data Entry'!A81 -> Communications Failure | B77: ='CHVA Tool - Data Entry'!B81 -> 3 | C77: ='CHVA Tool - Data Entry'!C81 -> 3 | D77: ='CHVA Tool - Data Entry'!D81 -> 3 | E77: ='CHVA Tool - Data Entry'!E81 -> 2 | F77: ='CHVA Tool - Data Entry'!F81 -> 2 | G77: ='CHVA Tool - Data Entry'!G81 -> 2 | H77: ='CHVA Tool - Data Entry'!H81 -> 3 | I77: ='CHVA Tool - Data Entry'!I81 -> 1 | J77: ='CHVA Tool - Data Entry'!J81 -> 2 | K77: ='CHVA Tool - Data Entry'!K81 -> 2 | L77: ='CHVA Tool - Data Entry'!L81 -> 2 | M77: ='CHVA Tool - Data Entry'!M81 -> 3 | N77: ='CHVA Tool - Data Entry'!N81 -> 3 | O77: ='CHVA Tool - Data Entry'!O81 -> 0.7543859649 | P77: ='CHVA Tool - Data Entry'!P81 -> 0.7543859649 | Q77: ='CHVA Tool - Data Entry'!Q81 -> 150
A78: ='CHVA Tool - Data Entry'!A82 -> Infant Security Alarm Failure | B78: ='CHVA Tool - Data Entry'!B82 -> 3 | C78: ='CHVA Tool - Data Entry'!C82 -> 3 | D78: ='CHVA Tool - Data Entry'!D82 -> 3 | E78: ='CHVA Tool - Data Entry'!E82 -> 2 | F78: ='CHVA Tool - Data Entry'!F82 -> 2 | G78: ='CHVA Tool - Data Entry'!G82 -> 2 | H78: ='CHVA Tool - Data Entry'!H82 -> 3 | I78: ='CHVA Tool - Data Entry'!I82 -> 1 | J78: ='CHVA Tool - Data Entry'!J82 -> 2 | K78: ='CHVA Tool - Data Entry'!K82 -> 2 | L78: ='CHVA Tool - Data Entry'!L82 -> 2 | M78: ='CHVA Tool - Data Entry'!M82 -> 3 | N78: ='CHVA Tool - Data Entry'!N82 -> 3 | O78: ='CHVA Tool - Data Entry'!O82 -> 0.7543859649 | P78: ='CHVA Tool - Data Entry'!P82 -> 0.7543859649 | Q78: ='CHVA Tool - Data Entry'!Q82 -> 150
A79: ='CHVA Tool - Data Entry'!A83 -> Information Systems Failure | B79: ='CHVA Tool - Data Entry'!B83 -> 2 | C79: ='CHVA Tool - Data Entry'!C83 -> 3 | D79: ='CHVA Tool - Data Entry'!D83 -> 3 | E79: ='CHVA Tool - Data Entry'!E83 -> 2 | F79: ='CHVA Tool - Data Entry'!F83 -> 2 | G79: ='CHVA Tool - Data Entry'!G83 -> 2 | H79: ='CHVA Tool - Data Entry'!H83 -> 3 | I79: ='CHVA Tool - Data Entry'!I83 -> 1 | J79: ='CHVA Tool - Data Entry'!J83 -> 2 | K79: ='CHVA Tool - Data Entry'!K83 -> 2 | L79: ='CHVA Tool - Data Entry'!L83 -> 2 | M79: ='CHVA Tool - Data Entry'!M83 -> 3 | N79: ='CHVA Tool - Data Entry'!N83 -> 3 | O79: ='CHVA Tool - Data Entry'!O83 -> 0.5029239766 | P79: ='CHVA Tool - Data Entry'!P83 -> 0.7543859649 | Q79: ='CHVA Tool - Data Entry'!Q83 -> 125
A80: ='CHVA Tool - Data Entry'!A84 -> Magnetic Resonance Imaging (MRI) Incident | B80: ='CHVA Tool - Data Entry'!B84 -> 2 | C80: ='CHVA Tool - Data Entry'!C84 -> 3 | D80: ='CHVA Tool - Data Entry'!D84 -> 3 | E80: ='CHVA Tool - Data Entry'!E84 -> 2 | F80: ='CHVA Tool - Data Entry'!F84 -> 2 | G80: ='CHVA Tool - Data Entry'!G84 -> 2 | H80: ='CHVA Tool - Data Entry'!H84 -> 3 | I80: ='CHVA Tool - Data Entry'!I84 -> 1 | J80: ='CHVA Tool - Data Entry'!J84 -> 2 | K80: ='CHVA Tool - Data Entry'!K84 -> 2 | L80: ='CHVA Tool - Data Entry'!L84 -> 2 | M80: ='CHVA Tool - Data Entry'!M84 -> 3 | N80: ='CHVA Tool - Data Entry'!N84 -> 3 | O80: ='CHVA Tool - Data Entry'!O84 -> 0.5029239766 | P80: ='CHVA Tool - Data Entry'!P84 -> 0.7543859649 | Q80: ='CHVA Tool - Data Entry'!Q84 -> 125
A81: ='CHVA Tool - Data Entry'!A85 -> Network Failure | B81: ='CHVA Tool - Data Entry'!B85 -> 2 | C81: ='CHVA Tool - Data Entry'!C85 -> 2 | D81: ='CHVA Tool - Data Entry'!D85 -> 3 | E81: ='CHVA Tool - Data Entry'!E85 -> 2 | F81: ='CHVA Tool - Data Entry'!F85 -> 2 | G81: ='CHVA Tool - Data Entry'!G85 -> 2 | H81: ='CHVA Tool - Data Entry'!H85 -> 3 | I81: ='CHVA Tool - Data Entry'!I85 -> 1 | J81: ='CHVA Tool - Data Entry'!J85 -> 2 | K81: ='CHVA Tool - Data Entry'!K85 -> 2 | L81: ='CHVA Tool - Data Entry'!L85 -> 2 | M81: ='CHVA Tool - Data Entry'!M85 -> 3 | N81: ='CHVA Tool - Data Entry'!N85 -> 3 | O81: ='CHVA Tool - Data Entry'!O85 -> 0.5029239766 | P81: ='CHVA Tool - Data Entry'!P85 -> 0.5029239766 | Q81: ='CHVA Tool - Data Entry'!Q85 -> 100
A82: ='CHVA Tool - Data Entry'!A86 -> Pharmacy Medication Dispenser Failure | B82: ='CHVA Tool - Data Entry'!B86 -> 2 | C82: ='CHVA Tool - Data Entry'!C86 -> 2 | D82: ='CHVA Tool - Data Entry'!D86 -> 3 | E82: ='CHVA Tool - Data Entry'!E86 -> 2 | F82: ='CHVA Tool - Data Entry'!F86 -> 2 | G82: ='CHVA Tool - Data Entry'!G86 -> 2 | H82: ='CHVA Tool - Data Entry'!H86 -> 3 | I82: ='CHVA Tool - Data Entry'!I86 -> 1 | J82: ='CHVA Tool - Data Entry'!J86 -> 2 | K82: ='CHVA Tool - Data Entry'!K86 -> 2 | L82: ='CHVA Tool - Data Entry'!L86 -> 2 | M82: ='CHVA Tool - Data Entry'!M86 -> 3 | N82: ='CHVA Tool - Data Entry'!N86 -> 3 | O82: ='CHVA Tool - Data Entry'!O86 -> 0.5029239766 | P82: ='CHVA Tool - Data Entry'!P86 -> 0.5029239766 | Q82: ='CHVA Tool - Data Entry'!Q86 -> 100
A83: ='CHVA Tool - Data Entry'!A87 -> Security Card Access Failure | B83: ='CHVA Tool - Data Entry'!B87 -> 2 | C83: ='CHVA Tool - Data Entry'!C87 -> 2 | D83: ='CHVA Tool - Data Entry'!D87 -> 3 | E83: ='CHVA Tool - Data Entry'!E87 -> 2 | F83: ='CHVA Tool - Data Entry'!F87 -> 2 | G83: ='CHVA Tool - Data Entry'!G87 -> 2 | H83: ='CHVA Tool - Data Entry'!H87 -> 3 | I83: ='CHVA Tool - Data Entry'!I87 -> 1 | J83: ='CHVA Tool - Data Entry'!J87 -> 2 | K83: ='CHVA Tool - Data Entry'!K87 -> 2 | L83: ='CHVA Tool - Data Entry'!L87 -> 2 | M83: ='CHVA Tool - Data Entry'!M87 -> 3 | N83: ='CHVA Tool - Data Entry'!N87 -> 3 | O83: ='CHVA Tool - Data Entry'!O87 -> 0.5029239766 | P83: ='CHVA Tool - Data Entry'!P87 -> 0.5029239766 | Q83: ='CHVA Tool - Data Entry'!Q87 -> 100
A84: ='CHVA Tool - Data Entry'!A88 -> Security Video Surveillance | B84: ='CHVA Tool - Data Entry'!B88 -> 2 | C84: ='CHVA Tool - Data Entry'!C88 -> 2 | D84: ='CHVA Tool - Data Entry'!D88 -> 3 | E84: ='CHVA Tool - Data Entry'!E88 -> 2 | F84: ='CHVA Tool - Data Entry'!F88 -> 2 | G84: ='CHVA Tool - Data Entry'!G88 -> 2 | H84: ='CHVA Tool - Data Entry'!H88 -> 3 | I84: ='CHVA Tool - Data Entry'!I88 -> 1 | J84: ='CHVA Tool - Data Entry'!J88 -> 2 | K84: ='CHVA Tool - Data Entry'!K88 -> 2 | L84: ='CHVA Tool - Data Entry'!L88 -> 2 | M84: ='CHVA Tool - Data Entry'!M88 -> 3 | N84: ='CHVA Tool - Data Entry'!N88 -> 3 | O84: ='CHVA Tool - Data Entry'!O88 -> 0.5029239766 | P84: ='CHVA Tool - Data Entry'!P88 -> 0.5029239766 | Q84: ='CHVA Tool - Data Entry'!Q88 -> 100
A85: ='CHVA Tool - Data Entry'!A89 -> 0 | B85: ='CHVA Tool - Data Entry'!B89 -> 0 | C85: ='CHVA Tool - Data Entry'!C89 -> 0 | D85: ='CHVA Tool - Data Entry'!D89 -> 0 | E85: ='CHVA Tool - Data Entry'!E89 -> 0 | F85: ='CHVA Tool - Data Entry'!F89 -> 0 | G85: ='CHVA Tool - Data Entry'!G89 -> 0 | H85: ='CHVA Tool - Data Entry'!H89 -> 0 | I85: ='CHVA Tool - Data Entry'!I89 -> 0 | J85: ='CHVA Tool - Data Entry'!J89 -> 0 | K85: ='CHVA Tool - Data Entry'!K89 -> 0 | L85: ='CHVA Tool - Data Entry'!L89 -> 0 | M85: ='CHVA Tool - Data Entry'!M89 -> 0 | N85: ='CHVA Tool - Data Entry'!N89 -> 0 | O85: ='CHVA Tool - Data Entry'!O89 -> 0 | P85: ='CHVA Tool - Data Entry'!P89 -> 0 | Q85: ='CHVA Tool - Data Entry'!Q89 -> 0
A86: ='CHVA Tool - Data Entry'!A90 -> 0 | B86: ='CHVA Tool - Data Entry'!B90 -> 0 | C86: ='CHVA Tool - Data Entry'!C90 -> 0 | D86: ='CHVA Tool - Data Entry'!D90 -> 0 | E86: ='CHVA Tool - Data Entry'!E90 -> 0 | F86: ='CHVA Tool - Data Entry'!F90 -> 0 | G86: ='CHVA Tool - Data Entry'!G90 -> 0 | H86: ='CHVA Tool - Data Entry'!H90 -> 0 | I86: ='CHVA Tool - Data Entry'!I90 -> 0 | J86: ='CHVA Tool - Data Entry'!J90 -> 0 | K86: ='CHVA Tool - Data Entry'!K90 -> 0 | L86: ='CHVA Tool - Data Entry'!L90 -> 0 | M86: ='CHVA Tool - Data Entry'!M90 -> 0 | N86: ='CHVA Tool - Data Entry'!N90 -> 0 | O86: ='CHVA Tool - Data Entry'!O90 -> 0 | P86: ='CHVA Tool - Data Entry'!P90 -> 0 | Q86: ='CHVA Tool - Data Entry'!Q90 -> 0
A87: ='CHVA Tool - Data Entry'!A91 -> Average: | B87: ='CHVA Tool - Data Entry'!B91 -> 2.25 | C87: ='CHVA Tool - Data Entry'!C91 -> 2.5 | D87: ='CHVA Tool - Data Entry'!D91 -> 3 | E87: ='CHVA Tool - Data Entry'!E91 -> 2 | F87: ='CHVA Tool - Data Entry'!F91 -> 2 | G87: ='CHVA Tool - Data Entry'!G91 -> 2 | H87: ='CHVA Tool - Data Entry'!H91 -> 3 | I87: ='CHVA Tool - Data Entry'!I91 -> 1 | J87: ='CHVA Tool - Data Entry'!J91 -> 2 | K87: ='CHVA Tool - Data Entry'!K91 -> 2 | L87: ='CHVA Tool - Data Entry'!L91 -> 2 | M87: ='CHVA Tool - Data Entry'!M91 -> 3 | N87: ='CHVA Tool - Data Entry'!N91 -> 3 | O87: ='CHVA Tool - Data Entry'!O91 -> 0 | P87: ='CHVA Tool - Data Entry'!P91 -> 0 | Q87: ='CHVA Tool - Data Entry'!Q91 -> 0
A88: ='CHVA Tool - Data Entry'!A92 -> Utility Events | B88: ='CHVA Tool - Data Entry'!B92 -> 0 | C88: ='CHVA Tool - Data Entry'!C92 -> 0 | D88: ='CHVA Tool - Data Entry'!D92 -> 0 | E88: ='CHVA Tool - Data Entry'!E92 -> 0 | F88: ='CHVA Tool - Data Entry'!F92 -> 0 | G88: ='CHVA Tool - Data Entry'!G92 -> 0 | H88: ='CHVA Tool - Data Entry'!H92 -> 0 | I88: ='CHVA Tool - Data Entry'!I92 -> 0 | J88: ='CHVA Tool - Data Entry'!J92 -> 0 | K88: ='CHVA Tool - Data Entry'!K92 -> 0 | L88: ='CHVA Tool - Data Entry'!L92 -> 0 | M88: ='CHVA Tool - Data Entry'!M92 -> 0 | N88: ='CHVA Tool - Data Entry'!N92 -> 0 | O88: ='CHVA Tool - Data Entry'!O92 -> 0 | P88: ='CHVA Tool - Data Entry'!P92 -> 0 | Q88: ='CHVA Tool - Data Entry'!Q92 -> 0
A89: ='CHVA Tool - Data Entry'!A93 -> Broken Water Main (Internal) | B89: ='CHVA Tool - Data Entry'!B93 -> 3 | C89: ='CHVA Tool - Data Entry'!C93 -> 3 | D89: ='CHVA Tool - Data Entry'!D93 -> 2 | E89: ='CHVA Tool - Data Entry'!E93 -> 3 | F89: ='CHVA Tool - Data Entry'!F93 -> 1 | G89: ='CHVA Tool - Data Entry'!G93 -> 1 | H89: ='CHVA Tool - Data Entry'!H93 -> 2 | I89: ='CHVA Tool - Data Entry'!I93 -> 1 | J89: ='CHVA Tool - Data Entry'!J93 -> 2 | K89: ='CHVA Tool - Data Entry'!K93 -> 3 | L89: ='CHVA Tool - Data Entry'!L93 -> 1 | M89: ='CHVA Tool - Data Entry'!M93 -> 2 | N89: ='CHVA Tool - Data Entry'!N93 -> 2 | O89: ='CHVA Tool - Data Entry'!O93 -> 0.5964912281 | P89: ='CHVA Tool - Data Entry'!P93 -> 0.5964912281 | Q89: ='CHVA Tool - Data Entry'!Q93 -> 120
A90: ='CHVA Tool - Data Entry'!A94 -> Broken Water Main (External) | B90: ='CHVA Tool - Data Entry'!B94 -> 3 | C90: ='CHVA Tool - Data Entry'!C94 -> 3 | D90: ='CHVA Tool - Data Entry'!D94 -> 2 | E90: ='CHVA Tool - Data Entry'!E94 -> 3 | F90: ='CHVA Tool - Data Entry'!F94 -> 1 | G90: ='CHVA Tool - Data Entry'!G94 -> 1 | H90: ='CHVA Tool - Data Entry'!H94 -> 2 | I90: ='CHVA Tool - Data Entry'!I94 -> 1 | J90: ='CHVA Tool - Data Entry'!J94 -> 2 | K90: ='CHVA Tool - Data Entry'!K94 -> 3 | L90: ='CHVA Tool - Data Entry'!L94 -> 1 | M90: ='CHVA Tool - Data Entry'!M94 -> 2 | N90: ='CHVA Tool - Data Entry'!N94 -> 2 | O90: ='CHVA Tool - Data Entry'!O94 -> 0.5964912281 | P90: ='CHVA Tool - Data Entry'!P94 -> 0.5964912281 | Q90: ='CHVA Tool - Data Entry'!Q94 -> 120
A91: ='CHVA Tool - Data Entry'!A95 -> Compressed Gas Cylinder Leak/Failure | B91: ='CHVA Tool - Data Entry'!B95 -> 2 | C91: ='CHVA Tool - Data Entry'!C95 -> 3 | D91: ='CHVA Tool - Data Entry'!D95 -> 2 | E91: ='CHVA Tool - Data Entry'!E95 -> 3 | F91: ='CHVA Tool - Data Entry'!F95 -> 1 | G91: ='CHVA Tool - Data Entry'!G95 -> 1 | H91: ='CHVA Tool - Data Entry'!H95 -> 2 | I91: ='CHVA Tool - Data Entry'!I95 -> 1 | J91: ='CHVA Tool - Data Entry'!J95 -> 2 | K91: ='CHVA Tool - Data Entry'!K95 -> 3 | L91: ='CHVA Tool - Data Entry'!L95 -> 1 | M91: ='CHVA Tool - Data Entry'!M95 -> 2 | N91: ='CHVA Tool - Data Entry'!N95 -> 2 | O91: ='CHVA Tool - Data Entry'!O95 -> 0.3976608187 | P91: ='CHVA Tool - Data Entry'!P95 -> 0.5964912281 | Q91: ='CHVA Tool - Data Entry'!Q95 -> 100
A92: ='CHVA Tool - Data Entry'!A96 -> Electrical Failure | B92: ='CHVA Tool - Data Entry'!B96 -> 2 | C92: ='CHVA Tool - Data Entry'!C96 -> 3 | D92: ='CHVA Tool - Data Entry'!D96 -> 2 | E92: ='CHVA Tool - Data Entry'!E96 -> 3 | F92: ='CHVA Tool - Data Entry'!F96 -> 1 | G92: ='CHVA Tool - Data Entry'!G96 -> 1 | H92: ='CHVA Tool - Data Entry'!H96 -> 2 | I92: ='CHVA Tool - Data Entry'!I96 -> 1 | J92: ='CHVA Tool - Data Entry'!J96 -> 2 | K92: ='CHVA Tool - Data Entry'!K96 -> 3 | L92: ='CHVA Tool - Data Entry'!L96 -> 1 | M92: ='CHVA Tool - Data Entry'!M96 -> 2 | N92: ='CHVA Tool - Data Entry'!N96 -> 2 | O92: ='CHVA Tool - Data Entry'!O96 -> 0.3976608187 | P92: ='CHVA Tool - Data Entry'!P96 -> 0.5964912281 | Q92: ='CHVA Tool - Data Entry'!Q96 -> 100
A93: ='CHVA Tool - Data Entry'!A97 -> Elevator Failure | B93: ='CHVA Tool - Data Entry'!B97 -> 2 | C93: ='CHVA Tool - Data Entry'!C97 -> 1 | D93: ='CHVA Tool - Data Entry'!D97 -> 2 | E93: ='CHVA Tool - Data Entry'!E97 -> 3 | F93: ='CHVA Tool - Data Entry'!F97 -> 1 | G93: ='CHVA Tool - Data Entry'!G97 -> 1 | H93: ='CHVA Tool - Data Entry'!H97 -> 2 | I93: ='CHVA Tool - Data Entry'!I97 -> 1 | J93: ='CHVA Tool - Data Entry'!J97 -> 2 | K93: ='CHVA Tool - Data Entry'!K97 -> 3 | L93: ='CHVA Tool - Data Entry'!L97 -> 1 | M93: ='CHVA Tool - Data Entry'!M97 -> 2 | N93: ='CHVA Tool - Data Entry'!N97 -> 2 | O93: ='CHVA Tool - Data Entry'!O97 -> 0.3976608187 | P93: ='CHVA Tool - Data Entry'!P97 -> 0.1988304094 | Q93: ='CHVA Tool - Data Entry'!Q97 -> 60
A94: ='CHVA Tool - Data Entry'!A98 -> Fire (Internal) | B94: ='CHVA Tool - Data Entry'!B98 -> 2 | C94: ='CHVA Tool - Data Entry'!C98 -> 1 | D94: ='CHVA Tool - Data Entry'!D98 -> 2 | E94: ='CHVA Tool - Data Entry'!E98 -> 3 | F94: ='CHVA Tool - Data Entry'!F98 -> 1 | G94: ='CHVA Tool - Data Entry'!G98 -> 1 | H94: ='CHVA Tool - Data Entry'!H98 -> 2 | I94: ='CHVA Tool - Data Entry'!I98 -> 1 | J94: ='CHVA Tool - Data Entry'!J98 -> 2 | K94: ='CHVA Tool - Data Entry'!K98 -> 3 | L94: ='CHVA Tool - Data Entry'!L98 -> 1 | M94: ='CHVA Tool - Data Entry'!M98 -> 2 | N94: ='CHVA Tool - Data Entry'!N98 -> 2 | O94: ='CHVA Tool - Data Entry'!O98 -> 0.3976608187 | P94: ='CHVA Tool - Data Entry'!P98 -> 0.1988304094 | Q94: ='CHVA Tool - Data Entry'!Q98 -> 60
A95: ='CHVA Tool - Data Entry'!A99 -> Fire Detection/Alarm Failure | B95: ='CHVA Tool - Data Entry'!B99 -> 2 | C95: ='CHVA Tool - Data Entry'!C99 -> 1 | D95: ='CHVA Tool - Data Entry'!D99 -> 2 | E95: ='CHVA Tool - Data Entry'!E99 -> 3 | F95: ='CHVA Tool - Data Entry'!F99 -> 1 | G95: ='CHVA Tool - Data Entry'!G99 -> 1 | H95: ='CHVA Tool - Data Entry'!H99 -> 2 | I95: ='CHVA Tool - Data Entry'!I99 -> 1 | J95: ='CHVA Tool - Data Entry'!J99 -> 2 | K95: ='CHVA Tool - Data Entry'!K99 -> 3 | L95: ='CHVA Tool - Data Entry'!L99 -> 1 | M95: ='CHVA Tool - Data Entry'!M99 -> 2 | N95: ='CHVA Tool - Data Entry'!N99 -> 2 | O95: ='CHVA Tool - Data Entry'!O99 -> 0.3976608187 | P95: ='CHVA Tool - Data Entry'!P99 -> 0.1988304094 | Q95: ='CHVA Tool - Data Entry'!Q99 -> 60
A96: ='CHVA Tool - Data Entry'!A100 -> Fire Suppression Failure | B96: ='CHVA Tool - Data Entry'!B100 -> 2 | C96: ='CHVA Tool - Data Entry'!C100 -> 1 | D96: ='CHVA Tool - Data Entry'!D100 -> 2 | E96: ='CHVA Tool - Data Entry'!E100 -> 3 | F96: ='CHVA Tool - Data Entry'!F100 -> 1 | G96: ='CHVA Tool - Data Entry'!G100 -> 1 | H96: ='CHVA Tool - Data Entry'!H100 -> 2 | I96: ='CHVA Tool - Data Entry'!I100 -> 1 | J96: ='CHVA Tool - Data Entry'!J100 -> 2 | K96: ='CHVA Tool - Data Entry'!K100 -> 3 | L96: ='CHVA Tool - Data Entry'!L100 -> 1 | M96: ='CHVA Tool - Data Entry'!M100 -> 2 | N96: ='CHVA Tool - Data Entry'!N100 -> 2 | O96: ='CHVA Tool - Data Entry'!O100 -> 0.3976608187 | P96: ='CHVA Tool - Data Entry'!P100 -> 0.1988304094 | Q96: ='CHVA Tool - Data Entry'!Q100 -> 60
A97: ='CHVA Tool - Data Entry'!A101 -> Flood (Internal) | B97: ='CHVA Tool - Data Entry'!B101 -> 2 | C97: ='CHVA Tool - Data Entry'!C101 -> 1 | D97: ='CHVA Tool - Data Entry'!D101 -> 2 | E97: ='CHVA Tool - Data Entry'!E101 -> 3 | F97: ='CHVA Tool - Data Entry'!F101 -> 1 | G97: ='CHVA Tool - Data Entry'!G101 -> 1 | H97: ='CHVA Tool - Data Entry'!H101 -> 2 | I97: ='CHVA Tool - Data Entry'!I101 -> 1 | J97: ='CHVA Tool - Data Entry'!J101 -> 2 | K97: ='CHVA Tool - Data Entry'!K101 -> 3 | L97: ='CHVA Tool - Data Entry'!L101 -> 1 | M97: ='CHVA Tool - Data Entry'!M101 -> 2 | N97: ='CHVA Tool - Data Entry'!N101 -> 2 | O97: ='CHVA Tool - Data Entry'!O101 -> 0.3976608187 | P97: ='CHVA Tool - Data Entry'!P101 -> 0.1988304094 | Q97: ='CHVA Tool - Data Entry'!Q101 -> 60
A98: ='CHVA Tool - Data Entry'!A102 -> Fuel Shortage | B98: ='CHVA Tool - Data Entry'!B102 -> 2 | C98: ='CHVA Tool - Data Entry'!C102 -> 1 | D98: ='CHVA Tool - Data Entry'!D102 -> 2 | E98: ='CHVA Tool - Data Entry'!E102 -> 3 | F98: ='CHVA Tool - Data Entry'!F102 -> 1 | G98: ='CHVA Tool - Data Entry'!G102 -> 1 | H98: ='CHVA Tool - Data Entry'!H102 -> 2 | I98: ='CHVA Tool - Data Entry'!I102 -> 1 | J98: ='CHVA Tool - Data Entry'!J102 -> 2 | K98: ='CHVA Tool - Data Entry'!K102 -> 3 | L98: ='CHVA Tool - Data Entry'!L102 -> 1 | M98: ='CHVA Tool - Data Entry'!M102 -> 2 | N98: ='CHVA Tool - Data Entry'!N102 -> 2 | O98: ='CHVA Tool - Data Entry'!O102 -> 0.3976608187 | P98: ='CHVA Tool - Data Entry'!P102 -> 0.1988304094 | Q98: ='CHVA Tool - Data Entry'!Q102 -> 60
A99: ='CHVA Tool - Data Entry'!A103 -> Generator Failure | B99: ='CHVA Tool - Data Entry'!B103 -> 2 | C99: ='CHVA Tool - Data Entry'!C103 -> 1 | D99: ='CHVA Tool - Data Entry'!D103 -> 2 | E99: ='CHVA Tool - Data Entry'!E103 -> 3 | F99: ='CHVA Tool - Data Entry'!F103 -> 1 | G99: ='CHVA Tool - Data Entry'!G103 -> 1 | H99: ='CHVA Tool - Data Entry'!H103 -> 2 | I99: ='CHVA Tool - Data Entry'!I103 -> 1 | J99: ='CHVA Tool - Data Entry'!J103 -> 2 | K99: ='CHVA Tool - Data Entry'!K103 -> 3 | L99: ='CHVA Tool - Data Entry'!L103 -> 1 | M99: ='CHVA Tool - Data Entry'!M103 -> 2 | N99: ='CHVA Tool - Data Entry'!N103 -> 2 | O99: ='CHVA Tool - Data Entry'!O103 -> 0.3976608187 | P99: ='CHVA Tool - Data Entry'!P103 -> 0.1988304094 | Q99: ='CHVA Tool - Data Entry'!Q103 -> 60
A100: ='CHVA Tool - Data Entry'!A104 -> HVAC Failure | B100: ='CHVA Tool - Data Entry'!B104 -> 2 | C100: ='CHVA Tool - Data Entry'!C104 -> 1 | D100: ='CHVA Tool - Data Entry'!D104 -> 2 | E100: ='CHVA Tool - Data Entry'!E104 -> 3 | F100: ='CHVA Tool - Data Entry'!F104 -> 1 | G100: ='CHVA Tool - Data Entry'!G104 -> 1 | H100: ='CHVA Tool - Data Entry'!H104 -> 2 | I100: ='CHVA Tool - Data Entry'!I104 -> 1 | J100: ='CHVA Tool - Data Entry'!J104 -> 2 | K100: ='CHVA Tool - Data Entry'!K104 -> 3 | L100: ='CHVA Tool - Data Entry'!L104 -> 1 | M100: ='CHVA Tool - Data Entry'!M104 -> 2 | N100: ='CHVA Tool - Data Entry'!N104 -> 2 | O100: ='CHVA Tool - Data Entry'!O104 -> 0.3976608187 | P100: ='CHVA Tool - Data Entry'!P104 -> 0.1988304094 | Q100: ='CHVA Tool - Data Entry'!Q104 -> 60
A101: ='CHVA Tool - Data Entry'!A105 -> Loss of Bulk Oxygen | B101: ='CHVA Tool - Data Entry'!B105 -> 2 | C101: ='CHVA Tool - Data Entry'!C105 -> 1 | D101: ='CHVA Tool - Data Entry'!D105 -> 2 | E101: ='CHVA Tool - Data Entry'!E105 -> 3 | F101: ='CHVA Tool - Data Entry'!F105 -> 1 | G101: ='CHVA Tool - Data Entry'!G105 -> 1 | H101: ='CHVA Tool - Data Entry'!H105 -> 2 | I101: ='CHVA Tool - Data Entry'!I105 -> 1 | J101: ='CHVA Tool - Data Entry'!J105 -> 2 | K101: ='CHVA Tool - Data Entry'!K105 -> 3 | L101: ='CHVA Tool - Data Entry'!L105 -> 1 | M101: ='CHVA Tool - Data Entry'!M105 -> 2 | N101: ='CHVA Tool - Data Entry'!N105 -> 2 | O101: ='CHVA Tool - Data Entry'!O105 -> 0.3976608187 | P101: ='CHVA Tool - Data Entry'!P105 -> 0.1988304094 | Q101: ='CHVA Tool - Data Entry'!Q105 -> 60
A102: ='CHVA Tool - Data Entry'!A106 -> Medical Gas Failure | B102: ='CHVA Tool - Data Entry'!B106 -> 2 | C102: ='CHVA Tool - Data Entry'!C106 -> 1 | D102: ='CHVA Tool - Data Entry'!D106 -> 2 | E102: ='CHVA Tool - Data Entry'!E106 -> 3 | F102: ='CHVA Tool - Data Entry'!F106 -> 1 | G102: ='CHVA Tool - Data Entry'!G106 -> 1 | H102: ='CHVA Tool - Data Entry'!H106 -> 2 | I102: ='CHVA Tool - Data Entry'!I106 -> 1 | J102: ='CHVA Tool - Data Entry'!J106 -> 2 | K102: ='CHVA Tool - Data Entry'!K106 -> 3 | L102: ='CHVA Tool - Data Entry'!L106 -> 1 | M102: ='CHVA Tool - Data Entry'!M106 -> 2 | N102: ='CHVA Tool - Data Entry'!N106 -> 2 | O102: ='CHVA Tool - Data Entry'!O106 -> 0.3976608187 | P102: ='CHVA Tool - Data Entry'!P106 -> 0.1988304094 | Q102: ='CHVA Tool - Data Entry'!Q106 -> 60
A103: ='CHVA Tool - Data Entry'!A107 -> Medical Vacuum Failure | B103: ='CHVA Tool - Data Entry'!B107 -> 2 | C103: ='CHVA Tool - Data Entry'!C107 -> 1 | D103: ='CHVA Tool - Data Entry'!D107 -> 2 | E103: ='CHVA Tool - Data Entry'!E107 -> 3 | F103: ='CHVA Tool - Data Entry'!F107 -> 1 | G103: ='CHVA Tool - Data Entry'!G107 -> 1 | H103: ='CHVA Tool - Data Entry'!H107 -> 2 | I103: ='CHVA Tool - Data Entry'!I107 -> 1 | J103: ='CHVA Tool - Data Entry'!J107 -> 2 | K103: ='CHVA Tool - Data Entry'!K107 -> 3 | L103: ='CHVA Tool - Data Entry'!L107 -> 1 | M103: ='CHVA Tool - Data Entry'!M107 -> 2 | N103: ='CHVA Tool - Data Entry'!N107 -> 2 | O103: ='CHVA Tool - Data Entry'!O107 -> 0.3976608187 | P103: ='CHVA Tool - Data Entry'!P107 -> 0.1988304094 | Q103: ='CHVA Tool - Data Entry'!Q107 -> 60
A104: ='CHVA Tool - Data Entry'!A108 -> Natural Gas Failure | B104: ='CHVA Tool - Data Entry'!B108 -> 2 | C104: ='CHVA Tool - Data Entry'!C108 -> 1 | D104: ='CHVA Tool - Data Entry'!D108 -> 2 | E104: ='CHVA Tool - Data Entry'!E108 -> 3 | F104: ='CHVA Tool - Data Entry'!F108 -> 1 | G104: ='CHVA Tool - Data Entry'!G108 -> 1 | H104: ='CHVA Tool - Data Entry'!H108 -> 2 | I104: ='CHVA Tool - Data Entry'!I108 -> 1 | J104: ='CHVA Tool - Data Entry'!J108 -> 2 | K104: ='CHVA Tool - Data Entry'!K108 -> 3 | L104: ='CHVA Tool - Data Entry'!L108 -> 1 | M104: ='CHVA Tool - Data Entry'!M108 -> 2 | N104: ='CHVA Tool - Data Entry'!N108 -> 2 | O104: ='CHVA Tool - Data Entry'!O108 -> 0.3976608187 | P104: ='CHVA Tool - Data Entry'!P108 -> 0.1988304094 | Q104: ='CHVA Tool - Data Entry'!Q108 -> 60
A105: ='CHVA Tool - Data Entry'!A109 -> Natural Gas Leak | B105: ='CHVA Tool - Data Entry'!B109 -> 2 | C105: ='CHVA Tool - Data Entry'!C109 -> 1 | D105: ='CHVA Tool - Data Entry'!D109 -> 2 | E105: ='CHVA Tool - Data Entry'!E109 -> 3 | F105: ='CHVA Tool - Data Entry'!F109 -> 1 | G105: ='CHVA Tool - Data Entry'!G109 -> 1 | H105: ='CHVA Tool - Data Entry'!H109 -> 2 | I105: ='CHVA Tool - Data Entry'!I109 -> 1 | J105: ='CHVA Tool - Data Entry'!J109 -> 2 | K105: ='CHVA Tool - Data Entry'!K109 -> 3 | L105: ='CHVA Tool - Data Entry'!L109 -> 1 | M105: ='CHVA Tool - Data Entry'!M109 -> 2 | N105: ='CHVA Tool - Data Entry'!N109 -> 2 | O105: ='CHVA Tool - Data Entry'!O109 -> 0.3976608187 | P105: ='CHVA Tool - Data Entry'!P109 -> 0.1988304094 | Q105: ='CHVA Tool - Data Entry'!Q109 -> 60
A106: ='CHVA Tool - Data Entry'!A110 -> Oxygen Leak | B106: ='CHVA Tool - Data Entry'!B110 -> 2 | C106: ='CHVA Tool - Data Entry'!C110 -> 1 | D106: ='CHVA Tool - Data Entry'!D110 -> 2 | E106: ='CHVA Tool - Data Entry'!E110 -> 3 | F106: ='CHVA Tool - Data Entry'!F110 -> 1 | G106: ='CHVA Tool - Data Entry'!G110 -> 1 | H106: ='CHVA Tool - Data Entry'!H110 -> 2 | I106: ='CHVA Tool - Data Entry'!I110 -> 1 | J106: ='CHVA Tool - Data Entry'!J110 -> 2 | K106: ='CHVA Tool - Data Entry'!K110 -> 3 | L106: ='CHVA Tool - Data Entry'!L110 -> 1 | M106: ='CHVA Tool - Data Entry'!M110 -> 2 | N106: ='CHVA Tool - Data Entry'!N110 -> 2 | O106: ='CHVA Tool - Data Entry'!O110 -> 0.3976608187 | P106: ='CHVA Tool - Data Entry'!P110 -> 0.1988304094 | Q106: ='CHVA Tool - Data Entry'!Q110 -> 60
A107: ='CHVA Tool - Data Entry'!A111 -> Potable Water Failure | B107: ='CHVA Tool - Data Entry'!B111 -> 2 | C107: ='CHVA Tool - Data Entry'!C111 -> 1 | D107: ='CHVA Tool - Data Entry'!D111 -> 2 | E107: ='CHVA Tool - Data Entry'!E111 -> 3 | F107: ='CHVA Tool - Data Entry'!F111 -> 1 | G107: ='CHVA Tool - Data Entry'!G111 -> 1 | H107: ='CHVA Tool - Data Entry'!H111 -> 2 | I107: ='CHVA Tool - Data Entry'!I111 -> 1 | J107: ='CHVA Tool - Data Entry'!J111 -> 2 | K107: ='CHVA Tool - Data Entry'!K111 -> 3 | L107: ='CHVA Tool - Data Entry'!L111 -> 1 | M107: ='CHVA Tool - Data Entry'!M111 -> 2 | N107: ='CHVA Tool - Data Entry'!N111 -> 2 | O107: ='CHVA Tool - Data Entry'!O111 -> 0.3976608187 | P107: ='CHVA Tool - Data Entry'!P111 -> 0.1988304094 | Q107: ='CHVA Tool - Data Entry'!Q111 -> 60
A108: ='CHVA Tool - Data Entry'!A112 -> Process Water Failure | B108: ='CHVA Tool - Data Entry'!B112 -> 2 | C108: ='CHVA Tool - Data Entry'!C112 -> 1 | D108: ='CHVA Tool - Data Entry'!D112 -> 2 | E108: ='CHVA Tool - Data Entry'!E112 -> 3 | F108: ='CHVA Tool - Data Entry'!F112 -> 1 | G108: ='CHVA Tool - Data Entry'!G112 -> 1 | H108: ='CHVA Tool - Data Entry'!H112 -> 2 | I108: ='CHVA Tool - Data Entry'!I112 -> 1 | J108: ='CHVA Tool - Data Entry'!J112 -> 2 | K108: ='CHVA Tool - Data Entry'!K112 -> 3 | L108: ='CHVA Tool - Data Entry'!L112 -> 1 | M108: ='CHVA Tool - Data Entry'!M112 -> 2 | N108: ='CHVA Tool - Data Entry'!N112 -> 2 | O108: ='CHVA Tool - Data Entry'!O112 -> 0.3976608187 | P108: ='CHVA Tool - Data Entry'!P112 -> 0.1988304094 | Q108: ='CHVA Tool - Data Entry'!Q112 -> 60
A109: ='CHVA Tool - Data Entry'!A113 -> Sewer Failure | B109: ='CHVA Tool - Data Entry'!B113 -> 2 | C109: ='CHVA Tool - Data Entry'!C113 -> 1 | D109: ='CHVA Tool - Data Entry'!D113 -> 2 | E109: ='CHVA Tool - Data Entry'!E113 -> 3 | F109: ='CHVA Tool - Data Entry'!F113 -> 1 | G109: ='CHVA Tool - Data Entry'!G113 -> 1 | H109: ='CHVA Tool - Data Entry'!H113 -> 2 | I109: ='CHVA Tool - Data Entry'!I113 -> 1 | J109: ='CHVA Tool - Data Entry'!J113 -> 2 | K109: ='CHVA Tool - Data Entry'!K113 -> 3 | L109: ='CHVA Tool - Data Entry'!L113 -> 1 | M109: ='CHVA Tool - Data Entry'!M113 -> 2 | N109: ='CHVA Tool - Data Entry'!N113 -> 2 | O109: ='CHVA Tool - Data Entry'!O113 -> 0.3976608187 | P109: ='CHVA Tool - Data Entry'!P113 -> 0.1988304094 | Q109: ='CHVA Tool - Data Entry'!Q113 -> 60
A110: ='CHVA Tool - Data Entry'!A114 -> Steam Failure | B110: ='CHVA Tool - Data Entry'!B114 -> 2 | C110: ='CHVA Tool - Data Entry'!C114 -> 1 | D110: ='CHVA Tool - Data Entry'!D114 -> 2 | E110: ='CHVA Tool - Data Entry'!E114 -> 3 | F110: ='CHVA Tool - Data Entry'!F114 -> 1 | G110: ='CHVA Tool - Data Entry'!G114 -> 1 | H110: ='CHVA Tool - Data Entry'!H114 -> 2 | I110: ='CHVA Tool - Data Entry'!I114 -> 1 | J110: ='CHVA Tool - Data Entry'!J114 -> 2 | K110: ='CHVA Tool - Data Entry'!K114 -> 3 | L110: ='CHVA Tool - Data Entry'!L114 -> 1 | M110: ='CHVA Tool - Data Entry'!M114 -> 2 | N110: ='CHVA Tool - Data Entry'!N114 -> 2 | O110: ='CHVA Tool - Data Entry'!O114 -> 0.3976608187 | P110: ='CHVA Tool - Data Entry'!P114 -> 0.1988304094 | Q110: ='CHVA Tool - Data Entry'!Q114 -> 60
A111: ='CHVA Tool - Data Entry'!A115 -> Structural Damage | B111: ='CHVA Tool - Data Entry'!B115 -> 2 | C111: ='CHVA Tool - Data Entry'!C115 -> 1 | D111: ='CHVA Tool - Data Entry'!D115 -> 2 | E111: ='CHVA Tool - Data Entry'!E115 -> 3 | F111: ='CHVA Tool - Data Entry'!F115 -> 1 | G111: ='CHVA Tool - Data Entry'!G115 -> 1 | H111: ='CHVA Tool - Data Entry'!H115 -> 2 | I111: ='CHVA Tool - Data Entry'!I115 -> 1 | J111: ='CHVA Tool - Data Entry'!J115 -> 2 | K111: ='CHVA Tool - Data Entry'!K115 -> 3 | L111: ='CHVA Tool - Data Entry'!L115 -> 1 | M111: ='CHVA Tool - Data Entry'!M115 -> 2 | N111: ='CHVA Tool - Data Entry'!N115 -> 2 | O111: ='CHVA Tool - Data Entry'!O115 -> 0.3976608187 | P111: ='CHVA Tool - Data Entry'!P115 -> 0.1988304094 | Q111: ='CHVA Tool - Data Entry'!Q115 -> 60
A112: ='CHVA Tool - Data Entry'!A116 -> Tube System Failure | B112: ='CHVA Tool - Data Entry'!B116 -> 2 | C112: ='CHVA Tool - Data Entry'!C116 -> 1 | D112: ='CHVA Tool - Data Entry'!D116 -> 2 | E112: ='CHVA Tool - Data Entry'!E116 -> 3 | F112: ='CHVA Tool - Data Entry'!F116 -> 1 | G112: ='CHVA Tool - Data Entry'!G116 -> 1 | H112: ='CHVA Tool - Data Entry'!H116 -> 2 | I112: ='CHVA Tool - Data Entry'!I116 -> 1 | J112: ='CHVA Tool - Data Entry'!J116 -> 2 | K112: ='CHVA Tool - Data Entry'!K116 -> 3 | L112: ='CHVA Tool - Data Entry'!L116 -> 1 | M112: ='CHVA Tool - Data Entry'!M116 -> 2 | N112: ='CHVA Tool - Data Entry'!N116 -> 2 | O112: ='CHVA Tool - Data Entry'!O116 -> 0.3976608187 | P112: ='CHVA Tool - Data Entry'!P116 -> 0.1988304094 | Q112: ='CHVA Tool - Data Entry'!Q116 -> 60
A113: ='CHVA Tool - Data Entry'!A117 -> 0 | B113: ='CHVA Tool - Data Entry'!B117 -> 0 | C113: ='CHVA Tool - Data Entry'!C117 -> 0 | D113: ='CHVA Tool - Data Entry'!D117 -> 0 | E113: ='CHVA Tool - Data Entry'!E117 -> 0 | F113: ='CHVA Tool - Data Entry'!F117 -> 0 | G113: ='CHVA Tool - Data Entry'!G117 -> 0 | H113: ='CHVA Tool - Data Entry'!H117 -> 0 | I113: ='CHVA Tool - Data Entry'!I117 -> 0 | J113: ='CHVA Tool - Data Entry'!J117 -> 0 | K113: ='CHVA Tool - Data Entry'!K117 -> 0 | L113: ='CHVA Tool - Data Entry'!L117 -> 0 | M113: ='CHVA Tool - Data Entry'!M117 -> 0 | N113: ='CHVA Tool - Data Entry'!N117 -> 0 | O113: ='CHVA Tool - Data Entry'!O117 -> 0 | P113: ='CHVA Tool - Data Entry'!P117 -> 0 | Q113: ='CHVA Tool - Data Entry'!Q117 -> 0
A114: ='CHVA Tool - Data Entry'!A118 -> 0 | B114: ='CHVA Tool - Data Entry'!B118 -> 0 | C114: ='CHVA Tool - Data Entry'!C118 -> 0 | D114: ='CHVA Tool - Data Entry'!D118 -> 0 | E114: ='CHVA Tool - Data Entry'!E118 -> 0 | F114: ='CHVA Tool - Data Entry'!F118 -> 0 | G114: ='CHVA Tool - Data Entry'!G118 -> 0 | H114: ='CHVA Tool - Data Entry'!H118 -> 0 | I114: ='CHVA Tool - Data Entry'!I118 -> 0 | J114: ='CHVA Tool - Data Entry'!J118 -> 0 | K114: ='CHVA Tool - Data Entry'!K118 -> 0 | L114: ='CHVA Tool - Data Entry'!L118 -> 0 | M114: ='CHVA Tool - Data Entry'!M118 -> 0 | N114: ='CHVA Tool - Data Entry'!N118 -> 0 | O114: ='CHVA Tool - Data Entry'!O118 -> 0 | P114: ='CHVA Tool - Data Entry'!P118 -> 0 | Q114: ='CHVA Tool - Data Entry'!Q118 -> 0
A115: ='CHVA Tool - Data Entry'!A119 -> Average: | B115: ='CHVA Tool - Data Entry'!B119 -> 2.083333333 | C115: ='CHVA Tool - Data Entry'!C119 -> 1.333333333 | D115: ='CHVA Tool - Data Entry'!D119 -> 2 | E115: ='CHVA Tool - Data Entry'!E119 -> 3 | F115: ='CHVA Tool - Data Entry'!F119 -> 1 | G115: ='CHVA Tool - Data Entry'!G119 -> 1 | H115: ='CHVA Tool - Data Entry'!H119 -> 2 | I115: ='CHVA Tool - Data Entry'!I119 -> 1 | J115: ='CHVA Tool - Data Entry'!J119 -> 2 | K115: ='CHVA Tool - Data Entry'!K119 -> 3 | L115: ='CHVA Tool - Data Entry'!L119 -> 1 | M115: ='CHVA Tool - Data Entry'!M119 -> 2 | N115: ='CHVA Tool - Data Entry'!N119 -> 2 | O115: ='CHVA Tool - Data Entry'!O119 -> 0 | P115: ='CHVA Tool - Data Entry'!P119 -> 0 | Q115: ='CHVA Tool - Data Entry'!Q119 -> 0
A116: ='CHVA Tool - Data Entry'!A120 -> Geographic Events | B116: ='CHVA Tool - Data Entry'!B120 -> 0 | C116: ='CHVA Tool - Data Entry'!C120 -> 0 | D116: ='CHVA Tool - Data Entry'!D120 -> 0 | E116: ='CHVA Tool - Data Entry'!E120 -> 0 | F116: ='CHVA Tool - Data Entry'!F120 -> 0 | G116: ='CHVA Tool - Data Entry'!G120 -> 0 | H116: ='CHVA Tool - Data Entry'!H120 -> 0 | I116: ='CHVA Tool - Data Entry'!I120 -> 0 | J116: ='CHVA Tool - Data Entry'!J120 -> 0 | K116: ='CHVA Tool - Data Entry'!K120 -> 0 | L116: ='CHVA Tool - Data Entry'!L120 -> 0 | M116: ='CHVA Tool - Data Entry'!M120 -> 0 | N116: ='CHVA Tool - Data Entry'!N120 -> 0 | O116: ='CHVA Tool - Data Entry'!O120 -> 0 | P116: ='CHVA Tool - Data Entry'!P120 -> 0 | Q116: ='CHVA Tool - Data Entry'!Q120 -> 0
A117: ='CHVA Tool - Data Entry'!A121 -> Proximity to nuclear power plants | B117: ='CHVA Tool - Data Entry'!B121 -> 3 | C117: ='CHVA Tool - Data Entry'!C121 -> 3 | D117: ='CHVA Tool - Data Entry'!D121 -> 2 | E117: ='CHVA Tool - Data Entry'!E121 -> 2 | F117: ='CHVA Tool - Data Entry'!F121 -> 2 | G117: ='CHVA Tool - Data Entry'!G121 -> 3 | H117: ='CHVA Tool - Data Entry'!H121 -> 2 | I117: ='CHVA Tool - Data Entry'!I121 -> 2 | J117: ='CHVA Tool - Data Entry'!J121 -> 2 | K117: ='CHVA Tool - Data Entry'!K121 -> 1 | L117: ='CHVA Tool - Data Entry'!L121 -> 1 | M117: ='CHVA Tool - Data Entry'!M121 -> 2 | N117: ='CHVA Tool - Data Entry'!N121 -> 2 | O117: ='CHVA Tool - Data Entry'!O121 -> 0.6315789474 | P117: ='CHVA Tool - Data Entry'!P121 -> 0.6315789474 | Q117: ='CHVA Tool - Data Entry'!Q121 -> 126
A118: ='CHVA Tool - Data Entry'!A122 -> Proximity to Bridges | B118: ='CHVA Tool - Data Entry'!B122 -> 3 | C118: ='CHVA Tool - Data Entry'!C122 -> 3 | D118: ='CHVA Tool - Data Entry'!D122 -> 2 | E118: ='CHVA Tool - Data Entry'!E122 -> 2 | F118: ='CHVA Tool - Data Entry'!F122 -> 2 | G118: ='CHVA Tool - Data Entry'!G122 -> 3 | H118: ='CHVA Tool - Data Entry'!H122 -> 2 | I118: ='CHVA Tool - Data Entry'!I122 -> 2 | J118: ='CHVA Tool - Data Entry'!J122 -> 2 | K118: ='CHVA Tool - Data Entry'!K122 -> 1 | L118: ='CHVA Tool - Data Entry'!L122 -> 1 | M118: ='CHVA Tool - Data Entry'!M122 -> 2 | N118: ='CHVA Tool - Data Entry'!N122 -> 2 | O118: ='CHVA Tool - Data Entry'!O122 -> 0.6315789474 | P118: ='CHVA Tool - Data Entry'!P122 -> 0.6315789474 | Q118: ='CHVA Tool - Data Entry'!Q122 -> 126
A119: ='CHVA Tool - Data Entry'!A123 -> Proximity to bus terminals | B119: ='CHVA Tool - Data Entry'!B123 -> 2 | C119: ='CHVA Tool - Data Entry'!C123 -> 2 | D119: ='CHVA Tool - Data Entry'!D123 -> 2 | E119: ='CHVA Tool - Data Entry'!E123 -> 2 | F119: ='CHVA Tool - Data Entry'!F123 -> 2 | G119: ='CHVA Tool - Data Entry'!G123 -> 3 | H119: ='CHVA Tool - Data Entry'!H123 -> 2 | I119: ='CHVA Tool - Data Entry'!I123 -> 2 | J119: ='CHVA Tool - Data Entry'!J123 -> 2 | K119: ='CHVA Tool - Data Entry'!K123 -> 1 | L119: ='CHVA Tool - Data Entry'!L123 -> 1 | M119: ='CHVA Tool - Data Entry'!M123 -> 2 | N119: ='CHVA Tool - Data Entry'!N123 -> 2 | O119: ='CHVA Tool - Data Entry'!O123 -> 0.4210526316 | P119: ='CHVA Tool - Data Entry'!P123 -> 0.4210526316 | Q119: ='CHVA Tool - Data Entry'!Q123 -> 84
A120: ='CHVA Tool - Data Entry'!A124 -> Proximity to Civic/Sports Events | B120: ='CHVA Tool - Data Entry'!B124 -> 2 | C120: ='CHVA Tool - Data Entry'!C124 -> 2 | D120: ='CHVA Tool - Data Entry'!D124 -> 2 | E120: ='CHVA Tool - Data Entry'!E124 -> 2 | F120: ='CHVA Tool - Data Entry'!F124 -> 2 | G120: ='CHVA Tool - Data Entry'!G124 -> 3 | H120: ='CHVA Tool - Data Entry'!H124 -> 2 | I120: ='CHVA Tool - Data Entry'!I124 -> 2 | J120: ='CHVA Tool - Data Entry'!J124 -> 2 | K120: ='CHVA Tool - Data Entry'!K124 -> 1 | L120: ='CHVA Tool - Data Entry'!L124 -> 1 | M120: ='CHVA Tool - Data Entry'!M124 -> 2 | N120: ='CHVA Tool - Data Entry'!N124 -> 2 | O120: ='CHVA Tool - Data Entry'!O124 -> 0.4210526316 | P120: ='CHVA Tool - Data Entry'!P124 -> 0.4210526316 | Q120: ='CHVA Tool - Data Entry'!Q124 -> 84
A121: ='CHVA Tool - Data Entry'!A125 -> Proximity to companies that produce, store, use, or transport hazardous materials | B121: ='CHVA Tool - Data Entry'!B125 -> 2 | C121: ='CHVA Tool - Data Entry'!C125 -> 2 | D121: ='CHVA Tool - Data Entry'!D125 -> 2 | E121: ='CHVA Tool - Data Entry'!E125 -> 2 | F121: ='CHVA Tool - Data Entry'!F125 -> 2 | G121: ='CHVA Tool - Data Entry'!G125 -> 3 | H121: ='CHVA Tool - Data Entry'!H125 -> 2 | I121: ='CHVA Tool - Data Entry'!I125 -> 2 | J121: ='CHVA Tool - Data Entry'!J125 -> 2 | K121: ='CHVA Tool - Data Entry'!K125 -> 1 | L121: ='CHVA Tool - Data Entry'!L125 -> 1 | M121: ='CHVA Tool - Data Entry'!M125 -> 2 | N121: ='CHVA Tool - Data Entry'!N125 -> 2 | O121: ='CHVA Tool - Data Entry'!O125 -> 0.4210526316 | P121: ='CHVA Tool - Data Entry'!P125 -> 0.4210526316 | Q121: ='CHVA Tool - Data Entry'!Q125 -> 84
A122: ='CHVA Tool - Data Entry'!A126 -> Proximity to Federal buildings | B122: ='CHVA Tool - Data Entry'!B126 -> 2 | C122: ='CHVA Tool - Data Entry'!C126 -> 2 | D122: ='CHVA Tool - Data Entry'!D126 -> 2 | E122: ='CHVA Tool - Data Entry'!E126 -> 2 | F122: ='CHVA Tool - Data Entry'!F126 -> 2 | G122: ='CHVA Tool - Data Entry'!G126 -> 3 | H122: ='CHVA Tool - Data Entry'!H126 -> 2 | I122: ='CHVA Tool - Data Entry'!I126 -> 2 | J122: ='CHVA Tool - Data Entry'!J126 -> 2 | K122: ='CHVA Tool - Data Entry'!K126 -> 1 | L122: ='CHVA Tool - Data Entry'!L126 -> 1 | M122: ='CHVA Tool - Data Entry'!M126 -> 2 | N122: ='CHVA Tool - Data Entry'!N126 -> 2 | O122: ='CHVA Tool - Data Entry'!O126 -> 0.4210526316 | P122: ='CHVA Tool - Data Entry'!P126 -> 0.4210526316 | Q122: ='CHVA Tool - Data Entry'!Q126 -> 84
A123: ='CHVA Tool - Data Entry'!A127 -> Proximity to Festivals | B123: ='CHVA Tool - Data Entry'!B127 -> 2 | C123: ='CHVA Tool - Data Entry'!C127 -> 2 | D123: ='CHVA Tool - Data Entry'!D127 -> 2 | E123: ='CHVA Tool - Data Entry'!E127 -> 2 | F123: ='CHVA Tool - Data Entry'!F127 -> 2 | G123: ='CHVA Tool - Data Entry'!G127 -> 3 | H123: ='CHVA Tool - Data Entry'!H127 -> 2 | I123: ='CHVA Tool - Data Entry'!I127 -> 2 | J123: ='CHVA Tool - Data Entry'!J127 -> 2 | K123: ='CHVA Tool - Data Entry'!K127 -> 1 | L123: ='CHVA Tool - Data Entry'!L127 -> 1 | M123: ='CHVA Tool - Data Entry'!M127 -> 2 | N123: ='CHVA Tool - Data Entry'!N127 -> 2 | O123: ='CHVA Tool - Data Entry'!O127 -> 0.4210526316 | P123: ='CHVA Tool - Data Entry'!P127 -> 0.4210526316 | Q123: ='CHVA Tool - Data Entry'!Q127 -> 84
A124: ='CHVA Tool - Data Entry'!A128 -> Proximity to flood plains, faults, and dams | B124: ='CHVA Tool - Data Entry'!B128 -> 2 | C124: ='CHVA Tool - Data Entry'!C128 -> 2 | D124: ='CHVA Tool - Data Entry'!D128 -> 2 | E124: ='CHVA Tool - Data Entry'!E128 -> 2 | F124: ='CHVA Tool - Data Entry'!F128 -> 2 | G124: ='CHVA Tool - Data Entry'!G128 -> 3 | H124: ='CHVA Tool - Data Entry'!H128 -> 2 | I124: ='CHVA Tool - Data Entry'!I128 -> 2 | J124: ='CHVA Tool - Data Entry'!J128 -> 2 | K124: ='CHVA Tool - Data Entry'!K128 -> 1 | L124: ='CHVA Tool - Data Entry'!L128 -> 1 | M124: ='CHVA Tool - Data Entry'!M128 -> 2 | N124: ='CHVA Tool - Data Entry'!N128 -> 2 | O124: ='CHVA Tool - Data Entry'!O128 -> 0.4210526316 | P124: ='CHVA Tool - Data Entry'!P128 -> 0.4210526316 | Q124: ='CHVA Tool - Data Entry'!Q128 -> 84
A125: ='CHVA Tool - Data Entry'!A129 -> Proximity to local schools and universities | B125: ='CHVA Tool - Data Entry'!B129 -> 2 | C125: ='CHVA Tool - Data Entry'!C129 -> 2 | D125: ='CHVA Tool - Data Entry'!D129 -> 2 | E125: ='CHVA Tool - Data Entry'!E129 -> 2 | F125: ='CHVA Tool - Data Entry'!F129 -> 2 | G125: ='CHVA Tool - Data Entry'!G129 -> 3 | H125: ='CHVA Tool - Data Entry'!H129 -> 2 | I125: ='CHVA Tool - Data Entry'!I129 -> 2 | J125: ='CHVA Tool - Data Entry'!J129 -> 2 | K125: ='CHVA Tool - Data Entry'!K129 -> 1 | L125: ='CHVA Tool - Data Entry'!L129 -> 1 | M125: ='CHVA Tool - Data Entry'!M129 -> 2 | N125: ='CHVA Tool - Data Entry'!N129 -> 2 | O125: ='CHVA Tool - Data Entry'!O129 -> 0.4210526316 | P125: ='CHVA Tool - Data Entry'!P129 -> 0.4210526316 | Q125: ='CHVA Tool - Data Entry'!Q129 -> 84
A126: ='CHVA Tool - Data Entry'!A130 -> Proximity to major trans. routes and airports | B126: ='CHVA Tool - Data Entry'!B130 -> 2 | C126: ='CHVA Tool - Data Entry'!C130 -> 2 | D126: ='CHVA Tool - Data Entry'!D130 -> 2 | E126: ='CHVA Tool - Data Entry'!E130 -> 2 | F126: ='CHVA Tool - Data Entry'!F130 -> 2 | G126: ='CHVA Tool - Data Entry'!G130 -> 3 | H126: ='CHVA Tool - Data Entry'!H130 -> 2 | I126: ='CHVA Tool - Data Entry'!I130 -> 2 | J126: ='CHVA Tool - Data Entry'!J130 -> 2 | K126: ='CHVA Tool - Data Entry'!K130 -> 1 | L126: ='CHVA Tool - Data Entry'!L130 -> 1 | M126: ='CHVA Tool - Data Entry'!M130 -> 2 | N126: ='CHVA Tool - Data Entry'!N130 -> 2 | O126: ='CHVA Tool - Data Entry'!O130 -> 0.4210526316 | P126: ='CHVA Tool - Data Entry'!P130 -> 0.4210526316 | Q126: ='CHVA Tool - Data Entry'!Q130 -> 84
A127: ='CHVA Tool - Data Entry'!A131 -> Proximity to Parks | B127: ='CHVA Tool - Data Entry'!B131 -> 2 | C127: ='CHVA Tool - Data Entry'!C131 -> 2 | D127: ='CHVA Tool - Data Entry'!D131 -> 2 | E127: ='CHVA Tool - Data Entry'!E131 -> 2 | F127: ='CHVA Tool - Data Entry'!F131 -> 2 | G127: ='CHVA Tool - Data Entry'!G131 -> 3 | H127: ='CHVA Tool - Data Entry'!H131 -> 2 | I127: ='CHVA Tool - Data Entry'!I131 -> 2 | J127: ='CHVA Tool - Data Entry'!J131 -> 2 | K127: ='CHVA Tool - Data Entry'!K131 -> 1 | L127: ='CHVA Tool - Data Entry'!L131 -> 1 | M127: ='CHVA Tool - Data Entry'!M131 -> 2 | N127: ='CHVA Tool - Data Entry'!N131 -> 2 | O127: ='CHVA Tool - Data Entry'!O131 -> 0.4210526316 | P127: ='CHVA Tool - Data Entry'!P131 -> 0.4210526316 | Q127: ='CHVA Tool - Data Entry'!Q131 -> 84
A128: ='CHVA Tool - Data Entry'!A132 -> Proximity to train stations | B128: ='CHVA Tool - Data Entry'!B132 -> 2 | C128: ='CHVA Tool - Data Entry'!C132 -> 2 | D128: ='CHVA Tool - Data Entry'!D132 -> 2 | E128: ='CHVA Tool - Data Entry'!E132 -> 2 | F128: ='CHVA Tool - Data Entry'!F132 -> 2 | G128: ='CHVA Tool - Data Entry'!G132 -> 3 | H128: ='CHVA Tool - Data Entry'!H132 -> 2 | I128: ='CHVA Tool - Data Entry'!I132 -> 2 | J128: ='CHVA Tool - Data Entry'!J132 -> 2 | K128: ='CHVA Tool - Data Entry'!K132 -> 1 | L128: ='CHVA Tool - Data Entry'!L132 -> 1 | M128: ='CHVA Tool - Data Entry'!M132 -> 2 | N128: ='CHVA Tool - Data Entry'!N132 -> 2 | O128: ='CHVA Tool - Data Entry'!O132 -> 0.4210526316 | P128: ='CHVA Tool - Data Entry'!P132 -> 0.4210526316 | Q128: ='CHVA Tool - Data Entry'!Q132 -> 84
A129: ='CHVA Tool - Data Entry'!A133 -> 0 | B129: ='CHVA Tool - Data Entry'!B133 -> 0 | C129: ='CHVA Tool - Data Entry'!C133 -> 0 | D129: ='CHVA Tool - Data Entry'!D133 -> 0 | E129: ='CHVA Tool - Data Entry'!E133 -> 0 | F129: ='CHVA Tool - Data Entry'!F133 -> 0 | G129: ='CHVA Tool - Data Entry'!G133 -> 0 | H129: ='CHVA Tool - Data Entry'!H133 -> 0 | I129: ='CHVA Tool - Data Entry'!I133 -> 0 | J129: ='CHVA Tool - Data Entry'!J133 -> 0 | K129: ='CHVA Tool - Data Entry'!K133 -> 0 | L129: ='CHVA Tool - Data Entry'!L133 -> 0 | M129: ='CHVA Tool - Data Entry'!M133 -> 0 | N129: ='CHVA Tool - Data Entry'!N133 -> 0 | O129: ='CHVA Tool - Data Entry'!O133 -> 0 | P129: ='CHVA Tool - Data Entry'!P133 -> 0 | Q129: ='CHVA Tool - Data Entry'!Q133 -> 0
A130: ='CHVA Tool - Data Entry'!A134 -> 0 | B130: ='CHVA Tool - Data Entry'!B134 -> 0 | C130: ='CHVA Tool - Data Entry'!C134 -> 0 | D130: ='CHVA Tool - Data Entry'!D134 -> 0 | E130: ='CHVA Tool - Data Entry'!E134 -> 0 | F130: ='CHVA Tool - Data Entry'!F134 -> 0 | G130: ='CHVA Tool - Data Entry'!G134 -> 0 | H130: ='CHVA Tool - Data Entry'!H134 -> 0 | I130: ='CHVA Tool - Data Entry'!I134 -> 0 | J130: ='CHVA Tool - Data Entry'!J134 -> 0 | K130: ='CHVA Tool - Data Entry'!K134 -> 0 | L130: ='CHVA Tool - Data Entry'!L134 -> 0 | M130: ='CHVA Tool - Data Entry'!M134 -> 0 | N130: ='CHVA Tool - Data Entry'!N134 -> 0 | O130: ='CHVA Tool - Data Entry'!O134 -> 0 | P130: ='CHVA Tool - Data Entry'!P134 -> 0 | Q130: ='CHVA Tool - Data Entry'!Q134 -> 0
A131: ='CHVA Tool - Data Entry'!A135 -> Average: | B131: ='CHVA Tool - Data Entry'!B135 -> 2.166666667 | C131: ='CHVA Tool - Data Entry'!C135 -> 2.166666667 | D131: ='CHVA Tool - Data Entry'!D135 -> 2 | E131: ='CHVA Tool - Data Entry'!E135 -> 2 | F131: ='CHVA Tool - Data Entry'!F135 -> 2 | G131: ='CHVA Tool - Data Entry'!G135 -> 3 | H131: ='CHVA Tool - Data Entry'!H135 -> 2 | I131: ='CHVA Tool - Data Entry'!I135 -> 2 | J131: ='CHVA Tool - Data Entry'!J135 -> 2 | K131: ='CHVA Tool - Data Entry'!K135 -> 1 | L131: ='CHVA Tool - Data Entry'!L135 -> 1 | M131: ='CHVA Tool - Data Entry'!M135 -> 2 | N131: ='CHVA Tool - Data Entry'!N135 -> 2 | O131: ='CHVA Tool - Data Entry'!O135 -> 0 | P131: ='CHVA Tool - Data Entry'!P135 -> 0 | Q131: ='CHVA Tool - Data Entry'!Q135 -> 0
A132: ='CHVA Tool - Data Entry'!A136 -> Physical Events | B132: ='CHVA Tool - Data Entry'!B136 -> 0 | C132: ='CHVA Tool - Data Entry'!C136 -> 0 | D132: ='CHVA Tool - Data Entry'!D136 -> 0 | E132: ='CHVA Tool - Data Entry'!E136 -> 0 | F132: ='CHVA Tool - Data Entry'!F136 -> 0 | G132: ='CHVA Tool - Data Entry'!G136 -> 0 | H132: ='CHVA Tool - Data Entry'!H136 -> 0 | I132: ='CHVA Tool - Data Entry'!I136 -> 0 | J132: ='CHVA Tool - Data Entry'!J136 -> 0 | K132: ='CHVA Tool - Data Entry'!K136 -> 0 | L132: ='CHVA Tool - Data Entry'!L136 -> 0 | M132: ='CHVA Tool - Data Entry'!M136 -> 0 | N132: ='CHVA Tool - Data Entry'!N136 -> 0 | O132: ='CHVA Tool - Data Entry'!O136 -> 0 | P132: ='CHVA Tool - Data Entry'!P136 -> 0 | Q132: ='CHVA Tool - Data Entry'!Q136 -> 0
A133: ='CHVA Tool - Data Entry'!A137 -> Asbestos release during const. or renovation | B133: ='CHVA Tool - Data Entry'!B137 -> 3 | C133: ='CHVA Tool - Data Entry'!C137 -> 3 | D133: ='CHVA Tool - Data Entry'!D137 -> 3 | E133: ='CHVA Tool - Data Entry'!E137 -> 1 | F133: ='CHVA Tool - Data Entry'!F137 -> 2 | G133: ='CHVA Tool - Data Entry'!G137 -> 3 | H133: ='CHVA Tool - Data Entry'!H137 -> 1 | I133: ='CHVA Tool - Data Entry'!I137 -> 1 | J133: ='CHVA Tool - Data Entry'!J137 -> 2 | K133: ='CHVA Tool - Data Entry'!K137 -> 1 | L133: ='CHVA Tool - Data Entry'!L137 -> 2 | M133: ='CHVA Tool - Data Entry'!M137 -> 2 | N133: ='CHVA Tool - Data Entry'!N137 -> 2 | O133: ='CHVA Tool - Data Entry'!O137 -> 0.5964912281 | P133: ='CHVA Tool - Data Entry'!P137 -> 0.5964912281 | Q133: ='CHVA Tool - Data Entry'!Q137 -> 120
A134: ='CHVA Tool - Data Entry'!A138 -> Building/parking structure failure | B134: ='CHVA Tool - Data Entry'!B138 -> 3 | C134: ='CHVA Tool - Data Entry'!C138 -> 3 | D134: ='CHVA Tool - Data Entry'!D138 -> 3 | E134: ='CHVA Tool - Data Entry'!E138 -> 1 | F134: ='CHVA Tool - Data Entry'!F138 -> 2 | G134: ='CHVA Tool - Data Entry'!G138 -> 3 | H134: ='CHVA Tool - Data Entry'!H138 -> 1 | I134: ='CHVA Tool - Data Entry'!I138 -> 1 | J134: ='CHVA Tool - Data Entry'!J138 -> 2 | K134: ='CHVA Tool - Data Entry'!K138 -> 1 | L134: ='CHVA Tool - Data Entry'!L138 -> 2 | M134: ='CHVA Tool - Data Entry'!M138 -> 2 | N134: ='CHVA Tool - Data Entry'!N138 -> 2 | O134: ='CHVA Tool - Data Entry'!O138 -> 0.5964912281 | P134: ='CHVA Tool - Data Entry'!P138 -> 0.5964912281 | Q134: ='CHVA Tool - Data Entry'!Q138 -> 120
A135: ='CHVA Tool - Data Entry'!A139 -> Layout of the equipment | B135: ='CHVA Tool - Data Entry'!B139 -> 2 | C135: ='CHVA Tool - Data Entry'!C139 -> 2 | D135: ='CHVA Tool - Data Entry'!D139 -> 3 | E135: ='CHVA Tool - Data Entry'!E139 -> 1 | F135: ='CHVA Tool - Data Entry'!F139 -> 2 | G135: ='CHVA Tool - Data Entry'!G139 -> 3 | H135: ='CHVA Tool - Data Entry'!H139 -> 1 | I135: ='CHVA Tool - Data Entry'!I139 -> 1 | J135: ='CHVA Tool - Data Entry'!J139 -> 2 | K135: ='CHVA Tool - Data Entry'!K139 -> 1 | L135: ='CHVA Tool - Data Entry'!L139 -> 2 | M135: ='CHVA Tool - Data Entry'!M139 -> 2 | N135: ='CHVA Tool - Data Entry'!N139 -> 2 | O135: ='CHVA Tool - Data Entry'!O139 -> 0.3976608187 | P135: ='CHVA Tool - Data Entry'!P139 -> 0.3976608187 | Q135: ='CHVA Tool - Data Entry'!Q139 -> 80
A136: ='CHVA Tool - Data Entry'!A140 -> The physical construction of the facility | B136: ='CHVA Tool - Data Entry'!B140 -> 2 | C136: ='CHVA Tool - Data Entry'!C140 -> 2 | D136: ='CHVA Tool - Data Entry'!D140 -> 3 | E136: ='CHVA Tool - Data Entry'!E140 -> 1 | F136: ='CHVA Tool - Data Entry'!F140 -> 2 | G136: ='CHVA Tool - Data Entry'!G140 -> 3 | H136: ='CHVA Tool - Data Entry'!H140 -> 1 | I136: ='CHVA Tool - Data Entry'!I140 -> 1 | J136: ='CHVA Tool - Data Entry'!J140 -> 2 | K136: ='CHVA Tool - Data Entry'!K140 -> 1 | L136: ='CHVA Tool - Data Entry'!L140 -> 2 | M136: ='CHVA Tool - Data Entry'!M140 -> 2 | N136: ='CHVA Tool - Data Entry'!N140 -> 2 | O136: ='CHVA Tool - Data Entry'!O140 -> 0.3976608187 | P136: ='CHVA Tool - Data Entry'!P140 -> 0.3976608187 | Q136: ='CHVA Tool - Data Entry'!Q140 -> 80
A137: ='CHVA Tool - Data Entry'!A141 -> Evacuation routes and exits | B137: ='CHVA Tool - Data Entry'!B141 -> 2 | C137: ='CHVA Tool - Data Entry'!C141 -> 2 | D137: ='CHVA Tool - Data Entry'!D141 -> 3 | E137: ='CHVA Tool - Data Entry'!E141 -> 1 | F137: ='CHVA Tool - Data Entry'!F141 -> 2 | G137: ='CHVA Tool - Data Entry'!G141 -> 3 | H137: ='CHVA Tool - Data Entry'!H141 -> 1 | I137: ='CHVA Tool - Data Entry'!I141 -> 1 | J137: ='CHVA Tool - Data Entry'!J141 -> 2 | K137: ='CHVA Tool - Data Entry'!K141 -> 1 | L137: ='CHVA Tool - Data Entry'!L141 -> 2 | M137: ='CHVA Tool - Data Entry'!M141 -> 2 | N137: ='CHVA Tool - Data Entry'!N141 -> 2 | O137: ='CHVA Tool - Data Entry'!O141 -> 0.3976608187 | P137: ='CHVA Tool - Data Entry'!P141 -> 0.3976608187 | Q137: ='CHVA Tool - Data Entry'!Q141 -> 80
A138: ='CHVA Tool - Data Entry'!A142 -> Hazardous processes or byproducts | B138: ='CHVA Tool - Data Entry'!B142 -> 2 | C138: ='CHVA Tool - Data Entry'!C142 -> 2 | D138: ='CHVA Tool - Data Entry'!D142 -> 3 | E138: ='CHVA Tool - Data Entry'!E142 -> 1 | F138: ='CHVA Tool - Data Entry'!F142 -> 2 | G138: ='CHVA Tool - Data Entry'!G142 -> 3 | H138: ='CHVA Tool - Data Entry'!H142 -> 1 | I138: ='CHVA Tool - Data Entry'!I142 -> 1 | J138: ='CHVA Tool - Data Entry'!J142 -> 2 | K138: ='CHVA Tool - Data Entry'!K142 -> 1 | L138: ='CHVA Tool - Data Entry'!L142 -> 2 | M138: ='CHVA Tool - Data Entry'!M142 -> 2 | N138: ='CHVA Tool - Data Entry'!N142 -> 2 | O138: ='CHVA Tool - Data Entry'!O142 -> 0.3976608187 | P138: ='CHVA Tool - Data Entry'!P142 -> 0.3976608187 | Q138: ='CHVA Tool - Data Entry'!Q142 -> 80
A139: ='CHVA Tool - Data Entry'!A143 -> Proximity of shelter areas | B139: ='CHVA Tool - Data Entry'!B143 -> 2 | C139: ='CHVA Tool - Data Entry'!C143 -> 2 | D139: ='CHVA Tool - Data Entry'!D143 -> 3 | E139: ='CHVA Tool - Data Entry'!E143 -> 1 | F139: ='CHVA Tool - Data Entry'!F143 -> 2 | G139: ='CHVA Tool - Data Entry'!G143 -> 3 | H139: ='CHVA Tool - Data Entry'!H143 -> 1 | I139: ='CHVA Tool - Data Entry'!I143 -> 1 | J139: ='CHVA Tool - Data Entry'!J143 -> 2 | K139: ='CHVA Tool - Data Entry'!K143 -> 1 | L139: ='CHVA Tool - Data Entry'!L143 -> 2 | M139: ='CHVA Tool - Data Entry'!M143 -> 2 | N139: ='CHVA Tool - Data Entry'!N143 -> 2 | O139: ='CHVA Tool - Data Entry'!O143 -> 0.3976608187 | P139: ='CHVA Tool - Data Entry'!P143 -> 0.3976608187 | Q139: ='CHVA Tool - Data Entry'!Q143 -> 80
A140: ='CHVA Tool - Data Entry'!A144 -> Facilities for storing biohazardous wastes | B140: ='CHVA Tool - Data Entry'!B144 -> 2 | C140: ='CHVA Tool - Data Entry'!C144 -> 2 | D140: ='CHVA Tool - Data Entry'!D144 -> 3 | E140: ='CHVA Tool - Data Entry'!E144 -> 1 | F140: ='CHVA Tool - Data Entry'!F144 -> 2 | G140: ='CHVA Tool - Data Entry'!G144 -> 3 | H140: ='CHVA Tool - Data Entry'!H144 -> 1 | I140: ='CHVA Tool - Data Entry'!I144 -> 1 | J140: ='CHVA Tool - Data Entry'!J144 -> 2 | K140: ='CHVA Tool - Data Entry'!K144 -> 1 | L140: ='CHVA Tool - Data Entry'!L144 -> 2 | M140: ='CHVA Tool - Data Entry'!M144 -> 2 | N140: ='CHVA Tool - Data Entry'!N144 -> 2 | O140: ='CHVA Tool - Data Entry'!O144 -> 0.3976608187 | P140: ='CHVA Tool - Data Entry'!P144 -> 0.3976608187 | Q140: ='CHVA Tool - Data Entry'!Q144 -> 80
A141: ='CHVA Tool - Data Entry'!A145 -> Facilities for storing combustibles | B141: ='CHVA Tool - Data Entry'!B145 -> 2 | C141: ='CHVA Tool - Data Entry'!C145 -> 2 | D141: ='CHVA Tool - Data Entry'!D145 -> 3 | E141: ='CHVA Tool - Data Entry'!E145 -> 1 | F141: ='CHVA Tool - Data Entry'!F145 -> 2 | G141: ='CHVA Tool - Data Entry'!G145 -> 3 | H141: ='CHVA Tool - Data Entry'!H145 -> 1 | I141: ='CHVA Tool - Data Entry'!I145 -> 1 | J141: ='CHVA Tool - Data Entry'!J145 -> 2 | K141: ='CHVA Tool - Data Entry'!K145 -> 1 | L141: ='CHVA Tool - Data Entry'!L145 -> 2 | M141: ='CHVA Tool - Data Entry'!M145 -> 2 | N141: ='CHVA Tool - Data Entry'!N145 -> 2 | O141: ='CHVA Tool - Data Entry'!O145 -> 0.3976608187 | P141: ='CHVA Tool - Data Entry'!P145 -> 0.3976608187 | Q141: ='CHVA Tool - Data Entry'!Q145 -> 80
A142: ='CHVA Tool - Data Entry'!A146 -> Facilities for storing hazardous chemical waste | B142: ='CHVA Tool - Data Entry'!B146 -> 2 | C142: ='CHVA Tool - Data Entry'!C146 -> 2 | D142: ='CHVA Tool - Data Entry'!D146 -> 3 | E142: ='CHVA Tool - Data Entry'!E146 -> 1 | F142: ='CHVA Tool - Data Entry'!F146 -> 2 | G142: ='CHVA Tool - Data Entry'!G146 -> 3 | H142: ='CHVA Tool - Data Entry'!H146 -> 1 | I142: ='CHVA Tool - Data Entry'!I146 -> 1 | J142: ='CHVA Tool - Data Entry'!J146 -> 2 | K142: ='CHVA Tool - Data Entry'!K146 -> 1 | L142: ='CHVA Tool - Data Entry'!L146 -> 2 | M142: ='CHVA Tool - Data Entry'!M146 -> 2 | N142: ='CHVA Tool - Data Entry'!N146 -> 2 | O142: ='CHVA Tool - Data Entry'!O146 -> 0.3976608187 | P142: ='CHVA Tool - Data Entry'!P146 -> 0.3976608187 | Q142: ='CHVA Tool - Data Entry'!Q146 -> 80
A143: ='CHVA Tool - Data Entry'!A147 -> Lighting | B143: ='CHVA Tool - Data Entry'!B147 -> 2 | C143: ='CHVA Tool - Data Entry'!C147 -> 2 | D143: ='CHVA Tool - Data Entry'!D147 -> 3 | E143: ='CHVA Tool - Data Entry'!E147 -> 1 | F143: ='CHVA Tool - Data Entry'!F147 -> 2 | G143: ='CHVA Tool - Data Entry'!G147 -> 3 | H143: ='CHVA Tool - Data Entry'!H147 -> 1 | I143: ='CHVA Tool - Data Entry'!I147 -> 1 | J143: ='CHVA Tool - Data Entry'!J147 -> 2 | K143: ='CHVA Tool - Data Entry'!K147 -> 1 | L143: ='CHVA Tool - Data Entry'!L147 -> 2 | M143: ='CHVA Tool - Data Entry'!M147 -> 2 | N143: ='CHVA Tool - Data Entry'!N147 -> 2 | O143: ='CHVA Tool - Data Entry'!O147 -> 0.3976608187 | P143: ='CHVA Tool - Data Entry'!P147 -> 0.3976608187 | Q143: ='CHVA Tool - Data Entry'!Q147 -> 80
A144: ='CHVA Tool - Data Entry'!A148 -> 0 | B144: ='CHVA Tool - Data Entry'!B148 -> 0 | C144: ='CHVA Tool - Data Entry'!C148 -> 0 | D144: ='CHVA Tool - Data Entry'!D148 -> 0 | E144: ='CHVA Tool - Data Entry'!E148 -> 0 | F144: ='CHVA Tool - Data Entry'!F148 -> 0 | G144: ='CHVA Tool - Data Entry'!G148 -> 0 | H144: ='CHVA Tool - Data Entry'!H148 -> 0 | I144: ='CHVA Tool - Data Entry'!I148 -> 0 | J144: ='CHVA Tool - Data Entry'!J148 -> 0 | K144: ='CHVA Tool - Data Entry'!K148 -> 0 | L144: ='CHVA Tool - Data Entry'!L148 -> 0 | M144: ='CHVA Tool - Data Entry'!M148 -> 0 | N144: ='CHVA Tool - Data Entry'!N148 -> 0 | O144: ='CHVA Tool - Data Entry'!O148 -> 0 | P144: ='CHVA Tool - Data Entry'!P148 -> 0 | Q144: ='CHVA Tool - Data Entry'!Q148 -> 0
A145: ='CHVA Tool - Data Entry'!A149 -> 0 | B145: ='CHVA Tool - Data Entry'!B149 -> 0 | C145: ='CHVA Tool - Data Entry'!C149 -> 0 | D145: ='CHVA Tool - Data Entry'!D149 -> 0 | E145: ='CHVA Tool - Data Entry'!E149 -> 0 | F145: ='CHVA Tool - Data Entry'!F149 -> 0 | G145: ='CHVA Tool - Data Entry'!G149 -> 0 | H145: ='CHVA Tool - Data Entry'!H149 -> 0 | I145: ='CHVA Tool - Data Entry'!I149 -> 0 | J145: ='CHVA Tool - Data Entry'!J149 -> 0 | K145: ='CHVA Tool - Data Entry'!K149 -> 0 | L145: ='CHVA Tool - Data Entry'!L149 -> 0 | M145: ='CHVA Tool - Data Entry'!M149 -> 0 | N145: ='CHVA Tool - Data Entry'!N149 -> 0 | O145: ='CHVA Tool - Data Entry'!O149 -> 0 | P145: ='CHVA Tool - Data Entry'!P149 -> 0 | Q145: ='CHVA Tool - Data Entry'!Q149 -> 0
A146: ='CHVA Tool - Data Entry'!A150 -> Average: | B146: ='CHVA Tool - Data Entry'!B150 -> 2.181818182 | C146: ='CHVA Tool - Data Entry'!C150 -> 2.181818182 | D146: ='CHVA Tool - Data Entry'!D150 -> 3 | E146: ='CHVA Tool - Data Entry'!E150 -> 1 | F146: ='CHVA Tool - Data Entry'!F150 -> 2 | G146: ='CHVA Tool - Data Entry'!G150 -> 3 | H146: ='CHVA Tool - Data Entry'!H150 -> 1 | I146: ='CHVA Tool - Data Entry'!I150 -> 1 | J146: ='CHVA Tool - Data Entry'!J150 -> 2 | K146: ='CHVA Tool - Data Entry'!K150 -> 1 | L146: ='CHVA Tool - Data Entry'!L150 -> 2 | M146: ='CHVA Tool - Data Entry'!M150 -> 2 | N146: ='CHVA Tool - Data Entry'!N150 -> 2 | O146: ='CHVA Tool - Data Entry'!O150 -> 0 | P146: ='CHVA Tool - Data Entry'!P150 -> 0 | Q146: ='CHVA Tool - Data Entry'!Q150 -> 0
A147: ='CHVA Tool - Data Entry'!A151 -> Other Events | B147: ='CHVA Tool - Data Entry'!B151 -> 0 | C147: ='CHVA Tool - Data Entry'!C151 -> 0 | D147: ='CHVA Tool - Data Entry'!D151 -> 0 | E147: ='CHVA Tool - Data Entry'!E151 -> 0 | F147: ='CHVA Tool - Data Entry'!F151 -> 0 | G147: ='CHVA Tool - Data Entry'!G151 -> 0 | H147: ='CHVA Tool - Data Entry'!H151 -> 0 | I147: ='CHVA Tool - Data Entry'!I151 -> 0 | J147: ='CHVA Tool - Data Entry'!J151 -> 0 | K147: ='CHVA Tool - Data Entry'!K151 -> 0 | L147: ='CHVA Tool - Data Entry'!L151 -> 0 | M147: ='CHVA Tool - Data Entry'!M151 -> 0 | N147: ='CHVA Tool - Data Entry'!N151 -> 0 | O147: ='CHVA Tool - Data Entry'!O151 -> 0 | P147: ='CHVA Tool - Data Entry'!P151 -> 0 | Q147: ='CHVA Tool - Data Entry'!Q151 -> 0
A148: ='CHVA Tool - Data Entry'!A152 -> Airplane Crash | B148: ='CHVA Tool - Data Entry'!B152 -> 3 | C148: ='CHVA Tool - Data Entry'!C152 -> 3 | D148: ='CHVA Tool - Data Entry'!D152 -> 3 | E148: ='CHVA Tool - Data Entry'!E152 -> 3 | F148: ='CHVA Tool - Data Entry'!F152 -> 3 | G148: ='CHVA Tool - Data Entry'!G152 -> 2 | H148: ='CHVA Tool - Data Entry'!H152 -> 3 | I148: ='CHVA Tool - Data Entry'!I152 -> 1 | J148: ='CHVA Tool - Data Entry'!J152 -> 2 | K148: ='CHVA Tool - Data Entry'!K152 -> 1 | L148: ='CHVA Tool - Data Entry'!L152 -> 2 | M148: ='CHVA Tool - Data Entry'!M152 -> 2 | N148: ='CHVA Tool - Data Entry'!N152 -> 3 | O148: ='CHVA Tool - Data Entry'!O152 -> 0.7192982456 | P148: ='CHVA Tool - Data Entry'!P152 -> 0.7192982456 | Q148: ='CHVA Tool - Data Entry'!Q152 -> 150
A149: ='CHVA Tool - Data Entry'!A153 -> Evacuation | B149: ='CHVA Tool - Data Entry'!B153 -> 3 | C149: ='CHVA Tool - Data Entry'!C153 -> 3 | D149: ='CHVA Tool - Data Entry'!D153 -> 3 | E149: ='CHVA Tool - Data Entry'!E153 -> 3 | F149: ='CHVA Tool - Data Entry'!F153 -> 3 | G149: ='CHVA Tool - Data Entry'!G153 -> 2 | H149: ='CHVA Tool - Data Entry'!H153 -> 3 | I149: ='CHVA Tool - Data Entry'!I153 -> 1 | J149: ='CHVA Tool - Data Entry'!J153 -> 2 | K149: ='CHVA Tool - Data Entry'!K153 -> 1 | L149: ='CHVA Tool - Data Entry'!L153 -> 2 | M149: ='CHVA Tool - Data Entry'!M153 -> 2 | N149: ='CHVA Tool - Data Entry'!N153 -> 3 | O149: ='CHVA Tool - Data Entry'!O153 -> 0.7192982456 | P149: ='CHVA Tool - Data Entry'!P153 -> 0.7192982456 | Q149: ='CHVA Tool - Data Entry'!Q153 -> 150
A150: ='CHVA Tool - Data Entry'!A154 -> Helicopter Incident | B150: ='CHVA Tool - Data Entry'!B154 -> 2 | C150: ='CHVA Tool - Data Entry'!C154 -> 1 | D150: ='CHVA Tool - Data Entry'!D154 -> 3 | E150: ='CHVA Tool - Data Entry'!E154 -> 3 | F150: ='CHVA Tool - Data Entry'!F154 -> 3 | G150: ='CHVA Tool - Data Entry'!G154 -> 2 | H150: ='CHVA Tool - Data Entry'!H154 -> 3 | I150: ='CHVA Tool - Data Entry'!I154 -> 1 | J150: ='CHVA Tool - Data Entry'!J154 -> 2 | K150: ='CHVA Tool - Data Entry'!K154 -> 1 | L150: ='CHVA Tool - Data Entry'!L154 -> 2 | M150: ='CHVA Tool - Data Entry'!M154 -> 2 | N150: ='CHVA Tool - Data Entry'!N154 -> 3 | O150: ='CHVA Tool - Data Entry'!O154 -> 0.4795321637 | P150: ='CHVA Tool - Data Entry'!P154 -> 0.2397660819 | Q150: ='CHVA Tool - Data Entry'!Q154 -> 75
A151: ='CHVA Tool - Data Entry'!A155 -> Intentional Vehicular Incident | B151: ='CHVA Tool - Data Entry'!B155 -> 2 | C151: ='CHVA Tool - Data Entry'!C155 -> 1 | D151: ='CHVA Tool - Data Entry'!D155 -> 3 | E151: ='CHVA Tool - Data Entry'!E155 -> 3 | F151: ='CHVA Tool - Data Entry'!F155 -> 3 | G151: ='CHVA Tool - Data Entry'!G155 -> 2 | H151: ='CHVA Tool - Data Entry'!H155 -> 3 | I151: ='CHVA Tool - Data Entry'!I155 -> 1 | J151: ='CHVA Tool - Data Entry'!J155 -> 2 | K151: ='CHVA Tool - Data Entry'!K155 -> 1 | L151: ='CHVA Tool - Data Entry'!L155 -> 2 | M151: ='CHVA Tool - Data Entry'!M155 -> 2 | N151: ='CHVA Tool - Data Entry'!N155 -> 3 | O151: ='CHVA Tool - Data Entry'!O155 -> 0.4795321637 | P151: ='CHVA Tool - Data Entry'!P155 -> 0.2397660819 | Q151: ='CHVA Tool - Data Entry'!Q155 -> 75
A152: ='CHVA Tool - Data Entry'!A156 -> Isolation Capacity | B152: ='CHVA Tool - Data Entry'!B156 -> 2 | C152: ='CHVA Tool - Data Entry'!C156 -> 1 | D152: ='CHVA Tool - Data Entry'!D156 -> 3 | E152: ='CHVA Tool - Data Entry'!E156 -> 3 | F152: ='CHVA Tool - Data Entry'!F156 -> 3 | G152: ='CHVA Tool - Data Entry'!G156 -> 2 | H152: ='CHVA Tool - Data Entry'!H156 -> 3 | I152: ='CHVA Tool - Data Entry'!I156 -> 1 | J152: ='CHVA Tool - Data Entry'!J156 -> 2 | K152: ='CHVA Tool - Data Entry'!K156 -> 1 | L152: ='CHVA Tool - Data Entry'!L156 -> 2 | M152: ='CHVA Tool - Data Entry'!M156 -> 2 | N152: ='CHVA Tool - Data Entry'!N156 -> 3 | O152: ='CHVA Tool - Data Entry'!O156 -> 0.4795321637 | P152: ='CHVA Tool - Data Entry'!P156 -> 0.2397660819 | Q152: ='CHVA Tool - Data Entry'!Q156 -> 75
A153: ='CHVA Tool - Data Entry'!A157 -> Loss of Key Supplier | B153: ='CHVA Tool - Data Entry'!B157 -> 2 | C153: ='CHVA Tool - Data Entry'!C157 -> 2 | D153: ='CHVA Tool - Data Entry'!D157 -> 3 | E153: ='CHVA Tool - Data Entry'!E157 -> 3 | F153: ='CHVA Tool - Data Entry'!F157 -> 3 | G153: ='CHVA Tool - Data Entry'!G157 -> 2 | H153: ='CHVA Tool - Data Entry'!H157 -> 3 | I153: ='CHVA Tool - Data Entry'!I157 -> 1 | J153: ='CHVA Tool - Data Entry'!J157 -> 2 | K153: ='CHVA Tool - Data Entry'!K157 -> 1 | L153: ='CHVA Tool - Data Entry'!L157 -> 2 | M153: ='CHVA Tool - Data Entry'!M157 -> 2 | N153: ='CHVA Tool - Data Entry'!N157 -> 3 | O153: ='CHVA Tool - Data Entry'!O157 -> 0.4795321637 | P153: ='CHVA Tool - Data Entry'!P157 -> 0.4795321637 | Q153: ='CHVA Tool - Data Entry'!Q157 -> 100
A154: ='CHVA Tool - Data Entry'!A158 -> Supply Shortage | B154: ='CHVA Tool - Data Entry'!B158 -> 2 | C154: ='CHVA Tool - Data Entry'!C158 -> 2 | D154: ='CHVA Tool - Data Entry'!D158 -> 3 | E154: ='CHVA Tool - Data Entry'!E158 -> 3 | F154: ='CHVA Tool - Data Entry'!F158 -> 3 | G154: ='CHVA Tool - Data Entry'!G158 -> 2 | H154: ='CHVA Tool - Data Entry'!H158 -> 3 | I154: ='CHVA Tool - Data Entry'!I158 -> 1 | J154: ='CHVA Tool - Data Entry'!J158 -> 2 | K154: ='CHVA Tool - Data Entry'!K158 -> 1 | L154: ='CHVA Tool - Data Entry'!L158 -> 2 | M154: ='CHVA Tool - Data Entry'!M158 -> 2 | N154: ='CHVA Tool - Data Entry'!N158 -> 3 | O154: ='CHVA Tool - Data Entry'!O158 -> 0.4795321637 | P154: ='CHVA Tool - Data Entry'!P158 -> 0.4795321637 | Q154: ='CHVA Tool - Data Entry'!Q158 -> 100
A155: ='CHVA Tool - Data Entry'!A159 -> 0 | B155: ='CHVA Tool - Data Entry'!B159 -> 0 | C155: ='CHVA Tool - Data Entry'!C159 -> 0 | D155: ='CHVA Tool - Data Entry'!D159 -> 0 | E155: ='CHVA Tool - Data Entry'!E159 -> 0 | F155: ='CHVA Tool - Data Entry'!F159 -> 0 | G155: ='CHVA Tool - Data Entry'!G159 -> 0 | H155: ='CHVA Tool - Data Entry'!H159 -> 0 | I155: ='CHVA Tool - Data Entry'!I159 -> 0 | J155: ='CHVA Tool - Data Entry'!J159 -> 0 | K155: ='CHVA Tool - Data Entry'!K159 -> 0 | L155: ='CHVA Tool - Data Entry'!L159 -> 0 | M155: ='CHVA Tool - Data Entry'!M159 -> 0 | N155: ='CHVA Tool - Data Entry'!N159 -> 0 | O155: ='CHVA Tool - Data Entry'!O159 -> 0 | P155: ='CHVA Tool - Data Entry'!P159 -> 0 | Q155: ='CHVA Tool - Data Entry'!Q159 -> 0
A156: ='CHVA Tool - Data Entry'!A160 -> 0 | B156: ='CHVA Tool - Data Entry'!B160 -> 0 | C156: ='CHVA Tool - Data Entry'!C160 -> 0 | D156: ='CHVA Tool - Data Entry'!D160 -> 0 | E156: ='CHVA Tool - Data Entry'!E160 -> 0 | F156: ='CHVA Tool - Data Entry'!F160 -> 0 | G156: ='CHVA Tool - Data Entry'!G160 -> 0 | H156: ='CHVA Tool - Data Entry'!H160 -> 0 | I156: ='CHVA Tool - Data Entry'!I160 -> 0 | J156: ='CHVA Tool - Data Entry'!J160 -> 0 | K156: ='CHVA Tool - Data Entry'!K160 -> 0 | L156: ='CHVA Tool - Data Entry'!L160 -> 0 | M156: ='CHVA Tool - Data Entry'!M160 -> 0 | N156: ='CHVA Tool - Data Entry'!N160 -> 0 | O156: ='CHVA Tool - Data Entry'!O160 -> 0 | P156: ='CHVA Tool - Data Entry'!P160 -> 0 | Q156: ='CHVA Tool - Data Entry'!Q160 -> 0
A157: ='CHVA Tool - Data Entry'!A161 -> 0 | B157: ='CHVA Tool - Data Entry'!B161 -> 0 | C157: ='CHVA Tool - Data Entry'!C161 -> 0 | D157: ='CHVA Tool - Data Entry'!D161 -> 0 | E157: ='CHVA Tool - Data Entry'!E161 -> 0 | F157: ='CHVA Tool - Data Entry'!F161 -> 0 | G157: ='CHVA Tool - Data Entry'!G161 -> 0 | H157: ='CHVA Tool - Data Entry'!H161 -> 0 | I157: ='CHVA Tool - Data Entry'!I161 -> 0 | J157: ='CHVA Tool - Data Entry'!J161 -> 0 | K157: ='CHVA Tool - Data Entry'!K161 -> 0 | L157: ='CHVA Tool - Data Entry'!L161 -> 0 | M157: ='CHVA Tool - Data Entry'!M161 -> 0 | N157: ='CHVA Tool - Data Entry'!N161 -> 0 | O157: ='CHVA Tool - Data Entry'!O161 -> 0 | P157: ='CHVA Tool - Data Entry'!P161 -> 0 | Q157: ='CHVA Tool - Data Entry'!Q161 -> 0
A158: ='CHVA Tool - Data Entry'!A162 -> 0 | B158: ='CHVA Tool - Data Entry'!B162 -> 0 | C158: ='CHVA Tool - Data Entry'!C162 -> 0 | D158: ='CHVA Tool - Data Entry'!D162 -> 0 | E158: ='CHVA Tool - Data Entry'!E162 -> 0 | F158: ='CHVA Tool - Data Entry'!F162 -> 0 | G158: ='CHVA Tool - Data Entry'!G162 -> 0 | H158: ='CHVA Tool - Data Entry'!H162 -> 0 | I158: ='CHVA Tool - Data Entry'!I162 -> 0 | J158: ='CHVA Tool - Data Entry'!J162 -> 0 | K158: ='CHVA Tool - Data Entry'!K162 -> 0 | L158: ='CHVA Tool - Data Entry'!L162 -> 0 | M158: ='CHVA Tool - Data Entry'!M162 -> 0 | N158: ='CHVA Tool - Data Entry'!N162 -> 0 | O158: ='CHVA Tool - Data Entry'!O162 -> 0 | P158: ='CHVA Tool - Data Entry'!P162 -> 0 | Q158: ='CHVA Tool - Data Entry'!Q162 -> 0
A159: ='CHVA Tool - Data Entry'!A163 -> 0 | B159: ='CHVA Tool - Data Entry'!B163 -> 0 | C159: ='CHVA Tool - Data Entry'!C163 -> 0 | D159: ='CHVA Tool - Data Entry'!D163 -> 0 | E159: ='CHVA Tool - Data Entry'!E163 -> 0 | F159: ='CHVA Tool - Data Entry'!F163 -> 0 | G159: ='CHVA Tool - Data Entry'!G163 -> 0 | H159: ='CHVA Tool - Data Entry'!H163 -> 0 | I159: ='CHVA Tool - Data Entry'!I163 -> 0 | J159: ='CHVA Tool - Data Entry'!J163 -> 0 | K159: ='CHVA Tool - Data Entry'!K163 -> 0 | L159: ='CHVA Tool - Data Entry'!L163 -> 0 | M159: ='CHVA Tool - Data Entry'!M163 -> 0 | N159: ='CHVA Tool - Data Entry'!N163 -> 0 | O159: ='CHVA Tool - Data Entry'!O163 -> 0 | P159: ='CHVA Tool - Data Entry'!P163 -> 0 | Q159: ='CHVA Tool - Data Entry'!Q163 -> 0
A160: ='CHVA Tool - Data Entry'!A164 -> Average: | B160: ='CHVA Tool - Data Entry'!B164 -> 2.285714286 | C160: ='CHVA Tool - Data Entry'!C164 -> 1.857142857 | D160: ='CHVA Tool - Data Entry'!D164 -> 3 | E160: ='CHVA Tool - Data Entry'!E164 -> 3 | F160: ='CHVA Tool - Data Entry'!F164 -> 3 | G160: ='CHVA Tool - Data Entry'!G164 -> 2 | H160: ='CHVA Tool - Data Entry'!H164 -> 3 | I160: ='CHVA Tool - Data Entry'!I164 -> 1 | J160: ='CHVA Tool - Data Entry'!J164 -> 2 | K160: ='CHVA Tool - Data Entry'!K164 -> 1 | L160: ='CHVA Tool - Data Entry'!L164 -> 2 | M160: ='CHVA Tool - Data Entry'!M164 -> 2 | N160: ='CHVA Tool - Data Entry'!N164 -> 3 | O160: ='CHVA Tool - Data Entry'!O164 -> 0 | P160: ='CHVA Tool - Data Entry'!P164 -> 0 | Q160: ='CHVA Tool - Data Entry'!Q164 -> 0
A161: ='CHVA Tool - Data Entry'!A165 -> Overall Average: | B161: ='CHVA Tool - Data Entry'!B165 -> 2.018072051 | C161: ='CHVA Tool - Data Entry'!C165 -> 1.908168375 | D161: ='CHVA Tool - Data Entry'!D165 -> 2.222222222 | E161: ='CHVA Tool - Data Entry'!E165 -> 2.111111111 | F161: ='CHVA Tool - Data Entry'!F165 -> 2.111111111 | G161: ='CHVA Tool - Data Entry'!G165 -> 2 | H161: ='CHVA Tool - Data Entry'!H165 -> 2.11965812 | I161: ='CHVA Tool - Data Entry'!I165 -> 1.444444444 | J161: ='CHVA Tool - Data Entry'!J165 -> 1.777777778 | K161: ='CHVA Tool - Data Entry'!K165 -> 1.777777778 | L161: ='CHVA Tool - Data Entry'!L165 -> 2 | M161: ='CHVA Tool - Data Entry'!M165 -> 2 | N161: ='CHVA Tool - Data Entry'!N165 -> 2.111111111 | O161: ='CHVA Tool - Data Entry'!O165 -> 0 | P161: ='CHVA Tool - Data Entry'!P165 -> 0 | Q161: ='CHVA Tool - Data Entry'!Q165 -> 0

Sheet High Risk Events
A1: ='CHVA Tool - Data Entry'!A1:C1 -> Children's Hospital Colorado
A3: The events listed below (Occurrence = 3, Response = 3) have the highest potential for occurrence and the highest potential for
A4: response. Additional attention should be provided to these events to ensure that the facility is prepared.
A6: Recommendation: Compare with the Top 20 Events when selecting exercise scenarios.
A7: Recommendation: Use the Action columns to document what you have done to for each event.
A9: High Risk Occurrence and Response Events | D9: Mitigation Actions | E9: Preparedness Actions | F9: Response Actions | G9: Recovery Actions
A10: Occurrence | B10: 3
A11: Response | B11: 3
B13: Min of Occurrence | C13: Min of Response
A14: Active Shooter | B14: 3 | C14: 3
A15: Airplane Crash | B15: 3 | C15: 3
A16: Asbestos release during const. or renovation | B16: 3 | C16: 3
A17: Avalanche | B17: 3 | C17: 3
A18: Biological Attack – Aerosol Anthrax | B18: 3 | C18: 3
A19: Biological Attack – Food Contamination | B19: 3 | C19: 3
A20: Bomb Threat | B20: 3 | C20: 3
A21: Broken Water Main (External) | B21: 3 | C21: 3
A22: Broken Water Main (Internal) | B22: 3 | C22: 3
A23: Building/parking structure failure | B23: 3 | C23: 3
A24: Communications Failure | B24: 3 | C24: 3
A25: Dam Inundation | B25: 3 | C25: 3
A26: Decontamination | B26: 3 | C26: 3
A27: Evacuation | B27: 3 | C27: 3
A28: HAZMAT Spill (Internal) | B28: 3 | C28: 3
A29: Infant Security Alarm Failure | B29: 3 | C29: 3
A30: Proximity to Bridges | B30: 3 | C30: 3
A31: Proximity to nuclear power plants | B31: 3 | C31: 3

Sheet High Occurrence & Response
A1: ='CHVA Tool - Data Entry'!A1:C1 -> Children's Hospital Colorado | H1: =A1 -> Children's Hospital Colorado
A3: The events listed below have the highest potential for occurrence at your facility. | H3: The events listed below have the highest potential for response at your facility.
A5: Recommendation: Use the Action columns to document what you have done to for each event. | H5: Recommendation: Use the Action columns to document what you have done to for each event.
A7: High Risk Occurrence Events | C7: Mitigation Actions | D7: Preparedness Actions | E7: Response Actions | F7: Recovery Actions | H7: High Risk Response Events | J7: Mitigation Actions | K7: Preparedness Actions | L7: Response Actions | M7: Recovery Actions
A8: Occurrence | B8: 3 | H8: Response | I8: 3
A10: type | B10: Min of Occurrence | H10: Row Labels | I10: Min of Response
A11: Active Shooter | B11: 3 | H11: Active Shooter | I11: 3
A12: Airplane Crash | B12: 3 | H12: Airplane Crash | I12: 3
A13: Asbestos release during const. or renovation | B13: 3 | H13: Asbestos release during const. or renovation | I13: 3
A14: Avalanche | B14: 3 | H14: Avalanche | I14: 3
A15: Biological Attack – Aerosol Anthrax | B15: 3 | H15: Biological Attack – Aerosol Anthrax | I15: 3
A16: Biological Attack – Food Contamination | B16: 3 | H16: Biological Attack – Food Contamination | I16: 3
A17: Biological Attack – Foreign Animal Disease | B17: 3 | H17: Bomb Threat | I17: 3
A18: Biological Attack – Plague | B18: 3 | H18: Broken Water Main (External) | I18: 3
A19: Bomb Threat | B19: 3 | H19: Broken Water Main (Internal) | I19: 3
A20: Broken Water Main (External) | B20: 3 | H20: Building/parking structure failure | I20: 3
A21: Broken Water Main (Internal) | B21: 3 | H21: Communications Failure | I21: 3
A22: Building/parking structure failure | B22: 3 | H22: Compressed Gas Cylinder Leak/Failure | I22: 3
A23: Communications Failure | B23: 3 | H23: Dam Inundation | I23: 3
A24: Dam Inundation | B24: 3 | H24: Decontamination | I24: 3
A25: Decontamination | B25: 3 | H25: Electrical Failure | I25: 3
A26: Evacuation | B26: 3 | H26: Evacuation | I26: 3
A27: HAZMAT Spill (Internal) | B27: 3 | H27: HAZMAT Spill (Internal) | I27: 3
A28: Infant Security Alarm Failure | B28: 3 | H28: Infant Security Alarm Failure | I28: 3
A29: Proximity to Bridges | B29: 3 | H29: Information Systems Failure | I29: 3
A30: Proximity to nuclear power plants | B30: 3 | H30: Magnetic Resonance Imaging (MRI) Incident | I30: 3
H31: Proximity to Bridges | I31: 3
H32: Proximity to nuclear power plants | I32: 3

Sheet Documentation
A1: ='CHVA Tool - Data Entry'!A1 -> Children's Hospital Colorado | G1: =A1 -> Children's Hospital Colorado | L1: =A1 -> Children's Hospital Colorado
B3: SAMPLE Approvals | G3: SAMPLE Sign off Sheet | L3: SAMPLE Grid
A5: Documentation to support participation in the review of the CHVA. | G5: List all participants who reviewed the CHVA | L5: Documentation on drills/events affecting the Top 10
A7: Date | B7: Reviewed By | G7: Name | H7: Organization | I7: Date | L7: OCCURRENCE EVENTS | M7: DATE
G8: Tom Jones | H8: Emergency Management | I8: 2013-08-05 | L8: ='Top 20 Events'!B9 -> Communications Failure
A9: 2013-08-05 | B9: Emergency Management Manager | L9: ='Top 20 Events'!B10 -> Infant Security Alarm Failure
L10: ='Top 20 Events'!B11 -> Evacuation
A11: 2013-08-05 | B11: Senior Hospital Leader | L11: ='Top 20 Events'!B12 -> Airplane Crash
L12: ='Top 20 Events'!B13 -> HAZMAT Spill (Internal)
A13: 2013-08-05 | B13: Emergency Management Committee | L13: ='Top 20 Events'!B14 -> Decontamination
L14: ='Top 20 Events'!B15 -> Proximity to nuclear power plants
A15: 2013-08-05 | B15: Community Partners | L15: ='Top 20 Events'!B16 -> Avalanche
L16: ='Top 20 Events'!B17 -> Dam Inundation
A17: 2013-08-05 | B17: Environment of Care Committee | L17: ='Top 20 Events'!B18 -> Active Shooter
L18: RESPONSE EVENTS | M18: DATE
A19: 2013-08-05 | B19: Quality/Risk Management Committee | L19: ='Top 20 Events'!E9 -> Information Systems Failure
L20: ='Top 20 Events'!E10 -> Magnetic Resonance Imaging (MRI) Incident
A21: 2013-08-05 | B21: Governing Board | L21: ='Top 20 Events'!E11 -> Communications Failure
L22: ='Top 20 Events'!E12 -> Infant Security Alarm Failure
A23: 2013-08-05 | B23: Approving Body | L23: ='Top 20 Events'!E13 -> Evacuation
L24: ='Top 20 Events'!E14 -> Airplane Crash
B25: Others… | L25: ='Top 20 Events'!E15 -> HAZMAT Spill (Internal)
L26: ='Top 20 Events'!E16 -> Decontamination
L27: ='Top 20 Events'!E17 -> Bomb Threat
L28: ='Top 20 Events'!E18 -> Proximity to nuclear power plants
L29: NON-WEIGHTED TOTAL EVENTS | M29: DATE
L30: ='Top 20 Events'!H9 -> Airplane Crash
L31: ='Top 20 Events'!H10 -> Infant Security Alarm Failure
A32: NOTE: Each facility should determine who should review the CHVA. | L32: ='Top 20 Events'!H11 -> Communications Failure
A33: RECOMMENDATION: Document review date with appropriate partners. | L33: ='Top 20 Events'!H12 -> Evacuation
L34: ='Top 20 Events'!H13 -> Decontamination
L35: ='Top 20 Events'!H14 -> HAZMAT Spill (Internal)
L36: ='Top 20 Events'!H15 -> Avalanche
L37: ='Top 20 Events'!H16 -> Dam Inundation
L38: ='Top 20 Events'!H17 -> Bomb Threat
L39: ='Top 20 Events'!H18 -> Proximity to Bridges
L42: Note: The top ten are linked to the Top 20 Assessment tab and will change if updated.
L43: Recommendation: Use this form ONLY when you are done with your changes.
L45: Recommendation: Use the highlighted events to tie your CHVA into drills/planning
L46: initiatives. Use multiple events when designing a drill - challenge your program!

Sheet AUTHOR (hidden)

Sheet GNU GPL
A1: GNU GENERAL PUBLIC LICENSE
A3: Version 3, 29 June 2007
A5: Copyright © 2007 Free Software Foundation, Inc. <http://fsf.org/>
A7: Everyone is permitted to copy and distribute verbatim copies of this license document, but changing it is not allowed.
A9: Preamble
A11: The GNU General Public License is a free, copyleft license for software and other kinds of works.
A13: The licenses for most software and other practical works are designed to take away your freedom to share and change the works. By contrast, the GNU General Public License is intended to guarantee your freedom to share and change all versions of a program--to make sure it remains free software for all its users. We, the Free Software Foundation, use the GNU General Public License for most of our software; it applies also to any other work released this way by its authors. You can apply it to your programs, too.
A15: When we speak of free software, we are referring to freedom, not price. Our General Public Licenses are designed to make sure that you have the freedom to distribute copies of free software (and charge for them if you wish), that you receive source code or can get it if you want it, that you can change the software or use pieces of it in new free programs, and that you know you can do these things.
A17: To protect your rights, we need to prevent others from denying you these rights or asking you to surrender the rights. Therefore, you have certain responsibilities if you distribute copies of the software, or if you modify it: responsibilities to respect the freedom of others.
A19: For example, if you distribute copies of such a program, whether gratis or for a fee, you must pass on to the recipients the same freedoms that you received. You must make sure that they, too, receive or can get the source code. And you must show them these terms so they know their rights.
A21: Developers that use the GNU GPL protect your rights with two steps: (1) assert copyright on the software, and (2) offer you this License giving you legal permission to copy, distribute and/or modify it.
A23: For the developers' and authors' protection, the GPL clearly explains that there is no warranty for this free software. For both users' and authors' sake, the GPL requires that modified versions be marked as changed, so that their problems will not be attributed erroneously to authors of previous versions.
A25: Some devices are designed to deny users access to install or run modified versions of the software inside them, although the manufacturer can do so. This is fundamentally incompatible with the aim of protecting users' freedom to change the software. The systematic pattern of such abuse occurs in the area of products for individuals to use, which is precisely where it is most unacceptable. Therefore, we have designed this version of the GPL to prohibit the practice for those products. If such problems arise substantially in other domains, we stand ready to extend this provision to those domains in future versions of the GPL, as needed to protect the freedom of users.
A27: Finally, every program is threatened constantly by software patents. States should not allow patents to restrict development and use of software on general-purpose computers, but in those that do, we wish to avoid the special danger that patents applied to a free program could make it effectively proprietary. To prevent this, the GPL assures that patents cannot be used to render the program non-free.
A29: The precise terms and conditions for copying, distribution and modification follow.
A31: TERMS AND CONDITIONS
A33: 0. Definitions.
A35: “This License” refers to version 3 of the GNU General Public License.
A37: “Copyright” also means copyright-like laws that apply to other kinds of works, such as semiconductor masks.
A39: “The Program” refers to any copyrightable work licensed under this License. Each licensee is addressed as “you”. “Licensees” and “recipients” may be individuals or organizations.
A41: To “modify” a work means to copy from or adapt all or part of the work in a fashion requiring copyright permission, other than the making of an exact copy. The resulting work is called a “modified version” of the earlier work or a work “based on” the earlier work.
A43: A “covered work” means either the unmodified Program or a work based on the Program.
A45: To “propagate” a work means to do anything with it that, without permission, would make you directly or secondarily liable for infringement under applicable copyright law, except executing it on a computer or modifying a private copy. Propagation includes copying, distribution (with or without modification), making available to the public, and in some countries other activities as well.
A47: To “convey” a work means any kind of propagation that enables other parties to make or receive copies. Mere interaction with a user through a computer network, with no transfer of a copy, is not conveying.
A49: An interactive user interface displays “Appropriate Legal Notices” to the extent that it includes a convenient and prominently visible feature that (1) displays an appropriate copyright notice, and (2) tells the user that there is no warranty for the work (except to the extent that warranties are provided), that licensees may convey the work under this License, and how to view a copy of this License. If the interface presents a list of user commands or options, such as a menu, a prominent item in the list meets this criterion.
A51: 1. Source Code.
A53: The “source code” for a work means the preferred form of the work for making modifications to it. “Object code” means any non-source form of a work.
A55: A “Standard Interface” means an interface that either is an official standard defined by a recognized standards body, or, in the case of interfaces specified for a particular programming language, one that is widely used among developers working in that language.
A57: The “System Libraries” of an executable work include anything, other than the work as a whole, that (a) is included in the normal form of packaging a Major Component, but which is not part of that Major Component, and (b) serves only to enable use of the work with that Major Component, or to implement a Standard Interface for which an implementation is available to the public in source code form. A “Major Component”, in this context, means a major essential component (kernel, window system, and so on) of the specific operating system (if any) on which the executable work runs, or a compiler used to produce the work, or an object code interpreter used to run it.
A59: The “Corresponding Source” for a work in object code form means all the source code needed to generate, install, and (for an executable work) run the object code and to modify the work, including scripts to control those activities. However, it does not include the work's System Libraries, or general-purpose tools or generally available free programs which are used unmodified in performing those activities but which are not part of the work. For example, Corresponding Source includes interface definition files associated with source files for the work, and the source code for shared libraries and dynamically linked subprograms that the work is specifically designed to require, such as by intimate data communication or control flow between those subprograms and other parts of the work.
A61: The Corresponding Source need not include anything that users can regenerate automatically from other parts of the Corresponding Source.
A63: The Corresponding Source for a work in source code form is that same work.
A65: 2. Basic Permissions.
A67: All rights granted under this License are granted for the term of copyright on the Program, and are irrevocable provided the stated conditions are met. This License explicitly affirms your unlimited permission to run the unmodified Program. The output from running a covered work is covered by this License only if the output, given its content, constitutes a covered work. This License acknowledges your rights of fair use or other equivalent, as provided by copyright law.
A69: You may make, run and propagate covered works that you do not convey, without conditions so long as your license otherwise remains in force. You may convey covered works to others for the sole purpose of having them make modifications exclusively for you, or provide you with facilities for running those works, provided that you comply with the terms of this License in conveying all material for which you do not control copyright. Those thus making or running the covered works for you must do so exclusively on your behalf, under your direction and control, on terms that prohibit them from making any copies of your copyrighted material outside their relationship with you.
A71: Conveying under any other circumstances is permitted solely under the conditions stated below. Sublicensing is not allowed; section 10 makes it unnecessary.
A73: 3. Protecting Users' Legal Rights From Anti-Circumvention Law.
A75: No covered work shall be deemed part of an effective technological measure under any applicable law fulfilling obligations under article 11 of the WIPO copyright treaty adopted on 20 December 1996, or similar laws prohibiting or restricting circumvention of such measures.
A77: When you convey a covered work, you waive any legal power to forbid circumvention of technological measures to the extent such circumvention is effected by exercising rights under this License with respect to the covered work, and you disclaim any intention to limit operation or modification of the work as a means of enforcing, against the work's users, your or third parties' legal rights to forbid circumvention of technological measures.
A79: 4. Conveying Verbatim Copies.
A81: You may convey verbatim copies of the Program's source code as you receive it, in any medium, provided that you conspicuously and appropriately publish on each copy an appropriate copyright notice; keep intact all notices stating that this License and any non-permissive terms added in accord with section 7 apply to the code; keep intact all notices of the absence of any warranty; and give all recipients a copy of this License along with the Program.
A83: You may charge any price or no price for each copy that you convey, and you may offer support or warranty protection for a fee.
A85: 5. Conveying Modified Source Versions.
A87: You may convey a work based on the Program, or the modifications to produce it from the Program, in the form of source code under the terms of section 4, provided that you also meet all of these conditions:
A89: a) The work must carry prominent notices stating that you modified it, and giving a relevant date.
A90: b) The work must carry prominent notices stating that it is released under this License and any conditions added under section 7. This requirement modifies the requirement in section 4 to “keep intact all notices”.
A91: c) You must license the entire work, as a whole, under this License to anyone who comes into possession of a copy. This License will therefore apply, along with any applicable section 7 additional terms, to the whole of the work, and all its parts, regardless of how they are packaged. This License gives no permission to license the work in any other way, but it does not invalidate such permission if you have separately received it.
A92: d) If the work has interactive user interfaces, each must display Appropriate Legal Notices; however, if the Program has interactive interfaces that do not display Appropriate Legal Notices, your work need not make them do so.
A94: A compilation of a covered work with other separate and independent works, which are not by their nature extensions of the covered work, and which are not combined with it such as to form a larger program, in or on a volume of a storage or distribution medium, is called an “aggregate” if the compilation and its resulting copyright are not used to limit the access or legal rights of the compilation's users beyond what the individual works permit. Inclusion of a covered work in an aggregate does not cause this License to apply to the other parts of the aggregate.
A96: 6. Conveying Non-Source Forms.
A98: You may convey a covered work in object code form under the terms of sections 4 and 5, provided that you also convey the machine-readable Corresponding Source under the terms of this License, in one of these ways:
A100: a) Convey the object code in, or embodied in, a physical product (including a physical distribution medium), accompanied by the Corresponding Source fixed on a durable physical medium customarily used for software interchange.
A101: b) Convey the object code in, or embodied in, a physical product (including a physical distribution medium), accompanied by a written offer, valid for at least three years and valid for as long as you offer spare parts or customer support for that product model, to give anyone who possesses the object code either (1) a copy of the Corresponding Source for all the software in the product that is covered by this License, on a durable physical medium customarily used for software interchange, for a price no more than your reasonable cost of physically performing this conveying of source, or (2) access to copy the Corresponding Source from a network server at no charge.
A102: c) Convey individual copies of the object code with a copy of the written offer to provide the Corresponding Source. This alternative is allowed only occasionally and noncommercially, and only if you received the object code with such an offer, in accord with subsection 6b.
A103: d) Convey the object code by offering access from a designated place (gratis or for a charge), and offer equivalent access to the Corresponding Source in the same way through the same place at no further charge. You need not require recipients to copy the Corresponding Source along with the object code. If the place to copy the object code is a network server, the Corresponding Source may be on a different server (operated by you or a third party) that supports equivalent copying facilities, provided you maintain clear directions next to the object code saying where to find the Corresponding Source. Regardless of what server hosts the Corresponding Source, you remain obligated to ensure that it is available for as long as needed to satisfy these requirements.
A104: e) Convey the object code using peer-to-peer transmission, provided you inform other peers where the object code and Corresponding Source of the work are being offered to the general public at no charge under subsection 6d.
A106: A separable portion of the object code, whose source code is excluded from the Corresponding Source as a System Library, need not be included in conveying the object code work.
A108: A “User Product” is either (1) a “consumer product”, which means any tangible personal property which is normally used for personal, family, or household purposes, or (2) anything designed or sold for incorporation into a dwelling. In determining whether a product is a consumer product, doubtful cases shall be resolved in favor of coverage. For a particular product received by a particular user, “normally used” refers to a typical or common use of that class of product, regardless of the status of the particular user or of the way in which the particular user actually uses, or expects or is expected to use, the product. A product is a consumer product regardless of whether the product has substantial commercial, industrial or non-consumer uses, unless such uses represent the only significant mode of use of the product.
A110: “Installation Information” for a User Product means any methods, procedures, authorization keys, or other information required to install and execute modified versions of a covered work in that User Product from a modified version of its Corresponding Source. The information must suffice to ensure that the continued functioning of the modified object code is in no case prevented or interfered with solely because modification has been made.
A112: If you convey an object code work under this section in, or with, or specifically for use in, a User Product, and the conveying occurs as part of a transaction in which the right of possession and use of the User Product is transferred to the recipient in perpetuity or for a fixed term (regardless of how the transaction is characterized), the Corresponding Source conveyed under this section must be accompanied by the Installation Information. But this requirement does not apply if neither you nor any third party retains the ability to install modified object code on the User Product (for example, the work has been installed in ROM).
A114: The requirement to provide Installation Information does not include a requirement to continue to provide support service, warranty, or updates for a work that has been modified or installed by the recipient, or for the User Product in which it has been modified or installed. Access to a network may be denied when the modification itself materially and adversely affects the operation of the network or violates the rules and protocols for communication across the network.
A116: Corresponding Source conveyed, and Installation Information provided, in accord with this section must be in a format that is publicly documented (and with an implementation available to the public in source code form), and must require no special password or key for unpacking, reading or copying.
A118: 7. Additional Terms.
A120: “Additional permissions” are terms that supplement the terms of this License by making exceptions from one or more of its conditions. Additional permissions that are applicable to the entire Program shall be treated as though they were included in this License, to the extent that they are valid under applicable law. If additional permissions apply only to part of the Program, that part may be used separately under those permissions, but the entire Program remains governed by this License without regard to the additional permissions.
A122: When you convey a copy of a covered work, you may at your option remove any additional permissions from that copy, or from any part of it. (Additional permissions may be written to require their own removal in certain cases when you modify the work.) You may place additional permissions on material, added by you to a covered work, for which you have or can give appropriate copyright permission.
A124: Notwithstanding any other provision of this License, for material you add to a covered work, you may (if authorized by the copyright holders of that material) supplement the terms of this License with terms:
A126: a) Disclaiming warranty or limiting liability differently from the terms of sections 15 and 16 of this License; or
A127: b) Requiring preservation of specified reasonable legal notices or author attributions in that material or in the Appropriate Legal Notices displayed by works containing it; or
A128: c) Prohibiting misrepresentation of the origin of that material, or requiring that modified versions of such material be marked in reasonable ways as different from the original version; or
A129: d) Limiting the use for publicity purposes of names of licensors or authors of the material; or
A130: e) Declining to grant rights under trademark law for use of some trade names, trademarks, or service marks; or
A131: f) Requiring indemnification of licensors and authors of that material by anyone who conveys the material (or modified versions of it) with contractual assumptions of liability to the recipient, for any liability that these contractual assumptions directly impose on those licensors and authors.
A133: All other non-permissive additional terms are considered “further restrictions” within the meaning of section 10. If the Program as you received it, or any part of it, contains a notice stating that it is governed by this License along with a term that is a further restriction, you may remove that term. If a license document contains a further restriction but permits relicensing or conveying under this License, you may add to a covered work material governed by the terms of that license document, provided that the further restriction does not survive such relicensing or conveying.
A135: If you add terms to a covered work in accord with this section, you must place, in the relevant source files, a statement of the additional terms that apply to those files, or a notice indicating where to find the applicable terms.
A137: Additional terms, permissive or non-permissive, may be stated in the form of a separately written license, or stated as exceptions; the above requirements apply either way.
A139: 8. Termination.
A141: You may not propagate or modify a covered work except as expressly provided under this License. Any attempt otherwise to propagate or modify it is void, and will automatically terminate your rights under this License (including any patent licenses granted under the third paragraph of section 11).
A143: However, if you cease all violation of this License, then your license from a particular copyright holder is reinstated (a) provisionally, unless and until the copyright holder explicitly and finally terminates your license, and (b) permanently, if the copyright holder fails to notify you of the violation by some reasonable means prior to 60 days after the cessation.
A145: Moreover, your license from a particular copyright holder is reinstated permanently if the copyright holder notifies you of the violation by some reasonable means, this is the first time you have received notice of violation of this License (for any work) from that copyright holder, and you cure the violation prior to 30 days after your receipt of the notice.
A147: Termination of your rights under this section does not terminate the licenses of parties who have received copies or rights from you under this License. If your rights have been terminated and not permanently reinstated, you do not qualify to receive new licenses for the same material under section 10.
A149: 9. Acceptance Not Required for Having Copies.
A151: You are not required to accept this License in order to receive or run a copy of the Program. Ancillary propagation of a covered work occurring solely as a consequence of using peer-to-peer transmission to receive a copy likewise does not require acceptance. However, nothing other than this License grants you permission to propagate or modify any covered work. These actions infringe copyright if you do not accept this License. Therefore, by modifying or propagating a covered work, you indicate your acceptance of this License to do so.
A153: 10. Automatic Licensing of Downstream Recipients.
A155: Each time you convey a covered work, the recipient automatically receives a license from the original licensors, to run, modify and propagate that work, subject to this License. You are not responsible for enforcing compliance by third parties with this License.
A157: An “entity transaction” is a transaction transferring control of an organization, or substantially all assets of one, or subdividing an organization, or merging organizations. If propagation of a covered work results from an entity transaction, each party to that transaction who receives a copy of the work also receives whatever licenses to the work the party's predecessor in interest had or could give under the previous paragraph, plus a right to possession of the Corresponding Source of the work from the predecessor in interest, if the predecessor has it or can get it with reasonable efforts.
A159: You may not impose any further restrictions on the exercise of the rights granted or affirmed under this License. For example, you may not impose a license fee, royalty, or other charge for exercise of rights granted under this License, and you may not initiate litigation (including a cross-claim or counterclaim in a lawsuit) alleging that any patent claim is infringed by making, using, selling, offering for sale, or importing the Program or any portion of it.
A161: 11. Patents.
A163: A “contributor” is a copyright holder who authorizes use under this License of the Program or a work on which the Program is based. The work thus licensed is called the contributor's “contributor version”.
A165: A contributor's “essential patent claims” are all patent claims owned or controlled by the contributor, whether already acquired or hereafter acquired, that would be infringed by some manner, permitted by this License, of making, using, or selling its contributor version, but do not include claims that would be infringed only as a consequence of further modification of the contributor version. For purposes of this definition, “control” includes the right to grant patent sublicenses in a manner consistent with the requirements of this License.
A167: Each contributor grants you a non-exclusive, worldwide, royalty-free patent license under the contributor's essential patent claims, to make, use, sell, offer for sale, import and otherwise run, modify and propagate the contents of its contributor version.
A169: In the following three paragraphs, a “patent license” is any express agreement or commitment, however denominated, not to enforce a patent (such as an express permission to practice a patent or covenant not to sue for patent infringement). To “grant” such a patent license to a party means to make such an agreement or commitment not to enforce a patent against the party.
A171: If you convey a covered work, knowingly relying on a patent license, and the Corresponding Source of the work is not available for anyone to copy, free of charge and under the terms of this License, through a publicly available network server or other readily accessible means, then you must either (1) cause the Corresponding Source to be so available, or (2) arrange to deprive yourself of the benefit of the patent license for this particular work, or (3) arrange, in a manner consistent with the requirements of this License, to extend the patent license to downstream recipients. “Knowingly relying” means you have actual knowledge that, but for the patent license, your conveying the covered work in a country, or your recipient's use of the covered work in a country, would infringe one or more identifiable patents in that country that you have reason to believe are valid.
A173: If, pursuant to or in connection with a single transaction or arrangement, you convey, or propagate by procuring conveyance of, a covered work, and grant a patent license to some of the parties receiving the covered work authorizing them to use, propagate, modify or convey a specific copy of the covered work, then the patent license you grant is automatically extended to all recipients of the covered work and works based on it.
A175: A patent license is “discriminatory” if it does not include within the scope of its coverage, prohibits the exercise of, or is conditioned on the non-exercise of one or more of the rights that are specifically granted under this License. You may not convey a covered work if you are a party to an arrangement with a third party that is in the business of distributing software, under which you make payment to the third party based on the extent of your activity of conveying the work, and under which the third party grants, to any of the parties who would receive the covered work from you, a discriminatory patent license (a) in connection with copies of the covered work conveyed by you (or copies made from those copies), or (b) primarily for and in connection with specific products or compilations that contain the covered work, unless you entered into that arrangement, or that patent license was granted, prior to 28 March 2007.
A177: Nothing in this License shall be construed as excluding or limiting any implied license or other defenses to infringement that may otherwise be available to you under applicable patent law.
A179: 12. No Surrender of Others' Freedom.
A181: If conditions are imposed on you (whether by court order, agreement or otherwise) that contradict the conditions of this License, they do not excuse you from the conditions of this License. If you cannot convey a covered work so as to satisfy simultaneously your obligations under this License and any other pertinent obligations, then as a consequence you may not convey it at all. For example, if you agree to terms that obligate you to collect a royalty for further conveying from those to whom you convey the Program, the only way you could satisfy both those terms and this License would be to refrain entirely from conveying the Program.
A183: 13. Use with the GNU Affero General Public License.
A185: Notwithstanding any other provision of this License, you have permission to link or combine any covered work with a work licensed under version 3 of the GNU Affero General Public License into a single combined work, and to convey the resulting work. The terms of this License will continue to apply to the part which is the covered work, but the special requirements of the GNU Affero General Public License, section 13, concerning interaction through a network will apply to the combination as such.
A187: 14. Revised Versions of this License.
A189: The Free Software Foundation may publish revised and/or new versions of the GNU General Public License from time to time. Such new versions will be similar in spirit to the present version, but may differ in detail to address new problems or concerns.
A191: Each version is given a distinguishing version number. If the Program specifies that a certain numbered version of the GNU General Public License “or any later version” applies to it, you have the option of following the terms and conditions either of that numbered version or of any later version published by the Free Software Foundation. If the Program does not specify a version number of the GNU General Public License, you may choose any version ever published by the Free Software Foundation.
A193: If the Program specifies that a proxy can decide which future versions of the GNU General Public License can be used, that proxy's public statement of acceptance of a version permanently authorizes you to choose that version for the Program.
A195: Later license versions may give you additional or different permissions. However, no additional obligations are imposed on any author or copyright holder as a result of your choosing to follow a later version.
A197: 15. Disclaimer of Warranty.
A199: THERE IS NO WARRANTY FOR THE PROGRAM, TO THE EXTENT PERMITTED BY APPLICABLE LAW. EXCEPT WHEN OTHERWISE STATED IN WRITING THE COPYRIGHT HOLDERS AND/OR OTHER PARTIES PROVIDE THE PROGRAM “AS IS” WITHOUT WARRANTY OF ANY KIND, EITHER EXPRESSED OR IMPLIED, INCLUDING, BUT NOT LIMITED TO, THE IMPLIED WARRANTIES OF MERCHANTABILITY AND FITNESS FOR A PARTICULAR PURPOSE. THE ENTIRE RISK AS TO THE QUALITY AND PERFORMANCE OF THE PROGRAM IS WITH YOU. SHOULD THE PROGRAM PROVE DEFECTIVE, YOU ASSUME THE COST OF ALL NECESSARY SERVICING, REPAIR OR CORRECTION.
A201: 16. Limitation of Liability.
A203: IN NO EVENT UNLESS REQUIRED BY APPLICABLE LAW OR AGREED TO IN WRITING WILL ANY COPYRIGHT HOLDER, OR ANY OTHER PARTY WHO MODIFIES AND/OR CONVEYS THE PROGRAM AS PERMITTED ABOVE, BE LIABLE TO YOU FOR DAMAGES, INCLUDING ANY GENERAL, SPECIAL, INCIDENTAL OR CONSEQUENTIAL DAMAGES ARISING OUT OF THE USE OR INABILITY TO USE THE PROGRAM (INCLUDING BUT NOT LIMITED TO LOSS OF DATA OR DATA BEING RENDERED INACCURATE OR LOSSES SUSTAINED BY YOU OR THIRD PARTIES OR A FAILURE OF THE PROGRAM TO OPERATE WITH ANY OTHER PROGRAMS), EVEN IF SUCH HOLDER OR OTHER PARTY HAS BEEN ADVISED OF THE POSSIBILITY OF SUCH DAMAGES.
A205: 17. Interpretation of Sections 15 and 16.
A207: If the disclaimer of warranty and limitation of liability provided above cannot be given local legal effect according to their terms, reviewing courts shall apply local law that most closely approximates an absolute waiver of all civil liability in connection with the Program, unless a warranty or assumption of liability accompanies a copy of the Program in return for a fee.
A209: END OF TERMS AND CONDITIONS
